Workbook

Sheet DropDown
A1: 24 Hours | B1: 24 Hours | E1: Complain Classification
A2: 48 Hours | E2: approval issue
A3: 72 Hours | E3: approval issue + misdiagnosis
A4: More than 72 hours | E4: attitude
E5: financial claim
E6: insurance claims
E7: malpractice
E8: medical reports
E9: miscommunicatoin
E10: misdiagnosis
A11: Satisfied | B11: Satisfied | E11: negligence
A12: Neutral | E12: policies
A13: Dissatisfied | E13: prescription issue
A14: No Response | E14: Treatment plan issue
E15: Technical issue
E16: malpractice+negligence
E17: miscommunicatoin+negligence
E18: approval issue+financial claim
E19: financial claim + negligence
A20: Patient | B20: Patient | E20: misdiagnosis +miscommunicatoin
A21: Hospital | E21: misdiagnosis +negligence
E22: Miscoordination
E23: malpractice + attitude
E24: approval issue +miscommunicatoin
E25: Miscoordination+financial claim

Sheet JAN
A1: Week | B1: No. | C1: رقم الشكوى | D1: رقم الملف | E1: جهة الشكوى | F1: الموقع | G1: القسم الرئيس | H1: القسم الفرعي | I1: تاريخ إستلام الشكوى | J1: المدخل | K1: MOH & CHI | N1: رقم الجوال | O1: Time line | P1: إرسال نموذج الشكوى | R1: Employee | S1: تحرير الشكوى | U1: تفعيل الشكوى | W1: Employee | X1: تم ارسال الشكوى | Z1: Employee | AA1: الوقت بين التحرير والارسال | AB1: First Reminder Sent | AD1: Employee | AE1: الوقت بين اول ايميل والارسال | AF1: Second Reminder Sent | AH1: Employee | AI1: الوقت بين ثاني ايميل والاول | AJ1: Escalated | AL1: Employee | AM1: الوقت بين التصعيد والارسال | AN1: Closed | AP1: Employee | AQ1: الوقت بين الاغلاق والارسال | AR1: Resolved | AT1: Employee | AU1: الوقت بين المعالجة و الارسال | AV1: تاريخ الرد | AX1: الوقت بين الرد والارسال | AY1: اسم الشخص المشتكى عليه - ان وجد | AZ1: Complain Classification | BA1: موضوع الشكوى الأساسية | BB1: الشكوى باختصار (عربي) | BC1: الشكوى باختصار English | BD1: توثيق تذكيرات للقسم المشتكى عليه | BE1: تاريخ التذكير | BF1: سبب تأخير القسم بالرد | BG1: سبب تأخير اغلاق الشكوى خلال 72 ساعه | BH1: الشخص المتأخر | BI1: Satisfied/Dissatisfied | BJ1: الاجراء المتخذ من قبل القسم المعني | BK1: نتيجة الاجراء المتخذ بعد التحقيق | BL1: Recommendation/Action plan | BM1: Responsible Department | BN1: The Rightful Side | BO1: حلول واقتراحات | BP1: PR - Observations Patient Supervisor | BR1: رقم الشكوى | BS1: رقم الملف | BT1: جهة الشكوى | BU1: الموقع | BV1: القسم الرئيس | BW1: القسم الفرعي | BX1: تاريخ إستلام الشكوى | BY1: المدخل | BZ1: Time line | CB1: رقم الشكوى | CC1: رقم الملف | CD1: جهة الشكوى | CE1: الموقع | CF1: القسم الرئيس | CG1: القسم الفرعي | CH1: تاريخ إستلام الشكوى | CI1: المدخل | CJ1: Time line | CL1: رقم الشكوى | CM1: رقم الملف | CN1: جهة الشكوى | CO1: الموقع | CP1: القسم الرئيس | CQ1: القسم الفرعي | CR1: تاريخ إستلام الشكوى | CS1: المدخل | CT1: Time line | CV1: رقم الشكوى | CW1: رقم الملف | CX1: جهة الشكوى | CY1: الموقع | CZ1: القسم الرئيس | DA1: القسم الفرعي | DB1: تاريخ إستلام الشكوى | DC1: المدخل | DD1: Time line
A2: 1 | B2: 1 | C2: 3441 | D2: 30261641 | E2: مجلس الضمان الصحي | F2: العيادات الخارجية | G2: الإداري | H2: استقبال العيادات الخارجية | I2: 2025-01-01T13:22:00 | J2: امال ماهل القحطاني | K2: CHI | O2: 72 Hours | P2: 2025-01-01 | Q2: 13:22:00 | R2: امال ماهل القحطاني | S2: 2025-01-01 | T2: 13:22:00 | X2: 2025-01-01 | Y2: 13:29:00 | Z2: امال ماهل القحطاني | AA2: =(Y2+X2)-(T2+S2) -> 0.004861111112 | AB2: 2025-01-02 | AC2: 10:36:00 | AD2: امال ماهل القحطاني | AE2: =(AC2+AB2)-(Y2+X2) -> 0.8798611111 | AF2: 2025-01-02 | AG2: 18:42:00 | AH2: أبرار بندر الشمري | AI2: =(AG2+AF2)-(AC2+AB2) -> 0.3375 | AM2: =(AK2+AJ2)-(Y2+X2) -> -45658.56181 | AQ2: =(AO2+AN2)-(Y2+X2) -> -45658.56181 | AR2: 2025-01-04 | AS2: 10:50:00 | AT2: أبرار بندر الشمري | AU2: =(AS2+AR2)-(Y2+X2) -> 2.889583333 | AV2: 2025-01-04 | AW2: 10:50:00 | AX2: =(AW2+AV2)-(Y2+X2) -> 2.889583333 | AZ2: Approval issue | BA2: اشكالية نسبة التحمل لدى المستفيد | BB2: دفع نسبة تحمل غير موضحه للمستفيد لدى الضمان الصحي | BC2: Payment of an unspecified cost-sharing percentage for the beneficiary under health insurance | BD2: تم التواصل على التحويله ورقم الجوال للمشرف وقت ارسال التذكيرات بالنظام بالاضافه الى التوجهه للمكتب | BE2: 2025-01-02 | BF2: عدم وجود اسباب للتأخير | BG2: لا يوجد تجاوب كالعاده من قبل ادارة العيادات حتى بعد استنفاذ جميع التذكيرات ووسائل التواصل | BH2: الجميع | BI2: Satisfied | BN2: Hospital | BR2: 3441 | BS2: 30261641 | BT2: مجلس الضمان الصحي | BU2: العيادات الخارجية | BV2: الإداري | BW2: استقبال العيادات الخارجية | BX2: 2025-01-01T13:22:00 | BY2: امال ماهل القحطاني | BZ2: 72 Hours | CB2: 3451 | CC2: 30156862 | CD2: وزارة الصحة | CE2: العيادات الخارجية | CF2: الطبي | CG2: عيادات النساء والولادة | CH2: 2025-01-02T21:07:00 | CI2: ابرار الشمري | CJ2: 48 Hours | CL2: 3463 | CM2: 30143886 | CN2: مراجع | CO2: التنويم | CP2: التمريض | CQ2: تمريض قسم الإفاقة | CR2: 2025-01-05T17:41:00 | CS2: امال القحطاني | CT2: 24 Hours | CV2: 3446 | CW2: 30188197 | CX2: ذوي المراجع | CY2: الطوارئ | CZ2: الإداري | DA2: المدير المناوب | DB2: 2025-01-01T20:28:00 | DC2: ابرار الشمري | DD2: More than 72 hours
B3: 2 | C3: 3442 | D3: 30312602 | E3: مجلس الضمان الصحي | F3: الطوارئ | G3: الإداري | H3: المدير المناوب | I3: 2025-01-01T13:29:00 | J3: امال ماهل القحطاني | K3: CHI | O3: 24 Hours | P3: 2025-01-01 | Q3: 01:29:00 | R3: امال ماهل القحطاني | S3: 2025-01-01 | T3: 01:29:00 | X3: 2025-01-01 | Y3: 14:24:00 | Z3: امال ماهل القحطاني | AA3: =(Y3+X3)-(T3+S3) -> 0.5381944444 | AE3: =(AC3+AB3)-(Y3+X3) -> -45658.6 | AI3: =(AG3+AF3)-(AC3+AB3) -> 0 | AM3: =(AK3+AJ3)-(Y3+X3) -> -45658.6 | AQ3: =(AO3+AN3)-(Y3+X3) -> -45658.6 | AR3: 2025-01-02 | AS3: 10:31:00 | AT3: امال ماهل القحطاني | AU3: =(AS3+AR3)-(Y3+X3) -> 0.8381944444 | AV3: 2025-01-02 | AW3: 10:31:00 | AX3: =(AW3+AV3)-(Y3+X3) -> 0.8381944444 | AZ3: Approval issue | BA3: تأخير في الاجراءات النقل للتنويم | BB3: تأخير في اجراءات المتابعه لطلب الموافقه من قبل المدير المناوب وعدم التعاون مع ذوي المريضه | BC3: Delay in the follow-up procedures for approval request from the on-duty manager and lack of cooperation with the patient's family | BI3: Dissatisfied | BN3: patient | BR3: 3442 | BS3: 30312602 | BT3: مجلس الضمان الصحي | BU3: الطوارئ | BV3: الإداري | BW3: المدير المناوب | BX3: 2025-01-01T13:29:00 | BY3: امال ماهل القحطاني | BZ3: 24 Hours | CB3: 3467 | CC3: 30344169 | CD3: وزارة الصحة | CE3: التنويم | CF3: التمريض | CG3: تمريض تنويم الأطفال | CH3: 2025-01-06T15:59:00 | CI3: ابرار الشمري | CJ3: 24 Hours | CL3: 3465 | CM3: 1795358 | CN3: مراجع | CO3: العيادات الخارجية | CP3: الطبي | CQ3: عيادات جراحة المخ والأعصاب | CR3: 2025-01-06T12:47:00 | CS3: امال القحطاني | CT3: 24 Hours | CV3: 3454 | CW3: 30344169 | CX3: ذوي المراجع | CY3: العيادات الخارجية | CZ3: التمريض | DA3: تمريض العيادات الخارجية | DB3: 2025-01-04T14:01:00 | DC3: ابرار الشمري | DD3: 72 Hours
B4: 3 | C4: 3444 | D4: 30360761 | E4: مجلس الضمان الصحي | F4: العيادات الخارجية | G4: الإداري | H4: قسم الموافقات الطبية | I4: 2025-01-01T17:34:00 | J4: ابرار الشمري | K4: CHI | O4: 48 Hours | P4: 2025-01-01 | Q4: 17:34:00 | R4: ابرار بندر الشمري | S4: 2025-01-01 | T4: 17:34:00 | X4: 2025-01-01 | Y4: 17:47:00 | Z4: ابرار بندر الشمري | AA4: =(Y4+X4)-(T4+S4) -> 0.009027777778 | AE4: =(AC4+AB4)-(Y4+X4) -> -45658.74097 | AI4: =(AG4+AF4)-(AC4+AB4) -> 0 | AM4: =(AK4+AJ4)-(Y4+X4) -> -45658.74097 | AQ4: =(AO4+AN4)-(Y4+X4) -> -45658.74097 | AR4: 2025-01-02 | AS4: 18:42:00 | AT4: ابرار بندر الشمري | AU4: =(AS4+AR4)-(Y4+X4) -> 1.038194444 | AX4: =(AW4+AV4)-(Y4+X4) -> -45658.74097 | AZ4: policies | BA4: رفض إعادة المبلغ بعد البدء بالجلسات | BB4: عدم التجاوب بالغاء طلب الموافقھ ( علاج طبي ( وتم اجراء جلستن من اصل 8 جلسات ولاارغب باستكمال العلاج الطبي بنفس المسشفى . | BC4: Failure to respond by canceling the approval request (medical treatment). Two sessions have been conducted out of a total of 8 sessions, and I do not wish to continue the treatment at the same hospital. | BI4: Satisfied | BN4: Hospital | BR4: 3444 | BS4: 30360761 | BT4: مجلس الضمان الصحي | BU4: العيادات الخارجية | BV4: الإداري | BW4: قسم الموافقات الطبية | BX4: 2025-01-01T17:34:00 | BY4: ابرار الشمري | BZ4: 48 Hours | CB4: 3474 | CC4: 30264713 | CD4: وزارة الصحة | CE4: العيادات الخارجية | CF4: الإداري | CG4: قسم التقارير الطبية | CH4: 2025-01-07T17:00:00 | CI4: امال القحطاني | CJ4: 48 Hours | CL4: 3466 | CM4: 30303667 | CN4: مراجع | CO4: التنويم | CP4: الطبي | CQ4: قسم التخدير | CR4: 2025-01-06T16:07:00 | CS4: امال القحطاني | CT4: 48 Hours | CV4: 3457 | CW4: 30248069 | CX4: ذوي المراجع | CY4: التنويم | CZ4: الإداري | DA4: قسم المالية | DB4: 2025-01-04T16:22:00 | DC4: ابرار الشمري | DD4: 48 Hours
B5: 4 | C5: 3446 | D5: 30188197 | E5: ذوي المراجع | F5: الطوارئ | G5: الإداري | H5: المدير المناوب | I5: 2025-01-01T20:28:00 | J5: ابرار الشمري | O5: More than 72 hours | P5: 2025-01-01 | Q5: 20:28:00 | R5: SELF | S5: 2025-01-01 | T5: 20:28:00 | U5: 2025-01-04 | V5: 15:35:00 | W5: أبرار بندر الشمري | X5: 2025-01-04 | Y5: 15:36:00 | Z5: أبرار بندر الشمري | AA5: =(X5+Y5)-(S5+T5) -> 2.797222222 | AB5: 2025-01-05 | AC5: 11:26:00 | AD5: أبرار بندر الشمري | AE5: =(AC5+AB5)-(Y5+X5) -> 0.8263888889 | AF5: 2025-01-06 | AG5: 13:55:00 | AH5: أبرار بندر الشمري | AI5: =(AG5+AF5)-(AC5+AB5) -> 1.103472222 | AJ5: 2025-01-06 | AK5: 18:23:00 | AL5: أبرار بندر الشمري | AM5: =(AJ5+AK5)-(X5+Y5) -> 2.115972222 | AQ5: =(AN5+AO5)-(X5+Y5) -> -45661.65 | AR5: 2025-01-14 | AS5: 20:29:00 | AT5: امال ماهل القحطاني | AU5: =(AR5+AS5)-(X5+Y5) -> 10.20347222 | AX5: =(AV5+AW5)-(X5+Y5) -> -45661.65 | AZ5: Approval issue | BB5: تم رفض تحويل الحالة على حساب وزارة الصحة، ورفض اتخاذ أي إجراء إلا بمقابل مالي | BC5: The transfer of the case to be covered by the Ministry of Health has been rejected, and no action will be taken unless a financial payment is made | BI5: Dissatisfied | BN5: Hospital | BR5: 3479 | BS5: 30208591 | BT5: مجلس الضمان الصحي | BU5: العيادات الخارجية | BV5: الإداري | BW5: قسم الموافقات الطبية | BX5: 2025-01-08T12:07:00 | BY5: ابرار الشمري | BZ5: 24 Hours | CB5: 3476 | CC5: 30349803 | CD5: وزارة الصحة | CE5: التنويم | CF5: الطبي | CG5: تنويم الأطفال | CH5: 2025-01-07T18:27:00 | CI5: ابرار الشمري | CJ5: 48 Hours | CL5: 3472 | CM5: 30045855 | CN5: مراجع | CO5: العيادات الخارجية | CP5: الطبي | CQ5: عيادات النساء والولادة | CR5: 2025-01-07T18:16:00 | CS5: امال القحطاني | CT5: More than 72 hours | CV5: 3468 | CW5: 1595432 | CX5: ذوي المراجع | CY5: التنويم | CZ5: الإداري | DA5: إدارة التنويم | DB5: 2025-01-08T02:18:00 | DC5: امال القحطاني | DD5: More than 72 hours
B6: 5 | C6: 3451 | D6: 30156862 | E6: وزارة الصحة | F6: العيادات الخارجية | G6: الطبي | H6: عيادات النساء والولادة | I6: 2025-01-02T21:07:00 | J6: ابرار الشمري | K6: MOH | O6: 48 Hours | P6: 2025-01-02 | Q6: 21:07:00 | R6: ابرار بندر الشمري | S6: 2025-01-02 | T6: 21:07:00 | X6: 2025-01-02 | Y6: 21:13:00 | Z6: ابرار بندر الشمري | AA6: =(Y6+X6)-(T6+S6) -> 0.004166666666 | AB6: 2025-01-04 | AC6: 10:49:00 | AD6: ابرار بندر الشمري | AE6: =(AC6+AB6)-(Y6+X6) -> 1.566666667 | AF6: 2025-01-04 | AG6: 15:59:00 | AH6: ابرار بندر الشمري | AI6: =(AG6+AF6)-(AC6+AB6) -> 0.2152777778 | AM6: =(AK6+AJ6)-(Y6+X6) -> -45659.88403 | AQ6: =(AO6+AN6)-(Y6+X6) -> -45659.88403 | AR6: 2025-01-04 | AS6: 16:56:00 | AT6: أبرار بندر الشمري | AU6: =(AS6+AR6)-(Y6+X6) -> 1.821527778 | AX6: =(AW6+AV6)-(Y6+X6) -> -45659.88403 | AY6: د. عزه بشير | AZ6: Miscoordination | BB6: تحويل الدكتوره المراجعه لطبيب اخر | BC6: "The doctor referred the patient to another doctor." | BD6: تم التواصل عن طريق الاتصال والواتس | BI6: Dissatisfied | BN6: patient | BR6: 3516 | BS6: 30192230 | BT6: مجلس الضمان الصحي | BU6: التنويم | BV6: الإداري | BW6: قسم المالية | BX6: 2025-01-13T16:43:00 | BY6: ابرار الشمري | BZ6: 24 Hours | CB6: 3484 | CC6: 30000504 | CD6: وزارة الصحة | CE6: الطوارئ | CF6: الطبي | CG6: أطباء الطوارئ | CH6: 2025-01-09T12:28:00 | CI6: امال القحطاني | CJ6: 24 Hours | CL6: 3486 | CM6: 30102496 | CN6: مراجع | CO6: العيادات الخارجية | CP6: الإداري | CQ6: استقبال العيادات الخارجية | CR6: 2025-01-09T13:44:00 | CS6: ابرار الشمري | CT6: More than 72 hours | CV6: 3498 | CW6: 30130189 | CX6: ذوي المراجع | CY6: التنويم | CZ6: التمريض | DA6: تمريض قسم العمليات | DB6: 2025-01-12T13:26:00 | DC6: امال القحطاني | DD6: More than 72 hours
B7: 6 | C7: 3454 | D7: 30344169 | E7: ذوي المراجع | F7: العيادات الخارجية | G7: التمريض | H7: تمريض العيادات الخارجية | I7: 2025-01-04T14:01:00 | J7: ابرار الشمري | O7: 72 Hours | P7: 2025-01-04 | Q7: 13:55:00 | R7: ابرار بندر الشمري | S7: 2025-01-04 | T7: 14:01:00 | U7: 2025-01-04 | V7: 14:50:00 | W7: ابرار بندر الشمري | X7: 2025-01-04 | Y7: 15:28:00 | Z7: ابرار بندر الشمري | AA7: 0.06041666667 | AB7: 2025-01-05 | AC7: 11:27:00 | AD7: ابرار بندر الشمري | AE7: 0.8326388889 | AF7: 2025-01-06 | AG7: 13:53:00 | AH7: ابرار بندر الشمري | AI7: 1.101388889 | AM7: -45661.64444 | AQ7: -45661.64444 | AR7: 2025-01-07 | AS7: 12:56:00 | AT7: رهف العنزي | AU7: =(AS7+AR7)-(Y7+X7) -> 2.894444444 | AX7: -45661.64444 | AZ7: Miscoordination | BA7: عدم التجاوب من قبل الدكتوره وتوجيهي الى دكتور اخر بسبب رفع شكوى سابقه على مدة الانتظار رغم حجز موعد موكد بالنظام . | BI7: Satisfied | BN7: patient | BR7: 3546 | BS7: 30349865 | BT7: مجلس الضمان الصحي | BU7: التنويم | BV7: الإداري | BW7: قسم المالية | BX7: 2025-01-16T18:25:00 | BY7: امال القحطاني | BZ7: 48 Hours | CB7: 3488 | CC7: 30317540 | CD7: وزارة الصحة | CE7: العيادات الخارجية | CF7: الإداري | CG7: قسم الموافقات الطبية | CH7: 2025-01-09T19:46:00 | CI7: ابرار الشمري | CJ7: 72 Hours | CL7: 3499 | CM7: 30079795 | CN7: مراجع | CO7: العيادات الخارجية | CP7: الطبي | CQ7: عيادات الجهاز الهضمي والمناظير | CR7: 2025-01-11T18:57:00 | CS7: امال القحطاني | CT7: 48 Hours | CV7: 3505 | CW7: 30016258 | CX7: ذوي المراجع | CY7: العيادات الخارجية | CZ7: التمريض | DA7: تمريض غرفة تقديم الأدوية الوريدية (20) | DB7: 2025-01-12T17:08:00 | DC7: ابرار الشمري | DD7: More than 72 hours
B8: 7 | C8: 3457 | D8: 30248069 | E8: ذوي المراجع | F8: التنويم | G8: الإداري | H8: قسم المالية | I8: 2025-01-04T16:22:00 | J8: ابرار الشمري | O8: 48 Hours | P8: 2025-01-04 | Q8: 16:08:00 | R8: ابرار بندر الشمري | S8: 2025-01-04 | T8: 16:22:00 | U8: 2025-01-04 | V8: 16:44:00 | W8: ابرار بندر الشمري | X8: 2025-01-04 | Y8: 16:45:00 | Z8: ابرار بندر الشمري | AA8: 0.01597222222 | AB8: 2025-01-05 | AC8: 12:25:00 | AD8: ابرار بندر الشمري | AE8: 0.8194444444 | AI8: -45662.51736 | AM8: -45661.69792 | AQ8: -45661.69792 | AR8: 2025-01-05 | AS8: 18:43:00 | AT8: ابرار بندر الشمري | AU8: 1.081944444 | AX8: -45661.69792 | AZ8: Financial claims | BA8: مبلغ مستحق | BB8: دفع مبالغ اضافية مع العلم انه تم تغطيته تحت شركة التأمين | BC8: Paying additional fees, knowing that it was covered under the insurance company. | BI8: Satisfied | BN8: patient | BR8: 3574 | BS8: 30364967 | BT8: مجلس الضمان الصحي | BU8: الطوارئ | BV8: الإداري | BW8: الموافقات الطبية | BX8: 2025-01-21T13:20:00 | BY8: امال القحطاني | BZ8: 24 Hours | CB8: 3489 | CC8: 30336599 | CD8: وزارة الصحة | CE8: العيادات الخارجية | CF8: التمريض | CG8: تمريض غرفة التطعيمات | CH8: 2025-01-09T20:08:00 | CI8: ابرار الشمري | CJ8: 24 Hours | CL8: 3504 | CM8: 30362040 | CN8: مراجع | CO8: العيادات الخارجية | CP8: الإداري | CQ8: قسم الموافقات الطبية | CR8: 2025-01-12T17:08:00 | CS8: ابرار الشمري | CT8: 72 Hours | CV8: 3511 | CW8: 30057894 | CX8: ذوي المراجع | CY8: التنويم | CZ8: الطبي | DA8: قسم الحضانة | DB8: 2025-01-13T12:48:00 | DC8: ابرار الشمري | DD8: More than 72 hours
B9: 8 | C9: 3463 | D9: 30143886 | E9: مراجع | F9: التنويم | G9: التمريض | H9: تمريض قسم الإفاقة | I9: 2025-01-05T17:41:00 | J9: امال القحطاني | O9: 24 Hours | P9: 2025-01-05 | Q9: 17:02:00 | R9: امال ماهل القحطاني | S9: 2025-01-05 | T9: 17:41:00 | U9: 2025-01-05 | V9: 18:24:00 | W9: امال القحطاني | X9: 2025-01-05 | Y9: 18:26:00 | Z9: امال القحطاني | AA9: 0.03125 | AE9: -45662.76806 | AI9: 0 | AM9: -45662.76806 | AQ9: -45662.76806 | AR9: 2025-01-06 | AS9: 18:24:00 | AT9: امال القحطاني | AU9: 0.9986111111 | AV9: 2025-01-06 | AW9: 18:24:00 | AX9: 0.9986111111 | AZ9: Attitude | BA9: تعامل غير مهني من قبل التمريض | BB9: تم التعامل بطريقه قاسيه مع المريض داخل غرفة الافاقه | BC9: Unprofessional behavior from the nurse | BI9: Satisfied | BN9: patient | BR9: 3577 | BS9: 30329153 | BT9: مجلس الضمان الصحي | BU9: الطوارئ | BV9: الإداري | BW9: المدير المناوب | BX9: 2025-01-21T17:01:00 | BY9: ابرار الشمري | BZ9: 48 Hours | CB9: 3496 | CC9: 30354727 | CD9: وزارة الصحة | CE9: العيادات الخارجية | CF9: التمريض | CG9: تمريض غرفة التطعيمات | CH9: 2025-01-09T14:40:00 | CI9: رهف العنزي | CJ9: 48 Hours | CL9: 3508 | CM9: 555577911 | CN9: مراجع | CO9: العيادات الخارجية | CP9: الإداري | CQ9: قسم المواعيد | CR9: 2025-01-12T18:32:00 | CS9: امال القحطاني | CT9: 24 Hours | CV9: 3528 | CW9: 30334345 | CX9: ذوي المراجع | CY9: العيادات الخارجية | CZ9: الطبي | DA9: قسم المختبر | DB9: 2025-01-14T19:14:00 | DC9: امال القحطاني | DD9: 24 Hours
B10: 9 | C10: 3465 | D10: 1795358 | E10: مراجع | F10: العيادات الخارجية | G10: الطبي | H10: عيادات جراحة المخ والأعصاب | I10: 2025-01-06T12:47:00 | J10: امال القحطاني | O10: 24 Hours | P10: 2025-01-06 | Q10: 12:40:00 | R10: امال القحطاني | S10: 2025-01-06 | T10: 12:47:00 | U10: 2025-01-06 | V10: 18:56:00 | W10: امال القحطاني | X10: 2025-01-06 | Y10: 18:57:00 | Z10: امال القحطاني | AA10: 0.2569444444 | AE10: -45663.78958 | AI10: 0 | AM10: -45663.78958 | AQ10: -45663.78958 | AR10: 2025-01-07 | AS10: 15:26:00 | AT10: امال القحطاني | AU10: 0.8534722222 | AV10: 2025-01-07 | AW10: 15:26:00 | AX10: 0.8534722222 | AY10: د.محمد الغزالي | AZ10: Attitude | BA10: تعامل غير احترافي | BB10: اللامبلاه بحالة المريض وصرف الادويه بعدم رغبه في عمل ذلك | BC10: Unprofessional behavior by the doctor | BI10: Satisfied | BN10: Hospital | BR10: 3578 | BS10: 30363398 | BT10: مجلس الضمان الصحي | BU10: التنويم | BV10: الإداري | BW10: قسم المالية | BX10: 2025-01-21T17:15:00 | BY10: ابرار الشمري | BZ10: 24 Hours | CB10: 3506 | CC10: 30362826 | CD10: وزارة الصحة | CE10: التنويم | CF10: الطبي | CG10: تنويم الأطفال | CH10: 2025-01-12T16:46:00 | CI10: ابرار الشمري | CJ10: 48 Hours | CL10: 3521 | CM10: 1274562 | CN10: مراجع | CO10: العيادات الخارجية | CP10: الإداري | CQ10: استقبال العيادات الخارجية | CR10: 2025-01-13T19:27:00 | CS10: ابرار الشمري | CT10: More than 72 hours | CV10: 3535 | CW10: 30151322 | CX10: ذوي المراجع | CY10: العيادات الخارجية | CZ10: الطبي | DA10: عيادات العيون | DB10: 2025-01-15T18:38:00 | DC10: امال القحطاني | DD10: More than 72 hours
B11: 10 | C11: 3466 | D11: 30303667 | E11: مراجع | F11: التنويم | G11: الطبي | H11: قسم التخدير | I11: 2025-01-06T16:07:00 | J11: امال القحطاني | O11: 48 Hours | P11: 2025-01-06 | Q11: 14:03:00 | R11: امال القحطاني | S11: 2025-01-06 | T11: 16:07:00 | U11: 2025-01-06 | V11: 19:19:00 | W11: امال القحطاني | X11: 2025-01-06 | Y11: 19:24:00 | Z11: امال القحطاني | AA11: 0.1368055556 | AB11: 2025-01-07 | AC11: 17:00:00 | AD11: امال ماهل القحطاني | AE11: 0.9 | AF11: 2025-01-08 | AG11: 11:09:00 | AH11: ابرار بندر الشمري | AI11: 0.75625 | AM11: -45663.80833 | AQ11: -45663.80833 | AR11: 2025-01-08 | AS11: 13:30:00 | AT11: امال القحطاني | AU11: 1.754166667 | AV11: 2025-01-08 | AW11: 13:30:00 | AX11: 1.754166667 | AZ11: Financial claims | BA11: تعويض مالي لإصلاح الضرر | BB11: التحقيق عن الخدش الذي لحق بالاسنان نتيجة التخدير العام قبل الجراحة | BC11: Investigation of tooth injury caused by scratch due to general anesthesia before surgery. | BI11: Satisfied | BJ11: توجيه المراجع للعيادة رئيس قسم الاسنان لاعادة التشخيص | BK11: تم حضور المراجع ومحاولة اصلاح الاجراء الطبي السابق لمرتين والحضور بتاريخ 30-1-2025 المطالبه بتعويض لعمل الاجراء خارج المستشفى لعدم القدره على معالجه لدينا | BN11: patient | BP11: رفع ايميل لاكمال لاجراء والتعويض | BR11: 3608 | BS11: 2317291504 | BT11: مجلس الضمان الصحي | BU11: العيادات الخارجية | BV11: الإداري | BW11: قسم الموافقات الطبية | BX11: 2025-01-27T14:06:00 | BY11: ابرار الشمري | BZ11: 24 Hours | CB11: 3513 | CC11: 30342566 | CD11: وزارة الصحة | CE11: العيادات الخارجية | CF11: الإداري | CG11: قسم التقارير الطبية | CH11: 2025-01-13T14:23:00 | CI11: امال القحطاني | CJ11: 48 Hours | CL11: 3522 | CM11: 30362706 | CN11: مراجع | CO11: الطوارئ | CP11: الطبي | CQ11: أطباء الطوارئ | CR11: 2025-01-13T19:45:00 | CS11: امال القحطاني | CT11: More than 72 hours | CV11: 3544 | CW11: 30355121 | CX11: ذوي المراجع | CY11: التنويم | CZ11: التمريض | DA11: تمريض تنويم الأطفال | DB11: 2025-01-16T15:36:00 | DC11: رهف العنزي | DD11: 72 Hours
B12: 11 | C12: 3467 | D12: 30344169 | E12: وزارة الصحة | F12: التنويم | G12: التمريض | H12: تمريض تنويم الأطفال | I12: 2025-01-06T15:59:00 | J12: ابرار الشمري | K12: MOH | O12: 24 Hours | P12: 2025-01-06 | Q12: 15:59:00 | R12: ابرار بندر الشمري | S12: 2025-01-06 | T12: 15:59:00 | X12: 2025-01-06 | Y12: 16:06:00 | Z12: ابرار بندر الشمري | AA12: 0.004861111105 | AB12: 2025-01-06 | AC12: 16:10:00 | AD12: ابرار بندر الشمري | AE12: 0.00277777778 | AF12: 2025-01-06 | AG12: 18:11:00 | AH12: ابرار بندر الشمري | AI12: 0.08402777778 | AM12: -45663.67083 | AQ12: -45663.67083 | AR12: 2025-01-06 | AS12: 18:39:00 | AT12: ابرار بندر الشمري | AU12: 0.10625 | AV12: 2025-01-06 | AW12: 18:39:00 | AX12: 0.10625 | AZ12: Attitude | BB12: استخدام الممرضه عطر والمريض المنوم لديه اللتهاب رئوي | BC12: The nurse is wearing a strong-scented perfume, and the patient is complaining of asthma and allergies. Additionally, attempts to communicate with the nursing department have not been met with any respons | BI12: Satisfied | BJ12: تم توجيه انذار لفظفي واستبدال الممرضه بممرضه اخرى اثناء تواجد المريض بالغرفه | BN12: Hospital | CB12: 3514 | CC12: 30101991 | CD12: وزارة الصحة | CE12: العيادات الخارجية | CF12: الطبي | CG12: عيادات المخ والأعصاب (أطفال) | CH12: 2025-01-13T15:45:00 | CI12: ابرار الشمري | CJ12: 24 Hours | CL12: 3524 | CM12: 1497669 | CN12: مراجع | CO12: العيادات الخارجية | CP12: الطبي | CQ12: عيادات المخ والأعصاب | CR12: 2025-01-13T21:08:00 | CS12: امال القحطاني | CT12: 24 Hours | CV12: 3544 | CW12: 30355121 | CX12: ذوي المراجع | CY12: التنويم | CZ12: الخدمات المساندة | DA12: قسم المطبخ | DB12: 2025-01-16T13:44:00 | DC12: رهف العنزي | DD12: 24 Hours
B13: 12 | C13: 3468 | D13: 1595432 | E13: ذوي المراجع | F13: التنويم | G13: الإداري | H13: إدارة التنويم | I13: 2025-01-08T02:18:00 | J13: امال القحطاني | O13: More than 72 hours | P13: 2025-01-06 | Q13: 17:48:00 | R13: امال القحطاني | S13: 2025-01-08 | T13: 02:18:00 | U13: 2025-01-08 | V13: 15:06:00 | W13: امال القحطاني | X13: 2025-01-08 | Y13: 19:11:00 | Z13: امال القحطاني | AA13: 0.7034722222 | AB13: 2025-01-09 | AC13: 11:04:00 | AD13: امال القحطاني | AE13: 0.6618055556 | AF13: 2025-01-09 | AG13: 18:51:00 | AH13: امال القحطاني | AI13: 0.3243055556 | AR13: 2025-01-11 | AS13: 21:30:00 | AT13: امال القحطاني | AU13: 3.096527778 | AV13: 2025-01-11 | AW13: 21:30:00 | AX13: 3.096527778 | AZ13: Attitude | BA13: تأخر الاستجابة | BB13: تأخير استجابه وعدم التجاوب مع الملاحظات أو مطالبات لذوي المريض. | BC13: Delay in response and lack of cooperation with the observations or requests of the patient's family | BF13: لا يوجد | BG13: يوم جمعة لا يوجد عمل | BI13: No Response | BK13: لم يتم الرد | BN13: Hospital | BR13: Employee Name | BS13: Number of complaints | BT13: Total Percentage | BU13: 24 Hours | BV13: 48 Hours | BW13: 72 Hours | BX13: More than 72 hours | BY13: Total | CB13: 3517 | CC13: 30036252 | CD13: وزارة الصحة | CE13: الطوارئ | CF13: الإداري | CG13: المدير المناوب | CH13: 2025-01-13T16:59:00 | CI13: ابرار الشمري | CJ13: 72 Hours | CL13: 3561 | CM13: 30205389 | CN13: مراجع | CO13: العيادات الخارجية | CP13: الطبي | CQ13: عيادات جراحة الأنف وأذن وحنجرة | CR13: 2025-01-20T13:18:00 | CS13: امال القحطاني | CT13: 48 Hours | CV13: 3583 | CW13: 30364967 | CX13: ذوي المراجع | CY13: التنويم | CZ13: التمريض | DA13: تمريض تنويم الباطنية | DB13: 2025-01-22T08:01:00 | DC13: امال القحطاني | DD13: 48 Hours
B14: 13 | C14: 3472 | D14: 30045855 | E14: مراجع | F14: العيادات الخارجية | G14: الطبي | H14: عيادات النساء والولادة | I14: 2025-01-07T18:16:00 | J14: امال القحطاني | O14: More than 72 hours | P14: 2025-01-07 | Q14: 14:51:00 | R14: امال القحطاني | S14: 2025-01-07 | T14: 18:16:00 | U14: 2025-01-07 | V14: 19:11:00 | W14: امال القحطاني | X14: 2025-01-07 | Y14: 19:16:00 | Z14: امال القحطاني | AA14: 0.04166666666 | AB14: 2025-01-08 | AC14: 11:09:00 | AD14: ابرار الشمري | AE14: 0.6618055556 | AF14: 2025-01-08 | AG14: 14:17:00 | AH14: امال القحطاني | AI14: 0.1305555556 | AJ14: 2025-01-09 | AK14: 11:04:00 | AL14: امال القحطاني | AM14: =(AK14+AJ14)-(Y14+X14) -> 1.658333333 | AQ14: =(AO14+AN14)-(Y14+X14) -> -45664.80278 | AR14: 2025-01-13 | AS14: 15:00:00 | AT14: امال القحطاني | AU14: 5.822222222 | AV14: 2025-01-13 | AW14: 15:00:00 | AX14: 5.822222222 | AY14: د.فتاة نبعه | AZ14: Attitude | BA14: انتهاك خصوصية المريض | BB14: تم التدخل في خصوصية المريض وسوال المريض عن مالا يحق له السوال عنه | BC14: Patient privacy has been violated and a question was asked that the doctor has no right to ask | BD14: تم استنفاذ التذكيرات بالنظام فقط | BF14: لا يوجد | BG14: تمت الافاده بعد 5 ايام عمل | BI14: Dissatisfied | BJ14: افادت الطبيبه انه من ضمن التشخيص والجلسات مع مرضاها | BK14: المريضة لم تتقبل تبريرات الطبيبة والأسئلة التي طرحت عليها واعتبرته تعدي لخصوصيتها ولا مبرر له | BN14: patient | BR14: ابرار بندر الشمري | BS14: 6 | BT14: =BS14/BS17 -> 60.00% | BU14: 4 | BV14: 2 | BW14: 0 | BX14: 0 | BY14: =BU14+BV14+BW14+BX14 -> 6 | CB14: 3518 | CC14: 20367480 | CD14: وزارة الصحة | CE14: العيادات الخارجية | CF14: الطبي | CG14: قسم الصيدلية | CH14: 2025-01-13T17:39:00 | CI14: امال القحطاني | CJ14: 48 Hours | CL14: 3584 | CM14: 30332444 | CN14: مراجع | CO14: العيادات الخارجية | CP14: الطبي | CQ14: عيادات الباطنية | CR14: 2025-01-22T18:42:00 | CS14: ابرار الشمري | CT14: More than 72 hours | CV14: 3583 | CW14: 30364967 | CX14: ذوي المراجع | CY14: التنويم | CZ14: الخدمات المساندة | DA14: قسم النظافة | DB14: 2025-01-22T08:01:00 | DC14: امال القحطاني | DD14: More than 72 hours
B15: 14 | C15: 3474 | D15: 30264713 | E15: وزارة الصحة | F15: العيادات الخارجية | G15: الإداري | H15: قسم التقارير الطبية | I15: 2025-01-07T17:00:00 | J15: امال القحطاني | K15: MOH | L15: 2052-01-07 | N15: 506278786 | O15: 48 Hours | P15: 2025-01-07 | Q15: 17:00:00 | R15: امال القحطاني | S15: 2025-01-07 | T15: 17:00:00 | X15: 2025-01-07 | Y15: 17:11:00 | Z15: امال القحطاني | AA15: 0.007638888885 | AB15: 2025-01-08 | AC15: 11:08:00 | AD15: ابرار الشمري | AE15: 0.7479166667 | AF15: 2025-01-08 | AG15: 14:17:00 | AH15: امال القحطاني | AI15: 0.13125 | AM15: -45664.71597 | AQ15: -45664.71597 | AR15: 2025-01-08 | AS15: 19:12:00 | AT15: امال القحطاني | AU15: 1.084027778 | AV15: 2025-01-08 | AW15: 23:21:00 | AX15: 1.256944444 | AZ15: Medical reports | BA15: تاخير برفع الاجازة | BB15: تاخير برفع الاجازة لدى المنصه | BC15: Delay in uploading the vacation on the Seha platform | BI15: Satisfied | BJ15: تمت الافادة من قبل المدير الاداري | BK15: تم التواصل من قبلنا مع المريض وابلاغه بسياسة الاطباء الزوار وتوجيه المراجع لمركز الطبيب الزائر والرد للوزراه بذلك | BN15: Hospital | BR15: امال ماهل القحطاني | BS15: 4 | BT15: =BS15/BS17 -> 40.00% | BU15: 2 | BV15: 1 | BW15: 1 | BX15: 0 | BY15: =BU15+BV15+BW15+BX15 -> 4 | CB15: 3529 | CC15: 30101991 | CD15: وزارة الصحة | CE15: العيادات الخارجية | CF15: الطبي | CG15: قسم الصيدلية | CH15: 2025-01-14T19:24:00 | CI15: امال القحطاني | CJ15: 24 Hours | CL15: 3594 | CM15: 1097668598 | CN15: مراجع | CO15: العيادات الخارجية | CP15: الإداري | CQ15: قسم المواعيد | CR15: 2025-01-25T11:05:00 | CS15: ابرار الشمري | CT15: 72 Hours | CV15: 3602 | CW15: 30362295 | CX15: ذوي المراجع | CY15: العيادات الخارجية | CZ15: الإداري | DA15: قسم المواعيد | DB15: 2025-01-25T17:14:00 | DC15: امال القحطاني | DD15: 24 Hours
B16: 15 | C16: 3476 | D16: 30349803 | E16: وزارة الصحة | F16: التنويم | G16: الطبي | H16: تنويم الأطفال | I16: 2025-01-07T18:27:00 | J16: ابرار الشمري | K16: MOH | L16: 2025-01-07 | N16: 544860275 | O16: 48 Hours | P16: 2025-01-07 | Q16: 18:27:00 | R16: ابرار بندر الشمري | S16: 2025-01-07 | T16: 18:27:00 | X16: 2025-01-07 | Y16: 18:36:00 | Z16: ابرار بندر الشمري | AA16: 0.006249999999 | AB16: 2025-01-07 | AC16: 18:41:00 | AD16: ابرار بندر الشمري | AE16: 0.003472222219 | AI16: -45664.77847 | AM16: -45664.775 | AQ16: -45664.775 | AR16: 2025-01-08 | AS16: 23:21:00 | AT16: ابرار بندر الشمري | AU16: =(AS16+AR16)-(Y16+X16) -> 1.197916667 | AV16: 2025-01-08 | AW16: 23:21:00 | AX16: 1.197916667 | AY16: د. ساري | AZ16: Medical reports | BA16: عدم وضوح التقرير الطبي اثناء خروج الطفل من المستشفى | BB16: م والدة الطفله قبل شهرين وبعد مراجعة مستشفى اخر اتضح وجود مشكله صحية ( ارتخاء بالقصبه الهوائيه ) ومشاكل بالرقبه والتنفس دون التوضيح بالتقرير الطبي اثناء الولادة مما ادى الى عدم قدرة الطفله على الرضاعه . | BC16: The child was born two months ago, and after visiting another hospital, it became clear that there was a health problem (tracheal laxity) and problems with the neck and breathing, without explanation in the medical report during birth, which led to the child’s inability to breastfeed. | BI16: Satisfied | BJ16: تم حجز موعد للاطمئنان على حالة الطفله | BK16: فيما يخص حالة الطفله يوجد تقارير تثيت خروج الطفله بحاله صحية مستقره وتم حجز موعد لطفله ولم يتم الحضور من قبلهم | BN16: patient | BR16: رهف علي العنزي | BS16: 0 | BT16: =BS16/BS17 -> 0.00% | BU16: 0 | BV16: 0 | BW16: 0 | BX16: 0 | BY16: =BU16+BV16+BW16+BX16 -> 0 | CB16: 3536 | CC16: 20353908 | CD16: وزارة الصحة | CE16: العيادات الخارجية | CF16: الإداري | CG16: قسم التقارير الطبية | CH16: 2025-01-15T16:39:00 | CI16: امال القحطاني | CJ16: 24 Hours | CL16: 3605 | CM16: 30244508 | CN16: مراجع | CO16: التنويم | CP16: التمريض | CQ16: تمريض وحدة طويلي الإقامة | CR16: 2025-01-26T11:53:00 | CS16: رهف العنزي | CT16: More than 72 hours | CV16: 3622 | CW16: 516545 | CX16: ذوي المراجع | CY16: العيادات الخارجية | CZ16: الطبي | DA16: عيادات الأسنان | DB16: 2025-01-29T16:11:00 | DC16: امال القحطاني | DD16: 24 Hours
B17: 16 | C17: 3479 | D17: 30208591 | E17: مجلس الضمان الصحي | F17: العيادات الخارجية | G17: الإداري | H17: قسم الموافقات الطبية | I17: 2025-01-08T12:07:00 | J17: ابرار الشمري | K17: CHI | O17: 24 Hours | P17: 2025-01-08 | Q17: 12:07:00 | R17: ابرار بندر الشمري | S17: 2025-01-08 | T17: 12:07:00 | X17: 2025-01-08 | Y17: 12:31:00 | Z17: ابرار بندر الشمري | AA17: 0.01666666666 | AE17: -45665.52153 | AI17: 0 | AM17: -45665.52153 | AQ17: -45665.52153 | AR17: 2025-01-08 | AS17: 17:19:00 | AT17: ابرار بندر الشمري | AU17: 0.2 | AV17: 2025-01-08 | AW17: 17:19:00 | AX17: 0.2 | AZ17: Approval issue | BA17: تأخيراً واستياءً في الحصول على الموافقات الطبية | BB17: تأخيراً واستياءً في الحصول على الموافقات الطبية | BC17: Delay and dissatisfaction in obtaining medical approvals | BI17: Dissatisfied | BN17: Hospital | BR17: Total | BS17: =BS14+BS15+BS16 -> 10 | BT17: =BT15+BT14+BT16 -> 100.00% | BU17: =SUM(BU14:BU16) -> 6 | BV17: =SUM(BV14:BV16) -> 3 | BW17: =SUM(BW14:BW16) -> 1 | BX17: =SUM(BX14:BX16) -> 0 | BY17: =BY15+BY14+BY16 -> 10 | CB17: 3539 | CC17: 30143835 | CD17: وزارة الصحة | CE17: العيادات الخارجية | CF17: الطبي | CG17: عيادات جراحة الأنف وأذن وحنجرة | CH17: 2025-01-15T19:14:00 | CI17: ابرار الشمري | CJ17: 72 Hours | CL17: 3614 | CM17: 30368172 | CN17: مراجع | CO17: العيادات الخارجية | CP17: الطبي | CQ17: قسم المختبر | CR17: 2025-01-28T13:44:00 | CS17: امال القحطاني | CT17: 24 Hours | CV17: 3631 | CW17: 516545 | CX17: ذوي المراجع | CY17: العيادات الخارجية | CZ17: الإداري | DA17: استقبال العيادات الخارجية | DB17: 2025-01-30T20:01:00 | DC17: امال القحطاني | DD17: More than 72 hours
A18: 2 | B18: 17 | C18: 3484 | D18: 30000504 | E18: وزارة الصحة | F18: الطوارئ | G18: الطبي | H18: أطباء الطوارئ | I18: 2025-01-09T12:28:00 | J18: امال القحطاني | K18: MOH | O18: 24 Hours | P18: 2025-01-09 | Q18: 12:28:00 | R18: امال القحطاني | S18: 2025-01-09 | T18: 12:28:00 | X18: 2025-01-09 | Y18: 12:28:00 | Z18: امال القحطاني | AA18: 0 | AE18: -45666.51944 | AI18: 0 | AM18: -45666.51944 | AQ18: -45666.51944 | AR18: 2025-01-09 | AS18: 12:44:00 | AT18: امال القحطاني | AU18: 0.01111111111 | AV18: 2025-01-09 | AW18: 12:44:00 | AX18: 0.01111111111 | AZ18: Malpractice | BA18: تقصير بالخدمات الطبيه | BB18: لم يتم اخذ العلامات الحيويه لدى قسم الطوارى | BC18: Failure to take vital signs in the emergency department. | BI18: No Response | BJ18: تمت الافادة كما يجب ولا يوجد اشكاليه تخص المستشفى | BK18: لم يتم التواصل بعد ذلك لان المريض مستمر في توجيه شكاوي كيديه على المستشفى والاكتفاء برد رسمي واضح للوزاره | BN18: patient | BO18: امكانية اضافة خطاب بدون رفع شكوى رسميه علما ان الشكوى الموضحه مرفوعه لكتابة الخطاب فقط . | CB18: 3540 | CC18: 30365141 | CD18: وزارة الصحة | CE18: التنويم | CF18: الطبي | CG18: قسم الحضانة | CH18: 2025-01-15T19:27:00 | CI18: ابرار الشمري | CJ18: More than 72 hours | CL18: 3617 | CM18: 20329036 | CN18: مراجع | CO18: الطوارئ | CP18: الطبي | CQ18: أطباء الطوارئ | CR18: 2025-01-28T18:18:00 | CS18: امال القحطاني | CT18: 24 Hours
B19: 18 | C19: 3486 | D19: 30102496 | E19: مراجع | F19: العيادات الخارجية | G19: الإداري | H19: استقبال العيادات الخارجية | I19: 2025-01-09T13:44:00 | J19: ابرار الشمري | O19: More than 72 hours | P19: 2025-01-09 | Q19: 13:36:00 | R19: ابرار الشمري | S19: 2025-01-09 | T19: 13:44:00 | U19: 2025-01-09 | V19: 15:35:00 | W19: ابرار الشمري | X19: 2025-01-09 | Y19: 15:35:00 | Z19: ابرار الشمري | AA19: 0.07708333333 | AB19: 2025-01-09 | AC19: 17:44:00 | AD19: ابرار الشمري | AE19: 0.08958333333 | AF19: 2025-01-09 | AG19: 19:25:00 | AH19: ابرار الشمري | AI19: 0.07013888889 | AJ19: 2025-01-12 | AK19: 10:49:00 | AL19: ابرار الشمري | AM19: 2.801388889 | AQ19: -45666.64931 | AR19: 2025-01-22 | AS19: 16:36:00 | AT19: ابرار الشمري | AU19: 13.04236111 | AX19: -45666.64931 | AZ19: Attitude | BA19: اسلوب غير مهني موظف الاستقبال | BB19: اسلوب غير مهني موظف الاستقبال | BC19: Unprofessional behavior by the reception staff. | BI19: Satisfied | BJ19: التواصل من قبل مشرف العياجات مع المريض | BK19: تم التواصل مع المراجع واتخاذ اجراء اداري بالموظف | BN19: patient | BR19: CCHI | BS19: 10 | BT19: =BS19/#REF! ->  | CB19: 3552 | CC19: 30130014 | CD19: وزارة الصحة | CE19: التنويم | CF19: الإداري | CG19: قسم المالية | CH19: 2025-01-12T14:08:00 | CI19: رهف العنزي | CJ19: 24 Hours | CL19: 3625 | CM19: 30351053 | CN19: مراجع | CO19: العيادات الخارجية | CP19: الإداري | CQ19: استقبال العيادات الخارجية | CR19: 2025-01-29T18:38:00 | CS19: امال القحطاني | CT19: More than 72 hours | CV19: Employee Name | CW19: Number of complaints | CX19: Total Percentage | CY19: 24 Hours | CZ19: 48 Hours | DA19: 72 Hours | DB19: More than 72 hours | DC19: Total
B20: 19 | C20: 3488 | D20: 30317540 | E20: وزارة الصحة | F20: العيادات الخارجية | G20: الإداري | H20: قسم الموافقات الطبية | I20: 2025-01-09T19:46:00 | J20: ابرار الشمري | K20: MOH | L20: 2025-01-09 | N20: 053 252 5731 | O20: 72 Hours | P20: 2025-01-09 | Q20: 19:46:00 | R20: ابرار بندر الشمري | S20: 2025-01-09 | T20: 19:46:00 | X20: 2025-01-09 | Y20: 19:50:00 | Z20: ابرار بندر الشمري | AA20: 0.00277777778 | AE20: -45666.82639 | AI20: 0 | AM20: -45666.82639 | AQ20: -45666.82639 | AR20: 2025-01-12 | AS20: 10:51:00 | AT20: ابرار بندر الشمري | AU20: 2.625694444 | AX20: -45666.82639 | AZ20: Approval issue | BA20: عدم الغاء موافقه | BB20: تم طلب الغاء موافقه ولم يتم الغاءها مما تسبب لعدم قبول الموافقه لدى مستشفى اخر . | BC20: The cancellation of the approval was requested but was not processed, which resulted in the approval not being accepted by another hospital. | BI20: Dissatisfied | BK20: لم يتمكن قسم الموافقات من الالغاء وذلك بسب رفض شركة التامين ( التعاونية ) | BN20: patient | CB20: 3560 | CC20: 30358781 | CD20: وزارة الصحة | CE20: العيادات الخارجية | CF20: الطبي | CG20: قسم الصيدلية | CH20: 2025-01-19T14:13:00 | CI20: ابرار الشمري | CJ20: 24 Hours | CV20: ابرار بندر الشمري | CW20: 5 | CX20: =CW20/CW23 -> 31.25% | CY20: 0 | CZ20: 1 | DA20: 1 | DB20: 3 | DC20: =CY20+CZ20+DA20+DB20 -> 5
B21: 20 | C21: 3489 | D21: 30336599 | E21: وزارة الصحة | F21: العيادات الخارجية | G21: التمريض | H21: تمريض غرفة التطعيمات | I21: 2025-01-09T20:08:00 | J21: ابرار الشمري | K21: MOH | L21: 2025-01-09 | N21: 0 55 610 1177 | O21: 24 Hours | P21: 2025-01-09 | Q21: 20:08:00 | R21: ابرار بندر الشمري | S21: 2025-01-09 | T21: 20:08:00 | X21: 2025-01-09 | Y21: 20:11:00 | Z21: ابرار بندر الشمري | AA21: 0.002083333333 | AE21: -45666.84097 | AI21: 0 | AM21: -45666.84097 | AQ21: -45666.84097 | AR21: 2025-01-09 | AS21: 20:42:00 | AT21: ابرار بندر الشمري | AU21: 0.02152777778 | AX21: -45666.84097 | AZ21: Medical reports | BA21: تاخير برفع تطعيمه | BB21: عدم رفع تطعيمت الطفل لعمر 6 اشهر عبر منصة صحتي | BC21: The child’s 6-month vaccinations were not uploaded to the Sehaty platform. | BI21: Satisfied | BJ21: تم التواصل وتحديث ملف الطفل ورفعها بالمنصه | BN21: Hospital | BR21: 24 Hours | BS21: 48 Hours | BT21: 72 Hours | BU21: More than 72 hours | CB21: 3565 | CC21: 14703 | CD21: وزارة الصحة | CE21: العيادات الخارجية | CF21: الإداري | CG21: استقبال العيادات الخارجية | CH21: 2025-01-20T20:39:00 | CI21: ابرار الشمري | CJ21: 24 Hours | CL21: Employee Name | CM21: Number of complaints | CN21: Total Percentage | CO21: 24 Hours | CP21: 48 Hours | CQ21: 72 Hours | CR21: More than 72 hours | CS21: Total | CV21: امال ماهل القحطاني | CW21: 9 | CX21: =CW21/CW23 -> 56.25% | CY21: 3 | CZ21: 1 | DA21: 0 | DB21: 5 | DC21: =DB21+DA21+CZ21+CY21 -> 9
B22: 21 | C22: 3496 | D22: 30354727 | E22: وزارة الصحة | F22: العيادات الخارجية | G22: التمريض | H22: تمريض غرفة التطعيمات | I22: 2025-01-09T14:40:00 | J22: رهف العنزي | K22: MOH | L22: 2025-01-09 | N22: 054 313 7800 | O22: 48 Hours | P22: 2025-01-09 | Q22: 14:40:00 | R22: رهف العنزي | S22: 2025-01-09 | T22: 14:40:00 | X22: 2025-01-09 | Y22: 14:40:00 | Z22: رهف العنزي | AA22: =(X22+Y22)-(S22+T22) -> 0 | AE22: =(AB22+AC22)-(X22+Y22) -> -45666.61111 | AI22: =(AF22+AG22)+(AB22+AC22) -> 0 | AM22: =(AJ22+AK22)-(X22+Y22) -> -45666.61111 | AQ22: =(AN22+AO22)-(X22+Y22) -> -45666.61111 | AR22: 2025-01-11 | AS22: 12:35:00 | AT22: رهف العنزي | AU22: =(AR22+AS22)-(X22+Y22) -> 1.913194444 | AX22: =(AV22+AW22)-(X22+Y22) -> -45666.61111 | AZ22: Medical reports | BA22: not uploading vaccine to sehaty app | BB22: عدم اضافة تطعيمة المولودة | BC22: not uploading vaccine to sehaty app | BI22: Satisfied | BJ22: اضافة التطعيمة لصحتي | BN22: Hospital | BO22: اضافة التطعيمة خلال 48 ساعة من الحصول عليها | BR22: 6 | BS22: 3 | BT22: 1 | BU22: 0 | CB22: 3567 | CC22: 30360865 | CD22: وزارة الصحة | CE22: الطوارئ | CF22: الإداري | CG22: الموافقات الطبية | CH22: 2025-01-21T09:27:00 | CI22: ابرار الشمري | CJ22: 24 Hours | CL22: ابرار بندر الشمري | CM22: 5 | CN22: =CM22/CM25 -> 27.78% | CO22: 0 | CP22: 0 | CQ22: 2 | CR22: 3 | CS22: =CO22+CP22+CQ22+CR22 -> 5 | CV22: رهف علي العنزي | CW22: 2 | CX22: =CW22/CW23 -> 12.50% | CY22: 1 | CZ22: 0 | DA22: 1 | DB22: 0 | DC22: =CY22+CZ22+DA22+DB22 -> 2
B23: 22 | C23: 3498 | D23: 30130189 | E23: ذوي المراجع | F23: التنويم | G23: التمريض | H23: تمريض قسم العمليات | I23: 2025-01-12T13:26:00 | J23: امال القحطاني | O23: More than 72 hours | P23: 2025-01-11 | Q23: 16:44:00 | R23: امال القحطاني | S23: 2025-01-12 | T23: 13:26:00 | U23: 2025-01-12 | V23: 14:50:00 | W23: امال القحطاني | X23: 2025-01-12 | Y23: 20:32:00 | Z23: امال القحطاني | AA23: =(Y23+X23)-(T23+S23) -> 0.2958333333 | AB23: 2025-01-13 | AC23: 13:52:00 | AD23: امال القحطاني | AE23: =(AC23+AB23)-(Y23+X23) -> 0.7222222222 | AI23: =(AG23+AF23)-(AC23+AB23) -> -45670.57778 | AM23: =(AK23+AJ23)-(Y23+X23) -> -45669.85556 | AQ23: =(AO23+AN23)-(Y23+X23) -> -45669.85556 | AR23: 2025-01-18 | AS23: 13:30:00 | AT23: ابرار الشمري | AU23: =(AS23+AR23)-(Y23+X23) -> 5.706944444 | AV23: 2025-01-18 | AW23: 13:30:00 | AX23: =(AW23+AV23)-(Y23+X23) -> 5.706944444 | AZ23: Attitude | BA23: تعامل ممرضه | BB23: التعامل بطريقه غير مهنيه من قبل ممرضه كبيره في السن | BC23: Shouting and unprofessional behavior by an elderly nurse. | BI23: No Response | BJ23: تم الاعتذار عن الموقف والتبرير له | BK23: لم تتم الافاده حتى الان | BN23: patient | BR23: =BR22/BS19 -> 60.00% | BS23: =BS22/BS19 -> 30.00% | BT23: =BT22/BS19 -> 10.00% | BU23: =BU22/BS19 -> 0.00% | CB23: 3580 | CC23: 30052778 | CD23: وزارة الصحة | CE23: التنويم | CF23: الطبي | CG23: وحدة المناظير | CH23: 2025-01-21T18:00:00 | CI23: امال القحطاني | CJ23: 24 Hours | CL23: امال ماهل القحطاني | CM23: 12 | CN23: =CM23/CM25 -> 66.67% | CO23: 6 | CP23: 3 | CQ23: 0 | CR23: 3 | CS23: =CR23+CQ23+CP23+CO23 -> 12 | CV23: Total | CW23: =CW20+CW21+CW22 -> 16 | CX23: =CX21+CX20+CX22 -> 100.00% | CY23: =SUBTOTAL(9,CY20:CY22) -> 4 | CZ23: =SUBTOTAL(9,CZ20:CZ22) -> 2 | DA23: =SUBTOTAL(9,DA20:DA22) -> 2 | DB23: =SUBTOTAL(9,DB20:DB22) -> 8 | DC23: =DC21+DC20+DC22 -> 16
B24: 23 | C24: 3499 | D24: 30079795 | E24: مراجع | F24: العيادات الخارجية | G24: الطبي | H24: عيادات الجهاز الهضمي والمناظير | I24: 2025-01-11T18:57:00 | J24: امال القحطاني | O24: 48 Hours | P24: 2025-01-11 | Q24: 18:57:00 | R24: امال القحطاني | S24: 2025-01-11 | T24: 18:57:00 | X24: 2025-01-11 | Y24: 19:11:00 | Z24: امال القحطاني | AA24: 0.009722222225 | AE24: =(AC24+AB24)-(Y24+X24) -> -45668.79931 | AI24: =(AG24+AF24)-(AC24+AB24) -> 0 | AM24: =(AK24+AJ24)-(Y24+X24) -> -45668.79931 | AQ24: -45668.79931 | AR24: 2025-01-13 | AS24: 13:30:00 | AT24: امال القحطاني | AU24: =(AS24+AR24)-(Y24+X24) -> 1.763194444 | AV24: 2025-01-13 | AW24: 13:30:00 | AX24: 1.763194444 | AY24: د.رامي شعث | AZ24: Miscommunication | BA24: مغادرة الطبيب للعياده | BB24: الطبيب غادر قبل وصولي والدخول للعياده | BC24: The doctor left before my arrival, and I was unable to enter the clinic. | BI24: Satisfied | BJ24: تمت التعقيب بضرورة وجود المراجع قبل الموعد بعشر دقايق | BK24: لم يتم الاعتراض على الافاده بعد التاكد من وصولها للمدير الطبي والاكتفاء بذلك | BN24: patient | CB24: 3595 | CC24: 30201702 | CD24: وزارة الصحة | CE24: العيادات الخارجية | CF24: الإداري | CG24: قسم الموافقات الطبية | CH24: 2025-01-23T14:46:00 | CI24: ابرار الشمري | CJ24: 24 Hours | CL24: رهف علي العنزي | CM24: 1 | CN24: =CM24/CM25 -> 5.56% | CO24: 0 | CP24: 0 | CQ24: 0 | CR24: 1 | CS24: =CO24+CP24+CQ24+CR24 -> 1
B25: 24 | C25: 3504 | D25: 30362040 | E25: مراجع | F25: العيادات الخارجية | G25: الإداري | H25: قسم الموافقات الطبية | I25: 2025-01-12T17:08:00 | J25: ابرار الشمري | O25: 72 Hours | P25: 2025-01-12 | Q25: 16:46:00 | R25: ابرار بندر الشمري | S25: 2025-01-12 | T25: 17:08:00 | U25: 2025-01-13 | V25: 10:12:00 | W25: ابرار بندر الشمري | X25: 2025-01-13 | Y25: 10:15:00 | Z25: ابرار بندر الشمري | AA25: 0.7131944444 | AE25: =(AC25+AB25)-(Y25+X25) -> -45670.42708 | AI25: =(AG25+AF25)-(AC25+AB25) -> 0 | AM25: =(AK25+AJ25)-(Y25+X25) -> -45670.42708 | AQ25: -45670.42708 | AR25: 2025-01-15 | AS25: 13:28:00 | AT25: ابرار بندر الشمري | AU25: 2.134027778 | AX25: -45670.42708 | AZ25: Documentation | BA25: عدم متابعة طلب الموافقه | BB25: تم رفع الموافقة بدون ارفاق جميع التقارير اللازمة والتشخيص وبناء عليه تم رفض العلاج داخل المستشفى المتمثل في التبخير وتم رفض جهاز التبخير مع العلاج ايضا | BC25: The approval was submitted without attaching all the necessary reports and diagnosis. Accordingly, the in-hospital treatment of fumigation was rejected, and the fumigation device was also rejected along with the treatment. | BI25: No Response | BN25: Hospital | BR25: In-Patient | BS25: 3 | BT25: =BS25/BS28 -> 30.00% | CB25: 3612 | CC25: 30227876 | CD25: وزارة الصحة | CE25: العيادات الخارجية | CF25: الإداري | CG25: قسم الموافقات الطبية | CH25: 2025-01-27T20:59:00 | CI25: ابرار الشمري | CJ25: 48 Hours | CL25: Total | CM25: =CM22+CM23+CM24 -> 18 | CN25: =CN23+CN22+CN24 -> 100.00% | CO25: =SUBTOTAL(9,CO22:CO24) -> 6 | CP25: =SUBTOTAL(9,CP22:CP24) -> 3 | CQ25: =SUBTOTAL(9,CQ22:CQ24) -> 2 | CR25: =SUBTOTAL(9,CR22:CR24) -> 7 | CS25: =CS23+CS22+CS24 -> 18 | CV25: ذوي المراجع | CW25: 16 | CX25: =CW25/#REF! -> 
B26: 25 | C26: 3505 | D26: 30016258 | E26: ذوي المراجع | F26: العيادات الخارجية | G26: التمريض | H26: تمريض غرفة تقديم الأدوية الوريدية (20) | I26: 2025-01-12T17:08:00 | J26: ابرار الشمري | O26: More than 72 hours | P26: 2025-01-12 | Q26: 04:51:00 | R26: ابرار بندر الشمري | S26: 2025-01-12 | T26: 17:08:00 | U26: 2025-01-13 | V26: 17:11:00 | W26: ابرار بندر الشمري | X26: 2025-01-14 | Y26: 09:32:00 | Z26: ابرار بندر الشمري | AA26: 1.683333333 | AB26: 2025-01-14 | AC26: 10:57:00 | AD26: ابرار بندر الشمري | AE26: =(AC26+AB26)-(Y26+X26) -> 0.05902777778 | AF26: 2025-01-14 | AG26: 16:55:00 | AH26: ابرار بندر الشمري | AI26: =(AG26+AF26)-(AC26+AB26) -> 0.2486111111 | AJ26: 2025-01-15 | AK26: 13:29:00 | AL26: ابرار بندر الشمري | AM26: =(AK26+AJ26)-(Y26+X26) -> 1.164583333 | AQ26: -45671.39722 | AR26: 2025-01-20 | AS26: 11:08:00 | AT26: ابرار بندر الشمري | AU26: 6.066666667 | AX26: -45671.39722 | AY26: Lutshai | AZ26: Malpractice | BA26: التعامل بطريقة غير مهنية | BB26: الإدخال غير الصحيح للإبرة الوريدية أدى إلى فقدانها من مكانها وتسرب الدم، رغم محاولات إيجاد العرق داخل الساعد. | BC26: The incorrect insertion of the pink needle led to its dislodgment and blood leakage, despite attempts to locate the vein within the forearm | BI26: Satisfied | BN26: patient | BR26: Out-Patient | BS26: 4 | BT26: =BS26/BS28 -> 40.00% | CB26: 3615 | CC26: 30367804 | CD26: وزارة الصحة | CE26: العيادات الخارجية | CF26: الطبي | CG26: عيادات الباطنية | CH26: 2025-01-28T14:35:00 | CI26: امال القحطاني | CJ26: 24 Hours
B27: 26 | C27: 3506 | D27: 30362826 | E27: وزارة الصحة | F27: التنويم | G27: الطبي | H27: تنويم الأطفال | I27: 2025-01-12T16:46:00 | J27: ابرار الشمري | K27: MOH | L27: 2025-01-09 | N27: 0 54 008 0133 | O27: 48 Hours | P27: 2025-01-12 | Q27: 16:46:00 | R27: ابرار بندر الشمري | S27: 2025-01-12 | T27: 16:46:00 | X27: 2025-01-12 | Y27: 16:52:00 | Z27: ابرار بندر الشمري | AA27: 0.004166666666 | AB27: 2025-01-13 | AC27: 14:28:00 | AD27: ابرار الشمري | AE27: =(AC27+AB27)-(Y27+X27) -> 0.9 | AF27: 2025-01-13 | AG27: 15:24:00 | AH27: ابرار الشمري | AI27: =(AG27+AF27)-(AC27+AB27) -> 0.03888888889 | AM27: =(AK27+AJ27)-(Y27+X27) -> -45669.70278 | AQ27: -45669.70278 | AR27: 2025-01-14 | AS27: 09:34:00 | AT27: ابرار بندر الشمري | AU27: 1.695833333 | AX27: -45669.70278 | AY27: د.إيمان حمدان | AZ27: Miscommunication | BA27: كتابة خروج دون علم ذوي الطفله | BB27: تم كتابة خروج الطفل المنوم بدون إفادت ذوي الطفل عن خروجهم من الغرفه اضافة الى ذلك كانت حرارة الطفله مرتفعه . | BC27: It was written that the hospitalized child had left without informing the child’s family that they had left the room. In addition, the child’s temperature was high. | BI27: Dissatisfied | BJ27: فتح تحقيق من قبل الادارة الطبية عن طريق ارسال ايميل بتحقق حيث افادة الدكتوره ايمان افادة غير واضحه | BK27: اتخاذ اجراء اداري من قبل الادارة الطبية | BN27: patient | BR27: ER | BS27: 3 | BT27: =BS27/BS28 -> 30.00% | CB27: 3620 | CC27: 30041913 | CD27: وزارة الصحة | CE27: الطوارئ | CF27: الإداري | CG27: المدير المناوب | CH27: 2025-01-29T12:22:00 | CI27: ابرار الشمري | CJ27: 24 Hours | CL27: Patients | CM27: 18 | CN27: =CM27/#REF! ->  | CV27: 24 Hours | CW27: 48 Hours | CX27: 72 Hours | CY27: More than 72 hours
B28: 27 | C28: 3508 | D28: 555577911 | E28: مراجع | F28: العيادات الخارجية | G28: الإداري | H28: قسم المواعيد | I28: 2025-01-12T18:32:00 | J28: امال القحطاني | O28: 24 Hours | P28: 2025-01-12 | Q28: 18:29:00 | R28: امال القحطاني | S28: 2025-01-12 | T28: 18:32:00 | U28: 2025-01-12 | V28: 19:57:00 | W28: امال القحطاني | X28: 2025-01-12 | Y28: 20:16:00 | Z28: امال القحطاني | AA28: 0.07222222222 | AB28: 2025-01-13 | AC28: 14:08:00 | AD28: امال القحطاني | AE28: 0.7444444444 | AI28: -45670.58889 | AM28: -45669.84444 | AQ28: -45669.84444 | AR28: 2025-01-13 | AS28: 20:09:00 | AT28: امال القحطاني | AU28: 0.9951388889 | AV28: 2025-01-13 | AW28: 20:09:00 | AX28: 0.9951388889 | AZ28: Miscommunication | BA28: تاكيد موعد على رقم اخر | BB28: تم الاتصال لتأكيد الموعد على رقم غير رقمي الشخصي، رغم أن الموعد حجز باستخدام رقمي | BC28: The appointment was confirmed on a number other than my personal one, despite being booked using my number. | BI28: No Response | BJ28: تمت الافاده بوجود عطل لا يظهر المكالمات مع المريضه ولا يوجد مايثبت افادة المراجعه | BK28: لم يتم ابلاغ المريضه بالافادة لعدم استيفاء الرد من قبل القسم علما انه تم التبرير سابقا للمراجعه قبل رفع الشكوى بامكانية حدوث ذلك والتواصل يكون على الرقم المسجل للملف ولم تقتنع | BN28: Hospital | BO28: التاكيد والحرص على اصلاح المشاكل التقنية لديهم من عدم ووصل رسائل المواعيد والالغاء وعدم امكانية الرجوع للمكالمات المسجله | BR28: Total | BS28: =BS25+BS26+BS27 -> 10 | BT28: =BT27+BT26+BT25 -> 100.00% | CB28: 3630 | CC28: 30004373 | CD28: وزارة الصحة | CE28: العيادات الخارجية | CF28: الطبي | CG28: قسم الصيدلية | CH28: 2025-01-30T17:35:00 | CI28: امال القحطاني | CJ28: 24 Hours | CV28: 4 | CW28: 2 | CX28: 2 | CY28: 8
B29: 28 | C29: 3511 | D29: 30057894 | E29: ذوي المراجع | F29: التنويم | G29: الطبي | H29: قسم الحضانة | I29: 2025-01-13T12:48:00 | J29: ابرار الشمري | O29: More than 72 hours | P29: 2025-01-13 | Q29: 10:09:00 | R29: ابرار بندر الشمري | S29: 2025-01-13 | T29: 12:48:00 | U29: 2025-01-13 | V29: 17:11:00 | W29: ابرار بندر الشمري | X29: 2025-01-14 | Y29: 09:26:00 | Z29: ابرار بندر الشمري | AA29: 0.8597222222 | AB29: 2025-01-14 | AC29: 17:06:00 | AD29: ابرار بندر الشمري | AE29: =(AC29+AB29)-(Y29+X29) -> 0.3194444444 | AF29: 2025-01-15 | AG29: 13:35:00 | AH29: ابرار بندر الشمري | AI29: =(AG29+AF29)-(AC29+AB29) -> 0.8534722222 | AJ29: 2025-01-15 | AK29: 13:35:00 | AL29: ابرار بندر الشمري | AM29: =(AK29+AJ29)-(Y29+X29) -> 1.172916667 | AQ29: -45671.39306 | AR29: 2025-01-20 | AS29: 11:06:00 | AT29: ابرار بندر الشمري | AU29: 6.069444444 | AX29: -45671.39306 | AZ29: Malpractice | BA29: التعامل بطريقة غير مهنية | BB29: عدم تجاوب دكتور الأطفال وطلب خروج الطفل دون حضوره و لم يتم إبلاغنا عن التحاليل المرفوضة | BC29: The pediatrician's failure to respond and the request to discharge the child without his presence, and we were not informed about the rejected tests | BI29: Dissatisfied | BN29: Hospital | BR29: Medical | BS29: 0 | BT29: =BS29/BS33 -> 0.00% | CL29: 24 Hours | CM29: 48 Hours | CN29: 72 Hours | CO29: More than 72 hours | CV29: =CV28/CW25 -> 25.00% | CW29: =CW28/CW25 -> 12.50% | CX29: =CX28/CW25 -> 12.50% | CY29: =CY28/CW25 -> 50.00%
B30: 29 | C30: 3513 | D30: 30342566 | E30: وزارة الصحة | F30: العيادات الخارجية | G30: الإداري | H30: قسم التقارير الطبية | I30: 2025-01-13T14:23:00 | J30: امال القحطاني | K30: MOH | L30: 2025-01-13 | N30: 54 941 3307 | O30: 48 Hours | P30: 2025-01-13 | Q30: 14:23:00 | R30: امال القحطاني | S30: 2025-01-13 | T30: 14:23:00 | X30: 2025-01-13 | Y30: 15:54:00 | Z30: امال القحطاني | AA30: 0.06319444444 | AQ30: -45670.6625 | AR30: 2025-01-14 | AS30: 18:37:00 | AT30: امال القحطاني | AU30: 1.113194444 | AV30: 2025-01-14 | AW30: 18:37:00 | AX30: 1.113194444 | AZ30: Medical reports | BA30: تاخير رفع اجازة | BB30: تاخير رفع اجازة لدى منصة صحة | BC30: Delay in uploading the vacation on the Seha platform | BI30: No Response | BJ30: تم التواصل من قبل القسم بحضوري ولم يتم الرد من قبل المراجع | BK30: تم التواصل من قبلنا ايضا ولم يتم التجاوب وتم ابلاغ الوزاره بذلك | BN30: Hospital | BR30: Admin | BS30: 10 | BT30: =BS30/BS33 -> 100.00% | CB30: Employee Name | CC30: Number of complaints | CD30: Total Percentage | CE30: 24 Hours | CF30: 48 Hours | CG30: 72 Hours | CH30: More than 72 hours | CI30: Total | CL30: 6 | CM30: 3 | CN30: 2 | CO30: 7
B31: 30 | C31: 3514 | D31: 30101991 | E31: وزارة الصحة | F31: العيادات الخارجية | G31: الطبي | H31: عيادات المخ والأعصاب (أطفال) | I31: 2025-01-13T15:45:00 | J31: ابرار الشمري | K31: MOH | L31: 2025-01-13 | N31: 0 55 555 7708 | O31: 24 Hours | P31: 2025-01-13 | Q31: 15:45:00 | R31: ابرار بندر الشمري | S31: 2025-01-13 | T31: 15:45:00 | X31: 2025-01-13 | Y31: 16:43:00 | Z31: ابرار بندر الشمري | AA31: 0.04027777778 | AE31: =(AC31+AB31)-(Y31+X31) -> -45670.69653 | AI31: =(AG31+AF31)-(AC31+AB31) -> 0 | AM31: =(AK31+AJ31)-(Y31+X31) -> -45670.69653 | AQ31: -45670.69653 | AR31: 2025-01-14 | AS31: 10:49:00 | AT31: ابرار بندر الشمري | AU31: 0.7541666667 | AX31: -45670.69653 | AY31: د.خالد جامع | AZ31: Documentation | BA31: عدم رفع الوصفھ عبر رقيب | BB31: عدم رفع الوصفھ عبر رقيب | BC31: do not upload the prescription on Raqeeb | BI31: Satisfied | BN31: Hospital | BR31: Nursing | BS31: 0 | BT31: =BS31/BS33 -> 0.00% | CB31: ابرار بندر الشمري | CC31: 16 | CD31: =CC31/CC34 -> 59.26% | CE31: 8 | CF31: 4 | CG31: 3 | CH31: 1 | CL31: =CL30/CM27 -> 33.33% | CM31: =CM30/CM27 -> 16.67% | CN31: =CN30/CM27 -> 11.11% | CO31: =CO30/CM27 -> 38.89% | CV31: In-Patient | CW31: 8 | CX31: =CW31/CW34 -> 50.00%
B32: 31 | C32: 3516 | D32: 30192230 | E32: مجلس الضمان الصحي | F32: التنويم | G32: الإداري | H32: قسم المالية | I32: 2025-01-13T16:43:00 | J32: ابرار الشمري | K32: CHI | L32: 2025-01-13 | M32: C250109807691909 | O32: 24 Hours | P32: 2025-01-13 | Q32: 16:43:00 | R32: ابرار بندر الشمري | S32: 2025-01-13 | T32: 16:43:00 | X32: 2025-01-13 | Y32: 16:59:00 | Z32: ابرار بندر الشمري | AA32: 0.01111111111 | AB32: 2025-01-14 | AC32: 10:50:00 | AD32: ابرار بندر الشمري | AE32: 0.74375 | AI32: -45671.45139 | AM32: -45670.70764 | AQ32: -45670.70764 | AR32: 2025-01-14 | AS32: 13:59:00 | AT32: ابرار بندر الشمري | AU32: 0.875 | AX32: -45670.70764 | AZ32: Insurance Claims | BA32: وجود مبالغ مستحقه وعدم التوضيح لشركة التامين | BB32: وجود مبالغ مستحقه وعدم التوضيح لشركة التامين | BC32: The presence of amounts due and the lack of clarification to the insurance company | BI32: Satisfied | BN32: Hospital | BR32: Support Services | BS32: 0 | BT32: =BS32/BS33 -> 0.00% | CB32: امال ماهل القحطاني | CC32: 9 | CD32: =CC32/CC34 -> 33.33% | CE32: 6 | CF32: 3 | CG32: 0 | CH32: 0 | CV32: Out-Patient | CW32: 7 | CX32: =CW32/CW34 -> 43.75%
B33: 32 | C33: 3517 | D33: 30036252 | E33: وزارة الصحة | F33: الطوارئ | G33: الإداري | H33: المدير المناوب | I33: 2025-01-13T16:59:00 | J33: ابرار الشمري | K33: MOH | L33: 2025-01-13 | O33: 72 Hours | P33: 2025-01-13 | Q33: 16:59:00 | R33: ابرار بندر الشمري | S33: 2025-01-13 | T33: 16:59:00 | X33: 2025-01-13 | Y33: 17:10:00 | Z33: ابرار بندر الشمري | AA33: 0.007638888892 | AB33: 2025-01-14 | AC33: 10:50:00 | AD33: ابرار بندر الشمري | AE33: 0.7361111111 | AF33: 2025-01-14 | AG33: 21:46:00 | AH33: ابرار بندر الشمري | AI33: 0.4555555556 | AM33: -45670.71528 | AQ33: -45670.71528 | AR33: 2025-01-15 | AS33: 18:19:00 | AT33: ابرار بندر الشمري | AU33: 2.047916667 | AV33: 2025-01-15 | AW33: 18:19:00 | AX33: 2.047916667 | AZ33: Approval issue | BA33: يفيد المستشفى برفض طلب شراء الخدمة من قبل وزارة الصحة وعند تواصلي مع وزارة الصحة تمت افادتي بعدم رفع طلب شراء الخدمة من قبل المستشفى | BB33: رفض رفع طلب شراء الخدمة (وزارة الصحة ) | BC33: Refusal to submit a request to purchase the service (Ministry of Health) | BI33: Dissatisfied | BN33: Hospital | BR33: Total | BS33: =BS29+BS30+BS31+BS32 -> 10 | BT33: =BT32+BT31+BT30+BT29 -> 100.00% | CB33: رهف علي العنزي | CC33: 2 | CD33: =CC33/CC34 -> 7.41% | CE33: 1 | CF33: 1 | CG33: 0 | CH33: 0 | CL33: In-Patient | CM33: 3 | CN33: =CM33/CM36 -> 16.67% | CV33: ER | CW33: 1 | CX33: =CW33/CW34 -> 6.25%
B34: 33 | C34: 3518 | D34: 20367480 | E34: وزارة الصحة | F34: العيادات الخارجية | G34: الطبي | H34: قسم الصيدلية | I34: 2025-01-13T17:39:00 | J34: امال القحطاني | K34: MOH | O34: 48 Hours | P34: 2025-01-13 | Q34: 17:39:00 | R34: امال القحطاني | S34: 2025-01-13 | T34: 17:39:00 | X34: 2025-01-13 | Y34: 18:22:00 | Z34: امال القحطاني | AA34: 0.02986111111 | AB34: 2025-01-14 | AC34: 12:57:00 | AD34: امال القحطاني | AE34: 0.7743055556 | AI34: -45671.53958 | AM34: -45670.76528 | AQ34: -45670.76528 | AR34: 2025-01-15 | AS34: 17:16:00 | AT34: امال القحطاني | AU34: 1.954166667 | AV34: 2025-01-15 | AW34: 17:16:00 | AX34: 1.954166667 | AZ34: prescription issue | BA34: وصفه خاطئة | BB34: تم صرف دواء من قبل الطبيب النفسي مع ستيكر باسم الدواء اخر . | BC34: A medication was prescribed with a sticker showing the name of a different medication. | BI34: Satisfied | BJ34: تم التواصل مع ذوي المراجع والاعتذار منه وعمل التحقيق مع الموظف المسؤل | BK34: ابلاغ المريض بالحضور واكمال اجراءات اللازمه والرد على الوزاره بذلك | BN34: patient | CB34: Total | CC34: =CC31+CC32+CC33 -> 27 | CD34: =CD32+CD31+CD33 -> 100.00% | CE34: =SUM(CE31:CE33) -> 15 | CF34: =SUM(CF31:CF33) -> 8 | CG34: =SUM(CG31:CG33) -> 3 | CH34: =SUM(CH31:CH33) -> 1 | CI34: =CI32+CI31+CI33 -> 0 | CL34: Out-Patient | CM34: 13 | CN34: =CM34/CM36 -> 72.22% | CV34: Total | CW34: =CW31+CW32+CW33 -> 16 | CX34: =CX33+CX32+CX31 -> 100.00%
B35: 34 | C35: 3521 | D35: 1274562 | E35: مراجع | F35: العيادات الخارجية | G35: الإداري | H35: استقبال العيادات الخارجية | I35: 2025-01-13T19:27:00 | J35: ابرار الشمري | O35: More than 72 hours | P35: 2025-01-13 | Q35: 19:27:00 | R35: SELF | S35: 2025-01-13 | T35: 19:27:00 | U35: 2025-01-16 | V35: 10:33:00 | W35: ابرار الشمري | X35: 2025-01-16 | Y35: 10:35:00 | Z35: ابرار الشمري | AA35: 2.630555556 | AB35: 2025-01-18 | AC35: 13:27:00 | AD35: ابرار بندر الشمري | AE35: 2.119444444 | AF35: 2025-01-19 | AG35: 10:31:00 | AH35: ابرار الشمري | AI35: 0.8777777778 | AJ35: 2025-01-19 | AK35: 15:07:00 | AL35: ابرار الشمري | AM35: 3.188888889 | AQ35: -45673.44097 | AR35: 2025-01-27 | AS35: 13:04:00 | AT35: ابرار الشمري | AU35: 11.10347222 | AY35: بدر استقبال العيادات الخارجية 2 | AZ35: Attitude | BA35: تعامل غير لائق | BB35: تم استقبالي بأسلوب غير لائق من قبل موظف الاستقبال بعد تلقي مكالمة من عيادة التخدير، مما أدى إلى إلغاء العملية. | BC35: I was received in an inappropriate manner by the receptionist after receiving a call from the anesthesia clinic, which resulted in the cancellation of the procedure. | BI35: No Response | BN35: patient | CL35: ER | CM35: 2 | CN35: =CM35/CM36 -> 11.11% | CV35: Medical | CW35: 4 | CX35: =CW35/CW39 -> 25.00%
B36: 35 | C36: 3522 | D36: 30362706 | E36: مراجع | F36: الطوارئ | G36: الطبي | H36: أطباء الطوارئ | I36: 2025-01-13T19:45:00 | J36: امال القحطاني | O36: More than 72 hours | P36: 2025-01-13 | Q36: 19:33:00 | R36: امال القحطاني | S36: 2025-01-13 | T36: 19:45:00 | U36: 2025-01-13 | V36: 19:48:00 | W36: امال القحطاني | X36: 2025-01-13 | Y36: 19:54:00 | Z36: امال القحطاني | AA36: 0.006250000006 | AB36: 2025-01-14 | AC36: 12:57:00 | AD36: امال القحطاني | AE36: 0.7104166667 | AF36: 2025-01-15 | AG36: 17:26:00 | AH36: امال القحطاني | AI36: 1.186805556 | AJ36: 2025-01-16 | AK36: 14:29:00 | AL36: امال القحطاني | AM36: 2.774305556 | AQ36: -45670.82917 | AR36: 2025-01-19 | AS36: 18:54:00 | AT36: امال القحطاني | AU36: 5.958333333 | AV36: 2025-01-19 | AW36: 18:54:00 | AX36: =(AW36+AV36)-(Y36+X36) -> 5.958333333 | AY36: د. سيف النصر | AZ36: Misdiagnosis | BA36: تشخيص مختلف | BB36: تم تدهور حالة المريضه وابلاغها بضرورة اجراء عمليه من قبل مستشفى اخر بعد التشخيص و السماح لها بالخروج في اخر زياره لها لدى الحمادي | BC36: The patient was diagnosed and allowed to leave by the emergency doctors during her last visit to Al-Hamadi Hospital. After her discharge, her health condition deteriorated, and she was informed of the need for surgery by another hospital. | BD36: تم التواصل عن طريق التحويله | BE36: 2025-01-14 | BG36: لا يوجد سبب واضح رغم التذكير بالنظام والتواصل | BH36: طبيب الطوارئ | BI36: Dissatisfied | BJ36: لم يتم اتخاذ اي اجراء لعدم وجود رد مقنع و نفي حميع ماذكرت المريضه | BK36: بعد إصرار المراجعة على الحصول على الرد، تم تصعيد الشكوى للحضور إلى المدير الطبي. | BN36: Hospital | BP36: رفع ايميل | CB36: MOH | CC36: 27 | CD36: =CC36/#REF! ->  | CL36: Total | CM36: =CM33+CM34+CM35 -> 18 | CN36: =CN35+CN34+CN33 -> 100.00% | CT36: Patient’s relatives | CV36: Admin | CW36: 5 | CX36: =CW36/CW39 -> 31.25%
B37: 36 | C37: 3524 | D37: 1497669 | E37: مراجع | F37: العيادات الخارجية | G37: الطبي | H37: عيادات المخ والأعصاب | I37: 2025-01-13T21:08:00 | J37: امال القحطاني | O37: 24 Hours | P37: 2025-01-13 | Q37: 21:02:00 | R37: امال القحطاني | S37: 2025-01-13 | T37: 21:08:00 | U37: 2025-01-14 | V37: 13:23:00 | W37: امال القحطاني | X37: 2025-01-14 | Y37: 15:06:00 | Z37: امال القحطاني | AA37: 0.7486111111 | AE37: -45671.62917 | AI37: 0 | AM37: -45671.62917 | AQ37: -45671.62917 | AR37: 2025-01-14 | AS37: 18:51:00 | AT37: امال القحطاني | AU37: 0.15625 | AV37: 2025-01-14 | AW37: 18:51:00 | AX37: 0.15625 | AY37: د.علاء خياط | AZ37: Miscoordination | BA37: سوء تنظيم المواعيد | BB37: سوء تنظيم المواعيد للمرضى داخل العياده | BC37: Poor appointment scheduling for patients inside the clinic | BI37: No Response | BJ37: تمت الافاده | BK37: لم يتم الرد | BN37: patient | CL37: Medical | CM37: 10 | CN37: =CM37/CM41 -> 55.56% | CV37: Nursing | CW37: 5 | CX37: =CW37/CW39 -> 31.25%
B38: 37 | C38: 3528 | D38: 30334345 | E38: ذوي المراجع | F38: العيادات الخارجية | G38: الطبي | H38: قسم المختبر | I38: 2025-01-14T19:14:00 | J38: امال القحطاني | O38: 24 Hours | P38: 2025-01-14 | Q38: 18:50:00 | R38: امال القحطاني | S38: 2025-01-14 | T38: 19:14:00 | U38: 2025-01-15 | V38: 19:14:00 | W38: امال القحطاني | X38: 2025-01-15 | Y38: 19:35:00 | Z38: امال القحطاني | AA38: 1.014583333 | AB38: 2025-01-16 | AC38: 16:20:00 | AD38: امال القحطاني | AE38: 0.8645833333 | AI38: -45673.68056 | AM38: -45672.81597 | AQ38: -45672.81597 | AR38: 2025-01-16 | AS38: 18:24:00 | AT38: امال القحطاني | AU38: =(AS38+AR38)-(Y38+X38) -> 0.9506944445 | AV38: 2025-01-16 | AW38: 18:24:00 | AX38: 0.9506944445 | AZ38: Malpractice | BA38: تأخير في ظهور النتيجه | BB38: يوجد تأخير في ظهور النتيجه وعدم وجود اسباب واضحه لذلك | BC38: There is a delay in the result appearing, and no clear reasons for it | BI38: Dissatisfied | BJ38: تم ذكر اسباب غير واضحه لاسباب التأخير | BK38: بعد افادة المراجعه بالرد الطبي الموجه لنا من قبل القسم طلب التحقيق فيه | BN38: Hospital | CB38: 24 Hours | CC38: 48 Hours | CD38: 72 Hours | CE38: More than 72 hours | CL38: Admin | CM38: 6 | CN38: =CM38/CM41 -> 33.33% | CV38: Support Services | CW38: 2 | CX38: =CW38/CW39 -> 12.50%
B39: 38 | C39: 3529 | D39: 30101991 | E39: وزارة الصحة | F39: العيادات الخارجية | G39: الطبي | H39: قسم الصيدلية | I39: 2025-01-14T19:24:00 | J39: امال القحطاني | K39: MOH | L39: 2025-01-13 | O39: 24 Hours | P39: 2025-01-14 | Q39: 19:24:00 | R39: امال القحطاني | S39: 2025-01-14 | T39: 19:24:00 | X39: 2025-01-14 | Y39: 20:04:00 | Z39: امال القحطاني | AA39: 0.02777777777 | AE39: -45671.83611 | AI39: 0 | AM39: -45671.83611 | AQ39: -45671.83611 | AR39: 2025-01-15 | AS39: 16:25:00 | AT39: امال القحطاني | AU39: 0.8479166667 | AV39: 2025-01-15 | AW39: 16:25:00 | AX39: 0.8479166667 | AZ39: Access to care | BA39: عدم توفر الوصفه | BB39: تم تجديد الوصفة في آخر زيارة لكن لم تُصرف لعدم توفر الدواء. تبقى يومان لإعادة الصرف والطفل لم يتناول الدواء بعد | BC39: The prescription was renewed during the last visit but was not filled due to the unavailability of the medication. | BI39: Dissatisfied | BJ39: الافاده بعدم توفر الدواء لدى السوق السعودي وابلاغ المراجع بذلمك | BK39: تم التواصل والتاكد من ذلك الا ان المريض لا زال مستاء من عدم وجود حل لابنه المريض | BN39: Hospital | CB39: 15 | CC39: 8 | CD39: 3 | CE39: 1 | CL39: Nursing | CM39: 2 | CN39: =CM39/CM41 -> 11.11% | CV39: Total | CW39: =CW35+CW36+CW37+CW38 -> 16 | CX39: =CX38+CX37+CX36+CX35 -> 100.00%
B40: 39 | C40: 3535 | D40: 30151322 | E40: ذوي المراجع | F40: العيادات الخارجية | G40: الطبي | H40: عيادات العيون | I40: 2025-01-15T18:38:00 | J40: امال القحطاني | O40: More than 72 hours | P40: 2025-01-15 | Q40: 16:29:00 | R40: امال القحطاني | S40: 2025-01-15 | T40: 18:38:00 | U40: 2025-01-15 | V40: 18:39:00 | W40: امال القحطاني | X40: 2025-01-16 | Y40: 17:53:00 | Z40: امال القحطاني | AA40: 0.96875 | AB40: 2025-01-18 | AC40: 13:31:00 | AD40: ابرار الشمري | AE40: 1.818055556 | AF40: 2025-01-18 | AG40: 18:25:00 | AH40: ابرار الشمري | AI40: 0.2041666667 | AJ40: 2025-01-19 | AK40: 14:12:00 | AL40: امال القحطاني | AM40: 2.846527778 | AQ40: -45673.74514 | AR40: 2025-01-20 | AS40: 19:05:00 | AT40: امال القحطاني | AU40: 4.05 | AV40: 2025-01-20 | AW40: 19:05:00 | AX40: 4.05 | AZ40: Cleanliness Issue | BA40: سوء نظافه | BB40: وجود رائحة قويه داخل عيادة اجراء الفحص للعيون | BC40: There is a strong odor inside the eye examination clinic | BD40: استنفاذ التذكيرات بالنظام | BE40: 2025-01-19 | BF40: بعد التواصل مع القسم تم افادتنا بان الشكوى لم تصل بالايميل | BG40: عدم ظهور الشكوى لدى القسم , ومشرفة القسم هي نفسها ممرضة الطبيب داخل العياده ولا يوجد ماينوب عنها للرد على الشكوى | BH40: مشرفة القسم موهلينا (لينا ) | BI40: Dissatisfied | BJ40: الاعتذار من القسم والتبرير بالاضافه الى التواصل مع ابن المريضه من قبل المدير الطبي( مرفق تفاصيل الاجراء بالايميل ) | BK40: اتخاذ موقف من ابن المراجعة رغم وجود الأسباب المقنعة والخارجة عن الإرادة واتخاذ جميع الإجراءات الطبية اللازمة للمريضة | BN40: patient | CB40: =CB39/CC36 -> 55.56% | CC40: =CC39/CC36 -> 29.63% | CD40: =CD39/CC36 -> 11.11% | CE40: =CE39/CC36 -> 3.70% | CL40: Support Services | CM40: 0 | CN40: =CM40/CM41 -> 0.00%
B41: 40 | C41: 3536 | D41: 20353908 | E41: وزارة الصحة | F41: العيادات الخارجية | G41: الإداري | H41: قسم التقارير الطبية | I41: 2025-01-15T16:39:00 | J41: امال القحطاني | K41: MOH | L41: 2025-01-15 | N41: 55 555 7708 | O41: 24 Hours | P41: 2025-01-15 | Q41: 16:39:00 | R41: امال القحطاني | S41: 2025-01-15 | T41: 16:39:00 | X41: 2025-01-15 | Y41: 16:57:00 | Z41: امال القحطاني | AA41: 0.0125 | AE41: -45672.70625 | AI41: 0 | AM41: -45672.70625 | AQ41: -45672.70625 | AR41: 2025-01-15 | AS41: 17:00:00 | AT41: امال القحطاني | AU41: 0.002083333333 | AV41: 2025-01-15 | AW41: 17:00:00 | AX41: 0.002083333333 | AZ41: Medical reports | BA41: رفض اعطاء تقرير | BB41: تم الحضور ورفض اعطاء التقرير المطلوب | BC41: Refusal to provide a medical report | BI41: Satisfied | BJ41: التواصل مع الطبيب من قبلي بالتعاون مع دكتور عبدالاله لتعديل التقرير | BK41: تم التواصل مع المراجعه والتاكد من ارسال التقرير المطلوب من قبل قسم | BN41: Hospital | CL41: Total | CM41: =CM37+CM38+CM39+CM40 -> 18 | CN41: =CN40+CN39+CN38+CN37 -> 100.00%
B42: 41 | C42: 3539 | D42: 30143835 | E42: وزارة الصحة | F42: العيادات الخارجية | G42: الطبي | H42: عيادات جراحة الأنف وأذن وحنجرة | I42: 2025-01-15T19:14:00 | J42: ابرار الشمري | K42: MOH | L42: 2025-01-15 | O42: 72 Hours | P42: 2025-01-15 | Q42: 19:14:00 | R42: ابرار بندر الشمري | S42: 2025-01-15 | T42: 19:14:00 | X42: 2025-01-15 | Y42: 19:27:00 | Z42: ابرار بندر الشمري | AA42: 0.009027777778 | AB42: 2025-01-16 | AC42: 14:05:00 | AD42: ابرار بندر الشمري | AE42: 0.7763888889 | AI42: -45673.58681 | AM42: -45672.81042 | AQ42: -45672.81042 | AR42: 2025-01-18 | AS42: 13:28:00 | AT42: ابرار بندر الشمري | AU42: 2.750694444 | AX42: -45672.81042 | AY42: د.أحمد قعقع | AZ42: prescription issue | BA42: رفض اعطاء الوصفة | BB42: تم رفض طلب الطبيب بإعطاء المضاد عن طريق المغذي للمريض الذي لا يتقبل الشراب، مما أدى إلى تدهور حالته الصحية. | BC42: The doctor's request to administer the antibiotic via IV to the patient who cannot take oral medication was denied, leading to a deterioration in the patient's health condition. | BI42: Dissatisfied | BN42: patient | CB42: In-Patient | CC42: 6 | CD42: =CC42/CC45 -> 22.22%
B43: 42 | C43: 3540 | D43: 30365141 | E43: وزارة الصحة | F43: التنويم | G43: الطبي | H43: قسم الحضانة | I43: 2025-01-15T19:27:00 | J43: ابرار الشمري | K43: MOH | O43: More than 72 hours | P43: 2025-01-15 | Q43: 19:27:00 | R43: ابرار بندر الشمري | S43: 2025-01-15 | T43: 19:27:00 | X43: 2025-01-15 | Y43: 19:33:00 | Z43: ابرار بندر الشمري | AA43: 0.004166666666 | AB43: 2025-01-16 | AC43: 14:03:00 | AD43: ابرار بندر الشمري | AE43: 0.7708333333 | AF43: 2025-01-18 | AG43: 13:14:00 | AH43: ابرار بندر الشمري | AI43: 1.965972222 | AM43: -45672.81458 | AQ43: -45672.81458 | AR43: 2025-01-19 | AS43: 09:45:00 | AT43: ابرار بندر الشمري | AU43: 3.591666667 | AX43: -45672.81458 | AZ43: Miscommunication | BA43: كتابة خروج دون الاطمئنان على حالة الطفلة | BB43: تم كتابة خروج لطفلھ دون توضيح الحالة الصحية لطفلھ أو الاطمئنان عليها | BC43: A discharge was written for the child without clarifying their health condition or ensuring their well-being. | BI43: Dissatisfied | BN43: patient | CB43: Out-Patient | CC43: 17 | CD43: =CC43/CC45 -> 62.96%
A44: 3 | B44: 43 | C44: 3544 | D44: 30355121 | E44: ذوي المراجع | F44: التنويم | G44: التمريض | H44: تمريض تنويم الأطفال | I44: 2025-01-16T15:36:00 | J44: رهف العنزي | O44: 72 Hours | P44: 2025-01-16 | Q44: 13:44:00 | R44: رهف علي العنزي | S44: 2025-01-16 | T44: 15:36:00 | U44: 2025-01-18 | V44: 14:46:00 | W44: رهف علي العنزي | X44: 2025-01-18 | Y44: 14:47:00 | Z44: رهف علي العنزي | AA44: 1.965972222 | AB44: 2025-01-19 | AC44: 10:49:00 | AD44: رهف علي العنزي | AE44: 0.8347222222 | AF44: 2025-01-20 | AG44: 10:48:00 | AH44: ابرار الشمري | AI44: 0.9993055556 | AM44: -45675.61597 | AQ44: -45675.61597 | AR44: 2025-01-21 | AS44: 11:12:00 | AT44: رهف العنزي | AU44: 2.850694444 | AX44: -45675.61597 | AZ44: Malpractice | BA44: taking wrong measures for oxygen | BB44: اخذ قياسات الاكسجين بطريقة خاطئة اثناء جلسة الأكسجين ووزارة الصحة افادت الام انها خاطئة | BC44: Nursing took wrong oxygen measures while on oxygen session patient's mom asked moh and they informed her it is wrong | BI44: Satisfied | BN44: patient | CB44: ER | CC44: 4 | CD44: =CC44/CC45 -> 14.81%
B45: 44 | C45: 3544 | D45: 30355121 | E45: ذوي المراجع | F45: التنويم | G45: الخدمات المساندة | H45: قسم المطبخ | I45: 2025-01-16T13:44:00 | J45: رهف العنزي | O45: 24 Hours | P45: 2025-01-16 | Q45: 13:44:00 | R45: رهف علي العنزي | S45: 2025-01-16 | T45: 13:44:00 | U45: 2025-01-18 | V45: 14:46:00 | W45: رهف علي العنزي | X45: 2025-01-18 | Y45: 14:47:00 | Z45: رهف علي العنزي | AA45: =(X45+Y45)-(S45+T45) -> 2.04375 | AB45: 2025-01-19 | AC45: 10:49:00 | AD45: رهف علي العنزي | AE45: 0.8347222222 | AI45: =(AF45+AG45)+(AB45+AC45) -> 45676.45069 | AM45: -45675.61597 | AQ45: -45675.61597 | AR45: 2025-01-19 | AS45: 13:07:00 | AT45: رهف العنزي | AU45: =(AR45+AS45)-(X45+Y45) -> 0.9305555556 | AX45: -45675.61597 | AZ45: Malpractice | BA45: did not ask if any allergies or prefrences | BB45: لم يسأل المطبخ عن وجود اي حساسية او تفضيلات طعام | BI45: Satisfied | BJ45: تم التوضيح للمريضة بان الطبيب مسؤول عن توضيح الحساسية لدى المريض وذويه وطلب المطبخ تنويع اقائمة | BN45: Hospital | BO45: اضافة قائمة طعام متنوعة من المطبخ | CB45: Total | CC45: =CC42+CC43+CC44 -> 27 | CD45: =CD44+CD43+CD42 -> 100.00%
B46: 45 | C46: 3546 | D46: 30349865 | E46: مجلس الضمان الصحي | F46: التنويم | G46: الإداري | H46: قسم المالية | I46: 2025-01-16T18:25:00 | J46: امال القحطاني | K46: CCHI | O46: 48 Hours | P46: 2025-01-16 | Q46: 18:25:00 | R46: امال القحطاني | S46: 2025-01-16 | T46: 18:25:00 | X46: 2025-01-16 | Y46: 18:49:00 | Z46: امال القحطاني | AA46: =(Y46+X46)-(T46+S46) -> 0.01666666667 | AE46: -45673.78403 | AI46: =(AG46+AF46)-(AC46+AB46) -> 0 | AM46: -45673.78403 | AQ46: -45673.78403 | AR46: 2025-01-18 | AS46: 13:31:00 | AT46: ابرار بندر الشمري | AU46: =(AS46+AR46)-(Y46+X46) -> 1.779166667 | AX46: -45673.78403 | AZ46: Attitude | BA46: رفض حالة طبيه | BB46: سوء التعامل مع حالة الطفلة والإصرار على الخروج دون مراعاة صحتها | BC46: Poor handling of the child's condition and insisting on discharge without considering her health | BI46: Satisfied | BJ46: تم الاعتذار من الموظف وتوضيح ماحصل | BK46: تم ابلاغ المريض بالاعتذار والافادة | BN46: Hospital | CB46: Medical | CC46: 13 | CD46: =CC46/CC50 -> 48.15%
B47: 46 | C47: 3552 | D47: 30130014 | E47: وزارة الصحة | F47: التنويم | G47: الإداري | H47: قسم المالية | I47: 2025-01-12T14:08:00 | J47: رهف العنزي | K47: MOH | L47: 2025-01-16 | N47: 54 474 9985 | O47: 24 Hours | P47: 2025-01-12 | Q47: 14:08:00 | R47: رهف علي العنزي | S47: 2025-01-12 | T47: 14:08:00 | X47: 2025-01-18 | Y47: 12:16:00 | Z47: رهف علي العنزي | AA47: =(Y47+X47)-(T47+S47) -> 5.922222222 | AE47: -45675.51111 | AI47: =(AG47+AF47)-(AC47+AB47) -> 0 | AM47: -45675.51111 | AQ47: -45675.51111 | AR47: 2025-01-18 | AS47: 13:27:00 | AT47: رهف العنزي | AU47: =(AS47+AR47)-(Y47+X47) -> 0.04930555556 | AX47: -45675.51111 | AZ47: Financial claims | BA47: financial claims | BB47: مطالبة مالية على المريض بعد الخروج | BC47: requesting financial claims from the patient that insurance did not approve | BI47: Satisfied | BJ47: القسم وضح للمريض بوليصة تأمينه ونسبة التحمل | BN47: Hospital | BO47: توضيح للمريض في حال وجود الرفض ونسبة التحمل وبوليصة التأمين | CB47: Admin | CC47: 11 | CD47: =CC47/CC50 -> 40.74%
B48: 47 | C48: 3560 | D48: 30358781 | E48: وزارة الصحة | F48: العيادات الخارجية | G48: الطبي | H48: قسم الصيدلية | I48: 2025-01-19T14:13:00 | J48: ابرار الشمري | K48: MOH | O48: 24 Hours | P48: 2025-01-19 | Q48: 14:13:00 | R48: ابرار الشمري | S48: 2025-01-19 | T48: 14:13:00 | X48: 2025-01-19 | Y48: 14:23:00 | Z48: ابرار الشمري | AA48: =(Y48+X48)-(T48+S48) -> 0.006944444445 | AE48: -45676.59931 | AI48: =(AG48+AF48)-(AC48+AB48) -> 0 | AM48: -45676.59931 | AQ48: -45676.59931 | AR48: 2025-01-19 | AS48: 20:21:00 | AT48: ابرار الشمري | AU48: =(AS48+AR48)-(Y48+X48) -> 0.2486111111 | AZ48: prescription issue | BA48: صرف نصف الكمية لدواء مقيد | BB48: صرف نصف الكمية لدواء مقيد | BC48: Dispensing only half the quantity of a restricted medication | BI48: Dissatisfied | BJ48: تم التحقيق مع الموظفه واتضح بان لايوجد خطاء وتم صرف الدواء بناءا على سياسة الادوية المقيده | BK48: تم التواصل مع المراجع والتوضيح | BN48: Hospital | CB48: Nursing | CC48: 3 | CD48: =CC48/CC50 -> 11.11%
B49: 48 | C49: 3561 | D49: 30205389 | E49: مراجع | F49: العيادات الخارجية | G49: الطبي | H49: عيادات جراحة الأنف وأذن وحنجرة | I49: 2025-01-20T13:18:00 | J49: امال القحطاني | O49: 48 Hours | P49: 2025-01-20 | Q49: 13:18:00 | R49: SELF | S49: 2025-01-20 | T49: 13:18:00 | U49: 2025-01-20 | V49: 19:10:00 | W49: امال القحطاني | X49: 2025-01-20 | Y49: 19:21:00 | Z49: امال القحطاني | AA49: =(Y49+X49)-(T49+S49) -> 0.2520833333 | AE49: -45677.80625 | AI49: =(AG49+AF49)-(AC49+AB49) -> 0 | AM49: -45677.80625 | AQ49: -45677.80625 | AR49: 2025-01-21 | AS49: 20:30:00 | AT49: امال القحطاني | AU49: =(AS49+AR49)-(Y49+X49) -> 1.047916667 | AV49: 2025-01-21 | AW49: 20:30:00 | AX49: =(AW49+AV49)-(Y49+X49) -> 1.047916667 | AY49: د.خالد الحسيني | AZ49: Attitude | BA49: تعامل الطبيب | BB49: رفع الصوت وعدم استقبال حالتي من قبل الطبيب المعالج | BC49: The doctor raised their voice and refused to attend to the patient | BI49: Dissatisfied | BJ49: تم التواصل مع الطبيب والتوضيح من قبله | BK49: تم التواصل مع المريضه قبل رفع الشكوى والتوضيح بما حصل ولم تقتنع لذلك لم يتم التواصل معها لاحقها وتم رفع الشكوى ومعالجتها بناء على طلبها | BN49: Hospital | CB49: Support Services | CC49: 0 | CD49: =CC49/CC50 -> 0.00%
B50: 49 | C50: 3565 | D50: 14703 | E50: وزارة الصحة | F50: العيادات الخارجية | G50: الإداري | H50: استقبال العيادات الخارجية | I50: 2025-01-20T20:39:00 | J50: ابرار الشمري | K50: MOH | O50: 24 Hours | P50: 2025-01-20 | Q50: 20:39:00 | R50: ابرار بندر الشمري | S50: 2025-01-20 | T50: 20:39:00 | X50: 2025-01-20 | Y50: 22:21:00 | Z50: امال القحطاني | AA50: =(X50+Y50)-(S50+T50) -> 0.07083333333 | AE50: -45677.93125 | AI50: =(AF50+AG50)+(AB50+AC50) -> 0 | AM50: -45677.93125 | AQ50: -45677.93125 | AR50: 2025-01-21 | AS50: 13:40:00 | AT50: ابرار بندر الشمري | AU50: =(AS50+AR50)-(Y50+X50) -> 0.6381944444 | AX50: =(AV50+AW50)-(X50+Y50) -> -45677.93125 | AZ50: Miscommunication | BA50: طلب تحاليل اضافيه | BB50: تم اجراء فحوصات ماقبل الزواج ( اماراتي الجنسية ) وبعد عودته تم التواصل لاضافة المزيد من التحاليل | BC50: The premarital tests were conducted (UAE national), and after returning, he was contacted to add additional tests. | BI50: Satisfied | BJ50: تم التواصل مع المراجع وطلب اجراء التحاليل الاضافيه في منطقته وادراجها مع التحاليل السابقه ليتم اكتمال فحوصات ماقبل الزواج لغير السعوودين | BK50: رضى المراجع بعد التواصل والتوضيح له بالسياسة الجديده من قبل وزارة الصحة لغير السعوديين لفحوصات ماقبل الزواج | BN50: patient | BO50: الاطلاع الكامل من قبل موظفي الاستقبال على جميع التحديثات بسياسات وزارة الصحة | CB50: Total | CC50: =CC46+CC47+CC48+CC49 -> 27 | CD50: =CD49+CD48+CD47+CD46 -> 100.00%
B51: 50 | C51: 3567 | D51: 30360865 | E51: وزارة الصحة | F51: الطوارئ | G51: الإداري | H51: الموافقات الطبية | I51: 2025-01-21T09:27:00 | J51: ابرار الشمري | K51: MOH | O51: 24 Hours | P51: 2025-01-21 | Q51: 09:27:00 | R51: ابرار بندر الشمري | S51: 2025-01-21 | T51: 09:27:00 | X51: 2025-01-21 | Y51: 09:34:00 | Z51: ابرار بندر الشمري | AA51: =(X51+Y51)-(S51+T51) -> 0.004861111105 | AE51: -45678.39861 | AI51: =(AF51+AG51)+(AB51+AC51) -> 0 | AM51: -45678.39861 | AQ51: -45678.39861 | AR51: 2025-01-21 | AS51: 17:15:00 | AT51: ابرار بندر الشمري | AU51: =(AS51+AR51)-(Y51+X51) -> 0.3201388889 | AZ51: Approval issue | BA51: تاخير بالخدمة | BB51: تم رفع الطلب بطريقه خطا اكثر من مره ( عدم توضيح لتامين باني محوله ) مما ادى الى تاخير بتقديم الخدمة والحاله طارئه اعراض ولاده مبكره دون التصرف من قبل المستشفى . | BC51: The request was submitted incorrectly multiple times (failure to clarify that the insurance is transferred), which led to a delay in providing the service. The case is urgent, with symptoms of preterm labor, yet the hospital has not taken any action. | BI51: Dissatisfied | BJ51: التامين غير مغظ وتم رفع الطلب عدة مرات وليست بمشكلة المستشفى بل اشكالية التامين | BK51: تم التوضيح للمراجع بان تم رفع الطلب اكثر من 6 مرات ولايوجد تاخير من قبلنا | BN51: Hospital
B52: 51 | C52: 3574 | D52: 30364967 | E52: مجلس الضمان الصحي | F52: الطوارئ | G52: الإداري | H52: الموافقات الطبية | I52: 2025-01-21T13:20:00 | J52: امال القحطاني | K52: CCHI | O52: 24 Hours | P52: 2025-01-21 | Q52: 01:20:00 | R52: امال القحطاني | S52: 2025-01-21 | T52: 13:20:00 | X52: 2025-01-21 | Y52: 14:34:00 | Z52: امال القحطاني | AA52: =(Y52+X52)-(T52+S52) -> 0.05138888889 | AE52: -45678.60694 | AI52: =(AF52+AG52)+(AB52+AC52) -> 0 | AM52: -45678.60694 | AQ52: -45678.60694 | AR52: 2025-01-21 | AS52: 18:58:00 | AT52: امال القحطاني | AU52: =(AS52+AR52)-(Y52+X52) -> 0.1833333333 | AV52: 2025-01-21 | AW52: 18:58:00 | AX52: =(AW52+AV52)-(Y52+X52) -> 0.1833333333 | AZ52: Documentation | BA52: عدم متابعة لطلبات التامين | BB52: عدم ارفاق التقارير اللازمه لطلب التامين | BC52: Failure to attach the necessary reports for the insurance request by the department | BI52: Satisfied | BJ52: تم التوضيح بوجود مشكله لدى بوليصة شركة التامين لها | BK52: تم حضور ابن المريضه للمكتب والافادة | BN52: patient
B53: 52 | C53: 3577 | D53: 30329153 | E53: مجلس الضمان الصحي | F53: الطوارئ | G53: الإداري | H53: المدير المناوب | I53: 2025-01-21T17:01:00 | J53: ابرار الشمري | K53: CHI | O53: 48 Hours | P53: 2025-01-21 | Q53: 17:01:00 | R53: ابرار بندر الشمري | S53: 2025-01-21 | T53: 17:01:00 | X53: 2025-01-21 | Y53: 17:07:00 | Z53: ابرار بندر الشمري | AA53: =(X53+Y53)-(S53+T53) -> 0.004166666666 | AB53: 2025-01-22 | AC53: 11:29:00 | AD53: امال القحطاني | AE53: 0.7652777778 | AM53: -45678.71319 | AQ53: -45678.71319 | AR53: 2025-01-22 | AS53: 20:51:00 | AT53: ابرار الشمري | AU53: 1.155555556 | AZ53: Access to care | BA53: عدم توفير غرفه بالتنويم | BB53: عدم توفير غرفه بالتنويم | BC53: Failure to provide a room for admission. | BI53: Dissatisfied | BN53: Hospital
B54: 53 | C54: 3578 | D54: 30363398 | E54: مجلس الضمان الصحي | F54: التنويم | G54: الإداري | H54: قسم المالية | I54: 2025-01-21T17:15:00 | J54: ابرار الشمري | K54: CHI | O54: 24 Hours | P54: 2025-01-21 | Q54: 17:15:00 | R54: ابرار بندر الشمري | S54: 2025-01-21 | T54: 17:15:00 | X54: 2025-01-21 | Y54: 17:19:00 | Z54: ابرار بندر الشمري | AA54: =(X54+Y54)-(S54+T54) -> 0.00277777778 | AE54: -45678.72153 | AI54: 0 | AM54: -45678.72153 | AQ54: -45678.72153 | AR54: 2025-01-22 | AS54: 12:01:00 | AT54: امال القحطاني | AU54: 0.7791666667 | AZ54: Financial claims | BA54: المطالبة بمبلغ مالي | BB54: اثناء العملية تم عمل اجراء اضافي استوجب عمله بشكل طارئ ولم يتم الموافقه عليه من قبل التامين | BC54: During the surgery, an additional procedure was performed as an emergency necessity, but it was not approved by the insurance. | BI54: Dissatisfied | BJ54: تم التواصل مع المراجع بإن تم ارفاق جميع التقارير اللازمة ولم تتم الموافقه من قبل شرك التامين | BK54: تم التواصل مع المراجع بإن تم ارفاق جميع التقارير اللازمة ولم تتم الموافقه من قبل شرك التامين | BN54: Hospital
B55: 54 | C55: 3580 | D55: 30052778 | E55: وزارة الصحة | F55: التنويم | G55: الطبي | H55: وحدة المناظير | I55: 2025-01-21T18:00:00 | J55: امال القحطاني | K55: MOH | L55: 2025-01-21 | N55: 55 993 6717 | O55: 24 Hours | P55: 2025-01-21 | Q55: 06:00:00 | R55: امال القحطاني | S55: 2025-01-21 | T55: 18:00:00 | X55: 2025-01-21 | Y55: 18:07:00 | Z55: امال القحطاني | AA55: =(Y55+X55)-(T55+S55) -> 0.004861111112 | AE55: -45678.75486 | AI55: 0 | AM55: -45678.75486 | AQ55: -45678.75486 | AR55: 2025-01-21 | AS55: 18:10:00 | AT55: امال القحطاني | AU55: 0.002083333333 | AV55: 2025-01-21 | AW55: 18:10:00 | AX55: =(AW55+AV55)-(Y55+X55) -> 0.002083333333 | AZ55: policies | BA55: عدم استلام CD | BB55: لم يتم تسليمي الCD حتى الان | BC55: The CD has not been delivered to the patient yet | BI55: Satisfied | BJ55: تم طبااعة القرص المدمج وارساله لادارة العيادات | BK55: تم تنسيق موعد والتاكد من حضور المريض واستلام القرص | BN55: patient
B56: 55 | C56: 3583 | D56: 30364967 | E56: ذوي المراجع | F56: التنويم | G56: التمريض | H56: تمريض تنويم الباطنية | I56: 2025-01-22T08:01:00 | J56: امال القحطاني | O56: 48 Hours | P56: 2025-01-22 | Q56: 08:01:00 | R56: SELF | S56: 2025-01-22 | T56: 08:01:00 | U56: 2025-01-22 | V56: 10:22:00 | W56: امال القحطاني | X56: 2025-01-22 | Y56: 10:32:00 | Z56: امال القحطاني | AA56: =(Y56+X56)-(T56+S56) -> 0.1048611111 | AE56: -45679.43889 | AI56: =(AG56+AF56)-(AC56+AB56) -> 0 | AM56: -45679.43889 | AQ56: -45679.43889 | AR56: 2025-01-23 | AS56: 17:08:00 | AT56: امال القحطاني | AU56: 1.275 | AV56: 2025-01-23 | AW56: 17:08:00 | AX56: 1.275 | AZ56: Negligence | BA56: تأخير بالخدمه | BB56: التواصل مع التمريض بدون استجابه | BC56: There is no response from the nursing staff | BI56: Satisfied | BJ56: تم التواصل مع مشرف التمريض | BK56: تم التاكد من عدم تكرار الاشكاليه مع المريضه اثناء تواجدها بالتنويم | BN56: patient
B57: 56 | C57: 3583 | D57: 30364967 | E57: ذوي المراجع | F57: التنويم | G57: الخدمات المساندة | H57: قسم النظافة | I57: 2025-01-22T08:01:00 | J57: امال القحطاني | O57: More than 72 hours | P57: 2025-01-22 | Q57: 08:01:00 | R57: SELF | S57: 2025-01-22 | T57: 08:01:00 | U57: 2025-01-22 | V57: 10:22:00 | W57: امال القحطاني | X57: 2025-01-22 | Y57: 10:30:00 | Z57: امال القحطاني | AA57: =(Y57+X57)-(T57+S57) -> 0.1034722222 | AB57: 2025-01-23 | AC57: 16:17:00 | AD57: امال القحطاني | AE57: 1.240972222 | AF57: 2025-01-25 | AG57: 14:19:00 | AH57: امال القحطاني | AI57: 1.918055556 | AJ57: 2025-01-25 | AK57: 14:46:00 | AL57: امال القحطاني | AM57: 3.177777778 | AQ57: -45679.4375 | AR57: 2025-01-25 | AS57: 18:27:00 | AT57: امال القحطاني | AU57: 3.33125 | AV57: 2025-01-25 | AW57: 18:27:00 | AX57: 3.33125 | AZ57: Cleanliness Issue | BA57: سوء بالنظافه | BB57: سوء بنظافة الغرفه | BC57: Poor room cleanliness | BD57: تم التذكير عن طريق الواتس | BE57: 2025-01-23 | BF57: لا يوجد سبب | BI57: Satisfied | BJ57: تم حضور مشرف النظافه للغرفه | BK57: تم التواصل لاحقا مع ذوي المريضه والتاكد من الاجراء المتخذ | BN57: patient
B58: 57 | C58: 3584 | D58: 30332444 | E58: مراجع | F58: العيادات الخارجية | G58: الطبي | H58: عيادات الباطنية | I58: 2025-01-22T18:42:00 | J58: ابرار الشمري | O58: More than 72 hours | P58: 2025-01-22 | Q58: 17:36:00 | R58: أبرار بندر الشمري | S58: 2025-01-22 | T58: 18:42:00 | U58: 2025-01-22 | V58: 18:46:00 | W58: ابرار بندر الشمري | X58: 2025-01-22 | Y58: 18:46:00 | Z58: ابرار بندر الشمري | AA58: =(Y58+X58)-(T58+S58) -> 0.00277777778 | AB58: 2025-01-25 | AC58: 10:29:00 | AD58: ابرار بندر الشمري | AE58: 2.654861111 | AI58: -45682.43681 | AM58: -45679.78194 | AQ58: -45679.78194 | AR58: 2025-01-27 | AS58: 12:59:00 | AT58: ابرار الشمري | AU58: 4.759027778 | AX58: -45679.78194 | AY58: د.رانيا احمد | AZ58: Documentation + Attitude | BA58: اسلوب + سوء بالخدمة | BB58: عدم كتابة تفاصيل بالتقرير الطبي للمراجعه (طلب تحاليل ) مما ادى الى رفض التامين بالاضافه الى اسلوب غير مهني | BD58: تم التواصل مع الدكتوره عن طريق الاتصال | BI58: Satisfied | BJ58: تم التواصل مع الدكتوره وتوضيح سوء الفهم الحاصل من قبل المريضه | BK58: تم التواصل مع المريضه والشرح والاعتذار وتم اغلاق الشكوى برضى المراجعه | BN58: Hospital
A59: 4 | B59: 58 | C59: 3594 | D59: 1097668598 | E59: مراجع | F59: العيادات الخارجية | G59: الإداري | H59: قسم المواعيد | I59: 2025-01-25T11:05:00 | J59: ابرار الشمري | O59: 72 Hours | P59: 2025-01-25 | Q59: 10:57:00 | R59: أبرار بندر الشمري | S59: 2025-01-25 | T59: 11:05:00 | U59: 2025-01-25 | V59: 11:27:00 | W59: ابرار بندر الشمري | X59: 2025-01-25 | Y59: 12:41:00 | Z59: ابرار بندر الشمري | AA59: =(X59+Y59)-(S59+T59) -> 0.06666666667 | AB59: 2025-01-27 | AC59: 12:59:00 | AD59: ابرار بندر الشمري | AE59: =(AB59+AC59)-(X59+Y59) -> 2.0125 | AI59: -45684.54097 | AM59: -45682.52847 | AQ59: -45682.52847 | AR59: 2025-01-27 | AS59: 20:59:00 | AT59: ابرار الشمري | AU59: 2.345833333 | AX59: -45682.52847 | AZ59: Miscommunication | BA59: موظفة المواعيد لم تقوم بتاكيد الموعد | BB59: تم حجز موعد للمراجع عن طريق الاتصال وعند حضوره لم يتم تاكيد الموعد من قبل الموظفه | BC59: An appointment was booked for the client via phone call, but upon arrival, the appointment was not confirmed by the staff member | BD59: تم التواصل مع مشرفة القسم لرد | BI59: Satisfied | BJ59: تم اتخاذ اجراء اداري بالموظفه من قبل ادارة القسم | BK59: تم التواصل مع المراجع واعادة الجدولة للموعد وافادته بالاجراء المتخذ | BN59: patient
B60: 59 | C60: 3595 | D60: 30201702 | E60: وزارة الصحة | F60: العيادات الخارجية | G60: الإداري | H60: قسم الموافقات الطبية | I60: 2025-01-23T14:46:00 | J60: ابرار الشمري | K60: MOH | O60: 24 Hours | P60: 2025-01-23 | Q60: 14:46:00 | R60: أبرار بندر الشمري | S60: 2025-01-23 | T60: 14:46:00 | X60: 2025-01-25 | Y60: 11:44:00 | Z60: ابرار بندر الشمري | AA60: =(X60+Y60)-(S60+T60) -> 1.873611111 | AE60: -45682.48889 | AI60: 0 | AM60: -45682.48889 | AQ60: -45682.48889 | AR60: 2025-01-25 | AS60: 14:21:00 | AT60: ابرار الشمري | AU60: 0.1090277778 | AX60: -45682.48889 | AZ60: Approval issue | BA60: خصم مبالغ اضافية من التأمين | BB60: تم خصم مبالغ من التأمين دون توضيح السبب، وتم رفع موافقة على إجراء لم يتخذ. | BC60: Amounts were deducted from the insurance without explanation, and approval was raised for a procedure that was not performed. | BI60: Dissatisfied | BN60: patient
B61: 60 | C61: 3602 | D61: 30362295 | E61: ذوي المراجع | F61: العيادات الخارجية | G61: الإداري | H61: قسم المواعيد | I61: 2025-01-25T17:14:00 | J61: امال القحطاني | O61: 24 Hours | P61: 2025-01-25 | Q61: 17:14:00 | R61: امال القحطاني | S61: 2025-01-25 | T61: 17:14:00 | X61: 2025-01-25 | Y61: 17:23:00 | Z61: امال القحطاني | AA61: =(Y61+X61)-(T61+S61) -> 0.006250000006 | AE61: -45682.72431 | AI61: 0 | AM61: =(AK61+AJ61)-(Y61+X61) -> -45682.72431 | AQ61: -45682.72431 | AR61: 2025-01-26 | AS61: 13:50:00 | AT61: امال القحطاني | AU61: =(AS61+AR61)-(Y61+X61) -> 0.8520833333 | AV61: 2025-01-26 | AW61: 13:50:00 | AX61: 0.8520833333 | AZ61: Miscommunication | BA61: الغاء موعد بدون الاشعار | BB61: تم حجز موعد للمريضة، وتم تعديل جدول الطبيب دون إبلاغ المراجعة بذلك | BC61: A appointment was scheduled for the patient, but the doctor's schedule was changed without informing the patient about the modification. | BI61: Satisfied | BJ61: تمت الافاده بوجود اتصال للمراجع بعد الالغاء مع عدم اثبات لذلك | BK61: تم افادة ابنة المراجعه بذلك | BN61: Hospital
B62: 61 | C62: 3605 | D62: 30244508 | E62: مراجع | F62: التنويم | G62: التمريض | H62: تمريض وحدة طويلي الإقامة | I62: 2025-01-26T11:53:00 | J62: رهف العنزي | O62: More than 72 hours | P62: 2025-01-26 | Q62: 11:45:00 | R62: رهف العنزي | S62: 2025-01-26 | T62: 11:53:00 | U62: 2025-01-27 | V62: 14:33:00 | W62: ابرار الشمري | X62: 2025-01-27 | Y62: 14:52:00 | Z62: ابرار الشمري | AA62: =(X62+Y62)-(S62+T62) -> 1.124305556 | AB62: 2025-01-28 | AC62: 09:48:00 | AD62: ابرار الشمري | AE62: 0.7888888889 | AF62: 2025-01-29 | AG62: 08:55:00 | AH62: ابرار الشمري | AI62: 0.9631944444 | AJ62: 2025-01-30 | AK62: 10:53:00 | AL62: ابرار الشمري | AM62: 2.834027778 | AQ62: -45684.61944 | AR62: 2025-02-01 | AS62: 14:44:00 | AT62: ابرار الشمري | AU62: 4.994444444 | AX62: -45684.61944 | AZ62: Attitude | BA62: attitude | BB62: الممرضة تلفظت على المريض | BC62: a nurse verbally insulted te patient | BI62: Dissatisfied | BN62: Hospital
B63: 62 | C63: 3608 | D63: 2317291504 | E63: مجلس الضمان الصحي | F63: العيادات الخارجية | G63: الإداري | H63: قسم الموافقات الطبية | I63: 2025-01-27T14:06:00 | J63: ابرار الشمري | K63: CHI | O63: 24 Hours | P63: 2025-01-27 | Q63: 14:06:00 | R63: ابرار الشمري | S63: 2025-01-27 | T63: 14:06:00 | X63: 2025-01-27 | Y63: 14:08:00 | Z63: ابرار الشمري | AA63: =(X63+Y63)-(S63+T63) -> 0.001388888886 | AE63: -45684.58889 | AI63: 0 | AM63: -45684.58889 | AQ63: -45684.58889 | AR63: 2025-01-28 | AS63: 09:47:00 | AT63: ابرار الشمري | AU63: 0.81875 | AX63: -45684.58889 | AZ63: Approval issue | BA63: تاخير بمتابعة الموافقه | BB63: عدم الرد علي طلب التامين واستفسارات اللازمه للموافقات الطبيه و تكرار المشكله لنفس العلاج المطلوب والتأخر بشكل شهري في كل زياره | BC63: Failure to respond to the insurance request and necessary inquiries for medical approvals, repeated issues for the same requested treatment, and monthly delays in each visit. | BI63: Satisfied | BJ63: تم التواصل مع المراجع والتوضيح بان لايوجد تاخير الرفض من قبل شركة التامين | BK63: لايوجد تاخير مع ارفاق ملفات تثبت ذلك | BN63: Hospital
B64: 63 | C64: 3612 | D64: 30227876 | E64: وزارة الصحة | F64: العيادات الخارجية | G64: الإداري | H64: قسم الموافقات الطبية | I64: 2025-01-27T20:59:00 | J64: ابرار الشمري | K64: MOH | O64: 48 Hours | P64: 2025-01-27 | Q64: 20:59:00 | R64: ابرار الشمري | S64: 2025-01-27 | T64: 20:59:00 | X64: 2025-01-27 | Y64: 21:04:00 | Z64: ابرار الشمري | AA64: =(X64+Y64)-(S64+T64) -> 0.003472222226 | AB64: 2025-01-28 | AC64: 15:37:00 | AD64: ابرار الشمري | AE64: 0.7729166667 | AI64: -45685.65069 | AM64: -45684.87778 | AQ64: -45684.87778 | AR64: 2025-01-29 | AS64: 08:55:00 | AT64: ابرار الشمري | AU64: 1.49375 | AX64: -45684.87778 | AZ64: Attitude | BA64: التأخير في تقديم الخدمة | BB64: المماطلة بتقديم الخدمة من قبل موظف الموافقات في موافقات المختبر | BC64: Delays in providing service by the approval staff for laboratory approvals | BI64: Satisfied | BN64: Hospital
B65: 64 | C65: 3614 | D65: 30368172 | E65: مراجع | F65: العيادات الخارجية | G65: الطبي | H65: قسم المختبر | I65: 2025-01-28T13:44:00 | J65: امال القحطاني | O65: 24 Hours | P65: 2025-01-28 | Q65: 13:40:00 | R65: امال القحطاني | S65: 2025-01-28 | T65: 13:44:00 | U65: 2025-01-28 | V65: 14:22:00 | W65: امال القحطاني | X65: 2025-01-28 | Y65: 14:45:00 | Z65: امال القحطاني | AA65: =(Y65+X65)-(T65+S65) -> 0.04236111111 | AE65: -45685.61458 | AI65: 0 | AM65: =(AK65+AJ65)-(Y65+X65) -> -45685.61458 | AQ65: -45685.61458 | AR65: 2025-01-29 | AS65: 14:00:00 | AT65: امال القحطاني | AU65: =(AS65+AR65)-(Y65+X65) -> 0.96875 | AV65: 2025-01-29 | AW65: 13:16:00 | AX65: 0.9381944444 | AZ65: Malpractice | BA65: اعادة سحب العينه | BB65: تم سحب دم وبعد الانتظار ليوم كامل يتم طلب اعادة سحب للعينه | BC65: Blood was drawn, and after waiting for a full day, they are requesting a re-sample | BI65: No Response | BJ65: تم التوضيح ان العينه تحللت لاسباب مجهوله | BK65: لم يتم التجاوب رغم التواصل لعدة مرات للافادة | BN65: patient
B66: 65 | C66: 3615 | D66: 30367804 | E66: وزارة الصحة | F66: العيادات الخارجية | G66: الطبي | H66: عيادات الباطنية | I66: 2025-01-28T14:35:00 | J66: امال القحطاني | K66: MOH | L66: 2025-01-28 | N66: 552317170 | O66: 24 Hours | P66: 2025-01-28 | Q66: 14:35:00 | R66: امال القحطاني | S66: 2025-01-28 | T66: 14:35:00 | X66: 2025-01-28 | Y66: 14:38:00 | Z66: امال القحطاني | AA66: =(Y66+X66)-(T66+S66) -> 0.002083333333 | AE66: -45685.60972 | AI66: 0 | AM66: =(AK66+AJ66)-(Y66+X66) -> -45685.60972 | AQ66: -45685.60972 | AR66: 2025-01-28 | AS66: 14:49:00 | AT66: امال القحطاني | AU66: =(AS66+AR66)-(Y66+X66) -> 0.007638888885 | AV66: 2025-01-28 | AW66: 14:49:00 | AX66: 0.007638888885 | AY66: د.رانيا احمد | AZ66: policies | BA66: اجازة مرضيه | BB66: لم يتم الموافقه على الاجازه من قبل الطبيبه المعالجه .. | BC66: The leave was not approved. | BI66: Satisfied | BJ66: تمت الافادة بشكل واضح وطبي بان الاجازه غير مستحقه | BK66: تم التواصل مع المراجعه وتوضيح السياسه المتبعه للاجازات المرضيه | BN66: Hospital | BO66: امكانية اضافة خطاب بدون رفع شكوى رسميه علما انه تم رفع الشكوى للرد على الوزارة والتاكيد بعدم وجود مشكلة فعليه مع الطبيبة
B67: 66 | C67: 3617 | D67: 20329036 | E67: مراجع | F67: الطوارئ | G67: الطبي | H67: أطباء الطوارئ | I67: 2025-01-28T18:18:00 | J67: امال القحطاني | O67: 24 Hours | P67: Tuesday, January 28, 2025 | Q67: 18:08:00 | R67: امال القحطاني | S67: Tuesday, January 28, 2025 | T67: 18:18:00 | U67: Wednesday, January 29, 2025 | V67: 16:00:00 | W67: امال القحطاني | X67: 2025-01-30 | Y67: 13:17:00 | Z67: امال القحطاني | AA67: 1.790972222 | AE67: -45687.55347 | AI67: 0 | AQ67: -45687.55347 | AR67: 2025-01-30 | AS67: 19:43:00 | AT67: امال القحطاني | AU67: =(AS67+AR67)-(Y67+X67) -> 0.2680555556 | AV67: 2025-01-30 | AW67: 19:43:00 | AX67: 0.2680555556 | AZ67: Negligence | BA67: تاخير بالاجراءات الطبيه | BB67: إهمال وتأخير في تقديم الرعاية الطبية في قسم الطوارئ | BC67: Delay in providing medical care in the emergency department. | BI67: Satisfied | BJ67: تمت الافاده والتوضيح | BK67: تم التواصل وافادة المريضه وكانت نوعا ما راضيه وتمنت عدم تكرار ذلك | BN67: Hospital
B68: 67 | C68: 3620 | D68: 30041913 | E68: وزارة الصحة | F68: الطوارئ | G68: الإداري | H68: المدير المناوب | I68: 2025-01-29T12:22:00 | J68: ابرار الشمري | K68: MOH | L68: Wednesday, January 29, 2025 | N68: 0 54 486 0275 | O68: 24 Hours | P68: 2025-01-29 | Q68: 12:22:00 | R68: ابرار الشمري | S68: 2025-01-29 | T68: 12:22:00 | X68: 2025-01-29 | Y68: 12:33:00 | Z68: ابرار الشمري | AA68: =(X68+Y68)-(S68+T68) -> 0.007638888892 | AE68: -45686.52292 | AI68: 0 | AM68: -45686.52292 | AQ68: -45686.52292 | AR68: 2025-01-30 | AS68: 09:46:00 | AT68: ابرار الشمري | AU68: =(AS68+AR68)-(Y68+X68) -> 0.8840277778 | AX68: -45686.52292 | AZ68: Attitude | BA68: تاخير بخدمات الطوارى | BB68: تاخير باجراءات الدخول رغم عدم مقدرت المريضه بالانتظار ( هبوط بالضغط ) او الجلوس وعند الاستفسار متى يتم ادخال المريضه الغرفه افادوني ( انتظر كلهم مرضى زيها ) . | BC68: Delay in admission procedures despite the patient being unable to wait (due to low blood pressure) or sit. When inquiring about the patient’s room admission, the response was: *"Wait, all patients are like her."* | BI68: Dissatisfied | BJ68: تمت الافادة من قبل مدير الطوارى بان الحالة كانت مستقره ويوجد حالات طارئه حينها | BK68: تم تقديم رقم المريضه وادخالها على الفور | BN68: Hospital
B69: 68 | C69: 3622 | D69: 516545 | E69: ذوي المراجع | F69: العيادات الخارجية | G69: الطبي | H69: عيادات الأسنان | I69: 2025-01-29T16:11:00 | J69: امال القحطاني | O69: 24 Hours | P69: Wednesday, January 29, 2025 | Q69: 15:58:00 | R69: امال القحطاني | S69: Wednesday, January 29, 2025 | T69: 16:11:00 | U69: 2025-01-30 | V69: 13:20:00 | W69: امال القحطاني | X69: 2025-01-30 | Y69: 13:24:00 | Z69: امال القحطاني | AA69: 0.8840277778 | AE69: -45687.55833 | AI69: 0 | AM69: -45687.55833 | AQ69: -45687.55833 | AR69: 2025-01-30 | AS69: 18:20:00 | AT69: امال القحطاني | AU69: =(AS69+AR69)-(Y69+X69) -> 0.2055555556 | AV69: 2025-01-30 | AW69: 18:20:00 | AX69: 0.2055555556 | AY69: د.أحمد تركستاني | AZ69: Miscoordination | BA69: تأخير في الاجراء الطبي | BB69: تأخير في تحديد موعد تركيب السن وتقصير في التعامل مع الحالة الصحية مما أدى إلى مضاعفات. | BC69: Delay in medical procedure caused complications. | BI69: Satisfied | BJ69: تمت الافاده من قبل الطبيب والتاكيد ان التاخير بسبب عد السداد | BK69: بعد التواصل مع المراجع والافاده بالرد تبين انه الاشكاليه لدى المنسقه وليس الطبيب حيث تم تحويل الشكوى للقسم الاداري | BN69: Hospital
B70: 69 | C70: 3625 | D70: 30351053 | E70: مراجع | F70: العيادات الخارجية | G70: الإداري | H70: استقبال العيادات الخارجية | I70: 2025-01-29T18:38:00 | J70: امال القحطاني | O70: More than 72 hours | P70: Wednesday, January 29, 2025 | Q70: 17:46:00 | R70: امال القحطاني | S70: Wednesday, January 29, 2025 | T70: 18:38:00 | U70: Thursday, January 30, 2025 | V70: 13:25:00 | W70: امال القحطاني | X70: 2025-01-30 | Y70: 13:28:00 | Z70: امال القحطاني | AA70: 0.7847222222 | AB70: 2025-02-01 | AC70: 12:02:00 | AD70: امال القحطاني | AE70: 1.940277778 | AF70: 2025-02-01 | AG70: 18:28:00 | AH70: امال القحطاني | AI70: 0.2680555556 | AJ70: 2025-02-02 | AK70: 12:55:00 | AL70: امال القحطاني | AM70: =(AJ70+AK70)-(X70+Y70) -> 2.977083333 | AQ70: -45687.56111 | AR70: 2025-02-05 | AS70: 12:30:00 | AT70: امال القحطاني | AU70: 5.959722222 | AX70: -45687.56111 | AZ70: Miscoordination | BA70: تاخير بالتنسيق | BB70: تقصير وتاخير بالرد من قبل منسقة الطب النفسي | BC70: Delay in response by the psychiatric coordinator. | BI70: No Response | BN70: Hospital
B71: 70 | C71: 3630 | D71: 30004373 | E71: وزارة الصحة | F71: العيادات الخارجية | G71: الطبي | H71: قسم الصيدلية | I71: 2025-01-30T17:35:00 | J71: امال القحطاني | K71: MOH | L71: Wednesday, January 29, 2025 | N71: 0 54 486 0275 | O71: 24 Hours | P71: 2025-01-30 | Q71: 17:35:00 | R71: امال القحطاني | S71: 2025-01-30 | T71: 17:35:00 | X71: 2025-01-30 | Y71: 17:57:00 | Z71: امال القحطاني | AA71: 0.8263888889 | AE71: -45687.74792 | AI71: 0 | AM71: -45687.74792 | AQ71: -45687.74792 | AR71: 2025-01-30 | AS71: 18:27:00 | AT71: امال القحطاني | AU71: 0.02083333334 | AV71: 2025-01-30 | AW71: 18:27:00 | AX71: 0.02083333334 | AZ71: prescription issue | BA71: تاخير بصرف الدواء | BB71: لم يتم صرف الادوية لي حتى الان | BC71: Delay in dispensing the medication. | BI71: Satisfied | BN71: Hospital | BO71: تم رفع الشكوى فقط للرد على الوزارة بخطاب علما بوجود الافاده لدينا سابقا ولا وجود لمشكله مع القسم
B72: 71 | C72: 3631 | D72: 516545 | E72: ذوي المراجع | F72: العيادات الخارجية | G72: الإداري | H72: استقبال العيادات الخارجية | I72: 2025-01-30T20:01:00 | J72: امال القحطاني | O72: More than 72 hours | P72: 2025-01-30 | Q72: 18:20:00 | R72: امال القحطاني | S72: 2025-01-30 | T72: 20:01:00 | U72: 2025-02-01 | V72: 12:09:00 | W72: امال القحطاني | X72: 2025-02-01 | Y72: 18:07:00 | Z72: امال القحطاني | AA72: 0.8680555556 | AB72: 2025-02-02 | AC72: 12:55:00 | AD72: امال القحطاني | AE72: 0.7833333333 | AI72: -45690.53819 | AJ72: 2025-02-06 | AK72: 11:21:00 | AL72: امال القحطاني | AM72: 4.718055556 | AQ72: -45689.75486 | AR72: 2025-02-06 | AS72: 16:21:00 | AT72: امال القحطاني | AU72: 4.926388889 | AX72: -45689.75486 | AZ72: Miscoordination | BA72: التأخير في تقديم الخدمة | BB72: تأخير في تقديم الخدمة و عدم إبلاغنا بموعد إجراء تقويم الأسنان في المستشفى، مما استدعى مراجعات متكررة وتأخيرًا في العلاج | BC72: Delay in providing service and failure to inform us of the orthodontic appointment at the hospital, requiring repeated visits and delaying treatment. | BI72: No Response | BN72: Hospital
A74: Week 1 | B74: 16 | D74: MOH | E74: 27 | F74: =E74/E78 -> 38.03% | H74: Medical | O74: Employee Name | P74: Number of complaints | Q74: Total Percentage | R74: 24 Hours | S74: 48 Hours | T74: 72 Hours | U74: More than 72 hours | V74: Total | W74: Self | Z74: Number of delays in sending the complaint (delay in activation) | AB74: Percentage | AC74: Activated within two hours | AD74: Percentage | AE74: Total | AJ74: الشكاوي المصعدة | AK74: خلال 72 | AL74: مبكرة | AM74: متأخرة | AN74: الموظف المسؤول | AU74: Medical | AW74: Average
A75: Week 2 | B75: 26 | D75: CCHI | E75: 10 | F75: =E75/E78 -> 14.08% | H75: أطباء الطوارئ | I75: 3 | O75: ابرار بندر الشمري | P75: 32 | Q75: =P75/P81 -> 45.07% | R75: 12 | S75: 7 | T75: 6 | U75: 7 | V75: =U76+T76+S76+R76 -> 100.00% | W75: 2 | Z75: ابرار بندر الشمري | AA75: 6 | AB75: =AA75/AE78 -> 8.45% | AC75: 26 | AD75: =AC75/AE78 -> 36.62% | AE75: =AC75+AA75 -> 32 | AJ75: 12 | AK75: 3 | AL75: 2 | AM75: 1 | AN75: ابرار بندر الشمري | AU75: أطباء الطوارئ | AV75: 3 | AW75: =AVERAGE(AX75:BB75) -> 2.072 | AX75: 0.006 | AY75: 5.95 | BA75: 0.26
A76: Week 3 | B76: 15 | D76: Patients | E76: 18 | F76: =E76/E78 -> 25.35% | H76: تنويم الأطفال | I76: 2 | O76: Percentage | R76: =R75/P75 -> 37.50% | S76: =S75/P75 -> 21.88% | T76: =T75/P75 -> 18.75% | U76: =U75/P75 -> 21.88% | Z76: امال ماهل القحطاني | AA76: 16 | AB76: =AA76/AE78 -> 22.54% | AC76: 18 | AD76: =AC76/AE78 -> 25.35% | AE76: =AC76+AA76 -> 34 | AK76: 3 | AL76: 1 | AM76: 2 | AN76: امال ماهل القحطاني | AU76: تنويم الأطفال | AV76: 2 | AW76: 1.43 | AX76: 1.18 | AY76: 1.68
A77: Week 4 | B77: 14 | D77: Patient’s relatives | E77: 16 | F77: =E77/E78 -> 22.54% | H77: عيادات الأسنان | I77: 1 | O77: امال ماهل القحطاني | P77: 34 | Q77: =P77/P81 -> 47.89% | R77: 17 | S77: 8 | T77: 1 | U77: 8 | V77: =U78+T78+S78+R78 -> 100.00% | W77: 3 | Z77: رهف علي العنزي | AA77: 4 | AB77: =AA77/AE78 -> 5.63% | AC77: 1 | AD77: =AC77/AE78 -> 1.41% | AE77: =AA77+AC77 -> 5 | AK77: 0 | AL77: 0 | AM77: 0 | AN77: رهف علي العنزي | AU77: عيادات الأسنان | AV77: 1 | AW77: 0.19 | AX77: 0.19
A78: Total | B78: =B74+B75+B76+B77 -> 71 | D78: Total | E78: =E74+E75+E76+E77 -> 71 | F78: =F74+F75+F76+F77 -> 100.00% | H78: عيادات الباطنية | I78: 2 | O78: Percentage | R78: =R77/P77 -> 50.00% | S78: =S77/P77 -> 23.53% | T78: =T77/P77 -> 2.94% | U78: =U77/P77 -> 23.53% | Z78: Total | AA78: =AA76+AA75+AA77 -> 26 | AB78: =AB75+AB76+AB77 -> 36.62% | AC78: =AC75+AC76+AC77 -> 45 | AD78: =AD75+AD76+AD77 -> 63.38% | AE78: =AE75+AE76+AE77 -> 71 | AU78: عيادات الباطنية | AV78: 2 | AW78: 2.37725 | AX78: 4.75 | AY78: 0.0045
D79: In-Patient | E79: 20 | F79: =E79/E82 -> 28.17% | H79: عيادات الجهاز الهضمي والمناظير | I79: 1 | O79: رهف علي العنزي | P79: 5 | Q79: =P79/P81 -> 7.04% | R79: 2 | S79: 1 | T79: 1 | U79: 1 | V79: =R80+S80+T80+U80 -> 100.00% | AE79: =AD78+AB78 -> 100.00% | AU79: عيادات الجهاز الهضمي والمناظير | AV79: 1 | AW79: 1.75 | AX79: 1.75
A80: 1st Half | B80: 42 | D80: Out-Patient | E80: 41 | F80: =E80/E82 -> 57.75% | H80: عيادات العيون | I80: 1 | O80: Percentage | R80: =R79/P79 -> 40.00% | S80: =S79/P79 -> 20.00% | T80: =T79/P79 -> 20.00% | U80: =U79/P79 -> 20.00% | AU80: عيادات العيون | AV80: 1 | AW80: 4.04 | AX80: 4.04
A81: 2nd Half | B81: 29 | D81: ER | E81: 10 | F81: =E81/E82 -> 14.08% | H81: عيادات المخ والأعصاب | I81: 1 | O81: Total | P81: =P75+P77+P79 -> 71 | Q81: =Q77+Q75+Q79 -> 100.00% | R81: =R77+R75+R79 -> 31 | S81: =S77+S75+S79 -> 16 | T81: =T77+T75+T79 -> 8 | U81: =U77+U75+U79 -> 16 | V81: =U82+T82+S82+R82 -> 100.00% | W81: =W75+W77+W79 -> 5 | AU81: عيادات المخ والأعصاب | AV81: 1 | AW81: 0.14 | AX81: 0.14
A82: Total | B82: =B81+B80 -> 71 | D82: Total | E82: =E79+E80+E81 -> 71 | F82: =F79+F80+F81 -> 100.00% | H82: عيادات المخ والأعصاب (أطفال) | I82: 1 | R82: =R81/P81 -> 43.66% | S82: =S81/P81 -> 22.54% | T82: =T81/P81 -> 11.27% | U82: =U81/P81 -> 22.54% | AU82: عيادات المخ والأعصاب (أطفال) | AV82: 1 | AW82: 0.75 | AX82: 0.75
D83: Medical | E83: 27 | F83: =E83/E87 -> 38.03% | H83: عيادات النساء والولادة | I83: 2 | AU83: عيادات النساء والولادة | AV83: 2 | AW83: 3.805 | AX83: 1.8 | AY83: 5.81
D84: Admin | E84: 32 | F84: =E84/E87 -> 45.07% | H84: عيادات جراحة الأنف وأذن وحنجرة | I84: 2 | AU84: عيادات جراحة الأنف وأذن وحنجرة | AV84: 2 | AW84: 1.8975 | AX84: 2.75 | AY84: 1.045
D85: Nursing | E85: 10 | F85: =E85/E87 -> 14.08% | H85: عيادات جراحة المخ والأعصاب | I85: 1 | AU85: عيادات جراحة المخ والأعصاب | AV85: 1 | AW85: 0.845 | AX85: 0.845
D86: Support Services | E86: 2 | F86: =E86/E87 -> 2.82% | H86: قسم التخدير | I86: 1 | AU86: قسم التخدير | AV86: 1 | AW86: 1.75 | AX86: 1.75
D87: Total | E87: =E83+E84+E85+E86 -> 71 | F87: =F83+F84+F85+F86 -> 100.00% | H87: قسم الحضانة | I87: 2 | AU87: قسم الحضانة | AV87: 2 | AW87: 4.815 | AX87: 6.05 | AY87: 3.58
H88: قسم الصيدلية | I88: 4 | AU88: قسم الصيدلية | AV88: 4 | AW88: 0.753125 | AX88: 1.93 | AY88: 0.84 | BA88: 0.23 | BB88: 0.0125
H89: قسم المختبر | I89: 2 | AU89: قسم المختبر | AV89: 2 | AW89: 0.9485 | AX89: 0.937 | AY89: 0.96
H90: وحدة المناظير | I90: 1 | AU90: وحدة المناظير | AV90: 1 | AW90: 0.0125 | AX90: 0.0125
H91: Total | I91: =I75+I76+I77+I78+I79+I80+I81+I82+I83+I84+I85+I86+I87+I88+I89+I90 -> 27 | AU91: Total | AV91: =AV75+AV76+AV77+AV78+AV79+AV80+AV81+AV82+AV83+AV84+AV85+AV86+AV87+AV88+AV89+AV90 -> 27
H93: Non-Medical
H94: إدارة التنويم | I94: 1
H95: استقبال العيادات الخارجية | I95: 6
H96: المدير المناوب | I96: 5 | AU96: Non-Medical | AW96: Average
H97: الموافقات الطبية | I97: 9 | AU97: إدارة التنويم | AV97: 1 | AW97: =AVERAGE(AX97:BG97) -> 3.09 | AX97: 3.09
H98: قسم التقارير الطبية | I98: 3 | AU98: استقبال العيادات الخارجية | AV98: 6 | AW98: 6.418333333 | AX98: 2.88 | AY98: 13.04 | BA98: 11.09 | BB98: 0.63 | BC98: 5.95 | BD98: 4.92
H99: قسم المالية | I99: 5 | AU99: المدير المناوب | AV99: 5 | AW99: 3.0156 | AX99: 0.83 | AY99: 10.18 | BA99: 2.045 | BB99: 1.143 | BC99: 0.88
H100: قسم المواعيد | I100: 3 | AU100: الموافقات الطبية | AV100: 9 | AW100: 0.9807777778 | AX100: 1.022 | AY100: 0.186 | BA100: 2.62 | BB100: 2.13 | BC100: 0.308 | BD100: 0.176 | BE100: 0.098 | BF100: 0.807 | BG100: 1.48
H101: Total | I101: =I94+I95+I96+I97+I98+I99+I100 -> 32 | AU101: قسم التقارير الطبية | AV101: 3 | AW101: 0.7284166667 | AX101: 1.083 | AY101: 1.101 | BA101: 0.00125
AU102: قسم المالية | AV102: 5 | AW102: 0.9012 | AX102: 1.065 | AY102: 0.875 | BA102: 1.76 | BB102: 0.046 | BC102: 0.76
H103: Nursing | AU103: قسم المواعيد | AV103: 3 | AW103: 1.388 | AX103: 0.98 | AY103: 2.34 | BA103: 0.844
H104: تمريض العيادات الخارجية | I104: 1 | AU104: Total | AV104: =AV97+AV98+AV99+AV100+AV101+AV102+AV103 -> 32
H105: تمريض تنويم الأطفال | I105: 2
H106: تمريض تنويم الباطنية | I106: 1
H107: تمريض غرفة التطعيمات | I107: 2 | AU107: Nursing | AW107: Average
H108: تمريض غرفة تقديم الأدوية الوريدية (20) | I108: 1 | AU108: تمريض العيادات الخارجية | AV108: 1 | AW108: =AVERAGE(AX108:AY108) -> 2.88 | AX108: 2.88
H109: تمريض قسم الإفاقة | I109: 1 | AU109: تمريض تنويم الأطفال | AV109: 2 | AW109: 1.4685 | AX109: 0.097 | AY109: 2.84
H110: تمريض قسم العمليات | I110: 1 | AU110: تمريض تنويم الباطنية | AV110: 1 | AW110: 1.265 | AX110: 1.265
H111: تمريض وحدة طويلي الإقامة | I111: 1 | AU111: تمريض غرفة التطعيمات | AV111: 2 | AW111: 0.95145 | AX111: 0.0129 | AY111: 1.89
H112: Total | I112: =I104+I105+I106+I107+I108+I109+I110+I111 -> 10 | AU112: تمريض غرفة تقديم الأدوية الوريدية (20) | AV112: 1 | AW112: 6.05 | AX112: 6.05
AU113: تمريض قسم الإفاقة | AV113: 1 | AW113: 0.98 | AX113: 0.98
H114: Support Services | AU114: تمريض قسم العمليات | AV114: 1 | AW114: 5.69 | AX114: 5.69
H115: قسم المطبخ | I115: 1 | AU115: تمريض وحدة طويلي الإقامة | AV115: 1 | AW115: 4.98 | AX115: 4.98
H116: قسم النظافة | I116: 1 | AU116: Total | AV116: =AV108+AV109+AV110+AV111+AV112+AV113+AV114+AV115 -> 10
H117: Total | I117: =I115+I116 -> 2
AU118: Support Services | AW118: Average
AU119: قسم المطبخ | AV119: 1 | AW119: =AVERAGE(AX119) -> 0.92 | AX119: 0.92
H120: Total | I120: =I117+I112+I101+I91 -> 71 | AU120: قسم النظافة | AV120: 1 | AW120: =AVERAGE(AX120) -> 3.31 | AX120: 3.31
AU121: Total | AV121: =AV119+AV120 -> 2

Sheet FEB
A2: Week | B2: No. | C2: رقم الشكوى | D2: رقم الملف | E2: جهة الشكوى | F2: الموقع | G2: القسم الرئيس | H2: القسم الفرعي | I2: تاريخ إستلام الشكوى | J2: المدخل | K2: MOH & CHI | N2: رقم الجوال | O2: Time line | P2: إرسال نموذج الشكوى | R2: Employee | S2: تحرير الشكوى | U2: تفعيل الشكوى | W2: Employee | X2: تم ارسال الشكوى | Z2: Employee | AA2: الوقت بين التحرير والارسال | AB2: First Reminder Sent | AD2: Employee | AE2: الوقت بين اول ايميل والارسال | AF2: Second Reminder Sent | AH2: Employee | AI2: الوقت بين ثاني ايميل والاول | AJ2: Escalated | AL2: Employee | AM2: الوقت بين التصعيد والارسال | AN2: Closed | AP2: Employee | AQ2: الوقت بين الاغلاق والارسال | AR2: Resolved | AT2: Employee | AU2: الوقت بين المعالجة و الارسال | AV2: تاريخ الرد | AX2: الوقت بين الرد والارسال | AY2: اسم الشخص المشتكى عليه - ان وجد | AZ2: Complain Classification | BA2: موضوع الشكوى الأساسية | BB2: الشكوى باختصار (عربي) | BC2: الشكوى باختصار English | BD2: توثيق تذكيرات للقسم المشتكى عليه | BE2: تاريخ التذكير | BF2: سبب تأخير القسم بالرد | BG2: سبب تأخير اغلاق الشكوى خلال 72 ساعه | BH2: الشخص المتأخر | BI2: Satisfied/ Dissatisfied | BJ2: الاجراء المتخذ من قبل القسم المعني | BK2: نتيجة الاجراء المتخذ بعد التحقيق | BL2: Recommendation/Action plan | BM2: Responsible Department | BN2: The Rightful Side | BO2: حلول واقتراحات | BP2: PR - Observations Patient Supervisor | BR2: رقم الشكوى | BS2: رقم الملف | BT2: جهة الشكوى | BU2: الموقع | BV2: القسم الرئيس | BW2: القسم الفرعي | BX2: تاريخ إستلام الشكوى | BY2: المدخل | BZ2: Time line | CB2: رقم الشكوى | CC2: رقم الملف | CD2: جهة الشكوى | CE2: الموقع | CF2: القسم الرئيس | CG2: القسم الفرعي | CH2: تاريخ إستلام الشكوى | CI2: المدخل | CJ2: Time line | CL2: رقم الشكوى | CM2: رقم الملف | CN2: جهة الشكوى | CO2: الموقع | CP2: القسم الرئيس | CQ2: القسم الفرعي | CR2: تاريخ إستلام الشكوى | CS2: المدخل | CT2: Time line | CV2: رقم الشكوى | CW2: رقم الملف | CX2: جهة الشكوى | CY2: الموقع | CZ2: القسم الرئيس | DA2: القسم الفرعي | DB2: تاريخ إستلام الشكوى | DC2: المدخل | DD2: Time line
A3: 1 | B3: 1 | C3: 3639 | D3: 1724546 | E3: ذوي المراجع | F3: العيادات الخارجية | G3: الإداري | H3: استقبال العيادات الخارجية | I3: 2025-02-01T19:54:00 | J3: امال القحطاني | O3: More than 72 hours | P3: 2025-02-01 | Q3: 19:54:00 | R3: امال القحطاني | S3: 2025-02-01 | T3: 19:54:00 | U3: 2025-02-03 | V3: 19:08:00 | W3: امال القحطاني | X3: 2025-02-03 | Y3: 19:16:00 | Z3: امال القحطاني | AA3: =(Y3+X3)-(T3+S3) -> 1.973611111 | AB3: 2025-02-04 | AC3: 10:49:00 | AD3: امال القحطاني | AE3: =(AC3+AB3)-(Y3+X3) -> 0.6479166667 | AF3: 2025-02-05 | AG3: 12:07:00 | AH3: امال القحطاني | AI3: =(AG3+AF3)-(AC3+AB3) -> 1.054166667 | AJ3: 2025-02-06 | AK3: 10:24:00 | AL3: امال القحطاني | AM3: =(AK3+AJ3)-(Y3+X3) -> 2.630555556 | AQ3: =(AO3+AN3)-(Y3+X3) -> -45691.80278 | AR3: 2025-03-04 | AS3: 10:57:00 | AT3: ابرار الشمري | AU3: =(AS3+AR3)-(Y3+X3) -> 28.65347222 | AX3: =(AW3+AV3)-(Y3+X3) -> -45691.80278 | AZ3: Approval issue | BA3: رسوم اضافيه | BB3: تم فرض رسوم على تحاليل الطفلة، رغم أنها كانت أول زيارة بعد التنويم. | BC3: Charges were applied for tests during the first visit after hospitalization. | BF3: استاذ صالح طلع اجازه ولم يوكل من ينوب عنه | BG3: تم التذكير بجميع وسائل التواصل | BH3: صالح العبدان | BI3: Satisfied | BL3: التوضيح للمراجع | BN3: patient | BR3: 3667 | BS3: 2403306455 | BT3: مجلس الضمان الصحي | BU3: الطوارئ | BV3: الإداري | BW3: استقبال الطوارئ | BX3: 2025-02-05T15:18:00 | BY3: ابرار الشمري | BZ3: More than 72 hours | CB3: 3645 | CC3: 30151322 | CD3: وزارة الصحة | CE3: العيادات الخارجية | CF3: الطبي | CG3: عيادات العيون | CH3: 2025-02-02T14:44:00 | CI3: امال القحطاني | CJ3: 24 Hours | CL3: 3648 | CM3: 30357694 | CN3: مراجع | CO3: العيادات الخارجية | CP3: الطبي | CQ3: عيادات الجهاز الهضمي والمناظير | CR3: 2025-02-10T00:15:00 | CS3: رهف العنزي | CT3: More than 72 hours | CV3: 3639 | CW3: 1724546 | CX3: ذوي المراجع | CY3: العيادات الخارجية | CZ3: الإداري | DA3: استقبال العيادات الخارجية | DB3: 2025-02-01T19:54:00 | DC3: امال القحطاني | DD3: More than 72 hours
B4: 2 | C4: 3639 | D4: 1724546 | E4: ذوي المراجع | F4: التنويم | G4: الإداري | H4: قسم الموافقات الطبية | I4: 2025-02-02T16:40:00 | J4: امال القحطاني | O4: 72 Hours | P4: 2025-02-01 | Q4: 19:54:00 | R4: امال القحطاني | S4: 2025-02-02 | T4: 16:40:00 | U4: 2025-02-03 | V4: 19:08:00 | W4: امال القحطاني | X4: 2025-02-03 | Y4: 19:15:00 | Z4: امال القحطاني | AA4: =(Y4+X4)-(T4+S4) -> 1.107638889 | AB4: 2025-02-04 | AC4: 10:49:00 | AD4: امال القحطاني | AE4: =(AC4+AB4)-(Y4+X4) -> 0.6486111111 | AI4: =(AG4+AF4)-(AC4+AB4) -> -45692.45069 | AM4: =(AK4+AJ4)-(Y4+X4) -> -45691.80208 | AQ4: =(AO4+AN4)-(Y4+X4) -> -45691.80208 | AR4: 2025-02-06 | AS4: 10:34:00 | AT4: امال القحطاني | AU4: 2.638194444 | AV4: 2025-02-06 | AW4: 10:34:00 | AX4: =(AW4+AV4)-(Y4+X4) -> 2.638194444 | AZ4: Approval issue | BA4: رفع طلب خاطئ | BB4: تم رفع طلب تأمين لمدة يومين تنويم، ولكن المريض قضى يومًا واحدًا فقط في المستشفى. | BC4: A request for approval was submitted incorrectly. | BI4: Satisfied | BN4: patient | BR4: 3677 | BS4: 30320418 | BT4: مجلس الضمان الصحي | BU4: التنويم | BV4: الإداري | BW4: قسم المالية | BX4: 2025-02-08T09:55:00 | BY4: امال القحطاني | BZ4: 48 Hours | CB4: 3663 | CC4: 30154988 | CD4: وزارة الصحة | CE4: العيادات الخارجية | CF4: الطبي | CG4: عيادات الأنف والأذن والحنجرة (أطفال) | CH4: 2025-02-05T13:16:00 | CI4: امال القحطاني | CJ4: 72 Hours | CL4: 3651 | CM4: 30188420 | CN4: مراجع | CO4: الطوارئ | CP4: الطبي | CQ4: أطباء الطوارئ | CR4: 2025-02-03T12:56:00 | CS4: ابرار الشمري | CT4: More than 72 hours | CV4: 3639 | CW4: 1724546 | CX4: ذوي المراجع | CY4: التنويم | CZ4: الإداري | DA4: قسم الموافقات الطبية | DB4: 2025-02-02T16:40:00 | DC4: امال القحطاني | DD4: 72 Hours
B5: 3 | C5: 3644 | D5: 30139667 | E5: ذوي المراجع | F5: التنويم | G5: التمريض | H5: تمريض قسم الإفاقة | I5: 2025-02-02T14:11:00 | J5: ابرار الشمري | O5: 72 Hours | P5: 2025-02-02 | Q5: 13:50:00 | R5: ابرار الشمري | S5: 2025-02-02 | T5: 14:11:00 | U5: 2025-02-03 | V5: 10:19:00 | W5: ابرار الشمري | X5: 2025-02-03 | Y5: 10:23:00 | Z5: ابرار الشمري | AA5: 0.8416666667 | AE5: -45691.43264 | AI5: 0 | AM5: -45691.43264 | AQ5: -45691.43264 | AR5: 2025-02-05 | AS5: 10:37:00 | AT5: ابرار الشمري | AU5: 2.009722222 | AX5: =(AW5+AV5)-(Y5+X5) -> -45691.43264 | AZ5: Attitude | BA5: سوء بالخدمة | BB5: ظهور جزء من جسم المريضه اثناء الافاقه | BC5: My wife underwent a cesarean section at your hospital, and while she was in the recovery room under the effect of anesthesia, parts of her body were exposed in the presence of male visitors accompanying other patients near the automatic door of the department. This is unacceptable in your hospital, as patient privacy is a top priority. Therefore, what happened is considered negligence .by the staff on duty | BI5: Dissatisfied | BJ5: الاعتذار من القسم والتبرير بان المريضه كانت كثيرة الحركة | BL5: التثقيف والتدريب للطاقم الطبي | BN5: Hospital | BR5: 3719 | BS5: 30368339 | BT5: مجلس الضمان الصحي | BU5: العيادات الخارجية | BV5: الإداري | BW5: قسم الموافقات الطبية | BX5: 2025-02-13T11:36:00 | BY5: امال القحطاني | BZ5: 72 Hours | CB5: 3697 | CC5: 30161652 | CD5: وزارة الصحة | CE5: العيادات الخارجية | CF5: الإداري | CG5: قسم السنترال | CH5: 2025-02-09T18:59:00 | CI5: رهف العنزي | CJ5: 24 Hours | CL5: 3652 | CM5: 1900966 | CN5: مراجع | CO5: العيادات الخارجية | CP5: الإداري | CQ5: استقبال العيادات الخارجية | CR5: 2025-02-03T17:04:00 | CS5: امال القحطاني | CT5: More than 72 hours | CV5: 3644 | CW5: 30139667 | CX5: ذوي المراجع | CY5: التنويم | CZ5: التمريض | DA5: تمريض قسم الإفاقة | DB5: 2025-02-02T14:11:00 | DC5: ابرار الشمري | DD5: 72 Hours
B6: 4 | C6: 3645 | D6: 30151322 | E6: وزارة الصحة | F6: العيادات الخارجية | G6: الطبي | H6: عيادات العيون | I6: 2025-02-02T14:44:00 | J6: امال القحطاني | O6: 24 Hours | P6: 2025-02-02 | Q6: 14:44:00 | R6: امال القحطاني | S6: 2025-02-02 | T6: 14:44:00 | W6: امال القحطاني | X6: 2025-02-02 | Y6: 14:44:00 | Z6: امال القحطاني | AA6: 0 | AE6: -45690.61389 | AI6: 0 | AM6: -45690.61389 | AQ6: -45690.61389 | AR6: 2025-02-02 | AS6: 15:05:00 | AT6: امال القحطاني | AU6: 0.01458333333 | AV6: 2025-02-02 | AW6: 15:05:00 | AX6: =(AW6+AV6)-(Y6+X6) -> 0.01458333333 | AZ6: Cleaniliness issue | BA6: سوء نظافه | BB6: وجود رائحة قويه داخل عيادة اجراء الفحص للعيون | BC6: There is a strong odor inside the eye examination clinic | BF6: بعد التواصل مع القسم تم افادتنا بان الشكوى لم تصل بالايميل | BG6: عدم ظهور الشكوى لدى القسم , ومشرفة القسم هي نفسها ممرضة الطبيب داخل العياده ولا يوجد ماينوب عنها للرد على الشكوى | BH6: مشرفة القسم موهلينا (لينا ) | BI6: Dissatisfied | BJ6: الاعتذار من القسم والتبرير بالاضافه الى التواصل مع ابن المريضه من قبل المدير الطبي( مرفق تفاصيل الاجراء بالايميل ) | BK6: اتخاذ موقف من ابن المراجعة رغم وجود الأسباب المقنعة والخارجة عن الإرادة واتخاذ جميع الإجراءات الطبية اللازمة للمريضة | BL6: غير مستوفاه الشروط | BM6: تم رفع الشكوى سابقا واعادة رفعها لكتابة الخطاب | BN6: patient | BR6: 3742 | BS6: 30369199 | BT6: مجلس الضمان الصحي | BU6: التنويم | BV6: الإداري | BW6: قسم المالية | BX6: 2025-02-17T11:52:00 | BY6: ابرار الشمري | BZ6: 24 Hours | CB6: 3702 | CC6: 30268651 | CD6: وزارة الصحة | CE6: العيادات الخارجية | CF6: الإداري | CG6: قسم التقارير الطبية | CH6: 2025-02-10T13:55:00 | CI6: امال القحطاني | CJ6: 24 Hours | CL6: 3664 | CM6: 30056952 | CN6: مراجع | CO6: العيادات الخارجية | CP6: الإداري | CQ6: استقبال المختبر | CR6: 2025-02-05T14:29:00 | CS6: امال القحطاني | CT6: 24 Hours | CV6: 3647 | CW6: 30154988 | CX6: ذوي المراجع | CY6: العيادات الخارجية | CZ6: الطبي | DA6: عيادات الأنف والأذن والحنجرة (أطفال) | DB6: 2025-02-02T18:51:00 | DC6: ابرار الشمري | DD6: More than 72 hours
B7: 5 | C7: 3647 | D7: 30154988 | E7: ذوي المراجع | F7: العيادات الخارجية | G7: الطبي | H7: عيادات الأنف والأذن والحنجرة (أطفال) | I7: 2025-02-02T18:51:00 | J7: ابرار الشمري | O7: More than 72 hours | P7: 2025-02-02 | Q7: 18:51:00 | R7: ابرار الشمري | S7: 2025-02-02 | T7: 18:51:00 | U7: 2025-02-03 | V7: 10:16:00 | W7: ابرار الشمري | X7: 2025-02-03 | Y7: 10:16:00 | Z7: ابرار الشمري | AA7: 0.6423611111 | AE7: -45691.42778 | AI7: 0 | AM7: -45691.42778 | AQ7: -45691.42778 | AR7: 2025-02-09 | AS7: 10:40:00 | AT7: امال القحطاني | AU7: 6.016666667 | AX7: =(AW7+AV7)-(Y7+X7) -> -45691.42778 | AZ7: Miscoordination | BA7: تاخير بالخدمة | BB7: تم عمل موعد والحضور قبل الموعد بوقت والانتضار لاكثر من ٤٥ دقيق وبعدها رفض الدكتور استقبال المريضة لانتهاء وقت دوامة | BC7: An appointment was scheduled, and the patient arrived early and waited for more than 45 minutes. However, the doctor refused to see the patient as their working hours had ended. | BF7: لايوجد سبب علماً بإن تم التواصل عدة مرات | BH7: ادارة العيادات الخارجية | BI7: Dissatisfied | BJ7: الاعتذار للمريضه والتوضيح | BK7: الاعتذار للمريضه والتوضيح | BL7: توضيح سياسة الانتظار للمراجعين لمن ليس لديهم مواعيد موكده | BN7: patient | BR7: 3743 | BS7: 30251025 | BT7: مجلس الضمان الصحي | BU7: العيادات الخارجية | BV7: الإداري | BW7: استقبال العيادات الخارجية | BX7: 2025-02-17T11:57:00 | BY7: ابرار الشمري | BZ7: 48 Hours | CB7: 3711 | CC7: 30188420 | CD7: وزارة الصحة | CE7: الطوارئ | CF7: الطبي | CG7: أطباء الطوارئ | CH7: 2025-02-11T17:00:00 | CI7: امال القحطاني | CJ7: 24 Hours | CL7: 3672 | CM7: 1333383 | CN7: مراجع | CO7: التنويم | CP7: الخدمات المساندة | CQ7: قسم النظافة | CR7: 2025-02-06T15:36:00 | CS7: امال القحطاني | CT7: 48 Hours | CV7: 3657 | CW7: 508807752 | CX7: ذوي المراجع | CY7: الطوارئ | CZ7: الطبي | DA7: أطباء الطوارئ | DB7: 2025-02-04T13:43:00 | DC7: ابرار الشمري | DD7: More than 72 hours
B8: 6 | C8: 3648 | D8: 30357694 | E8: مراجع | F8: العيادات الخارجية | G8: الطبي | H8: عيادات الجهاز الهضمي والمناظير | I8: 2025-02-10T00:15:00 | J8: رهف العنزي | O8: More than 72 hours | P8: 2025-02-02 | Q8: 20:19:00 | R8: رهف العنزي | S8: 2025-02-10 | T8: 00:15:00 | U8: 2025-02-11 | V8: 17:54:00 | W8: رهف العنزي | X8: 2025-02-11 | Y8: 17:56:00 | Z8: رهف العنزي | AA8: 1.736805556 | AB8: 2025-02-13 | AC8: 14:52:00 | AD8: رهف العنزي | AE8: 1.872222222 | AF8: 2025-02-15 | AG8: 08:59:00 | AH8: رهف العنزي | AI8: 1.754861111 | AJ8: 2025-02-16 | AK8: 15:34:00 | AL8: رهف العنزي | AM8: 4.901388889 | AQ8: -45699.74722 | AU8: -45699.74722 | AY8: عابد اللهيبي | AZ8: Attitude | BA8: اسلوب الطبيب وعدم سماعه للمريض | BB8: الطبيب لم يقيس ضغط المريض وتاخر بالقدوم للعيادة وكان اسلوبه مع المريض غير مهني | BC8: UNPROFESSIONAL ATTITUDE AND WAS LATRE ON CLINIC AND DID NOT LISTEN TO THE PATIENT | BD8: تم تذكيره من قبل الادارة الطبية بالايميل وعن طريق الاتصال ولم يرد حتى الان | BE8: 17/2/2025 | BF8: تاخير الطبيب رغم تذكيره بالنظام وعن طريق الادارة الطبية | BG8: تاخير الطبيب رغم تذكيره بالنظام وعن طريق الادارة الطبية | BH8: عابد اللهيبي | BI8: Escalated | BM8: الحث على الاطباء بالرد خلال الوقت المحدد للشكوى وعد التاخير واعطاء 10د اولوية للرد على الشكاوى من يومهم | BN8: Hospital | BR8: 3796 | BS8: 1354309 | BT8: مجلس الضمان الصحي | BU8: العيادات الخارجية | BV8: الإداري | BW8: قسم الموافقات الطبية | BX8: 2025-02-24T16:31:00 | BY8: ابرار الشمري | BZ8: 24 Hours | CB8: 3744 | CC8: 30104048 | CD8: وزارة الصحة | CE8: التنويم | CF8: الإداري | CG8: قسم الموافقات الطبية | CH8: 2025-02-17T12:20:00 | CI8: ابرار الشمري | CJ8: 24 Hours | CL8: 3678 | CM8: 30122643 | CN8: مراجع | CO8: العيادات الخارجية | CP8: الإداري | CQ8: استقبال العيادات الخارجية | CR8: 2025-02-08T12:51:00 | CS8: امال القحطاني | CT8: More than 72 hours | CV8: 3662 | CW8: 30266861 | CX8: ذوي المراجع | CY8: الطوارئ | CZ8: الطبي | DA8: أطباء الطوارئ | DB8: 2025-02-05T22:31:00 | DC8: امال القحطاني | DD8: 72 Hours
B9: 7 | C9: 3651 | D9: 30188420 | E9: مراجع | F9: الطوارئ | G9: الطبي | H9: أطباء الطوارئ | I9: 2025-02-03T12:56:00 | J9: ابرار الشمري | O9: More than 72 hours | P9: 2025-02-03 | Q9: 12:56:00 | R9: ابرار الشمري | S9: 2025-02-03 | T9: 12:56:00 | U9: 2025-02-04 | V9: 13:38:00 | W9: ابرار الشمري | X9: 2025-02-04 | Y9: 17:02:00 | Z9: ابرار الشمري | AA9: 1.170833333 | AB9: 2025-02-05 | AC9: 10:38:00 | AD9: ابرار الشمري | AE9: 0.7333333333 | AF9: 2025-02-06 | AG9: 18:09:00 | AH9: امال القحطاني | AI9: 1.313194444 | AM9: -45692.70972 | AQ9: -45692.70972 | AR9: 2025-02-10 | AS9: 09:28:00 | AT9: ابرار الشمري | AU9: 5.684722222 | AV9: 2025-02-10 | AW9: 09:28:00 | AX9: =(AW9+AV9)-(Y9+X9) -> 5.684722222 | AY9: خالد العتيبي | AZ9: Attitude | BA9: اسلوب موظف الفرز | BB9: إنني غير راضٍ عن الخدمة المقدمة وأطلب اتخاذ الإجراءات اللازمة تجاه هذا التصرف، حيث إنني أرى أن هذا التعامل لا يعكس المهنية المطلوبة في المجال الصحي. وفي حال عدم اتخاذ أي إجراء، سأضطر إلى تصعيد الشكوى والتواصل مع وزارة الصحة لاتخاذ اللازم | BC9: "I am dissatisfied with the service provided and request the necessary actions to be taken regarding this behavior, as I believe this treatment does not reflect the professionalism required in the healthcare field. If no action is taken, I will be forced to escalate the complaint and contact the Ministry of Health to take the necessary steps." | BG9: تم التذكير عدة مرات ولم يتم التجاوب | BI9: Satisfied | BJ9: تم التواصل وحل الاشكالية مع المريض | BK9: لايوجد مايثبت ادعاء المريض حيث ان موظف الفرز المشتكى عليه لايوجد عليه شكاوي سابقه بالنظام | BN9: Hospital | CB9: 3748 | CC9: 30306473 | CD9: وزارة الصحة | CE9: العيادات الخارجية | CF9: الإداري | CG9: قسم الموافقات الطبية | CH9: 2025-02-18T14:28:00 | CI9: رهف العنزي | CJ9: 24 Hours | CL9: 3703 | CM9: 30285131 | CN9: مراجع | CO9: الطوارئ | CP9: الطبي | CQ9: أطباء الطوارئ | CR9: 2025-02-11T23:07:00 | CS9: امال القحطاني | CT9: More than 72 hours | CV9: 3665 | CW9: 30330002 | CX9: ذوي المراجع | CY9: الطوارئ | CZ9: الإداري | DA9: المدير المناوب | DB9: 2025-02-05T14:32:00 | DC9: امال القحطاني | DD9: 48 Hours
B10: 8 | C10: 3652 | D10: 1900966 | E10: مراجع | F10: العيادات الخارجية | G10: الإداري | H10: استقبال العيادات الخارجية | I10: 2025-02-03T17:04:00 | J10: امال القحطاني | O10: More than 72 hours | P10: 2025-02-03 | Q10: 13:00:00 | R10: امال القحطاني | S10: 2025-02-03 | T10: 17:04:00 | U10: 2025-02-03 | V10: 19:14:00 | W10: امال القحطاني | X10: 2025-02-03 | Y10: 19:16:00 | Z10: امال القحطاني | AA10: 0.09166666667 | AE10: -45691.80278 | AI10: 0 | AM10: -45691.80278 | AQ10: -45691.80278 | AR10: 2025-02-09 | AS10: 10:39:00 | AT10: امال القحطاني | AU10: 5.640972222 | AX10: -45691.80278 | AZ10: Malpractice | BB10: أود التقدم بشكوى رسمية بخصوص سوء تعامل أحد الموظفين أثناء تقديم الرعاية الصحية لي. حيث كنت منوّمًا بالمستشفى إثر تعرضي لحادث دهس، وعند قيام الموظف (خالد العتيبي) بأخذ العلامات الحيوية، تعامل معي بطريقة غير لائقة وغير مهنية، حيث قام بسحب يدي بعنف دون مراعاة لحالتي الصحية. بالإضافة إلى ذلك، عند استفساري عن الطاقم الطبي، بدا وكأنه قد تلقى معلومات مسبقة عن وضعي، وتحدث معي بأسلوب غير مناسب وغير متوافق مع أخلاقيات المهنة الطبية. | BC10: would like to formally submit a complaint regarding the inappropriate conduct of a staff member during the provision of healthcare services to me. While I was hospitalized following a pedestrian accident, the staff member, Khalid Al-Otaibi, handled me in an unprofessional and improper manner while taking my vital signs. He forcefully pulled my hand without considering my medical condition. Furthermore, when I inquired about the medical team responsible for my care, he appeared to have prior knowledge of my condition and spoke to me in an inappropriate manner that did not align with medical ethics. I am dissatisfied with the service provided and request that the necessary actions be taken to address this behavior. I believe that such conduct does not reflect the professionalism expected in the healthcare field. If no action is taken, I will be compelled to escalate the complaint and contact the Ministry of Health to pursue further action. Thank you for your attention to this matter. I look forward to your prompt response and appropriate measures being taken. | BG10: تم التذكير عدة مرات ولم يتم التجاوب | BI10: Dissatisfied | BJ10: انكار الحدث من قبل الموظف | BK10: لاشيء شكوى غير مستوفاه لشروط | BL10: التثقيف والتدريب للطاقم الطبي | BN10: Hospital | BR10: Employee Name | BS10: Number of complaints | BT10: Total Percentage | BU10: 24 Hours | BV10: 48 Hours | BW10: 72 Hours | BX10: More than 72 hours | BY10: Total | CB10: 3778 | CC10: 30369606 | CD10: وزارة الصحة | CE10: الطوارئ | CF10: الإداري | CG10: المدير المناوب | CH10: 2025-02-23T13:16:00 | CI10: ابرار الشمري | CJ10: 48 Hours | CL10: 3714 | CM10: 30304993 | CN10: مراجع | CO10: التنويم | CP10: الطبي | CQ10: تنويم النساء والولادة | CR10: 2025-02-12T13:42:00 | CS10: امال القحطاني | CT10: More than 72 hours | CV10: 3670 | CW10: 30140966 | CX10: ذوي المراجع | CY10: العيادات الخارجية | CZ10: الطبي | DA10: عيادات الأطفال | DB10: 2025-02-05T20:22:00 | DC10: رهف العنزي | DD10: 48 Hours
B11: 9 | C11: 3657 | D11: 508807752 | E11: ذوي المراجع | F11: الطوارئ | G11: الطبي | H11: أطباء الطوارئ | I11: 2025-02-04T13:43:00 | J11: ابرار الشمري | O11: More than 72 hours | P11: 2025-02-04 | Q11: 13:38:00 | R11: ابرار الشمري | S11: 2025-02-04 | T11: 13:43:00 | U11: 2025-02-05 | V11: 12:35:00 | W11: ابرار الشمري | X11: 2025-02-05 | Y11: 15:28:00 | Z11: ابرار الشمري | AA11: 1.072916667 | AB11: 2025-02-09 | AC11: 21:17:00 | AD11: امال القحطاني | AE11: 4.242361111 | AF11: 2025-02-10 | AG11: 09:28:00 | AH11: امال القحطاني | AI11: 0.5076388889 | AJ11: 2025-02-11 | AK11: 17:32:00 | AL11: امال القحطاني | AM11: 6.086111111 | AQ11: -45693.64444 | AR11: 2025-02-25 | AS11: 10:55:00 | AT11: ابرار الشمري | AU11: 19.81041667 | AV11: 2025-02-25 | AW11: 10:55:00 | AX11: 19.81041667 | AZ11: Negligence | BA11: تاخير بتقديم الخدمة | BB11: عدم الاهتمام بالمراجع وعدم احترام حالته الطارئه واهمال التمريض وتأخير اتخاذ الاجراء الموصى به من قبل الطبيب مما ادى لخروجي اضطراريا لغير طوارئ في مشفى اخر . | BC11: "Disregard for the references, lack of respect for his emergency condition, neglect of nursing care, and delay in taking the measures recommended by the doctor, which led to my forced departure to another hospital for non-emergency reasons. | BF11: لايوجد سبب | BG11: تم التذكير عدة مرات ولم يتم التجاوب | BI11: Dissatisfied | BJ11: تم الشرح والتوضيح للمريض بعدم توفر غرفه شاغره للمريض في حينها | BK11: لايوجد | BL11: توفير عدد اكبر من الغرف في قسم الطوارى | BN11: Hospital | BR11: ابرار بندر الشمري | BS11: 4 | BT11: =BS11/BS14 -> 66.67% | BU11: 2 | BV11: 1 | BW11: 0 | BX11: 1 | BY11: =BU11+BV11+BW11+BX11 -> 4 | CB11: 3793 | CC11: 30371779 | CD11: وزارة الصحة | CE11: العيادات الخارجية | CF11: الطبي | CG11: عيادات الأسنان | CH11: 2025-02-24T14:20:00 | CI11: رهف العنزي | CJ11: 24 Hours | CL11: 3716 | CM11: 30370340 | CN11: مراجع | CO11: العيادات الخارجية | CP11: الطبي | CQ11: عيادات جراحة العظام | CR11: 2025-02-12T18:34:00 | CS11: رهف العنزي | CT11: More than 72 hours | CV11: 3673 | CW11: 30266861 | CX11: ذوي المراجع | CY11: الطوارئ | CZ11: الإداري | DA11: المدير المناوب | DB11: 2025-02-06T17:17:00 | DC11: امال القحطاني | DD11: 24 Hours
B12: 10 | C12: 3662 | D12: 30266861 | E12: ذوي المراجع | F12: الطوارئ | G12: الطبي | H12: أطباء الطوارئ | I12: 2025-02-05T22:31:00 | J12: امال القحطاني | O12: 72 Hours | P12: 2025-02-05 | Q12: 12:52:00 | R12: امال القحطاني | S12: 2025-02-05 | T12: 22:31:00 | U12: 2025-02-06 | V12: 10:48:00 | W12: امال القحطاني | X12: 2025-02-06 | Y12: 17:16:00 | Z12: امال القحطاني | AA12: 0.78125 | AB12: 2025-02-07 | AC12: 15:39:00 | AD12: امال القحطاني | AE12: 0.9326388889 | AF12: 2025-02-08 | AG12: 10:20:00 | AH12: امال القحطاني | AI12: 0.7784722222 | AM12: -45694.71944 | AQ12: -45694.71944 | AR12: 2025-02-09 | AS12: 10:43:00 | AT12: امال القحطاني | AU12: 2.727083333 | AV12: 2025-02-09 | AW12: 10:43:00 | AX12: 2.727083333 | AZ12: Attitude | BA12: سلوك غير لائق | BB12: سلوك غير لائق من أحد أطباء الطوارئ، حيث صرخ في أثناء دخوله غرفة الطوارئ دون مراعاة للمرضى. | BC12: Inappropriate behavior from one of the emergency doctors, who shouted while entering the emergency room, showing no consideration for the patients. | BG12: تم التذكير عدة مرات ولم يتم التجاوب | BI12: Satisfied | BN12: patient | BR12: امال ماهل القحطاني | BS12: 2 | BT12: =BS12/BS14 -> 33.33% | BU12: 0 | BV12: 1 | BW12: 1 | BX12: 0 | BY12: =BU12+BV12+BW12+BX12 -> 2 | CL12: 3718 | CM12: 30285131 | CN12: مراجع | CO12: الطوارئ | CP12: الإداري | CQ12: المدير المناوب | CR12: 2025-02-13T09:51:00 | CS12: امال القحطاني | CT12: 24 Hours | CV12: 3680 | CW12: 1395972 | CX12: ذوي المراجع | CY12: التنويم | CZ12: الإداري | DA12: إدارة التنويم | DB12: 2025-02-08T13:05:00 | DC12: امال القحطاني | DD12: 48 Hours
B13: 11 | C13: 3663 | D13: 30154988 | E13: وزارة الصحة | F13: العيادات الخارجية | G13: الطبي | H13: عيادات الأنف والأذن والحنجرة (أطفال) | I13: 2025-02-05T13:16:00 | J13: امال القحطاني | O13: 72 Hours | P13: 2025-02-05 | Q13: 13:16:00 | R13: امال القحطاني | S13: 2025-02-05 | T13: 13:16:00 | X13: 2025-02-05 | Y13: 13:48:00 | Z13: امال القحطاني | AA13: 0.02222222222 | AE13: -45693.575 | AI13: 0 | AM13: -45693.575 | AQ13: -45693.575 | AR13: 2025-02-07 | AS13: 15:38:00 | AT13: امال القحطاني | AU13: 2.076388889 | AV13: 2025-02-07 | AW13: 15:38:00 | AX13: 2.076388889 | AZ13: Miscommunication | BA13: تاخير بالموعد | BB13: تم الحضور قبل الموعد وفتح الكشفيه الساعه 6:10 وتم الانتظار حتى الساعه 6:45 تقريبا وعند الاستفسار يتم ابلاغي ان العياده زحمه والطبيب رفض استقبال حالة ابنتي بدون ذكر اي سبب مقنع او حتى الاعتذار عن ماحصل .. | BC13: I arrived before the scheduled time, and the clinic opened at 6:10. I waited until around 6:45, and when I inquired, I was told that the clinic was busy and that the doctor refused to see my daughter's case without providing any convincing reason or even apologizing for what had happened. | BI13: Satisfied | BJ13: حجز موعد بديل الاعتذار للمريض | BK13: حجز موعد بديل الاعتذار للمريض | BL13: توضيح سياسة الانتظار للمراجعين لمن ليس لديهم مواعيد موكده | BN13: patient | BR13: رهف علي العنزي | BS13: 0 | BT13: =BS13/BS14 -> 0.00% | BU13: 0 | BV13: 0 | BW13: 0 | BX13: 0 | BY13: =BU13+BV13+BW13+BX13 -> 0 | CB13: Employee Name | CC13: Number of complaints | CD13: Total Percentage | CE13: 24 Hours | CF13: 48 Hours | CG13: 72 Hours | CH13: More than 72 hours | CI13: Total | CL13: 3732 | CM13: 30280656 | CN13: مراجع | CO13: العيادات الخارجية | CP13: الإداري | CQ13: استقبال العيادات الخارجية | CR13: 2025-02-15T20:46:00 | CS13: ابرار الشمري | CT13: More than 72 hours | CV13: 3680 | CW13: 1395972 | CX13: ذوي المراجع | CY13: التنويم | CZ13: الإداري | DA13: قسم الموافقات الطبية | DB13: 2025-02-09T00:17:00 | DC13: امال القحطاني | DD13: 48 Hours
B14: 12 | C14: 3664 | D14: 30056952 | E14: مراجع | F14: العيادات الخارجية | G14: الإداري | H14: استقبال المختبر | I14: 2025-02-05T14:29:00 | J14: امال القحطاني | O14: 24 Hours | P14: 2025-02-05 | Q14: 14:09:00 | R14: امال القحطاني | S14: 2025-02-05 | T14: 14:29:00 | U14: 2025-02-06 | V14: 22:48:00 | W14: امال القحطاني | X14: 2025-02-06 | Y14: 17:39:00 | Z14: امال القحطاني | AA14: 1.131944444 | AE14: -45694.73542 | AI14: 0 | AM14: -45694.73542 | AQ14: -45694.73542 | AR14: 2025-02-07 | AS14: 15:38:00 | AT14: امال القحطاني | AU14: 0.9159722222 | AV14: 2025-02-07 | AW14: 15:38:00 | AX14: 0.9159722222 | AZ14: Attitude | BA14: تعامل غير مهني | BB14: توجهت للمختبر بعد استلامي رسالة موافقه من قبل مستشفى وكذلك شركة التامين واثناء وصولي متواجدات موظفتين ووحده وافقه بينهم وقلت عندي تحاليل وكل واحده ماسكه جوالها ولا كاني واقف ثم سحبت نفسها موظفه بالكرسي لجهة جهاز وقالت كم رقمك دون ادنى اي احترام او اسلوب محترم ومباشرة قالت عندك تحليل مرفوض مع انه كل تحاليلي موافقه بالرسايل وطلبت اتوجه للموافقات مع العلم اني كنت عند موافقات قبل اتوجة لهم لتفادي التاخير ومع ذلك تم تاخيري وكلمت موافقات وقالت كل عندك موافقه ورجعت وقلت لها كل شي موافق وقالت دكتور كاتب الطلب منفصل وكلمت دكتور ونفى هذا. الرجاء اتخاذ اللازم والحرص على الانضباط اثناء العمل . | BC14: company. When I arrived, there were two employees present, one of whom was talking on her phone, and I was ignored as if I weren’t standing there. Then, one employee moved her chair towards the device and asked for my number without any respect or proper manner. She immediately told me that one of my tests was rejected, even though all of my tests had been approved as per the messages I received. I was asked to go to the approvals department, even though I had visited them earlier to avoid any delay. Despite this, I was still delayed. I spoke to the approvals department, and they confirmed that all of my tests were approved. When I returned to the laboratory, I was told that the doctor had written the request separately. I contacted the doctor, and he denied this. I kindly request that the necessary actions be taken and that proper discipline be maintained during work. | BI14: Dissatisfied | BK14: اتخاذ اجراء داخلي مع الموظفه | BL14: التثقيف والتدريب للطاقم | BN14: Hospital | BR14: Total | BS14: =BS11+BS12+BS13 -> 6 | BT14: =BT12+BT11+BT13 -> 100.00% | BU14: =SUM(BU11:BU13) -> 2 | BV14: =SUM(BV11:BV13) -> 2 | BW14: =SUM(BW11:BW13) -> 1 | BX14: =SUM(BX11:BX13) -> 1 | BY14: =BY12+BY11+BY13 -> 6 | CB14: ابرار بندر الشمري | CC14: 2 | CD14: =CC14/CC17 -> 22.22% | CE14: 1 | CF14: 1 | CG14: 0 | CH14: 0 | CI14: =CE14+CF14+CG14+CH14 -> 2 | CL14: 3772 | CM14: 30366504 | CN14: مراجع | CO14: العيادات الخارجية | CP14: الإداري | CQ14: استقبال العيادات الخارجية | CR14: 2025-02-21T22:44:00 | CS14: ابرار الشمري | CT14: More than 72 hours | CV14: 3681 | CW14: 30310877 | CX14: ذوي المراجع | CY14: العيادات الخارجية | CZ14: الطبي | DA14: عيادات جراحة الأورام و الغدد الصماء | DB14: 2025-02-08T22:58:00 | DC14: امال القحطاني | DD14: 48 Hours
B15: 13 | C15: 3665 | D15: 30330002 | E15: ذوي المراجع | F15: الطوارئ | G15: الإداري | H15: المدير المناوب | I15: 2025-02-05T14:32:00 | J15: امال القحطاني | O15: 48 Hours | P15: 2025-02-05 | Q15: 14:21:00 | R15: امال القحطاني | S15: 2025-02-05 | T15: 14:32:00 | U15: 2025-02-06 | V15: 10:47:00 | W15: امال القحطاني | X15: 2025-02-06 | Y15: 13:38:00 | Z15: امال القحطاني | AA15: 0.9625 | AE15: -45694.56806 | AI15: 0 | AM15: -45694.56806 | AQ15: -45694.56806 | AR15: 2025-02-08 | AS15: 10:19:00 | AT15: امال القحطاني | AU15: 1.861805556 | AV15: 2025-02-08 | AW15: 10:19:00 | AX15: 1.861805556 | AZ15: Malpractice | BA15: سوء بالخدمة | BB15: تاخر الكادر الطبي في علاج ابني القادم للطوارئ دون اخذ اي اجراءات اولية لمدة تتجاوز النصف ساعة بعد تسجيل الحالة على الاستقبال وقمت بمراجعة الممرض على الاستقبال لكنه لم يتجاوب معي ووجهني مباشرة دون اي توضيح او نقاش الى المدير المناوب ابلغت المدير المناوب بمشكلتي وعند لحاقي به ودخولي الريسبشن خلفه عن طريق الخطأ قام برفع صوته ومحاولة اخراجي بطريقة لا تليق من الاستقبال علما انه كان الاولى ان يطلبها بادب او يطمأني على اصلاح الحالة ويخرجني لكنه استمر بطريقة غير مناسبة بالنقاش الامر الذي وعند احتدادنا سويا بالنقاش طلبت منه عدم الاقتراب مني حيث انه كان يقترب عند الحديث بطريقة غير لائقة ابدا وانهى كلامه بتهديد (ما بدك تيجي على مكتب بعدين بنشوف ) بانتظار الرد والافاده .. | BC15: The medical staff was delayed in treating my son, who came to the emergency department, without taking any preliminary actions for over half an hour after the case was registered at the reception. I approached the nurse at the reception, but he did not respond to me and directly directed me, without any explanation or discussion, to the on-duty manager. I informed the on-duty manager of my issue, and when I followed him and accidentally entered the reception behind him, he raised his voice and attempted to remove me from the reception in an inappropriate manner. It would have been more appropriate for him to politely request me to leave or reassure me that the situation would be handled and then escort me out. However, he continued the discussion in an inappropriate manner, which led to a heated exchange between us. I asked him to stop getting too close to me as he was approaching in an impolite manner, and he ended his words with a threat: “If you don’t come to my office, we will see what happens next.” I am waiting for a response and feedback. | BI15: Dissatisfied | BJ15: التحقيق بالحادثه | BK15: نفي الشكوى | BL15: غير مستوفاه الشروط | BN15: Hospital | CB15: امال ماهل القحطاني | CC15: 4 | CD15: =CC15/CC17 -> 44.44% | CE15: 3 | CF15: 0 | CG15: 1 | CH15: 0 | CI15: =CE15+CF15+CG15+CH15 -> 4 | CL15: 3799 | CM15: 30315643 | CN15: مراجع | CO15: العيادات الخارجية | CP15: الطبي | CQ15: بنك الدم | CR15: 2025-02-25T18:18:00 | CS15: ابرار الشمري | CT15: 24 Hours | CV15: 3685 | CW15: 30277900 | CX15: ذوي المراجع | CY15: العيادات الخارجية | CZ15: الطبي | DA15: عيادات جراحة المخ والأعصاب | DB15: 2025-02-08T17:11:00 | DC15: رهف العنزي | DD15: 48 Hours
B16: 14 | C16: 3667 | D16: 2403306455 | E16: مجلس الضمان الصحي | F16: الطوارئ | G16: الإداري | H16: استقبال الطوارئ | I16: 2025-02-05T15:18:00 | J16: ابرار الشمري | O16: More than 72 hours | P16: 2025-02-05 | Q16: 15:18:00 | R16: ابرار الشمري | S16: 2025-02-05 | T16: 15:18:00 | U16: 2025-02-05 | V16: 15:18:00 | W16: ابرار الشمري | X16: 2025-02-05 | Y16: 15:30:00 | Z16: ابرار الشمري | AA16: 0.008333333339 | AB16: 2025-02-09 | AC16: 12:02:00 | AD16: امال القحطاني | AE16: 3.855555556 | AI16: -45697.50139 | AM16: -45693.64583 | AQ16: -45693.64583 | AR16: 2025-02-09 | AS16: 13:39:00 | AT16: امال القحطاني | AU16: 3.922916667 | AV16: 2025-02-09 | AW16: 13:39:00 | AX16: 3.922916667 | AZ16: Financial Claim | BA16: استرجاع مبلغ | BB16: طلب فحوصات دون التوضيح لي | BC16: The doctor informed me that I will do 3 checkups for my daughter (CK, CRP, CBC) and I paid in cash and didn’t receive a receipt. I went back to the cashier to ask for a copy and then I discovered that they added extra checkups without informing me. 8 extra checkups. I asked for a refund and they kept wasting my time and denied my refund for most of them. As a patient, I have the right to know what checkups to be done and I didn’t give my consent except for 3 checkups only. (CK, CRP, CBC) | BG16: تم التذكير عدة مرات ولم يتم التجاوب | BI16: Neutral | BJ16: التواصل مع المراجع وحل الاشكالية | BL16: التوضيح من قبل الطبيب المعالج لطلبات قبل رفعها بالنظام ( تحاليل ، اشعه ) | BN16: patient | BR16: CCHI | BS16: 6 | BT16: =BS16/#REF! ->  | CB16: رهف علي العنزي | CC16: 3 | CD16: =CC16/CC17 -> 33.33% | CE16: 3 | CF16: 0 | CG16: 0 | CH16: 0 | CI16: =CE16+CF16+CG16+CH16 -> 3 | CL16: 3808 | CM16: 30354179 | CN16: مراجع | CO16: العيادات الخارجية | CP16: الطبي | CQ16: عيادات النساء والولادة | CR16: 2025-02-26T17:15:00 | CS16: ابرار الشمري | CT16: 48 Hours | CV16: 3691 | CW16: 583800696 | CX16: ذوي المراجع | CY16: الطوارئ | CZ16: الإداري | DA16: الموافقات الطبية | DB16: 2025-02-09T18:18:00 | DC16: امال القحطاني | DD16: 72 Hours
B17: 15 | C17: 3670 | D17: 30140966 | E17: ذوي المراجع | F17: العيادات الخارجية | G17: الطبي | H17: عيادات الأطفال | I17: 2025-02-05T20:22:00 | J17: رهف العنزي | O17: 48 Hours | P17: 2025-02-05 | Q17: 20:09:00 | R17: رهف العنزي | S17: 2025-02-05 | T17: 20:22:00 | U17: 2025-02-08 | V17: 14:07:00 | W17: رهف العنزي | X17: 2025-02-08 | Y17: 14:07:00 | Z17: رهف العنزي | AA17: 2.739583333 | AB17: 2025-02-09 | AC17: 11:12:00 | AD17: امال القحطاني | AE17: 0.8784722222 | AI17: -45697.46667 | AM17: -45696.58819 | AQ17: -45696.58819 | AR17: 2025-02-09 | AS17: 18:22:00 | AT17: رهف العنزي | AU17: 1.177083333 | AX17: =(AW17+AV17)-(Y17+X17) -> -45696.58819 | AY17: اكرام رابح | AZ17: Attitude | BA17: اسلوب الطبيبة وعدم كتابة تحليل | BB17: اسلوب الطبيبة كان غير مهني مع الأم وطلبت منها الأم كتابة تحليل وعندما عادت للمختبر يوم آخر تبين عدم كتابته | BC17: The doctor's behavior was unprofessional with the mother. The mother requested a test to be written, but when she returned to the lab on another day, she found out that it had not been written. | BE17: 2025-02-09 | BF17: تاخير الطبيبة بالرد | BI17: Satisfied | BN17: patient | BO17: الطبيبة | CB17: Total | CC17: =CC14+CC15+CC16 -> 9 | CD17: =CD15+CD14+CD16 -> 100.00% | CE17: =SUM(CE14:CE16) -> 7 | CF17: =SUM(CF14:CF16) -> 1 | CG17: =SUM(CG14:CG16) -> 1 | CH17: =SUM(CH14:CH16) -> 0 | CI17: =CI15+CI14+CI16 -> 9 | CL17: 3811 | CM17: 30363772 | CN17: مراجع | CO17: العيادات الخارجية | CP17: الطبي | CQ17: عيادات الطب النفسي | CR17: 2025-02-26T18:51:00 | CS17: رهف العنزي | CT17: More than 72 hours | CV17: 3695 | CW17: 30237123 | CX17: ذوي المراجع | CY17: العيادات الخارجية | CZ17: الإداري | DA17: استقبال العيادات الخارجية | DB17: 2025-02-09T18:03:00 | DC17: رهف العنزي | DD17: 48 Hours
B18: 16 | C18: 3672 | D18: 1333383 | E18: مراجع | F18: التنويم | G18: الخدمات المساندة | H18: قسم النظافة | I18: 2025-02-06T15:36:00 | J18: امال القحطاني | O18: 48 Hours | P18: 2025-02-06 | Q18: 15:31:00 | R18: امال القحطاني | S18: 2025-02-06 | T18: 15:36:00 | U18: 2025-02-06 | V18: 15:53:00 | W18: امال القحطاني | X18: 2025-02-06 | Y18: 17:30:00 | Z18: امال القحطاني | AA18: 0.07916666666 | AB18: 2025-02-07 | AC18: 15:36:00 | AD18: امال القحطاني | AE18: 0.9208333333 | AF18: 2025-02-08 | AG18: 10:17:00 | AH18: امال القحطاني | AI18: 0.7784722222 | AM18: -45694.72917 | AQ18: -45694.72917 | AR18: 2025-02-08 | AS18: 12:16:00 | AT18: امال القحطاني | AU18: 1.781944444 | AV18: 2025-02-08 | AW18: 12:16:00 | AX18: 1.781944444 | AZ18: Cleaniliness issue | BA18: النظافه | BB18: غرفه 3135 تاخير في النضافه يومين عدم وجود معدات نظافه حيث ان عاملة النظافه قامت بتنظيف الغرفه كامله بفوطة تنظيف واحده ودخل دورة المياه حامله نفس الفوطه يتوجب تحسين مستوى الخدمه و اعاده تنضيف الغرفه مرتان على الاقل يومي . | BC18: Room 3135: There was a delay in cleaning for two days, and there were no cleaning supplies available. The cleaning lady cleaned the entire room with just one cleaning cloth, and then she entered the bathroom carrying the same cloth. The level of service needs to be improved, and the room should be cleaned at least twice daily. | BI18: Satisfied | BJ18: الرجوع للكاميرات | BK18: لايوجد تاخير بتقديم الخدمة | BN18: Hospital | BR18: 24 Hours | BS18: 48 Hours | BT18: 72 Hours | BU18: More than 72 hours | CV18: 3704 | CW18: 30277407 | CX18: ذوي المراجع | CY18: العيادات الخارجية | CZ18: الإداري | DA18: قسم التقارير الطبية | DB18: 2025-02-10T17:42:00 | DC18: رهف العنزي | DD18: 72 Hours
B19: 17 | C19: 3673 | D19: 30266861 | E19: ذوي المراجع | F19: الطوارئ | G19: الإداري | H19: المدير المناوب | I19: 2025-02-06T17:17:00 | J19: امال القحطاني | O19: 24 Hours | P19: 2025-02-06 | Q19: 17:17:00 | R19: امال القحطاني | S19: 2025-02-06 | T19: 17:17:00 | X19: 2025-02-06 | Y19: 17:27:00 | Z19: امال القحطاني | AA19: 0.006944444445 | AE19: -45694.72708 | AI19: 0 | AM19: -45694.72708 | AQ19: -45694.72708 | AR19: 2025-02-07 | AS19: 15:36:00 | AT19: امال القحطاني | AU19: 0.9229166667 | AV19: 2025-02-07 | AW19: 15:36:00 | AX19: 0.9229166667 | AZ19: Attitude | BA19: تعامل غير مهني | BB19: شكوتي ضد أحد أطباء قسم الطوارئ، والذي يبدو أنه سوري الجنسية بتاريخ 2025/2/2م الساعة 3 عصرا، توجهت إلى قسم الطوارئ برفقة زوجتي وطفلين يعانون من أعراض حمى وحكة، وقد تم إدخالنا غرفة الطوارئ التي تحتوي على سريرين فقط، مع وجود ثلاث حالات. أثناء تلقي العلاج، كانت الغرفة غير هادئة بسبب الضوضاء من المراجعين، مما أثر على راحة الأطفال. فبسبب هذه الفوضى، قمت بإغلاق الباب وأخبرت زوجتي بإغلاق الستار في حال أراد أي من الطاقم دخول الغرفة. تفاجأت بوصول الطبيب، وطالبته بدقيقة فقط لأبلغ زوجتي بأن الطبيب يريد الدخول، لكن رد فعله كانت غير لائق، حيث صرخ قائلا: أنا أدخل في أي وقت، مش من حقك تمنعني ، ودخل الغرفة بشكل مفاجئ دون مراعاة للحالة الصحية أو النفسية للمريض او حتى احترام الخصوصيه .. | BC19: I have a complaint against an emergency department doctor, who seems to be of Syrian nationality. On 2025/2/2 at 3 PM, I went to the emergency department accompanied by my wife and two children who were suffering from fever and itching symptoms. We were admitted to an emergency room with only two beds, and there were three other cases in the room. While receiving treatment, the room was noisy due to the disturbance from other patients, which affected the comfort of the children. Due to this chaos, I closed the door and told my wife to close the curtain in case any of the staff wanted to enter. | BI19: Dissatisfied | BN19: Hospital | BR19: 2 | BS19: 2 | BT19: 1 | BU19: 1 | CB19: MOH | CC19: 9 | CD19: =CC19/#REF! ->  | CL19: Employee Name | CM19: Number of complaints | CN19: Total Percentage | CO19: 24 Hours | CP19: 48 Hours | CQ19: 72 Hours | CR19: More than 72 hours | CS19: Total | CV19: 3707 | CW19: 20362817 | CX19: ذوي المراجع | CY19: العيادات الخارجية | CZ19: الطبي | DA19: عيادات الأطفال | DB19: 2025-02-10T20:06:00 | DC19: رهف العنزي | DD19: 72 Hours
A20: 2 | B20: 18 | C20: 3677 | D20: 30320418 | E20: مجلس الضمان الصحي | F20: التنويم | G20: الإداري | H20: قسم المالية | I20: 2025-02-08T09:55:00 | J20: امال القحطاني | O20: 48 Hours | P20: 2025-02-08 | Q20: 21:55:00 | R20: امال القحطاني | S20: 2025-02-08 | T20: 09:55:00 | X20: 2025-02-08 | Y20: 10:15:00 | Z20: امال القحطاني | AA20: 0.01388888889 | AE20: -45696.42708 | AI20: 0 | AM20: -45696.42708 | AQ20: -45696.42708 | AR20: 2025-02-09 | AS20: 11:06:00 | AT20: امال القحطاني | AU20: 1.035416667 | AV20: 2025-02-09 | AW20: 11:06:00 | AX20: 1.035416667 | AZ20: Financial Claim | BA20: سوء بالخدمة | BB20: تم تحديد موعد مع الدكتور خالد علي الغامدي الذي قام بإجراء كافة الفحوصات والتحاليل اللازمة، وأوصى بإجراء منظار للمثانة. تم رفع طلب إلى شركة التأمين في 22 يناير، ولكن تم رفضه في البداية. وبعد ذلك تم رفع طلب اخر وتمت الموافقة عليه في 25 يناير وتواصلت معي الممرضة لتحديد موعد المنظار. تم إجراء المنظار تحت التخدير الكامل في 29 يناير وبعد الانتهاء من العملية، أخبرني الدكتور أنني كنت أعاني من انسداد خفيف في الاحليل العلوي، وقد تم توسيعه. وبعد مغادرتي غرفة العمليات، تم الاتصال بي من قبل موظف التحصيل في المستشفى وأخبرني بضرورة دفع مبلغ 2000 ريال بسبب إجراء إضافي لم توافق عليه شركة التأمين. تواصلت مع موظف التأمين نواف الذي أكد لي أنني لا يجب أن أدفع أي مبلغ وأنه سيتم رفع تقرير مفصل لموافقة التأمين على الإجراء الإضافي ورغم ذلك، أصدر الموظف في المستشفى فاتورة تطالبني بدفع المبلغ في غضون 5 أيام، مهددا برفع دعوى قضائية ضدي في حال عدم الدفع بانتظار الافاده والرد .. | BC20: An appointment was made with Dr. Khalid Ali Al-Ghamdi, who performed all the necessary tests and recommended a cystoscopy. A request was submitted to the insurance company on January 22, but it was initially rejected. A second request was then submitted and approved on January 25, and the nurse contacted me to schedule the cystoscopy. The cystoscopy was performed under general anesthesia on January 29, and after the procedure, the doctor informed me that I had a mild obstruction in the upper urethra, which had been dilated. After leaving the operating room, I was contacted by the hospital's billing department and was told that I needed to pay 2,000 SAR for an additional procedure that was not approved by the insurance company. I contacted the insurance employee, Nawaf, who confirmed that I should not pay anything and that a detailed report would be submitted for insurance approval for the additional procedure. Despite this, the hospital employee issued a bill demanding that I pay the amount within 5 days, threatening to file a lawsuit against me if I fail to pay. I am waiting for a response and clarification. Let me know if you need any further adjustments! | BI20: Dissatisfied | BJ20: التحقق | BK20: التوضيح للمراجع | BL20: التجاوب مع المريض والتوضيح له بشكل مفصل في حال وجود اي مطالبات من قبل المستشفى من المريض | BN20: Hospital | BR20: =BR19/BS16 -> 33.33% | BS20: =BS19/BS16 -> 33.33% | BT20: =BT19/BS16 -> 16.67% | BU20: =BU19/BS16 -> 16.67% | CL20: ابرار بندر الشمري | CM20: 5 | CN20: =CM20/CM23 -> 33.33% | CO20: 1 | CP20: 1 | CQ20: 0 | CR20: 3 | CS20: =CO20+CP20+CQ20+CR20 -> 5 | CV20: 3717 | CW20: 30276887 | CX20: ذوي المراجع | CY20: العيادات الخارجية | CZ20: الطبي | DA20: عيادات الجهاز الهمضي والمناظير (أطفال) | DB20: 2025-02-12T20:55:00 | DC20: رهف العنزي | DD20: More than 72 hours
B21: 19 | C21: 3678 | D21: 30122643 | E21: مراجع | F21: العيادات الخارجية | G21: الإداري | H21: استقبال العيادات الخارجية | I21: 2025-02-08T12:51:00 | J21: امال القحطاني | O21: More than 72 hours | P21: 2025-02-08 | Q21: 10:50:00 | R21: امال القحطاني | S21: 2025-02-08 | T21: 12:51:00 | U21: 2025-02-08 | V21: 13:09:00 | W21: امال القحطاني | X21: 2025-02-08 | Y21: 13:26:00 | Z21: امال القحطاني | AA21: 0.02430555555 | AB21: 2025-02-09 | AC21: 11:06:00 | AD21: امال القحطاني | AE21: 0.9027777778 | AF21: 2025-02-09 | AG21: 21:16:00 | AH21: امال القحطاني | AI21: 0.4236111111 | AJ21: 2025-02-10 | AK21: 09:29:00 | AL21: امال القحطاني | AM21: 1.835416667 | AQ21: -45696.55972 | AR21: 2025-03-02 | AS21: 12:03:00 | AT21: ابرار الشمري | AU21: 21.94236111 | AX21: -45696.55972 | AZ21: Attitude | BA21: اسلوب | BB21: لقد قمت بمراجعة المستشفى عدة مرات خلال عام 2024، وفي كل مرة كان الموظف في الدور الأول (العيادات الجهة الغربية) يتعامل معي بطريقة سيئة جدًا، حيث تكررت هذه التصرفات في زيارات مختلفة وأوقات متعددة. تصرفاته لا تليق بموظف استقبال في مستشفى بحجم الحمادي. وفي زيارتي الأخيرة للدور السادس أثناء مراجعتي للدكتور عماد المالكي، تكررت تصرفاته واسئلته الغريبة رغم وجود جميع المعلومات في النظام وإعطائه البطاقة الشخصية. كما رفض دخولي بحجة عدم وجود تأمين أو مرتجع، وكان هدفه تأخيري ودخولي في جدال غير مبرر. تم حضور المشرف في ذلك اليوم وتوجيه الموظف. أرجو من المستشفى محاسبة هذا الموظف على تصرفاته التي تضر بسمعة المستشفى وليس لها مبرر ... | BC21: I have visited the hospital several times throughout 2024, and each time, the employee on the first floor (the western side of the clinics) treated me very poorly. These behaviors were repeated during different visits and at various times. His actions are unprofessional for a receptionist at a hospital of Al-Hamadi's caliber. In my most recent visit to the sixth floor for my appointment with Dr. Emad Al-Maliki, his strange behavior and questions persisted, even though all the information was available in the system, and I provided my ID card. He also refused to let me in, claiming there was no insurance or return, and his intention seemed to be to delay me and get me into an unnecessary argument. The supervisor attended that day and addressed the employee. I kindly request that the hospital take appropriate action against this employee for his behavior, which harms the hospital’s reputation and is unjustified. | BI21: Satisfied | BJ21: التحقيق مع الموظف | BK21: انهاء عقد الموظف | BL21: التثقيف والتدريب الاداري | BN21: patient | CB21: 24 Hours | CC21: 48 Hours | CD21: 72 Hours | CE21: More than 72 hours | CL21: امال ماهل القحطاني | CM21: 7 | CN21: =CM21/CM23 -> 46.67% | CO21: 2 | CP21: 1 | CR21: 4 | CS21: =CR21+CQ21+CP21+CO21 -> 7 | CV21: 3737 | CW21: 30051907 | CX21: ذوي المراجع | CY21: العيادات الخارجية | CZ21: الطبي | DA21: قسم المختبر | DB21: 2025-02-16T15:11:00 | DC21: ابرار الشمري | DD21: 48 Hours
B22: 20 | C22: 3680 | D22: 1395972 | E22: ذوي المراجع | F22: التنويم | G22: الإداري | H22: إدارة التنويم | I22: 2025-02-08T13:05:00 | J22: امال القحطاني | O22: 48 Hours | P22: 2025-02-08 | Q22: 13:05:00 | R22: امال القحطاني | S22: 2025-02-08 | T22: 13:05:00 | U22: 2025-02-09 | V22: 20:35:00 | W22: امال القحطاني | X22: 2025-02-09 | Y22: 20:35:00 | Z22: امال القحطاني | AA22: 1.3125 | AE22: -45697.85764 | AI22: 0 | AM22: -45697.85764 | AQ22: -45697.85764 | AR22: 2025-02-10 | AS22: 21:13:00 | AT22: امال القحطاني | AU22: 1.026388889 | AX22: -45697.85764 | AZ22: Treatment plan issue | BA22: سوء بالخدمة | BB22: بالاضافه الى تأخير في تقديم العلاج هناك تأخير في تقديم العلاج والأجهزة المطلوبة (مثل جهاز التنفس) والتي تمت الموافقة عليه لا يوجد وضوح حول اسباب في تأخير توفير الأجهزة الطبية مما يسبب حالة من القلق للمريضه وذويه | BC22: There is a lack of coordination between the doctors and the admission department, as there is conflicting information from the doctors regarding the necessary equipment for treatment and changes in the treatment plan without sufficient explanation. There should have been clear coordination between the doctors and the social workers to ensure a clear treatment plan. Additionally, there has been a delay in response from the social worker, despite your repeated attempts to contact them. | BI22: Dissatisfied | BJ22: التحقق | BK22: نفي الشكوى | BL22: تحسين التنسيق بين الأطباء وإدارة التنويم التوضيح الكامل للخطة العلاجية | BN22: Hospital | BR22: In-Patient | BS22: 2 | BT22: =BS22/BS25 -> 33.33% | CB22: 7 | CC22: 1 | CD22: 1 | CE22: 0 | CL22: رهف علي العنزي | CM22: 3 | CN22: =CM22/CM23 -> 20.00% | CO22: 0 | CP22: 0 | CQ22: 0 | CR22: 3 | CS22: =CO22+CP22+CQ22+CR22 -> 3 | CV22: 3753 | CW22: 30371779 | CX22: ذوي المراجع | CY22: العيادات الخارجية | CZ22: الطبي | DA22: عيادات الأسنان | DB22: 2025-02-18T19:57:00 | DC22: رهف العنزي | DD22: More than 72 hours
B23: 21 | C23: 3680 | D23: 1395972 | E23: ذوي المراجع | F23: التنويم | G23: الإداري | H23: قسم الموافقات الطبية | I23: 2025-02-09T00:17:00 | J23: امال القحطاني | O23: 48 Hours | P23: 2025-02-08 | Q23: 13:05:00 | R23: امال القحطاني | S23: 2025-02-09 | T23: 00:17:00 | U23: 2025-02-09 | V23: 20:55:00 | W23: امال القحطاني | X23: 2025-02-09 | Y23: 20:59:00 | Z23: امال القحطاني | AA23: 0.8625 | AE23: -45697.87431 | AI23: 0 | AM23: -45697.87431 | AQ23: -45697.87431 | AR23: 2025-02-10 | AS23: 21:11:00 | AT23: امال القحطاني | AU23: 1.008333333 | AX23: -45697.87431 | AZ23: Miscoordination | BA23: سوء بالخدمة | BB23: لا يوجد تنسيق بين الأطباء وادارة التنويم حيث ان هناك تضارب في أقوال الأطباء فيما يتعلق بالأجهزة اللازمة للعلاج، وتغيير في الخطة العلاجية دون توضيح كافٍ كان من المفترض أن يكون هناك تنسيق واضح بين الأطباء والأخصائيين الاجتماعيين لضمان خطة علاجية واضحه ويوجد تأخير بالاستجابة من الأخصائي الاجتماعي،رغم محاولاتك المتكررة للاتصال بهم | BC23: There is a lack of coordination between the doctors and the admission department, as there is conflicting information from the doctors regarding the necessary equipment for treatment and changes in the treatment plan without sufficient explanation. There should have been clear coordination between the doctors and the social workers to ensure a clear treatment plan. Additionally, there has been a delay in response from the social worker, despite your repeated attempts to contact them. Furthermore, there has been a delay in providing the treatment and required equipment (such as the breathing machine), which had been approved. There is no clarity regarding the reasons for the delay in providing the medical equipment, causing anxiety for the patient and their family. It is worth noting that I went through the same experience with my mother previously, and the same issues have been repeated, indicating a lack of proper coordination and negligence between the doctors and the admission department in providing appropriate healthcare at the right time in the entire admission department. | BI23: Dissatisfied | BJ23: التحقق | BK23: الافادة بانها الرفض من قبل تامين | BL23: التوضيح الكامل للمراجع في حال تم الرفض من قبل التامين | BN23: Hospital | BR23: Out-Patient | BS23: 3 | BT23: =BS23/BS25 -> 50.00% | CB23: =CB22/CC19 -> 77.78% | CC23: =CC22/CC19 -> 11.11% | CD23: =CD22/CC19 -> 11.11% | CE23: =CE22/CC19 -> 0.00% | CL23: Total | CM23: =CM20+CM21+CM22 -> 15 | CN23: =CN21+CN20+CN22 -> 100.00% | CO23: =SUBTOTAL(9,CO20:CO22) -> 3 | CP23: =SUBTOTAL(9,CP20:CP22) -> 2 | CQ23: =SUBTOTAL(9,CQ20:CQ22) -> 0 | CR23: =SUBTOTAL(9,CR20:CR22) -> 10 | CS23: =CS21+CS20+CS22 -> 15 | CV23: 3760 | CW23: 30334037 | CX23: ذوي المراجع | CY23: التنويم | CZ23: التمريض | DA23: تمريض تنويم الأطفال | DB23: 2025-02-19T13:13:00 | DC23: رهف العنزي | DD23: 72 Hours
B24: 22 | C24: 3681 | D24: 30310877 | E24: ذوي المراجع | F24: العيادات الخارجية | G24: الطبي | H24: عيادات جراحة الأورام و الغدد الصماء | I24: 2025-02-08T22:58:00 | J24: امال القحطاني | O24: 48 Hours | P24: 2025-02-08 | Q24: 14:13:00 | R24: امال القحطاني | S24: 2025-02-08 | T24: 22:58:00 | U24: 2025-02-09 | V24: 11:00:00 | W24: امال القحطاني | X24: 2025-02-11 | Y24: 18:07:00 | Z24: امال القحطاني | AA24: 2.797916667 | AE24: -45699.75486 | AI24: 0 | AM24: -45699.75486 | AQ24: -45699.75486 | AR24: 2025-02-13 | AS24: 14:39:00 | AT24: امال القحطاني | AU24: 1.855555556 | AZ24: Attitude | BA24: تعامل الطبيب سيء | BB24: التلفظ على المريض بكلام جارح و رفع الصوت | BC24: Poor attitude with patient and shouting | BI24: Dissatisfied | BN24: Hospital | BR24: ER | BS24: 1 | BT24: =BS24/BS25 -> 16.67% | CV24: 3771 | CW24: 30372444 | CX24: ذوي المراجع | CY24: العيادات الخارجية | CZ24: الطبي | DA24: عيادات جراحة الأنف وأذن وحنجرة | DB24: 2025-02-21T15:13:00 | DC24: ابرار الشمري | DD24: More than 72 hours
B25: 23 | C25: 3685 | D25: 30277900 | E25: ذوي المراجع | F25: العيادات الخارجية | G25: الطبي | H25: عيادات جراحة المخ والأعصاب | I25: 2025-02-08T17:11:00 | J25: رهف العنزي | O25: 48 Hours | P25: 2025-02-08 | Q25: 17:04:00 | R25: رهف العنزي | S25: 2025-02-08 | T25: 17:11:00 | U25: 2025-02-08 | V25: 17:21:00 | W25: رهف العنزي | X25: 2025-02-08 | Y25: 17:21:00 | Z25: رهف العنزي | AA25: 0.006944444445 | AE25: -45696.72292 | AI25: 0 | AM25: -45696.72292 | AQ25: -45696.72292 | AR25: 2025-02-09 | AS25: 18:19:00 | AT25: رهف العنزي | AU25: 1.040277778 | AX25: =(AW25+AV25)-(Y25+X25) -> -45696.72292 | AZ25: Miscoordination | BA25: تأخر عن موعد المراجع | BB25: علما اني مررت بنفس التجربة مع والدتي سابقا وتم تكرار ذلك ، مما يوضح ان هناك قصور واهمال في التنسيق بين الأطباء وادارة التنويم وتوفير الرعاية الصحية المناسبة في الوقت المناسب لدى قسم التنويم بااكمله. | BC25: Furthermore, there has been a delay in providing the treatment and required equipment (such as the breathing machine), which had been approved. There is no clarity regarding the reasons for the delay in providing the medical equipment, causing anxiety for the patient and their family. | BI25: Satisfied | BN25: Hospital | BO25: الطبيب | BR25: Total | BS25: =BS22+BS23+BS24 -> 6 | BT25: =BT24+BT23+BT22 -> 100.00% | CB25: In-Patient | CC25: 1 | CD25: =CC25/CC28 -> 11.11% | CL25: Patients | CM25: 15 | CN25: =CM25/#REF! ->  | CV25: 3784 | CW25: 30372745 | CX25: ذوي المراجع | CY25: العيادات الخارجية | CZ25: الطبي | DA25: عيادات الباطنية | DB25: 2025-02-23T19:55:00 | DC25: ابرار الشمري | DD25: More than 72 hours
B26: 24 | C26: 3691 | D26: 583800696 | E26: ذوي المراجع | F26: الطوارئ | G26: الإداري | H26: الموافقات الطبية | I26: 2025-02-09T18:18:00 | J26: امال القحطاني | O26: 72 Hours | P26: 2025-02-09 | Q26: 11:35:00 | R26: امال القحطاني | S26: 2025-02-09 | T26: 18:18:00 | U26: 2025-02-09 | V26: 20:55:00 | W26: امال القحطاني | X26: 2025-02-09 | Y26: 21:09:00 | Z26: امال القحطاني | AA26: 0.11875 | AB26: 2025-02-10 | AC26: 21:07:00 | AD26: امال القحطاني | AE26: 0.9986111111 | AI26: -45698.87986 | AM26: -45697.88125 | AN26: 2025-02-12 | AO26: 13:55:00 | AP26: امال القحطاني | AQ26: 2.698611111 | AU26: -45697.88125 | AX26: =(AW26+AV26)-(Y26+X26) -> -45697.88125 | AY26: عهود من قسم الموافقات الطبية | AZ26: Attitude | BA26: اسلوب غير مهني مع المريض | BB26: الموظفة لم تقم بخدمة المريض بالشكل المطلوب و أخلاق سيئة | BC26: poor attitude with patient and did not provide services as well | BD26: مرة واحدة | BE26: 2025/02/10 2025/02/11 | BI26: Satisfied | BN26: patient | BR26: Medical | BS26: 0 | BT26: =BS26/BS30 -> 0.00% | CB26: Out-Patient | CC26: 6 | CD26: =CC26/CC28 -> 66.67% | CV26: 3794 | CW26: 30372812 | CX26: ذوي المراجع | CY26: العيادات الخارجية | CZ26: الطبي | DA26: عيادات النساء والولادة | DB26: 2025-02-24T16:19:00 | DC26: رهف العنزي | DD26: 48 Hours
B27: 25 | C27: 3695 | D27: 30237123 | E27: ذوي المراجع | F27: العيادات الخارجية | G27: الإداري | H27: استقبال العيادات الخارجية | I27: 2025-02-09T18:03:00 | J27: رهف العنزي | O27: 48 Hours | P27: 2025-02-09 | Q27: 18:03:00 | R27: رهف العنزي | S27: 2025-02-09 | T27: 18:03:00 | W27: رهف العنزي | X27: 2025-02-09 | Y27: 18:13:00 | Z27: رهف العنزي | AA27: 0.006944444445 | AB27: 2025-02-10 | AC27: 13:03:00 | AD27: رهف العنزي | AE27: 0.7847222222 | AF27: 2025-02-11 | AG27: 13:25:00 | AH27: رهف العنزي | AI27: 1.015277778 | AM27: -45697.75903 | AQ27: -45697.75903 | AR27: 2025-02-11 | AS27: 16:07:00 | AT27: رهف العنزي | AU27: 1.9125 | AX27: =(AW27+AV27)-(Y27+X27) -> -45697.75903 | AY27: قاسم | AZ27: Attitude | BA27: اسلوب غير مهني مع المريض | BB27: اسلوب موظف الاستقبال غير مهني ولم يخدم المريض | BC27: unprofessional behavior with the patient and did not serve him | BD27: مرتين | BE27: 2025/02/10 2025/02/11 | BF27: دائما تأخير من العيادات الخرجية | BH27: ادارة العيادات الخارجية | BI27: Satisfied | BJ27: انذار في الموظف | BK27: رضا المريض بعد الانذار لانه يطلب المهنية والاحترام في التعامل فقط | BN27: patient | BO27: patient | BR27: Admin | BS27: 6 | BT27: =BS27/BS30 -> 100.00% | CB27: ER | CC27: 2 | CD27: =CC27/CC28 -> 22.22% | CL27: 24 Hours | CM27: 48 Hours | CN27: 72 Hours | CO27: More than 72 hours | CV27: 3798 | CW27: 30011921 | CX27: ذوي المراجع | CY27: التنويم | CZ27: الطبي | DA27: وحدة العناية المتوسطة | DB27: 2025-02-24T22:44:00 | DC27: رهف العنزي | DD27: More than 72 hours
B28: 26 | C28: 3697 | D28: 30161652 | E28: وزارة الصحة | F28: العيادات الخارجية | G28: الإداري | H28: قسم السنترال | I28: 2025-02-09T18:59:00 | J28: رهف العنزي | K28: MOH | L28: Sunday, February 9, 2025 | M28: 17:18:00 | N28: 050 229 4360 | O28: 24 Hours | P28: 2025-02-09 | Q28: 18:59:00 | R28: رهف العنزي | S28: 2025-02-09 | T28: 18:59:00 | W28: رهف العنزي | X28: 2025-02-09 | Y28: 19:05:00 | Z28: رهف العنزي | AA28: 0.004166666666 | AE28: -45697.79514 | AI28: 0 | AM28: -45697.79514 | AQ28: -45697.79514 | AR28: 2025-02-09 | AS28: 19:17:00 | AT28: رهف العنزي | AU28: 0.008333333331 | AX28: =(AW28+AV28)-(Y28+X28) -> -45697.79514 | AZ28: policies | BA28: عدم تواصل المراجع مع الطبيب | BB28: اخبار المراجع بعدم امكانية التواصل المباشر مع الطبيب وضرورة عودته للطواريء ان تطلب الامر | BC28: The patient was informed that direct communication with the doctor is not possible and that they must return to the emergency department if necessary. | BI28: Dissatisfied | BK28: تم اخبار المراجع بان تلك هي سياسة المستشفى وان الطبيب ليس لديه عيادة يومها ايضا | BL28: تفعيل خدمة الاستفسارات الطبية عبر طبيب خاص | BM28: تفعيل خدمة الاستفسارات الطبية عبر طبيب خاص | BN28: Hospital | BO28: القسم | BR28: Nursing | BS28: 0 | BT28: =BS28/BS30 -> 0.00% | CB28: Total | CC28: =CC25+CC26+CC27 -> 9 | CD28: =CD27+CD26+CD25 -> 100.00% | CL28: 3 | CM28: 2 | CN28: 0 | CO28: 10 | CV28: 3814 | CW28: 30299152 | CX28: ذوي المراجع | CY28: العيادات الخارجية | CZ28: الإداري | DA28: استقبال العيادات الخارجية | DB28: 2025-02-27T17:42:00 | DC28: رهف العنزي | DD28: More than 72 hours
B29: 27 | C29: 3702 | D29: 30268651 | E29: وزارة الصحة | F29: العيادات الخارجية | G29: الإداري | H29: قسم التقارير الطبية | I29: 2025-02-10T13:55:00 | J29: امال القحطاني | O29: 24 Hours | P29: 2025-02-10 | Q29: 13:55:00 | R29: امال القحطاني | S29: 2025-02-10 | T29: 13:55:00 | X29: 2025-02-10 | Y29: 13:55:00 | Z29: امال القحطاني | AA29: 0 | AE29: -45698.57986 | AI29: 0 | AM29: -45698.57986 | AQ29: -45698.57986 | AR29: 2025-02-10 | AS29: 14:37:00 | AT29: امال القحطاني | AU29: 0.02916666667 | AX29: =(AW29+AV29)-(Y29+X29) -> -45698.57986 | AZ29: Medical reports | BA29: خطا بالتقرير | BB29: خطا بالتقرير | BC29: Error in the report | BI29: Satisfied | BJ29: التحقق | BK29: لايوجد خطا سوء فهم من قبل المراجع | BN29: Hospital | BR29: Support Services | BS29: 0 | BT29: =BS29/BS30 -> 0.00% | CB29: Medical | CC29: 4 | CD29: =CC29/CC33 -> 44.44% | CL29: =CL28/CM25 -> 20.00% | CM29: =CM28/CM25 -> 13.33% | CN29: =CN28/CM25 -> 0.00% | CO29: =CO28/CM25 -> 66.67% | CV29: 3815 | CW29: 30335625 | CX29: ذوي المراجع | CY29: العيادات الخارجية | CZ29: الطبي | DA29: عيادات الجهاز الهضمي والمناظير | DB29: 2025-02-28T08:37:00 | DC29: رهف العنزي | DD29: More than 72 hours
B30: 28 | C30: 3703 | D30: 30285131 | E30: مراجع | F30: الطوارئ | G30: الطبي | H30: أطباء الطوارئ | I30: 2025-02-11T23:07:00 | J30: امال القحطاني | O30: More than 72 hours | P30: 2025-02-10 | Q30: 15:10:00 | R30: امال القحطاني | S30: 2025-02-11 | T30: 23:07:00 | U30: 2025-02-12 | V30: 14:58:00 | W30: امال القحطاني | X30: 2025-02-13 | Y30: 10:06:00 | Z30: امال القحطاني | AA30: 1.457638889 | AB30: 2025-02-15 | AC30: 09:28:00 | AD30: رهف العنزي | AE30: 1.973611111 | AF30: 2025-02-15 | AG30: 18:52:00 | AH30: ابرار الشمري | AI30: 0.3916666667 | AM30: -45701.42083 | AQ30: -45701.42083 | AR30: 2025-02-25 | AS30: 10:56:00 | AT30: ابرار الشمري | AU30: 12.03472222 | AZ30: Malpractice | BB30: الخدمة في الطوارئ كانت بطيئة وخطأ في اسم المريض | BC30: slow service provided in ER with file number confusing | BD30: مرتين | BE30: 2025-02-15 | BI30: Dissatisfied | BN30: patient | BR30: Total | BS30: =BS26+BS27+BS28+BS29 -> 6 | BT30: =BT29+BT28+BT27+BT26 -> 100.00% | CB30: Admin | CC30: 5 | CD30: =CC30/CC33 -> 55.56%
B31: 29 | C31: 3704 | D31: 30277407 | E31: ذوي المراجع | F31: العيادات الخارجية | G31: الإداري | H31: قسم التقارير الطبية | I31: 2025-02-10T17:42:00 | J31: رهف العنزي | O31: 72 Hours | P31: 2025-02-10 | Q31: 17:33:00 | R31: رهف العنزي | S31: 2025-02-10 | T31: 17:42:00 | U31: 2025-02-10 | V31: 17:53:00 | W31: رهف العنزي | X31: 2025-02-10 | Y31: 17:56:00 | Z31: رهف العنزي | AA31: 0.009722222218 | AE31: -45698.74722 | AI31: 0 | AM31: -45698.74722 | AQ31: -45698.74722 | AR31: 2025-02-12 | AS31: 20:37:00 | AT31: رهف العنزي | AU31: 2.111805556 | AX31: =(AW31+AV31)-(Y31+X31) -> -45698.74722 | AY31: التقارير الطبية | AZ31: Attitude | BA31: اسلوب الموظف تجاه المراجع | BB31: اسلوب الموظف تجاه المراجع ولم يتم خدمته وتم توجيهه لموظفة اخرى | BC31: the employee attitude towards the patient | BI31: Satisfied | BJ31: تم التوضيح للمريض ان المووظفات كانوا يكتبون تقرير لمريض وتم الاعتذار منه من قبلنا | BK31: الاعتذار من قسم علاقات المرضى والتوضيح له | BL31: التوضيح للمريض بسبب الانشغال عن خدمته | BM31: التوضيح للمريض بسبب الانشغال عن خدمته | BN31: patient | BO31: القسم | CB31: Nursing | CC31: 0 | CD31: =CC31/CC33 -> 0.00% | CL31: In-Patient | CM31: 2 | CN31: =CM31/CM34 -> 13.33% | CV31: Employee Name | CW31: Number of complaints | CX31: Total Percentage | CY31: 24 Hours | CZ31: 48 Hours | DA31: 72 Hours | DB31: More than 72 hours | DC31: Total
B32: 30 | C32: 3707 | D32: 20362817 | E32: ذوي المراجع | F32: العيادات الخارجية | G32: الطبي | H32: عيادات الأطفال | I32: 2025-02-10T20:06:00 | J32: رهف العنزي | O32: 72 Hours | P32: 2025-02-10 | Q32: 19:55:00 | R32: رهف العنزي | S32: 2025-02-10 | T32: 20:06:00 | U32: 2025-02-10 | V32: 20:15:00 | W32: رهف العنزي | X32: 2025-02-10 | Y32: 20:18:00 | Z32: رهف العنزي | AA32: 0.008333333331 | AB32: 2025-02-11 | AC32: 13:27:00 | AD32: رهف العنزي | AE32: 0.7145833333 | AI32: -45699.56042 | AM32: -45698.84583 | AQ32: -45698.84583 | AR32: 2025-02-13 | AS32: 18:21:00 | AT32: رهف العنزي | AU32: 2.91875 | AX32: =(AW32+AV32)-(Y32+X32) -> -45698.84583 | AY32: د. إكرام رابح | AZ32: Attitude | BA32: اسلوب غير مهني و وقت طويل في الانتظار | BB32: اسلوب الطبيبة واخذ وقت طويل لإبلاغ المراجعة بكتابة الدواء | BC32: The doctor's attitude and her taking a long time to inform the patient that she wrote the prescription | BD32: مرة | BE32: 2025-02-11 | BI32: Satisfied | BJ32: التحقيق في الموضوع والتوضيح لها من قبل المدير الطبي واحالتها لطبيب آخر | BK32: رضت المريضة بعد الاعتذار منها وافادتها باتخاذ اجراء اداري | BL32: توضيح اهمية احضار الطفل للعيادة في حال هناك مشكلة جديدة لفحصه السريري وعلاجه | BM32: توضيح اهمية احضار الطفل للعيادة في حال هناك مشكلة جديدة لفحصه السريري وعلاجه | BN32: patient | BO32: الطبيبة | CB32: Support Services | CC32: 0 | CD32: =CC32/CC33 -> 0.00% | CL32: Out-Patient | CM32: 10 | CN32: =CM32/CM34 -> 66.67% | CV32: ابرار بندر الشمري | CW32: 6 | CX32: =CW32/CW35 -> 22.22% | CY32: 0 | CZ32: 1 | DA32: 1 | DB32: 4 | DC32: =CY32+CZ32+DA32+DB32 -> 6
B33: 31 | C33: 3711 | D33: 30188420 | E33: وزارة الصحة | F33: الطوارئ | G33: الطبي | H33: أطباء الطوارئ | I33: 2025-02-11T17:00:00 | J33: امال القحطاني | O33: 24 Hours | P33: 2025-02-11 | Q33: 17:00:00 | R33: امال القحطاني | S33: 2025-02-11 | T33: 17:00:00 | X33: 2025-02-11 | Y33: 17:00:00 | Z33: امال القحطاني | AA33: 0 | AE33: -45699.70833 | AI33: 0 | AM33: -45699.70833 | AQ33: -45699.70833 | AR33: 2025-02-11 | AS33: 17:33:00 | AT33: امال القحطاني | AU33: 0.02291666666 | AX33: =(AW33+AV33)-(Y33+X33) -> -45699.70833 | AZ33: Malpractice | BA33: تم شرحها مسبقاَ شكوى داخليه | BB33: تم شرحها مسبقاَ شكوى داخليه | BI33: Dissatisfied | BK33: تم شرحها مسبقاَ شكوى داخليه | BL33: لايوجد | BN33: Hospital | CB33: Total | CC33: =CC29+CC30+CC31+CC32 -> 9 | CD33: =CD32+CD31+CD30+CD29 -> 100.00% | CL33: ER | CM33: 3 | CN33: =CM33/CM34 -> 20.00% | CV33: امال ماهل القحطاني | CW33: 9 | CX33: =CW33/CW35 -> 33.33% | CY33: 1 | CZ33: 4 | DA33: 3 | DB33: 1 | DC33: =DB33+DA33+CZ33+CY33 -> 9
B34: 32 | C34: 3714 | D34: 30304993 | E34: مراجع | F34: التنويم | G34: الطبي | H34: تنويم النساء والولادة | I34: 2025-02-12T13:42:00 | J34: امال القحطاني | O34: More than 72 hours | P34: 2025-02-12 | Q34: 13:25:00 | R34: امال القحطاني | S34: 2025-02-12 | T34: 13:42:00 | U34: 2025-02-13 | V34: 10:18:00 | W34: امال القحطاني | X34: 2025-02-13 | Y34: 10:21:00 | Z34: امال القحطاني | AA34: 0.8604166667 | AB34: 2025-02-15 | AC34: 09:29:00 | AD34: رهف العنزي | AE34: 1.963888889 | AF34: 2025-02-16 | AG34: 17:00:00 | AH34: رهف العنزي | AI34: 1.313194444 | AJ34: 2025-02-17 | AK34: 11:35:00 | AL34: ابرار الشمري | AM34: 4.051388889 | AQ34: -45701.43125 | AR34: 2025-03-02 | AS34: 12:04:00 | AT34: ابرار الشمري | AU34: 17.07152778 | AY34: د.هدى عبدالقادر | AZ34: prescription issue | BA34: لم يتم صرف الدواء | BB34: عدم صرف الدواء الذي تريده المريضة في التنويم | BC34: the doctor refuse to prescribe a painkiller for patient | BD34: مرتين | BE34: 2025-02-16 | BI34: Dissatisfied | BN34: Hospital | CL34: Total | CM34: =CM31+CM32+CM33 -> 15 | CN34: =CN33+CN32+CN31 -> 100.00% | CV34: رهف علي العنزي | CW34: 12 | CX34: =CW34/CW35 -> 44.44% | CY34: 0 | CZ34: 4 | DA34: 3 | DB34: 5 | DC34: =CY34+CZ34+DA34+DB34 -> 12
B35: 33 | C35: 3716 | D35: 30370340 | E35: مراجع | F35: العيادات الخارجية | G35: الطبي | H35: عيادات جراحة العظام | I35: 2025-02-12T18:34:00 | J35: رهف العنزي | O35: More than 72 hours | P35: 2025-02-12 | Q35: 18:10:00 | R35: رهف العنزي | S35: 2025-02-12 | T35: 18:34:00 | U35: 2025-02-12 | V35: 18:55:00 | W35: رهف العنزي | X35: 2025-02-12 | Y35: 18:56:00 | Z35: رهف العنزي | AA35: 0.01527777778 | AB35: 2025-02-13 | AC35: 13:49:00 | AD35: رهف العنزي | AE35: 0.7868055556 | AF35: 2025-02-15 | AG35: 08:58:00 | AH35: رهف العنزي | AI35: 1.797916667 | AM35: -45700.78889 | AQ35: -45700.78889 | AR35: 2025-02-16 | AS35: 15:42:00 | AT35: رهف العنزي | AU35: 3.865277778 | AX35: =(AW35+AV35)-(Y35+X35) -> -45700.78889 | AY35: محمد الأمين | AZ35: Malpractice | BA35: اعطاء المراجعة ابره تسببت بألم شديد | BB35: اعطى الطبيب المراجعة ابرة للاحتكاك تسببت لها بالام شديدة متواصلة لايام | BC35: doctor gave the patient a needle in her knee which cause continus sever paim | BF35: التواصل مع المدير الطبي لضمان اكتمال التحقيق ومعالجة الشكوى | BG35: التواصل مع المدير الطبي لضمان اكتمال التحقيق ومعالجة الشكوى | BI35: Dissatisfied | BJ35: عمل اجراءات اشعة و تحاليل بدون تكاليف للاطمئنان على المراجعة | BK35: تم اخبارها بان سبب الالم شدة الاحتكاك وحاجتها لتبديل مفصل وليس بسبب الابرة | BL35: اجراء الطبيب اشعة جديدة او ضرورة اضافة اشعة المريض في النظام | BM35: اجراء الطبيب اشعة جديدة او ضرورة اضافة اشعة المريض في النظام | BN35: Hospital | BO35: الطبيب | CL35: Medical | CM35: 8 | CN35: =CM35/CM39 -> 53.33% | CV35: Total | CW35: =CW32+CW33+CW34 -> 27 | CX35: =CX33+CX32+CX34 -> 100.00% | CY35: =SUBTOTAL(9,CY32:CY34) -> 1 | CZ35: =SUBTOTAL(9,CZ32:CZ34) -> 9 | DA35: =SUBTOTAL(9,DA32:DA34) -> 7 | DB35: =SUBTOTAL(9,DB32:DB34) -> 10 | DC35: =DC33+DC32+DC34 -> 27
B36: 34 | C36: 3717 | D36: 30276887 | E36: ذوي المراجع | F36: العيادات الخارجية | G36: الطبي | H36: عيادات الجهاز الهمضي والمناظير (أطفال) | I36: 2025-02-12T20:55:00 | J36: رهف العنزي | O36: More than 72 hours | P36: 2025-02-12 | Q36: 20:47:00 | R36: رهف العنزي | S36: 2025-02-12 | T36: 20:55:00 | U36: 2025-02-13 | V36: 14:38:00 | W36: رهف العنزي | X36: 2025-02-13 | Y36: 14:38:00 | Z36: رهف العنزي | AA36: 0.7381944444 | AB36: 2025-02-15 | AC36: 08:59:00 | AD36: رهف العنزي | AE36: 1.764583333 | AI36: -45703.37431 | AM36: -45701.60972 | AQ36: -45701.60972 | AR36: 2025-02-17 | AS36: 14:56:00 | AT36: رهف العنزي | AU36: 4.0125 | AX36: -45701.60972 | AY36: مهند ناصر | AZ36: Malpractice | BA36: عدم القيام بفحص سريري والاطلاع على تحاليل مختبرية للمريضة | BB36: بافادة المراجهع لم يطلع الطبيب على نتائج التحاليل للطفلة الا بعد الطلب منه و لم يقم الطبيب بفحص سريري | BC36: doctor did not do physicql exq,inqtion qnd or check the pqtient blood tests until the fqther qsked hi, to | BF36: تاخير الطبيب بالرد | BG36: تاخير الطبيب بالرد | BH36: مهند ناصر | BI36: Satisfied | BJ36: توضيح افادة الطبيب للمراجع والاعتذار منه | BN36: Hospital | BO36: الطبيب | CL36: Admin | CM36: 6 | CN36: =CM36/CM39 -> 40.00%
B37: 35 | C37: 3718 | D37: 30285131 | E37: مراجع | F37: الطوارئ | G37: الإداري | H37: المدير المناوب | I37: 2025-02-13T09:51:00 | J37: امال القحطاني | O37: 24 Hours | P37: 2025-02-06 | Q37: 17:17:00 | R37: امال القحطاني | S37: 2025-02-06 | T37: 17:17:00 | U37: 2025-02-06 | V37: 17:27:00 | W37: امال القحطاني | X37: 2025-02-06 | Y37: 17:27:00 | Z37: امال القحطاني | AA37: 0.006944444445 | AE37: -45694.72708 | AI37: 0 | AM37: -45694.72708 | AQ37: -45694.72708 | AR37: 2025-02-07 | AS37: 15:36:00 | AT37: امال القحطاني | AU37: 0.9229166667 | AX37: -45694.72708 | AZ37: Malpractice | BA37: تقديم خدمة سيئة | BB37: تجربة سيئة في قسم الطوارئ حيث تأخرت في العلاج، وعُولجت بإسورة باسم مريض آخر، وتأخرت التحاليل بسبب عدم الموافقة، مما أدى لعدم حصولي على العلاج المناسب. أطالب بالتحقيق لضمان عدم تكرار ذلك. | BC37: A bad experience in the emergency department where I waited too long for treatment, was treated with a bracelet bearing another patient's name, and the lab tests were delayed due to a lack of approval, which resulted in not receiving the appropriate treatment. I request an investigation to ensure this does not happen again. | BI37: Satisfied | BN37: patient | CL37: Nursing | CM37: 0 | CN37: =CM37/CM39 -> 0.00% | CV37: Patient’s relatives | CW37: 27 | CX37: =CW37/#REF! -> 
B38: 36 | C38: 3719 | D38: 30368339 | E38: مجلس الضمان الصحي | F38: العيادات الخارجية | G38: الإداري | H38: قسم الموافقات الطبية | I38: 2025-02-13T11:36:00 | J38: امال القحطاني | O38: 72 Hours | P38: 2025-02-13 | Q38: 11:36:00 | R38: امال القحطاني | S38: 2025-02-13 | T38: 11:36:00 | U38: 2025-02-13 | V38: 11:36:00 | W38: امال القحطاني | X38: 2025-02-13 | Y38: 11:36:00 | Z38: امال القحطاني | AA38: 0 | AE38: -45701.48333 | AI38: 0 | AM38: -45701.48333 | AQ38: -45701.48333 | AR38: 2025-02-15 | AS38: 18:51:00 | AT38: ابرار الشمري | AU38: 2.302083333 | AX38: -45701.48333 | AZ38: Approval issue | BA38: تاخير اجراءات عمليه | BB38: يوجد رفض لدمج الموافقتين لعملية الركبتين من مستشفى الحمادي حيث اني الان أواجه مشكلة مع مستشفى الحمادي وشركة التأمين بوبا بشأن إجراء عملية لركبتي تم الموافقة على تغطية عملية ركبة واحدة برقم الطلب 111793143 بينما تم رفض تغطية الركبة الثانية. ثم تم رفع طلب استثناء من هيئة الزكاة، وتمت الموافقة على العملية الثانية برقم الطلب 111140054 وعند مراجعة المستشفى تم رفض طلب إجراء العملية بحجة ضرورة دمج الموافقتين في طلب واحد، وتحديد تكلفة العمليتين معا، وهو ما ترفضه شركة بوبا، حيث تقول إنه لا يمكن دمج الموافقتين ان امكن التحقيق بالشكوى والافادة حيث أن موعد العملية محدد ليوم الأحد المقبل 16 فبراير | BC38: There is a refusal to merge the two approvals for the knee surgeries from Al-Hamadi Hospital, and I am currently facing an issue with Al-Hamadi Hospital and the Bupa insurance company regarding a surgery for my knees. One approval has been granted for covering the cost of one knee surgery under request number 111793143, while the coverage for the second knee surgery was denied. An exception request was then submitted to the Zakat Authority, and approval was granted for the second surgery under request number 111140054. When I visited the hospital for further proceedings, the request for the surgery was rejected on the grounds that both approvals must be merged into a single request, and the cost for both surgeries should be determined together. However, Bupa Insurance refuses to merge the approvals, stating that it is not possible. Could you please investigate the complaint and provide feedback, as the surgery is scheduled for next Sunday, February 16th? | BI38: Satisfied | BJ38: التحقق | BK38: التواصل مع المراجع وحل الاشكالية | BL38: لايوجد | BN38: patient | CL38: Support Services | CM38: 1 | CN38: =CM38/CM39 -> 6.67%
A39: 3 | B39: 37 | C39: 3732 | D39: 30280656 | E39: مراجع | F39: العيادات الخارجية | G39: الإداري | H39: استقبال العيادات الخارجية | I39: 2025-02-15T20:46:00 | J39: ابرار الشمري | O39: More than 72 hours | P39: 2025-02-15 | Q39: 20:40:00 | R39: ابرار الشمري | S39: 2025-02-15 | T39: 20:46:00 | U39: 2025-02-16 | V39: 15:04:00 | W39: ابرار الشمري | X39: 2025-02-16 | Y39: 15:08:00 | Z39: ابرار الشمري | AA39: 0.7652777778 | AB39: 2025-02-18 | AC39: 13:14:00 | AD39: ابرار الشمري | AE39: 1.920833333 | AF39: 2025-02-19 | AG39: 22:00:00 | AH39: ابرار الشمري | AI39: 1.365277778 | AM39: -45704.63056 | AQ39: -45704.63056 | AR39: 2025-02-19 | AS39: 17:02:00 | AT39: ابرار الشمري | AU39: 3.079166667 | AV39: 2025-02-19 | AW39: 17:02:00 | AX39: 3.079166667 | AZ39: policies | BA39: افشاء معلومات المراجع | BB39: إفشاء معلومات خاصة وسرية للمريض بدون إذن من المريض | BC39: Discussing with Rafaat at Confidental Batna Informati Sermon and Batna’s Bermes | BH39: ادارة العيادات الخارجية | BI39: Dissatisfied | BK39: الرجوع للكاميرات | BL39: الشرح والتوضيح للمراجعه بعدم وجود اي افشاء للمعومات من قبل المستشفى اعتراض المراجعه على التوضيح وطلب تصعيد الشكوى وتم تصعيدها الى المدير الاداري | BN39: Hospital | CL39: Total | CM39: =CM35+CM36+CM37+CM38 -> 15 | CN39: =CN38+CN37+CN36+CN35 -> 100.00% | CV39: 24 Hours | CW39: 48 Hours | CX39: 72 Hours | CY39: More than 72 hours
B40: 38 | C40: 3737 | D40: 30051907 | E40: ذوي المراجع | F40: العيادات الخارجية | G40: الطبي | H40: قسم المختبر | I40: 2025-02-16T15:11:00 | J40: ابرار الشمري | O40: 48 Hours | P40: 2025-02-16 | Q40: 15:03:00 | R40: ابرار الشمري | S40: 2025-02-16 | T40: 15:11:00 | U40: 2025-02-17 | V40: 11:34:00 | W40: ابرار الشمري | X40: 2025-02-18 | Y40: 13:50:00 | Z40: رهف العنزي | AA40: 1.94375 | AB40: 2025-02-18 | AC40: 16:29:00 | AD40: ابرار الشمري | AE40: 0.1104166667 | AF40: 2025-02-19 | AG40: 10:28:00 | AH40: ابرار الشمري | AI40: 0.7493055556 | AM40: -45706.57639 | AQ40: -45706.57639 | AR40: 2025-02-20 | AS40: 11:32:00 | AT40: ابرار الشمري | AU40: 1.904166667 | AX40: -45706.57639 | AZ40: Malpractice | BA40: تاخير بالخدمة | BB40: سوينا تحليل وبلغونا النتيجه في حدود 10 ايام ومن بعد ال 10 ايام نحاول نتواصل بشكل يومي ولكن المختبر مايرد على اتصالاتنا بعد 18 يوم تواصلنا مع قسم الاستفسارات وبلغونا العينه فيها خلل وبتتواصل معكم الدكتوره وبعد التواصل مع الدكتوره ابلغتنا نسوي تحليل ثاني وننتظر 10 ايام ثانيه | BI40: Satisfied | BK40: تم التواصل مع المراجع واسترجاع مبلغ التحاليل | BL40: التاخير من قبل المختبرالخارجي المرسل له العينه | BN40: Hospital | CV40: 1 | CW40: 9 | CX40: 7 | CY40: 10
B41: 39 | C41: 3742 | D41: 30369199 | E41: مجلس الضمان الصحي | F41: التنويم | G41: الإداري | H41: قسم المالية | I41: 2025-02-17T11:52:00 | J41: ابرار الشمري | O41: 24 Hours | P41: 2025-02-17 | Q41: 11:52:00 | R41: ابرار الشمري | S41: 2025-02-17 | T41: 11:52:00 | X41: 2025-02-18 | Y41: 13:50:00 | Z41: رهف العنزي | AA41: 1.081944444 | AB41: 2025-02-18 | AC41: 16:35:00 | AD41: ابرار الشمري | AE41: 0.1145833333 | AI41: -45706.69097 | AM41: -45706.57639 | AQ41: -45706.57639 | AR41: 2025-02-19 | AS41: 10:28:00 | AT41: ابرار الشمري | AU41: 0.8597222222 | AV41: 2025-02-19 | AW41: 10:28:00 | AX41: 0.8597222222 | AZ41: Financial Claim | BA41: المطالبة بمبالغ | BB41: المطالبة بمبالغ مالية رغم صدور موافقه من قبل شركة التامين | BC41: Demanding sums of money despite approval from the insurance company | BI41: Neutral | BK41: التواصل مع المريض والتوضيح له بان لاتوجد موافقه بمستشفى الحمادي بل بمستشفى دار الشفاء | BL41: لايوجد توصيه وذلك لان الشكوى سوء فهم من قبل المراجع | BN41: Hospital | CV41: =CV40/CW37 -> 3.70% | CW41: =CW40/CW37 -> 33.33% | CX41: =CX40/CW37 -> 25.93% | CY41: =CY40/CW37 -> 37.04%
B42: 40 | C42: 3743 | D42: 30251025 | E42: مجلس الضمان الصحي | F42: العيادات الخارجية | G42: الإداري | H42: استقبال العيادات الخارجية | I42: 2025-02-17T11:57:00 | J42: ابرار الشمري | O42: 48 Hours | P42: 2025-02-17 | Q42: 11:57:00 | R42: ابرار الشمري | S42: 2025-02-17 | T42: 11:57:00 | X42: 2025-02-18 | Y42: 13:50:00 | Z42: رهف العنزي | AA42: 1.078472222 | AB42: 2025-02-18 | AC42: 16:36:00 | AD42: ابرار الشمري | AE42: 0.1152777778 | AF42: 2025-02-19 | AG42: 10:27:00 | AH42: ابرار الشمري | AI42: 0.74375 | AM42: -45706.57639 | AQ42: -45706.57639 | AR42: 2025-02-19 | AS42: 17:25:00 | AT42: ابرار الشمري | AU42: 1.149305556 | AV42: 2025-02-19 | AW42: 17:25:00 | AX42: 1.149305556 | AZ42: Approval issue | BA42: ارتفاع الاسعار | BB42: تم رفع كشفية الأطباء على عملاء شركة بوبا من ٣٨ ريال الى ٦٩ ريال وعندما تم سؤال الاداره قالوا راجع مع بوبا وبعد التواصل مع بوبا ...قالوا لم يتم رفع اي اسعار ولا يوجد عندهم اي معلومات بهذا الشأن | BC42: The doctors' checkup for Bupa customers was raised from 38 riyals to 69 riyals, and when the management was asked, they said to check with Bupa, and after communicating with Bupa...they said that no prices had been raised and they did not have any information in this regard. | BI42: Satisfied | BK42: التواصل وافادة المريض بااثبات من قبل مركز الاعمال بان تم ارتفاع اسعار الخجمات من قبل شركة التامين من تاريخ 1/1/2025 | BL42: التوضيح للمراجع فيما يخص اسعار الكشفيات | BN42: Hospital
B43: 41 | C43: 3744 | D43: 30104048 | E43: وزارة الصحة | F43: التنويم | G43: الإداري | H43: قسم الموافقات الطبية | I43: 2025-02-17T12:20:00 | J43: ابرار الشمري | O43: 24 Hours | P43: 2025-02-17 | Q43: 12:20:00 | R43: ابرار الشمري | S43: 2025-02-17 | T43: 12:20:00 | X43: 2025-02-18 | Y43: 13:48:00 | Z43: ابرار الشمري | AA43: 1.061111111 | AB43: 2025-02-18 | AC43: 16:36:00 | AD43: ابرار الشمري | AE43: 0.1166666667 | AI43: -45706.69167 | AM43: -45706.575 | AQ43: -45706.575 | AR43: 2025-02-19 | AS43: 10:21:00 | AT43: ابرار الشمري | AU43: 0.85625 | AX43: -45706.575 | AZ43: documentation | BA43: تاخير بالخدمة | BB43: عدم رفع الطلب لشركة التامين وعدم التجاوب رغم عدة محاولات من التواصل مع قسم الموافقات | BC43: The request was not submitted to the insurance company and there was no response despite several attempts to communicate with the approvals department | BI43: Dissatisfied | BK43: التواصل مع المريض والشرح بان الرفض من قبل التمين رغم ارسال جميع التقاير اللازمة | BL43: التوضيح للمراجع في حال وجود رفض من قبل شركة التامين | BN43: Hospital | CV43: In-Patient | CW43: 6 | CX43: =CW43/CW46 -> 22.22%
B44: 42 | C44: 3748 | D44: 30306473 | E44: وزارة الصحة | F44: العيادات الخارجية | G44: الإداري | H44: قسم الموافقات الطبية | I44: 2025-02-18T14:28:00 | J44: رهف العنزي | K44: MOH | L44: Sunday, February 18, 2025 | M44: 14:06:00 | N44: 0 55 610 1177 | O44: 24 Hours | P44: 2025-02-18 | Q44: 14:28:00 | R44: رهف العنزي | S44: 2025-02-18 | T44: 14:28:00 | W44: رهف العنزي | X44: 2025-02-18 | Y44: 15:10:00 | Z44: رهف العنزي | AA44: 0.02916666667 | AE44: -45706.63194 | AI44: 0 | AM44: -45706.63194 | AQ44: -45706.63194 | AR44: 2025-02-19 | AS44: 14:17:00 | AT44: رهف العنزي | AU44: 0.9631944444 | AZ44: documentation | BA44: عدم رفع طلب التأمين | BB44: المرفقات لم ترفع للتأمين | BC44: approval didn't send the insurance | BI44: Dissatisfied | BJ44: تم رفع الطلب للتأمين اكثر من مره | BK44: التوضيح للمريض ان الرفع من التأمين | BL44: التوضيح للمريض انه تم رفض الطلب اكثر من مره | BM44: تقديم خيارات بديله للمريض | BN44: Hospital | BO44: القسم | CV44: Out-Patient | CW44: 16 | CX44: =CW44/CW46 -> 59.26%
B45: 43 | C45: 3753 | D45: 30371779 | E45: ذوي المراجع | F45: العيادات الخارجية | G45: الطبي | H45: عيادات الأسنان | I45: 2025-02-18T19:57:00 | J45: رهف العنزي | O45: More than 72 hours | P45: 2025-02-18 | Q45: 19:39:00 | R45: رهف العنزي | S45: 2025-02-18 | T45: 19:57:00 | U45: 2025-02-18 | V45: 20:18:00 | W45: رهف العنزي | X45: 2025-02-18 | Y45: 20:20:00 | Z45: رهف العنزي | AA45: 0.01597222222 | AE45: -45706.84722 | AI45: 0 | AM45: -45706.84722 | AQ45: -45706.84722 | AR45: 2025-02-22 | AS45: 12:26:00 | AT45: رهف العنزي | AU45: 3.670833333 | AY45: فرحان عبدالعزيز | AZ45: Miscommunication | BA45: انتظار وقت طويل وعد م استقبال حالة المريض | BB45: انتظر المريض ساعتين لموعد انتظار ورفض الطبيب استقبال حالته | BC45: patient is waiting apointment and was waiting for 2 hours and after that the doctor refused to take his case | BF45: تم التواصل مع مدير القسم ( عمر حيصات ) وتم التحقيق بواسطته والتواصل مع المريض لضمان معالجة الشكوى | BG45: تم التواصل مع مدير القسم ( عمر حيصات ) وتم التحقيق بواسطته والتواصل مع المريض لضمان معالجة الشكوى | BI45: Satisfied | BJ45: بعد التحقيق تبين الخطأ من قبل المراجع حيث حاول طرق باب العيادة بشدة خلال وجود المريض مما سبب رفض الطبيب لاستقبال حالته | BK45: تم اعطاءه الخيار بالعلاج لدى رئيس القسم او استرجاهع المبلغ واختار الاسترجاع | BL45: تنظيم مواعيد الانتظار وتوضيح مدتها للمرضى | BM45: تنظيم مواعيد الانتظار وتوضيح مدتها للمرضى | BN45: patient | BO45: الطبيب | CV45: ER | CW45: 5 | CX45: =CW45/CW46 -> 18.52%
B46: 44 | C46: 3760 | D46: 30334037 | E46: ذوي المراجع | F46: التنويم | G46: التمريض | H46: تمريض تنويم الأطفال | I46: 2025-02-19T13:13:00 | J46: رهف العنزي | O46: 72 Hours | P46: 2025-02-19 | Q46: 13:08:00 | R46: رهف العنزي | S46: 2025-02-19 | T46: 13:13:00 | U46: 2025-02-19 | V46: 16:44:00 | W46: رهف العنزي | X46: 2025-02-19 | Y46: 16:45:00 | Z46: رهف العنزي | AA46: 0.1472222222 | AE46: -45707.69792 | AI46: 0 | AM46: -45707.69792 | AQ46: -45707.69792 | AR46: 2025-02-22 | AS46: 12:26:00 | AT46: ابرار الشمري | AU46: 2.820138889 | AZ46: malpractice | BA46: عدم اخذ الدم بطريقة صحيحة ادى الى الم | BB46: اخذ التمريض الدم من الطفلة بطريقة مؤلمة واخذ وقت طزويل | BC46: the nurse did not take the blood sample in a right way it was long and painful experience | BI46: Satisfied | BJ46: توضيح افادة القسم للمراجع والاعتذار منهم | BL46: توظيف اخصائيين سحب دم مختصين بالتعامل مع الاطفال | BM46: توظيف اخصائيين سحب دم مختصين بالتعامل مع الاطفال | BN46: patient | BO46: المراجع | CV46: Total | CW46: =CW43+CW44+CW45 -> 27 | CX46: =CX45+CX44+CX43 -> 100.00%
B47: 45 | C47: 3771 | D47: 30372444 | E47: ذوي المراجع | F47: العيادات الخارجية | G47: الطبي | H47: عيادات جراحة الأنف وأذن وحنجرة | I47: 2025-02-21T15:13:00 | J47: ابرار الشمري | O47: More than 72 hours | P47: 2025-02-21 | Q47: 03:05:00 | R47: ابرار الشمري | S47: 2025-02-21 | T47: 15:13:00 | U47: 2025-02-22 | V47: 12:22:00 | W47: ابرار الشمري | X47: 2025-02-22 | Y47: 12:23:00 | Z47: ابرار الشمري | AA47: 0.8819444444 | AB47: 2025-02-23 | AC47: 12:26:00 | AD47: ابرار الشمري | AE47: 1.002083333 | AF47: 2025-02-24 | AG47: 10:52:00 | AH47: ابرار الشمري | AI47: 0.9347222222 | AJ47: 2025-02-25 | AK47: 10:49:00 | AL47: ابرار الشمري | AM47: 2.934722222 | AQ47: -45710.51597 | AR47: 2025-03-03 | AS47: 11:13:00 | AT47: ابرار الشمري | AU47: 8.951388889 | AX47: =(AW47+AV47)-(Y47+X47) -> -45710.51597 | AZ47: Attitude | BA47: اسلوب الطبيب | BB47: رفض الطبيب و الممرضة لتعقيم الغرفة بعد وجود مريض مصاب بعدوى فيروسية، مع العلم ان والدي يأخذ ادوية مثبطات مناعة،بسبب اصابته بمرض كرونز المناعي، تعامل معي الطبيب بشكل جدا سيئ و غير انساني | BC47: The doctor and nurse refused to sterilize the room after there was a patient with a viral infection, knowing that my father takes Immunosuppressant medications, because he was suffering from Crohn’s disease. The doctor treated me in a very bad and inhumane manner. | BD47: تم التذكير عدة مرات ولم يتم الرد والتواصل مع الممرضه | BI47: Satisfied | BJ47: الرد من قبل الدكتور بان المراجع قام بطلب تعقيم الكرسي وهذا امر غير مسموح بعد كل مريض يتم التعقيم حسب افادته | BK47: التوضيح للمراجع | BL47: تعقيم الغرفه بعد كل زياره للمريض حيث ان افاد المريض انه لديه ( انخفاض بالمناعه ) | BN47: patient | CV47: Medical | CW47: 15 | CX47: =CW47/CW51 -> 55.56%
B48: 46 | C48: 3772 | D48: 30366504 | E48: مراجع | F48: العيادات الخارجية | G48: الإداري | H48: استقبال العيادات الخارجية | I48: 2025-02-21T22:44:00 | J48: ابرار الشمري | O48: More than 72 hours | P48: 2025-02-21 | Q48: 09:05:00 | R48: ابرار الشمري | S48: 2025-02-21 | T48: 22:44:00 | U48: 2025-02-22 | V48: 12:21:00 | W48: ابرار الشمري | X48: 2025-02-22 | Y48: 12:25:00 | Z48: ابرار الشمري | AA48: 0.5701388889 | AB48: 2025-02-23 | AC48: 12:26:00 | AD48: ابرار الشمري | AE48: 1.000694444 | AF48: 2025-02-24 | AG48: 10:52:00 | AH48: ابرار الشمري | AI48: 0.9347222222 | AJ48: 2025-02-25 | AK48: 10:50:00 | AL48: ابرار الشمري | AM48: 2.934027778 | AQ48: -45710.51736 | AR48: 2025-03-03 | AS48: 11:20:00 | AT48: ابرار الشمري | AU48: 8.954861111 | AX48: =(AW48+AV48)-(Y48+X48) -> -45710.51736 | AZ48: policies | BA48: افشاء معلومات المراجع | BB48: إلى إدارة مستشفى الحمادي - فرع النزهة تحية طيبة، أتقدم إليكم بهذه الشكوى الرسمية بشأن انتهاك خصوصيتي من قبل إحدى موظفات الاستقبال في المستشفى، حيث قامت بتسريب معلوماتي الطبية الشخصية دون أي تفويض قانوني، وهو ما يشكل خرقًا واضحًا لسرية المعلومات الطبية. فقد قام خطيبي السابق بفتح ملف لإجراء تحاليل الزواج، وخلال ذلك، أبلغته موظفة الاستقبال بوجود ملف طبي سابق لي، كما أفصحت له عن معلومات تتعلق بتنويمي سابقًا وخضوعي لعملية جراحية لدى الدكتور نواف العتيبي. إن هذا التصرف غير المهني يعد انتهاكًا صارخًا لأنظمة حماية خصوصية المرضى. كما أحيطكم علمًا بأنني قمت بزيارة قسم علاقات المرضى والشكاوى اليوم الساعة 8:30 صباحًا والتقيت بالأخت أبرار الشمري والأخ سامي القرعاوي لطرح هذه المسألة، وأتطلع إلى تعاونكم واتخاذ الإجراءات المناسبة. أحتفظ بحقي في اتخاذ أي إجراءات قانونية أخرى لضمان حماية خصوصيتي. شاكرة لكم حسن تعاونكم وسرعة استجابتكم. وتفضلوا بقبول فائق الاحترام والتقدير. | BC48: I am writing to file an official complaint regarding the violation of my privacy by one of the reception staff members at your hospital. The staff member disclosed my personal medical information without any legal authorization, which constitutes a clear breach of medical confidentiality. My former fiancé opened a file for marriage-related tests, and during this process, the reception staff informed him of the existence of a previous medical file for me. She also disclosed sensitive details about my previous sedation and surgery performed by Dr. Nawaf Al-Otaibi. This unprofessional behavior is a blatant violation of patient privacy protection regulations. Additionally, I would like to inform you that I visited the Patient Relations and Complaints Department today at 8:30 AM and met with Ms. Abrar Al-Shammari and Mr. Sami Al-Qaraawi to address this issue. I look forward to your cooperation and appropriate action on this matter. Please note that I reserve the right to pursue any further legal actions to ensure the protection of my privacy. | BD48: تم التذكير والتواصل مع ادارة العيادات ولم يتم الرد على الشكوى وتم تصعيد الشكوى عن طريق الايميل الى المدير الاداري | BI48: Satisfied | BJ48: التحقيق | BK48: افادة المراجعه | BL48: تدريب وتثقيف الموظفين عن اهمية خصوصية معلومات المرضى والمشاكل المترتبة | BN48: Hospital | CV48: Admin | CW48: 10 | CX48: =CW48/CW51 -> 37.04%
A49: 4 | B49: 47 | C49: 3778 | D49: 30369606 | E49: وزارة الصحة | F49: الطوارئ | G49: الإداري | H49: المدير المناوب | I49: 2025-02-23T13:16:00 | J49: ابرار الشمري | O49: 48 Hours | P49: 2025-02-23 | Q49: 13:16:00 | R49: ابرار الشمري | S49: 2025-02-23 | T49: 13:16:00 | X49: 2025-02-23 | Y49: 13:20:00 | Z49: ابرار الشمري | AA49: 0.00277777778 | AB49: 2025-02-24 | AC49: 10:51:00 | AD49: ابرار الشمري | AE49: 0.8965277778 | AI49: -45712.45208 | AM49: -45711.55556 | AQ49: -45711.55556 | AR49: 2025-02-25 | AS49: 09:46:00 | AT49: ابرار الشمري | AU49: 1.851388889 | AX49: =(AW49+AV49)-(Y49+X49) -> -45711.55556 | AZ49: Financial Claim | BA49: سوء بالخدمة | BB49: تم نقل المريض عن طريق الاسعاف الى المستشفى ولم يتم رفع طلب شراء الخدمة مما ادى الى المطالبة بمبالغ مالية | BC49: The patient was transferred by ambulance to the hospital, but a service request was not raised, which led to the demand for financial charges. | BD49: تم التواصل مع المراجع والتوضيح بان يوجد رقم طلب برقم 2502940956 ولكن تم الرفض لوجود تامين ساري علماً بان تم رفع لتامين وتم الرفض | BI49: Dissatisfied | BJ49: التحقيق | BK49: التواصل مع المراجع بانها اشكالية تامين | BL49: توضيح واضح من قبل تنسيق الموافقات التنويم في حال الرفض من قبل التامين | BN49: Hospital | CV49: Nursing | CW49: 2 | CX49: =CW49/CW51 -> 7.41%
B50: 48 | C50: 3784 | D50: 30372745 | E50: ذوي المراجع | F50: العيادات الخارجية | G50: الطبي | H50: عيادات الباطنية | I50: 2025-02-23T19:55:00 | J50: ابرار الشمري | O50: More than 72 hours | P50: 2025-02-23 | Q50: 19:55:00 | R50: ابرار الشمري | S50: 2025-02-23 | T50: 19:55:00 | U50: 2025-02-24 | V50: 11:01:00 | W50: ابرار الشمري | X50: 2025-02-24 | Y50: 16:46:00 | Z50: ابرار الشمري | AA50: 0.86875 | AB50: 2025-02-25 | AC50: 10:18:00 | AD50: ابرار الشمري | AE50: 0.7305555556 | AF50: 2025-02-26 | AG50: 09:52:00 | AH50: ابرار الشمري | AI50: 0.9819444444 | AJ50: 2025-02-26 | AK50: 09:52:00 | AL50: ابرار الشمري | AM50: 1.7125 | AQ50: -45712.69861 | AR50: 2025-03-03 | AS50: 15:21:00 | AT50: ابرار الشمري | AU50: 6.940972222 | AX50: =(AW50+AV50)-(Y50+X50) -> -45712.69861 | AZ50: Attitude | BA50: اسلوب الطبيب غير مهني | BB50: تعامل غير مهني من قبل الطبيب وعدم التجاوب مع المريض | BD50: تم استنفاذ جميع التكيرات ولم يتم الرد | BG50: تاخر القسم بالرد بدون سبب | BH50: مديري العيادات الخارجية | BI50: Satisfied | BJ50: الاتصال بالمراجع وشرح الاشكالية له والاعتذار منه من قبل مدير العيادات | BK50: تم التواصل مع المراجع لتاكيد رضاه عن الاجراء | BL50: لايوجد | BM50: شرح اشكالية اخذ الاجراءات وقت اطول للمراجع من البدايه | BN50: patient | BO50: القسم | CV50: Support Services | CW50: 0 | CX50: =CW50/CW51 -> 0.00%
B51: 49 | C51: 3793 | D51: 30371779 | E51: وزارة الصحة | F51: العيادات الخارجية | G51: الطبي | H51: عيادات الأسنان | I51: 2025-02-24T14:20:00 | J51: رهف العنزي | K51: MOH | L51: Sunday, February 24, 2025 | M51: 14:19:00 | N51: 054 486 0275 | O51: 24 Hours | P51: 2025-02-24 | Q51: 14:20:00 | R51: رهف العنزي | S51: 2025-02-24 | T51: 14:20:00 | U51: 2025-02-24 | V51: 14:20:00 | W51: رهف العنزي | X51: 2025-02-24 | Y51: 14:20:00 | Z51: رهف العنزي | AA51: 0 | AE51: -45712.59722 | AI51: 0 | AM51: -45712.59722 | AQ51: -45712.59722 | AR51: 2025-02-24 | AS51: 17:28:00 | AT51: رهف العنزي | AU51: 0.1305555556 | AX51: =(AW51+AV51)-(Y51+X51) -> -45712.59722 | AY51: د.فرحان عبدالعزيز | AZ51: Miscoordination | BA51: عدم استقبال الطبيب | BB51: المريض لديه موعد انتظار | BC51: patient was on waiting | BI51: Satisfied | BJ51: تم التواصل مع المريض و اعطاءه خيار العوده للعياده لدى رئيس قسم الأسنان لاكمال العلاج او إلغاء الإجراء | BK51: المريض طلب إسترجاع المبلغ | BL51: توضيح وقت الإنتظار لمرضى مواعيد الإنتظار | BM51: اعطاء الوقت والملعلومات الكافيه لمرضى مواعيد الإنتظار | BN51: Hospital | BO51: القسم | CV51: Total | CW51: =CW47+CW48+CW49+CW50 -> 27 | CX51: =CX50+CX49+CX48+CX47 -> 100.00%
B52: 50 | C52: 3794 | D52: 30372812 | E52: ذوي المراجع | F52: العيادات الخارجية | G52: الطبي | H52: عيادات النساء والولادة | I52: 2025-02-24T16:19:00 | J52: رهف العنزي | O52: 48 Hours | P52: 2025-02-24 | Q52: 16:12:00 | R52: رهف العنزي | S52: 2025-02-24 | T52: 16:19:00 | U52: 2025-02-26 | V52: 14:33:00 | W52: رهف العنزي | X52: 2025-02-26 | Y52: 14:33:00 | Z52: رهف العنزي | AA52: 1.926388889 | AB52: 2025-02-27 | AC52: 12:49:00 | AD52: ابرار الشمري | AE52: 0.9277777778 | AI52: -45715.53403 | AM52: -45714.60625 | AQ52: -45714.60625 | AR52: 2025-02-27 | AS52: 15:21:00 | AT52: ابرار الشمري | AU52: 1.033333333 | AY52: هناء سنبل | AZ52: Miscoordination | BA52: اختلاف التعليمات | BB52: اختلاف التعليمات للسونار بين الدكتوره هناء ود.غاده | BC52: Conflicting instructions for the ultrasound between Dr. Hanan and Dr. Ghada. | BF52: القسم تأخر بالرد | BG52: القسم تأخر بالرد | BH52: وحدة العناية المتوسطة | BI52: Dissatisfied | BJ52: تم التحقيق من قبل المدير الطبي ووجهنا بتنيق موعد مع الابن لافادته بالرد ورفض الابن الحضور | BN52: Hospital
B53: 51 | C53: 3796 | D53: 1354309 | E53: مجلس الضمان الصحي | F53: العيادات الخارجية | G53: الإداري | H53: قسم الموافقات الطبية | I53: 2025-02-24T16:31:00 | J53: ابرار الشمري | O53: 24 Hours | P53: 2025-02-24 | Q53: 16:31:00 | R53: ابرار الشمري | S53: 2025-02-24 | T53: 16:31:00 | U53: 2025-02-24 | V53: 16:31:00 | W53: ابرار الشمري | X53: 2025-02-24 | Y53: 16:43:00 | Z53: ابرار الشمري | AA53: =(Y53+X53)-(T53+S53) -> 0.008333333331 | AE53: -45712.69653 | AI53: 0 | AM53: -45712.69653 | AQ53: -45712.69653 | AR53: 2025-02-25 | AS53: 15:48:00 | AT53: ابرار الشمري | AU53: 0.9618055556 | AX53: =(AW53+AV53)-(Y53+X53) -> -45712.69653 | AZ53: Approval issue | BB53: المماطله المستمره من المستشفي في رفع الموافقه للتأمين بالشكل الصحيح على صرف علاج شهري تستدعي الحاله اليه و اسناد الرفض لعدم وجود ضروره طبية من التأمين لعدم اكمال المعلومات كما هو مطلوب بالرغم من الموافقه عليه لمدة عام و بشكل شهري و تتوافر جميع اركان الاموافقه المطلوبة لصرف الدواء و يتم الصرف بعد تقديم الشكوي لكم و هذا مستمر و غير مبرر | BC53: The hospital's continuous procrastination in properly submitting the approval request to the insurance for the monthly medication required by the patient's condition, and attributing the rejection to the lack of medical necessity due to incomplete information—despite the fact that the medication has been approved for a full year on a monthly basis and all required approval criteria are met—is unjustified and persistent. The medication is only dispensed after filing a complaint with you, which remains an ongoing and unreasonable issue. | BD53: لايوجد تاخير من قبل مستشفى ( اشكالية تامين المراجع ) | BI53: Dissatisfied | BN53: Hospital
B54: 52 | C54: 3798 | D54: 30011921 | E54: ذوي المراجع | F54: التنويم | G54: الطبي | H54: وحدة العناية المتوسطة | I54: 2025-02-24T22:44:00 | J54: رهف العنزي | O54: More than 72 hours | P54: 2025-02-24 | Q54: 16:44:00 | R54: رهف العنزي | S54: 2025-02-24 | T54: 22:44:00 | U54: 2025-02-26 | V54: 14:26:00 | W54: رهف العنزي | X54: 2025-02-26 | Y54: 14:34:00 | Z54: رهف العنزي | AA54: 1.659722222 | AE54: -45714.60694 | AI54: 0 | AM54: -45714.60694 | AQ54: -45714.60694 | AR54: 2025-03-05 | AS54: 01:55:00 | AT54: رهف العنزي | AU54: 6.472916667 | AZ54: Malpractice | BA54: وجود خطأ طبي ( شاش في بلعوم المريضة | BB54: يدعي المرافق انه وجد شاش طبي في بلعوم المريضة ادى الى اختناقها ويطلب التحقيق | BC54: It translates to: "The companion claims that a medical gauze was found in the patient's throat, causing suffocation, and requests an investigation. | BI54: Dissatisfied | BJ54: تم التواصل مع المشتكي لابلاغه بالافادة ولتنسيق موعد مقابلة المدير الطبي للافادة بنتائج التحقيق الا انه رفض الحضور واكمال اجراءات الشكوى | BK54: تم التحقيق وتبين وجود طرف ثالث متسبب بالخطأ ورفض المرافق الحضور للادارة الطبية | BM54: التواصل هاتفيا معه | BN54: patient | BO54: القسم
B55: 53 | C55: 3799 | D55: 30315643 | E55: مراجع | F55: العيادات الخارجية | G55: الطبي | H55: بنك الدم | I55: 2025-02-25T18:18:00 | J55: ابرار الشمري | O55: 24 Hours | P55: 2025-02-25 | Q55: 16:55:00 | R55: ابرار الشمري | S55: 2025-02-25 | T55: 18:18:00 | U55: 2025-02-26 | V55: 09:51:00 | W55: ابرار الشمري | X55: 2025-02-26 | Y55: 10:02:00 | Z55: ابرار الشمري | AA55: 0.6555555556 | AE55: -45714.41806 | AI55: 0 | AM55: -45714.41806 | AQ55: -45714.41806 | AR55: 2025-02-26 | AS55: 14:05:00 | AT55: ابرار الشمري | AU55: 0.16875 | AX55: =(AW55+AV55)-(Y55+X55) -> -45714.41806 | AZ55: Malpractice | BA55: سوء بالخدمة | BB55: اجراء التبرع تعكس عدم اهتمام بوقت المريض 45 دقيقة بين استرح هنا والبنك فاضي تفضل هنا واستبيان ثم تفضل هنا كم وزنك ثم فحص دم ثم اعتذر للمريض بضرورة مراجعة طبيب باطنية لحاجته للتبرع العلاجي!!!! طيب من البداية فحص والسلام | BC55: "The donation process reflects a lack of consideration for the patient's time—45 minutes spent moving between stations while the bank is empty. 'Please wait here,' then 'Go ahead here,' followed by a questionnaire, then 'Step here for your weight,' then a blood test, only to finally apologize to the patient and inform them that they must see an internal medicine doctor due to the need for therapeutic donation! Why not conduct the necessary examination from the start and be done with it?" | BI55: Dissatisfied | BN55: Hospital
B56: 54 | C56: 3808 | D56: 30354179 | E56: مراجع | F56: العيادات الخارجية | G56: الطبي | H56: عيادات النساء والولادة | I56: 2025-02-26T17:15:00 | J56: ابرار الشمري | O56: 48 Hours | P56: 2025-02-26 | Q56: 16:47:00 | R56: ابرار الشمري | S56: 2025-02-26 | T56: 17:15:00 | U56: 2025-02-26 | V56: 14:59:00 | W56: ابرار الشمري | X56: 2025-03-02 | Y56: 15:41:00 | Z56: ابرار الشمري | AA56: 3.934722222 | AB56: 2025-03-03 | AC56: 14:26:00 | AD56: ابرار الشمري | AE56: 0.9479166667 | AI56: -45719.60139 | AM56: -45718.65347 | AQ56: -45718.65347 | AR56: 2025-03-04 | AS56: 00:05:00 | AT56: ابرار الشمري | AU56: 1.35 | AX56: =(AW56+AV56)-(Y56+X56) -> -45718.65347 | AZ56: Attitude | BB56: تم الحضور لدى الكتوره ولم يتم التجاوب من قبلها واسلوب غير مهني حيث تم استقبالي بطريقه ( وكاني غير مرحب بي ) علماً بإن انتظرت لدى العياده ولايوجد مريض بالداخل . | BC56: I arrived to see the doctor, but there was no response from her, and the approach was unprofessional. I was greeted in a way that made me feel unwelcome, even though I had waited at the clinic and there were no other patients inside. | BI56: Satisfied | BJ56: التحقيق | BK56: الاعتذار من قبل الكتور والافادة بان لم يكن لدى الدتوره ممرضه لذلك لم تقمباستقبالها على الفور | BL56: تحسين التدريب المهني للطواقم الطبية والمتابعه واتخاذ الاجراءات الاداريه في حال تكرار الشكاوي على دكتوره معين | BN56: patient
B57: 55 | C57: 3811 | D57: 30363772 | E57: مراجع | F57: العيادات الخارجية | G57: الطبي | H57: عيادات الطب النفسي | I57: 2025-02-26T18:51:00 | J57: رهف العنزي | O57: More than 72 hours | P57: 2025-02-26 | Q57: 06:39 P0 | R57: رهف العنزي | S57: 2025-02-26 | T57: 18:51:00 | U57: 2025-02-27 | V57: 17:48:00 | W57: رهف العنزي | X57: 2025-02-27 | Y57: 18:26:00 | Z57: رهف العنزي | AA57: 0.9826388889 | AB57: 2025-03-01 | AC57: 21:05:00 | AD57: رهف العنزي | AE57: 2.110416667 | AF57: 2025-03-02 | AG57: 21:00:00 | AH57: رهف العنزي | AI57: 0.9965277778 | AM57: -45715.76806 | AQ57: -45715.76806 | AR57: 2025-03-05 | AS57: 02:00:00 | AT57: رهف العنزي | AU57: 5.315277778 | AX57: =(AW57+AV57)-(Y57+X57) -> -45715.76806 | AY57: د.فهد الدوسري | AZ57: Miscommunication | BA57: الطبيب رفص استقبال المريض | BB57: تم رفض استقبال المريض مع وجود مواعيد متاحة ولم ينتهي وقت العيادة | BC57: the doctor refuse to enter the patient despit the available appointment and the clinic time not over | BD57: مرتين | BE57: 2025-03-02 | BF57: تاخير الطبيب بالرد | BG57: تاخير الطبيب بالرد | BH57: فهد الدوسري | BI57: Dissatisfied | BJ57: تم التواصل مع الطبيب من قبل الادارة الطبية لتوضيح افادته وابلاغ المراجعة بها | BL57: مراعاة نفسيات مرضى الطب النفسي + زيادة وقت عيادة الطبيب فهد الدوسري | BM57: التواصل معها هاتفيا للاعتذار | BN57: patient | BO57: الطبيب
B58: 56 | C58: 3814 | D58: 30299152 | E58: ذوي المراجع | F58: العيادات الخارجية | G58: الإداري | H58: استقبال العيادات الخارجية | I58: 2025-02-27T17:42:00 | J58: رهف العنزي | O58: More than 72 hours | P58: 2025-02-27 | Q58: 17:38:00 | R58: رهف العنزي | S58: 2025-02-27 | T58: 17:42:00 | U58: 2025-02-27 | V58: 17:58:00 | W58: رهف العنزي | X58: 2025-02-27 | Y58: 18:27:00 | Z58: رهف العنزي | AA58: 0.03125 | AB58: 2025-03-01 | AC58: 21:09:00 | AD58: رهف العنزي | AE58: 2.1125 | AF58: 2025-03-02 | AG58: 21:00:00 | AH58: رهف العنزي | AI58: 0.99375 | AM58: -45715.76875 | AQ58: -45715.76875 | AR58: 2025-03-03 | AS58: 00:52:00 | AT58: رهف العنزي | AU58: 3.267361111 | AX58: =(AW58+AV58)-(Y58+X58) -> -45715.76875 | AY58: صقر | AZ58: Attitude | BA58: اسلوب موظف استقبال | BB58: يشتكي من مماطلة واسلوب موظف استقبال | BC58: COMPLAINT THE SLOW SERVICE AND THE ATTITUDE OF AN OPD RECEPTIONAIST | BD58: لايوجد تاخير من قبل مستشفى ( اشكالية تامين المراجع ) | BF58: ادارة العيادات | BG58: ادارة العيادات | BH58: ادارة العيادات | BI58: Satisfied | BJ58: تم التواصل معه من قبل مدير العيادات عبدالله العزام وتوضيح نتيجة التحقيق له | BK58: رضا المراجع بعد نتيجة التحقيق والاعتذار | BN58: Hospital | BO58: الموظف
B59: 57 | C59: 3815 | D59: 30335625 | E59: ذوي المراجع | F59: العيادات الخارجية | G59: الطبي | H59: عيادات الجهاز الهضمي والمناظير | I59: 2025-02-28T08:37:00 | J59: رهف العنزي | O59: More than 72 hours | P59: 2025-02-27 | Q59: 18:32:00 | R59: رهف العنزي | S59: 2025-02-28 | T59: 08:37:00 | U59: 2025-02-28 | V59: 21:30:00 | W59: رهف العنزي | X59: 2025-02-28 | Y59: 22:01:00 | Z59: رهف العنزي | AA59: 0.5583333333 | AB59: 2025-03-01 | AC59: 21:08:00 | AD59: رهف العنزي | AE59: 0.9631944444 | AI59: -45717.88056 | AM59: -45716.91736 | AQ59: -45716.91736 | AR59: 2025-03-04 | AS59: 20:59:00 | AT59: رهف العنزي | AU59: 3.956944444 | AX59: =(AW59+AV59)-(Y59+X59) -> -45716.91736 | AY59: صبحي محمود | AZ59: Miscommunication | BA59: الطبيب رفص استقبال المريض | BB59: تم رفض استقبال المريض مع وجود مواعيد متاحة ولم ينتهي وقت العيادة | BC59: the doctor refuse to enter the patient despit the available appointment and the clinic time not over | BD59: مرة واحدة | BE59: 2025-03-01 | BI59: Dissatisfied | BN59: patient
A62: Week 1 | B62: 17 | D62: MOH | E62: 9 | F62: =E62/E66 -> 15.79% | H62: Medical | O62: Employee Name | P62: Number of complaints | Q62: Total Percentage | R62: 24 Hours | S62: 48 Hours | T62: 72 Hours | U62: More than 72 hours | V62: Total | Z62: Number of delays in sending the complaint (delay in activation) | AB62: Percentage | AC62: Activated within two hours | AD62: Percentage | AE62: Total | AJ62: الشكاوي المصعدة | AK62: خلال 72 | AL62: مبكرة | AM62: متأخرة | AN62: الموظف المسؤول | AU62: Medical | AW62: Average
A63: Week 2 | B63: 19 | D63: CCHI | E63: 6 | F63: =E63/E66 -> 10.53% | H63: أطباء الطوارئ | I63: 5 | O63: ابرار بندر الشمري | P63: 17 | Q63: =P63/P69 -> 29.82% | R63: 4 | S63: 4 | T63: 1 | U63: 8 | V63: =U64+T64+S64+R64 -> 100.00% | Z63: ابرار بندر الشمري | AA63: 11 | AB63: =AA63/AE66 -> 19.30% | AC63: 3 | AD63: =AC63/AE66 -> 5.26% | AE63: =AC63+AA63 -> 14 | AJ63: 8 | AK63: 2 | AL63: 1 | AM63: 1 | AN63: ابرار بندر الشمري | AU63: أطباء الطوارئ | AV63: 5 | AW63: =AVERAGE(AX63:BB63) -> 10.05 | AX63: 5.67 | AY63: 19.8 | BA63: 2.71 | BB63: 12.02 | BC63: 0.013
A64: Week 3 | B64: 10 | D64: Patients | E64: 15 | F64: =E64/E66 -> 26.32% | H64: عيادات الأطفال | I64: 2 | O64: Percentage | R64: =R63/P63 -> 23.53% | S64: =S63/P63 -> 23.53% | T64: =T63/P63 -> 5.88% | U64: =U63/P63 -> 47.06% | Z64: امال ماهل القحطاني | AA64: 12 | AB64: =AA64/AE66 -> 21.05% | AC64: 10 | AD64: =AC64/AE66 -> 17.54% | AE64: =AC64+AA64 -> 22 | AK64: 1 | AL64: 1 | AM64: 1 | AN64: امال ماهل القحطاني | AU64: عيادات الأطفال | AV64: 2 | AW64: =AVERAGE(AX64:BB64) -> 2.04 | AX64: 1.17 | AY64: 2.91
A65: Week 4 | B65: 11 | D65: Patient’s relatives | E65: 27 | F65: =E65/E66 -> 47.37% | H65: عيادات الأسنان | I65: 2 | O65: امال ماهل القحطاني | P65: 22 | Q65: =P65/P69 -> 38.60% | R65: 6 | S65: 6 | T65: 5 | U65: 5 | V65: =U66+T66+S66+R66 -> 100.00% | Z65: رهف علي العنزي | AA65: 11 | AB65: =AA65/AE66 -> 19.30% | AC65: 10 | AD65: =AC65/AE66 -> 17.54% | AE65: =AA65+AC65 -> 21 | AM65: 1 | AN65: رهف علي العنزي | AU65: عيادات الأسنان | AV65: 2 | AW65: 1.89 | AX65: 3.66 | AY65: 0.12
A66: Total | B66: =B62+B63+B64+B65 -> 57 | D66: Total | E66: =E62+E63+E64+E65 -> 57 | F66: =F62+F63+F64+F65 -> 100.00% | H66: عيادات الباطنية | I66: 1 | O66: Percentage | R66: =R65/P65 -> 27.27% | S66: =S65/P65 -> 27.27% | T66: =T65/P65 -> 22.73% | U66: =U65/P65 -> 22.73% | Z66: Total | AA66: =AA64+AA63+AA65 -> 34 | AB66: =AB63+AB64+AB65 -> 59.65% | AC66: =AC63+AC64+AC65 -> 23 | AD66: =AD63+AD64+AD65 -> 40.35% | AE66: =AE63+AE64+AE65 -> 57 | AU66: عيادات الباطنية | AV66: 1 | AW66: 6.93 | AX66: 6.93
D67: In-Patient | E67: 11 | F67: =E67/E70 -> 19.30% | H67: عيادات الجهاز الهضمي والمناظير | I67: 2 | O67: رهف علي العنزي | P67: 18 | Q67: =P67/P69 -> 31.58% | R67: 3 | S67: 4 | T67: 3 | U67: 8 | V67: =R68+S68+T68+U68 -> 100.00% | AE67: =AD66+AB66 -> 100.00% | AU67: عيادات الجهاز الهضمي والمناظير | AV67: 2 | AW67: 3.94 | AX67: Escalated | AY67: 3.94
A68: 1st Half | B68: 36 | D68: Out-Patient | E68: 35 | F68: =E68/E70 -> 61.40% | H68: عيادات العيون | I68: 1 | O68: Percentage | R68: =R67/P67 -> 16.67% | S68: =S67/P67 -> 22.22% | T68: =T67/P67 -> 16.67% | U68: =U67/P67 -> 44.44% | AU68: عيادات العيون | AV68: 1 | AW68: 0.008 | AX68: 0.008
A69: 2nd Half | B69: 21 | D69: ER | E69: 11 | F69: =E69/E70 -> 19.30% | H69: عيادات النساء والولادة | I69: 2 | O69: Total | P69: =P63+P65+P67 -> 57 | Q69: =Q65+Q63+Q67 -> 100.00% | R69: =R65+R63+R67 -> 13 | S69: =S65+S63+S67 -> 14 | T69: =T65+T63+T67 -> 9 | U69: =U65+U63+U67 -> 21 | V69: =U70+T70+S70+R70 -> 100.00% | AU69: عيادات النساء والولادة | AV69: 2 | AW69: 1.18 | AX69: 1.02 | AY69: 1.34
A70: Total | B70: =B69+B68 -> 57 | D70: Total | E70: =E67+E68+E69 -> 57 | F70: =F67+F68+F69 -> 100.00% | H70: عيادات جراحة الأنف وأذن وحنجرة | I70: 1 | R70: =R69/P69 -> 22.81% | S70: =S69/P69 -> 24.56% | T70: =T69/P69 -> 15.79% | U70: =U69/P69 -> 36.84% | AU70: عيادات جراحة الأنف وأذن وحنجرة | AV70: 1 | AW70: 8.93 | AX70: 8.93
D71: Medical | E71: 27 | F71: =E71/E75 -> 47.37% | H71: عيادات جراحة المخ والأعصاب | I71: 1 | AU71: عيادات جراحة المخ والأعصاب | AV71: 1 | AW71: 1.02 | AX71: 1.02
D72: Admin | E72: 27 | F72: =E72/E75 -> 47.37% | H72: وحدة العناية المتوسطة | I72: 1 | AU72: وحدة العناية المتوسطة | AV72: 1 | AW72: 6.46 | AX72: 6.46
D73: Nursing | E73: 2 | F73: =E73/E75 -> 3.51% | H73: عيادات جراحة العظام | I73: 1 | AU73: عيادات جراحة العظام | AV73: 1 | AW73: 3.85 | AX73: 3.85
D74: Support Services | E74: 1 | F74: =E74/E75 -> 1.75% | H74: قسم المختبر | I74: 1 | AU74: قسم المختبر | AV74: 1 | AW74: 1.89 | AX74: 1.89
D75: Total | E75: =E71+E72+E73+E74 -> 57 | F75: =F71+F72+F73+F74 -> 100.00% | H75: بنك الدم | I75: 1 | AU75: بنك الدم | AV75: 1 | AW75: 0.16 | AX75: 0.16
H76: تنويم النساء والولادة | I76: 1 | AU76: تنويم النساء والولادة | AV76: 1 | AW76: 17.05 | AX76: 17.05
H77: عيادات الأنف والأذن والحنجرة (أطفال) | I77: 2 | AU77: عيادات الأنف والأذن والحنجرة (أطفال) | AV77: 2 | AW77: 4.035 | AX77: 6.01 | AY77: 2.06
B78: V | H78: عيادات الجهاز الهمضي والمناظير (أطفال) | I78: 1 | AU78: عيادات الجهاز الهمضي والمناظير (أطفال) | AV78: 1 | AW78: 4 | AX78: 4
H79: عيادات الطب النفسي | I79: 1 | AU79: عيادات الطب النفسي | AV79: 1 | AW79: 5.3 | AX79: 5.3
H80: عيادات جراحة الأورام و الغدد الصماء | I80: 1 | AU80: عيادات جراحة الأورام و الغدد الصماء | AV80: 1 | AW80: 1.84 | AX80: 1.84
H81: Total | I81: =SUBTOTAL(9,I63:I80) -> 27 | AU81: Total | AV81: =SUM(AV63:AV80) -> 27
H83: Non-Medical | AU83: Non-Medical | AW83: Average
H84: إدارة التنويم | I84: 1 | AU84: إدارة التنويم | AV84: 1 | AW84: =AVERAGE(AX84:BG84) -> 1.01 | AX84: 1.01
H85: استقبال الطوارئ | I85: 1 | AU85: استقبال الطوارئ | AV85: 1 | AW85: =AVERAGE(AX85:BG85) -> 3.92 | AX85: 3.92
H86: استقبال العيادات الخارجية | I86: 8 | AU86: استقبال العيادات الخارجية | AV86: 8 | AW86: =AVERAGE(AX86:BG86) -> 9.30875 | AX86: 28.64 | AY86: 5.63 | BA86: 21.93 | BB86: 1.89 | BC86: 3.06 | BD86: 1.13 | BE86: 8.93 | BF86: 3.26
H87: استقبال المختبر | I87: 1 | AU87: استقبال المختبر | AV87: 1 | AW87: 0.89 | AX87: 0.89
H88: المدير المناوب | I88: 4 | AU88: المدير المناوب | AV88: 4 | AW88: 1.3825 | AX88: 1.85 | AY88: 0.92 | BA88: 0.92 | BB88: 1.84
H89: الموافقات الطبية | I89: 7 | AU89: الموافقات الطبية | AV89: 7 | AW89: 1.4475 | AX89: 2.63 | AY89: 1.005 | BA89: Escalated | BB89: 2.29 | BC89: 0.84 | BD89: 0.96 | BE89: 0.96
H90: قسم التقارير الطبية | I90: 2 | AU90: قسم التقارير الطبية | AV90: 2 | AW90: 1.0585 | AX90: 0.017 | AY90: 2.1
H91: قسم المالية | I91: 2 | AU91: قسم المالية | AV91: 2 | AW91: 0.93 | AX91: 1.02 | AY91: 0.84
H92: قسم السنترال | I92: 1 | AU92: قسم السنترال | AV92: 1 | AW92: 0.005 | AX92: 0.005
H93: Total | I93: =SUM(I84:I92) -> 27 | AU93: Total | AV93: =SUM(AV84:AV92) -> 27
H95: Nursing | AU95: Nursing | AW95: Average
H96: تمريض تنويم الأطفال | I96: 1 | AU96: تمريض تنويم الأطفال | AV96: 1 | AW96: =AVERAGE(AX96:AY96) -> 2.8 | AX96: 2.8
H97: تمريض قسم الإفاقة | I97: 1 | AU97: تمريض قسم الإفاقة | AV97: 1 | AW97: 2 | AX97: 2
H98: Total | I98: =I96+I97 -> 2 | AU98: Total | AV98: =SUM(AV96:AV97) -> 2
H100: Support Services | AU100: Support Services | AW100: Average
H101: قسم النظافة | I101: 1 | AU101: قسم النظافة | AV101: 1 | AW101: =AVERAGE(AX101) -> 1.76 | AX101: 1.76
H102: Total | I102: =I101 -> 1 | AU102: Total | AV102: =SUM(AV101) -> 1
H104: Total | I104: =I102+I98+I93+I81 -> 57

Sheet MAR
A1: Week | B1: No. | C1: رقم الشكوى | D1: رقم الملف | E1: جهة الشكوى | F1: الموقع | G1: القسم الرئيس | H1: القسم الفرعي | I1: تاريخ إستلام الشكوى | J1: المدخل | K1: MOH & CHI | N1: رقم الجوال | O1: Time line | P1: إرسال نموذج الشكوى | R1: Employee | S1: تحرير الشكوى | U1: تفعيل الشكوى | W1: Employee | X1: تم ارسال الشكوى | Z1: Employee | AA1: الوقت بين التحرير والارسال | AB1: First Reminder Sent | AD1: Employee | AE1: الوقت بين اول ايميل والارسال | AF1: Second Reminder Sent | AH1: Employee | AI1: الوقت بين ثاني ايميل والاول | AJ1: Escalated | AL1: Employee | AM1: الوقت بين التصعيد والارسال | AN1: Closed | AP1: Employee | AQ1: الوقت بين الاغلاق والارسال | AR1: Resolved | AT1: Employee | AU1: الوقت بين المعالجة و الارسال | AV1: تاريخ الرد | AX1: الوقت بين الرد والارسال | AY1: اسم الشخص المشتكى عليه - ان وجد | AZ1: Complain Classification | BA1: موضوع الشكوى الأساسية | BB1: الشكوى باختصار (عربي) | BC1: الشكوى باختصار English | BD1: توثيق تذكيرات للقسم المشتكى عليه | BE1: تاريخ التذكير | BF1: سبب تأخير القسم بالرد | BG1: سبب تأخير اغلاق الشكوى خلال 72 ساعه | BH1: الشخص المتأخر | BI1: Satisfied/Dissatisfied | BJ1: الاجراء المتخذ من قبل القسم المعني | BK1: نتيجة الاجراء المتخذ بعد التحقيق | BL1: حلول واقتراحات | BM1: Recommendation/Action plan | BN1: Responsible Department | BO1: The Rightful Side | BP1: PR - Observations Patient Supervisor | BR1: رقم الشكوى | BS1: رقم الملف | BT1: جهة الشكوى | BU1: الموقع | BV1: القسم الرئيس | BW1: القسم الفرعي | BX1: تاريخ إستلام الشكوى | BY1: المدخل | BZ1: Time line | CB1: رقم الشكوى | CC1: رقم الملف | CD1: جهة الشكوى | CE1: الموقع | CF1: القسم الرئيس | CG1: القسم الفرعي | CH1: تاريخ إستلام الشكوى | CI1: المدخل | CJ1: Time line | CL1: رقم الشكوى | CM1: رقم الملف | CN1: جهة الشكوى | CO1: الموقع | CP1: القسم الرئيس | CQ1: القسم الفرعي | CR1: تاريخ إستلام الشكوى | CS1: المدخل | CT1: Time line | CV1: رقم الشكوى | CW1: رقم الملف | CX1: جهة الشكوى | CY1: الموقع | CZ1: القسم الرئيس | DA1: القسم الفرعي | DB1: تاريخ إستلام الشكوى | DC1: المدخل | DD1: Time line
K2: MOH & CHI | L2: Date | M2: Time | N2: Phone Number | O2: Time line | P2: Date | Q2: Time | S2: Date | T2: Time | U2: Date | V2: Time | X2: Date | Y2: Time | AB2: Date | AC2: Time | AF2: Date | AG2: Time | AJ2: Date | AK2: Time | AN2: Date | AO2: Time | AR2: Date | AS2: Time | AV2: Date | AW2: Time | BR2: 3852 | BS2: 1096364722 | BT2: مجلس الضمان الصحي | BU2: العيادات الخارجية | BV2: الإداري | BW2: قسم الموافقات الطبية | BX2: 2025-03-05T15:04:00 | BY2: ابرار الشمري | BZ2: 24 Hours | CC2: 30347761 | CD2: وزارة الصحة | CE2: التنويم | CF2: الإداري | CG2: قسم المالية | CH2: 2025-03-02T15:33:00 | CI2: ابرار الشمري | CJ2: 24 Hours | CM2: 30155302 | CN2: مراجع | CO2: العيادات الخارجية | CP2: الطبي | CQ2: عيادات النساء والولادة | CR2: 2025-03-02T04:10:00 | CS2: رهف العنزي | CT2: 48 Hours | CV2: 3835 | CW2: 30271054 | CX2: ذوي المراجع | CY2: العيادات الخارجية | CZ2: الطبي | DA2: عيادات الباطنية | DB2: 2025-03-02T23:38:00 | DC2: رهف العنزي | DD2: 72 Hours
A3: 1 | B3: 1 | C3: 3828 | D3: 30155302 | E3: مراجع | F3: العيادات الخارجية | G3: الطبي | H3: عيادات النساء والولادة | I3: 2025-03-02T04:10:00 | J3: رهف العنزي | O3: 48 Hours | P3: 2025-03-02 | Q3: 01:20:00 | R3: رهف العنزي | S3: 2025-03-02 | T3: 04:10:00 | U3: 2025-03-02 | V3: 20:33:00 | W3: رهف العنزي | X3: 2025-03-02 | Y3: 20:36:00 | Z3: رهف العنزي | AA3: =(Y3+X3)-(T3+S3) -> 0.6847222222 | AE3: =(AC3+AB3)-(Y3+X3) -> -45718.85833 | AI3: =(AG3+AF3)-(AC3+AB3) -> 0 | AM3: =(AK3+AJ3)-(Y3+X3) -> -45718.85833 | AQ3: =(AO3+AN3)-(Y3+X3) -> -45718.85833 | AR3: 2025-03-04 | AS3: 00:06:00 | AT3: رهف العنزي | AU3: =(AS3+AR3)-(Y3+X3) -> 1.145833333 | AX3: =(AW3+AV3)-(Y3+X3) -> -45718.85833 | AY3: مروى حسني | AZ3: policies | BA3: عدم عمل اجراء طبي ( قص لولب) | BB3: اشتكت المريضة من رفض الطبيبة قص اللولب وطلب عودتها للمستشفى التي تم عمل الاجراء فيه | BC3: The patient complained that the doctor refused to remove the IUD and asked her to return to the hospital where the procedure was performed. | BE3: 2025-03-03 | BF3: تاخر الطبيبة بالاطلاع على الشكوى بعد التواصل معها اتصال تم الرد | BH3: د.مروى حسني | BI3: Dissatisfied | BO3: patient | BR3: 3853 | BS3: 2516248347 | BT3: مجلس الضمان الصحي | BU3: التنويم | BV3: الإداري | BW3: قسم المالية | BX3: 2025-03-05T15:05:00 | BY3: ابرار الشمري | BZ3: 24 Hours | CC3: 30311656 | CD3: وزارة الصحة | CE3: العيادات الخارجية | CF3: الطبي | CG3: عيادات الجراحة العامة | CH3: 2025-03-03T17:14:00 | CI3: رهف العنزي | CJ3: 24 Hours | CM3: 30374353 | CN3: مراجع | CO3: العيادات الخارجية | CP3: الطبي | CQ3: قسم الأشعة | CR3: 2025-03-08T23:33:00 | CS3: ابرار الشمري | CT3: More than 72 hours | CV3: 3905 | CW3: 1443204 | CX3: ذوي المراجع | CY3: التنويم | CZ3: الطبي | DA3: وحدة العناية المركزة | DB3: 2025-03-16T13:40:00 | DC3: ابرار الشمري | DD3: 72 Hours
B4: 2 | C4: 3833 | D4: 30347761 | E4: وزارة الصحة | F4: التنويم | G4: الإداري | H4: قسم المالية | I4: 2025-03-02T15:33:00 | J4: ابرار الشمري | K4: MOH | L4: 2025-03-03 | M4: 11:00:00 | N4: +966 L654 486 0275 | O4: 24 Hours | P4: 2025-03-02 | Q4: 15:33:00 | R4: ابرار الشمري | S4: 2025-03-02 | T4: 15:33:00 | U4: 2025-03-02 | V4: 15:39:00 | W4: ابرار الشمري | X4: 2025-03-02 | Y4: 15:39:00 | Z4: ابرار الشمري | AA4: 0.004166666666 | AE4: -45718.65208 | AI4: 0 | AM4: -45718.65208 | AQ4: -45718.65208 | AR4: 2025-03-03 | AS4: 10:44:00 | AT4: ابرار الشمري | AU4: 0.7951388889 | AX4: -45718.65208 | AZ4: financial claim | BA4: المطالبة بمالغ مالية | BB4: تمت المطالبة بمبلغ وقدره 6000 ريال رغم وجود موافقه من قبل شركة التامين | BC4: An amount of 6,000 riyals was claimed despite prior approval from the insurance company. | BI4: Satisfied | BJ4: الافادة من القسم بتفاصيل الفاتوره | BK4: معاودة التواصل مع المراجع والتوضيح له | BL4: التوضيح للمريض بتفاصيل الفاتوير من قبل قسم التحصيل | BM4: التوضيح للمريض بتفاصيل الفاتوير من قبل قسم التحصيل | BO4: Hospital | BR4: 3854 | BS4: 2111340705 | BT4: مجلس الضمان الصحي | BU4: التنويم | BV4: الإداري | BW4: قسم المالية | BX4: 2025-03-05T15:11:00 | BY4: ابرار الشمري | BZ4: 72 Hours | CC4: 30341784 | CD4: وزارة الصحة | CE4: العيادات الخارجية | CF4: الإداري | CG4: مكتب التنويم | CH4: 2025-03-03T19:07:00 | CI4: رهف العنزي | CJ4: 24 Hours | CM4: 30312842 | CN4: مراجع | CO4: التنويم | CP4: الطبي | CQ4: قسم الجهاز الهمضي و الكبد والمناظير | CR4: 2025-03-10T02:07:00 | CS4: رهف العنزي | CT4: 72 Hours | CV4: 3905 | CW4: 1443204 | CX4: ذوي المراجع | CY4: الطوارئ | CZ4: الطبي | DA4: أطباء الطوارئ | DB4: 2025-03-16T13:59:00 | DC4: ابرار الشمري | DD4: 48 Hours
B5: 3 | C5: 3835 | D5: 30271054 | E5: ذوي المراجع | F5: العيادات الخارجية | G5: الطبي | H5: عيادات الباطنية | I5: 2025-03-02T23:38:00 | J5: رهف العنزي | O5: 72 Hours | P5: 2025-03-02 | Q5: 23:28:00 | R5: رهف العنزي | S5: 2025-03-02 | T5: 23:38:00 | U5: 2025-03-03 | V5: 00:01:00 | W5: رهف العنزي | X5: 2025-03-03 | Y5: 00:01:00 | Z5: رهف العنزي | AA5: 0.01597222222 | AE5: -45719.00069 | AI5: 0 | AM5: -45719.00069 | AQ5: -45719.00069 | AR5: 2025-03-05 | AS5: 01:59:00 | AT5: رهف العنزي | AU5: 2.081944444 | AX5: -45719.00069 | AY5: يوسف النمراوي | AZ5: prescription issue | BA5: وصف دواء لايتناسب مع الحالة الصحية | BB5: كتب الطبيب دواء غدة للمراجعة مع علمه بأنها مرضعة مما اثر على الطفلة | BC5: The doctor prescribed thyroid medication for the patient, knowing that she is breastfeeding, which affected the baby. | BE5: 2025-03-04 | BF5: رد الطبيب بإفادة غير مفهومة و رد الطبيب بعد التواصل مع المدير الطبي واتصاله على الطبيب لابلاغه بالرد بافادة جديدة | BG5: رد الطبيب بإفادة غير مفهومة و رد الطبيب بعد التواصل مع المدير الطبي واتصاله على الطبيب لابلاغه بالرد بافادة جديدة | BH5: د.يوسف النمراوي | BI5: Satisfied | BN5: 0 | BO5: Hospital | BR5: 3909 | BS5: 30362694 | BT5: مجلس الضمان الصحي | BU5: العيادات الخارجية | BV5: الإداري | BW5: استقبال العيادات الخارجية | BX5: 2025-03-17T15:26:00 | BY5: ابرار الشمري | BZ5: 24 Hours | CC5: 30335315 | CD5: وزارة الصحة | CE5: التنويم | CF5: الإداري | CG5: إدارة التنويم | CH5: 2025-03-04T13:26:00 | CI5: مها الحنيظل | CJ5: 24 Hours | CM5: 30097765 | CN5: مراجع | CO5: العيادات الخارجية | CP5: الطبي | CQ5: عيادات جراحة المسالك البولية | CR5: 2025-03-09T22:03:00 | CS5: ابرار الشمري | CT5: 24 Hours | CV5: 3923 | CW5: 30375145 | CX5: ذوي المراجع | CY5: العيادات الخارجية | CZ5: الطبي | DA5: عيادات الجهاز الهمضي والمناظير (أطفال) | DB5: 2025-03-20T00:09:00 | DC5: رهف العنزي | DD5: 72 Hours
B6: 4 | C6: 3840 | D6: 30311656 | E6: وزارة الصحة | F6: العيادات الخارجية | G6: الطبي | H6: عيادات الجراحة العامة | I6: 2025-03-03T17:14:00 | J6: رهف العنزي | K6: MOH | L6: 2025-03-03 | M6: 22:29:00 | N6: 0 55 583 8252 | O6: 24 Hours | P6: 2025-03-03 | Q6: 22:53:00 | R6: رهف العنزي | S6: 2025-03-03 | T6: 22:53:00 | X6: 2025-03-03 | Y6: 22:53:00 | Z6: رهف العنزي | AA6: 0 | AB6: 2025-03-04 | AC6: 19:47:00 | AD6: رهف العنزي | AE6: 0.8708333333 | AI6: -45720.82431 | AM6: -45719.95347 | AQ6: -45719.95347 | AR6: 2025-03-04 | AS6: 21:04:00 | AT6: رهف العنزي | AU6: 0.9243055556 | AX6: -45719.95347 | AY6: محمد الجيلاني | AZ6: malpractice | BA6: عدم اكمال اجراء طبي جراحي | BB6: اشتكت المريضة من ان الطبيب لم يزيل كل قطع الزجاج في يدها وانما ازال اجزاء فقط وترك اجزاء | BC6: The patient complained that the doctor did not remove all the pieces of glass in her hand, but only removed some parts and left others. | BE6: 2025-03-04 | BI6: Dissatisfied | BO6: patient | BR6: 3910 | BS6: 1395972 | BT6: مجلس الضمان الصحي | BU6: التنويم | BV6: الإداري | BW6: قسم المالية | BX6: 2025-03-17T15:33:00 | BY6: ابرار الشمري | BZ6: 24 Hours | CC6: 30363772 | CD6: وزارة الصحة | CE6: العيادات الخارجية | CF6: الطبي | CG6: عيادات الطب النفسي | CH6: 2025-03-05T22:52:00 | CI6: رهف العنزي | CJ6: 72 Hours | CM6: 30358659 | CN6: مراجع | CO6: التنويم | CP6: الطبي | CQ6: قسم الحضانة | CR6: 2025-03-10T13:21:00 | CS6: رهف العنزي | CT6: More than 72 hours | CV6: 3923 | CW6: 30375145 | CX6: ذوي المراجع | CY6: العيادات الخارجية | CZ6: الإداري | DA6: استقبال العيادات الخارجية | DB6: 2025-03-20T00:09:00 | DC6: رهف العنزي | DD6: 48 Hours
B7: 5 | C7: 3849 | D7: 30341784 | E7: وزارة الصحة | F7: العيادات الخارجية | G7: الإداري | H7: مكتب التنويم | I7: 2025-03-03T19:07:00 | J7: رهف العنزي | K7: MOH | L7: 2025-03-06 | M7: 13:27:00 | N7: 050 229 4360 | O7: 24 Hours | P7: 2025-03-04 | Q7: 23:25:00 | R7: رهف العنزي | S7: 2025-03-04 | T7: 23:25:00 | X7: 2025-03-04 | Y7: 23:25:00 | Z7: رهف العنزي | AA7: 0 | AE7: -45720.97569 | AI7: 0 | AM7: -45720.97569 | AQ7: -45720.97569 | AR7: 2025-03-05 | AS7: 20:44:00 | AT7: رهف العنزي | AU7: 0.8881944444 | AX7: -45720.97569 | AZ7: financial claim | BA7: مطالبات مالية | BB7: تم ايقاف تعميد مريض تابع لجمعية رحماء و مطالبة بدفع كاش قيمة اشعة واجراءات تم عملها | BC7: a patient affiliated with the Rahma Association coverage/approval was suspended, and they were asked to pay in cash for the cost of the X-rays and procedures . | BI7: Dissatisfied | BO7: Hospital | BR7: 3919 | BS7: 1070607476 | BT7: مجلس الضمان الصحي | BU7: العيادات الخارجية | BV7: الإداري | BW7: استقبال العيادات الخارجية | BX7: 2025-03-19T15:36:00 | BY7: ابرار الشمري | BZ7: 24 Hours | CC7: 1201271 | CD7: وزارة الصحة | CE7: التنويم | CF7: الطبي | CG7: وحدة العناية المركزة | CH7: 2025-03-09T23:52:00 | CI7: ابرار الشمري | CJ7: 24 Hours | CM7: 977076 | CN7: مراجع | CO7: العيادات الخارجية | CP7: التمريض | CQ7: تمريض العيادات الخارجية | CR7: 2025-03-12T16:53:00 | CS7: رهف العنزي | CT7: More than 72 hours | CV7: 3927 | CW7: 1433204 | CX7: ذوي المراجع | CY7: الطوارئ | CZ7: الطبي | DA7: أطباء الطوارئ | DB7: 2025-03-20T23:32:00 | DC7: رهف العنزي | DD7: 72 Hours
B8: 6 | C8: 3852 | D8: 1096364722 | E8: مجلس الضمان الصحي | F8: العيادات الخارجية | G8: الإداري | H8: قسم الموافقات الطبية | I8: 2025-03-05T15:04:00 | J8: ابرار الشمري | K8: CHI | O8: 24 Hours | P8: 2025-03-05 | Q8: 15:04:00 | R8: ابرار الشمري | S8: 2025-03-05 | T8: 15:04:00 | U8: 2025-03-05 | V8: 15:05:00 | W8: ابرار الشمري | X8: 2025-03-05 | Y8: 15:05:00 | Z8: ابرار الشمري | AA8: 0.0006944444394 | AE8: -45721.62847 | AI8: 0 | AM8: -45721.62847 | AQ8: -45721.62847 | AR8: 2025-03-06 | AS8: 14:49:00 | AT8: ابرار الشمري | AU8: 0.9888888889 | AX8: -45721.62847 | AZ8: prescription issue | BA8: عدم التحويل الخارجي لدواء | BB8: لم يتم صرف دواء من صيدلية المستشفى وتم اعلامي انه سيام تحويلي لصيدلية اخرى خارج المستشفى ولكن لم استلم معلمومات الصيدلية بصرف الدواء. | BC8: The medication was not dispensed from the hospital pharmacy, and I was informed that it would be transferred to another pharmacy outside the hospital. However, I have not received any information about the pharmacy for the medication to be dispensed. | BI8: Dissatisfied | BJ8: التحقق من النظام | BK8: لايغطي التامين فيتامين سي . | BL8: التوضيح للمريض في حال عدم التغطية من قبل شركة التامين | BM8: التوضيح للمريض في حال عدم التغطية من قبل شركة التامين | BO8: patient | BR8: 3934 | BS8: 30244150 | BT8: مجلس الضمان الصحي | BU8: الطوارئ | BV8: الإداري | BW8: المدير المناوب | BX8: 2025-03-23T13:43:00 | BY8: ابرار الشمري | BZ8: 48 Hours | CC8: 30275455 | CD8: وزارة الصحة | CE8: التنويم | CF8: الإداري | CG8: قسم المالية | CH8: 2025-03-10T00:19:00 | CI8: مها الحنيظل | CJ8: 24 Hours | CM8: 30374914 | CN8: مراجع | CO8: العيادات الخارجية | CP8: الطبي | CQ8: عيادات الباطنية | CR8: 2025-03-15T19:31:00 | CS8: مها الحنيظل | CT8: 24 Hours | CV8: 3927 | CW8: 1433204 | CX8: ذوي المراجع | CY8: الطوارئ | CZ8: التمريض | DA8: تمريض الطوارئ | DB8: 2025-03-20T23:32:00 | DC8: رهف العنزي | DD8: 48 Hours
B9: 7 | C9: 3853 | D9: 2516248347 | E9: مجلس الضمان الصحي | F9: التنويم | G9: الإداري | H9: قسم المالية | I9: 2025-03-05T15:05:00 | J9: ابرار الشمري | K9: CHI | L9: 2025-03-04 | M9: 23:00:00 | N9: C250227841117580 | O9: 24 Hours | P9: 2025-03-05 | Q9: 15:05:00 | R9: ابرار الشمري | S9: 2025-03-05 | T9: 15:05:00 | U9: 2025-03-05 | V9: 15:10:00 | W9: ابرار الشمري | X9: 2025-03-05 | Y9: 15:10:00 | Z9: ابرار الشمري | AA9: 0.003472222226 | AE9: -45721.63194 | AI9: 0 | AM9: -45721.63194 | AQ9: -45721.63194 | AR9: 2025-03-06 | AS9: 15:13:00 | AT9: ابرار الشمري | AU9: 1.002083333 | AX9: -45721.63194 | AZ9: financial claim | BA9: تاخير صدور موافقه | BB9: في 18 فبراير حوالي الساعة 6:30 مساءً، تعرضت والدتي للسقوط في المنزل وتم نقلها إلى المستشفى بواسطة الهلال الأحمر في حالة طوارئ حوالي الساعة 8:11 مساءً حيث كان يُشتبه في وجود كسر، وكانت والدتي تعاني من ألم شديد وكانت تبكي بصوت عالٍ بسبب الألم. بمجرد وصولنا إلى مستشفى حمدي، أخبرت موظف الاستقبال أن والدتي تحمل تأشيرة زيارة، وتمت معاملتها كـ مريض نقدي بعد المعالجة الأولية. قام الاستشاري بفحص الحالة وأكد وجود كسر وأنه يحتاج إلى جراحة، وطلبت إدارة المستشفى دفع وديعة أولية. لم يقم موظف الاستقبال بالتحقق من حالة التأمين في ذلك الوقت. في اليوم التالي، أي في 19 فبراير، ذهبت إلى مكتب الموافقات والتحصيل في المستشفى وطلبت منهم التحقق من حالة التأمين. تحققوا حوالي الساعة 1:00 ظهرًا وأجابوني بأنه لا يمكن التأمين على المريض. طلبت منهم مساعدتي على الأقل في تقديم الطلب، لكن الممثل أخبرني أنهم لا يمكنهم تقديم الطلب لأن المريض غير مؤهل. لم يُوجهني المستشفى إلى أن ممثل التأمين موجود في المستشفى، وطلبوا مني التحقق مع التأمين. اتصلت بالخط الساخن لشركة التأمين وأخبروني أنه لا يوجد تأمين ضد الرقم الحدودي لوالدتي. حاولت من خلال تطبيق ميد غلف أيضًا، لكنني حصلت على نفس الخطأ. أرسلت بريدًا إلكترونيًا إلى شركة التأمين في نفس اليوم ولكن لم أتلق أي رد. في 24 فبراير، اتصلت مرة أخرى بالخط الساخن لشركة التأمين، وفي هذه المرة أخبروني أن والدتي مشمولة بالتأمين وأنه يمكنني طلب من مستشفى حمدي التحقق من خلال رقم جواز السفر. طلبت من ممثل مكتب الموافقات والتحصيل في المستشفى فعل ذلك، لكنها قالت أن الحالة نفسها، ولا يمكننا تقديم الطلب أو القيام بأي شيء. بعد فقدان الأمل، كنت في طريقي للعودة إلى المنزل عندما رأيت مكتبًا لشركات التأمين في الطابق الأرضي من المستشفى. قابلت ممثل ميد غلف هناك، وشرحت لها مشكلتي بالكامل، فتم تسجيل المشكلة، وفي اليوم التالي أخبرتني أن المستشفى لم ترسل بريدًا إلكترونيًا في حال وجود مشكلة في الأهلية خلال 24 ساعة، وبالتالي تم رفض طلبي. بسبب عدم الدعم والتوجيه السليم، لم أتمكن من الاستفادة من التأمين لوالدتي. لقد دفعت بالفعل 15,000 ريال نقدًا في البداية، وأُبلغت أن إجمالي الفاتورة لن يتجاوز في الغالب 20,000 ريال، ولكن عند discharge كانت المبالغ المتبقية حوالي 15,000 ريال على ذمتي، والآن يطلب مستشفى الحمادي مني دفع المبلغ المتبقي. أحتاج إلى الدعم من مركز CHI للنظر في هذا الأمر ومساعدتي في حل مشكلتي، حيث أن التأمين لا يدعمني بسبب التأخير من المستشفى. | BC9: On 18th Feb Around 6:30pm my mother got slipped at home we were taken to hospital by Red Crescent at emergency at around 8:11 pm as it was suspected fracture any my mother was in severe pain she was crying loud due to pain once we reached hamadi I informed the front desk that my mother is on visit visa we were taken as a cash patient after initial treatment consultant checked and confirmed its fracture and need surgery and hospital management asked to submit initial deposit front desk did not check insurance status at that time next day i.e I visited approval and collection office of the hospital and asked them to check for insurance they check around 1:00pm and responded me back that patient is in eligible I asked them to support to atleast submit request the representative informed me that we can’t submit request as your patient is ineligible, hospital didn’t guided me that insurance office representative is also sitting in hospital, and ask me to please check with your insurance I called insurance and insurance helpline told me there is no insurance against the border number of my mother, I tried from med gulf app as well I got same error I sent email to insurance that is med gulf on same day but there was no response. on 24 feb I called helpline of insurance again and this time I was told your mother has insurance you can ask alhamadi to check by passport number I asked hamadi approval and collection representative to do same but she said it’s same status we can’t submit request and we can’t do anything after losing hope I was going back home and I saw office of insurance companies in hamadi ground floor I found med gulf representative there I explained her my complete issue she register issue and next day she informed me as hospital did not sent email if there was in eligibility issue with in 24hr so my request was rejected. Due less supportive behavior and not properly guiding I am unable to avail insurance for my mother I already paid 15000 cash initially and I was informed total bill will not exceed most probably above 20000 but when we were discharged balance amount of 15000 approx was pending on me and now Al Hammadi is asking to pay remaining amount I need support from CHI to look in to this matter and help to get my issue resolved insurance is not supporting due to delay from Hospital ترجم ChatGPT said: Sure! Heres the translation of your message in Arabic: | BI9: Dissatisfied | BJ9: الافادة من القسم بتفاصيل الفاتوره | BK9: لايوجد اجراء وذلك لان الرفض من قبل شركة التامين وتم التوضيح للمريض بشكل مفصل | BL9: لايوجد | BM9: لايوجد | BO9: Hospital | CC9: 30368428 | CD9: وزارة الصحة | CE9: العيادات الخارجية | CF9: الإداري | CG9: قسم الموافقات الطبية | CH9: 2025-03-10T00:53:00 | CI9: ابرار الشمري | CJ9: 24 Hours | CM9: 30328166 | CN9: مراجع | CO9: العيادات الخارجية | CP9: الإداري | CQ9: قسم الموافقات الطبية | CR9: 2025-03-16T01:49:00 | CS9: رهف العنزي | CT9: 24 Hours | CV9: 3933 | CW9: 30358044 | CX9: ذوي المراجع | CY9: التنويم | CZ9: الإداري | DA9: قسم الموافقات الطبية | DB9: 2025-03-23T14:29:00 | DC9: ابرار الشمري | DD9: More than 72 hours
B10: 8 | C10: 3854 | D10: 2111340705 | E10: مجلس الضمان الصحي | F10: التنويم | G10: الإداري | H10: قسم المالية | I10: 2025-03-05T15:11:00 | J10: ابرار الشمري | K10: CHI | L10: 2025-03-04 | M10: 00:50:00 | N10: C250303842943002 | O10: 72 Hours | P10: 2025-03-05 | Q10: 15:11:00 | R10: ابرار الشمري | S10: 2025-03-05 | T10: 15:11:00 | U10: 2025-03-05 | V10: 15:14:00 | W10: ابرار الشمري | X10: 2025-03-05 | Y10: 15:14:00 | Z10: ابرار الشمري | AA10: 0.002083333333 | AB10: 2025-03-06 | AC10: 15:35:00 | AD10: ابرار الشمري | AE10: 1.014583333 | AI10: -45722.64931 | AM10: -45721.63472 | AQ10: -45721.63472 | AR10: 2025-03-08 | AS10: 10:30:00 | AT10: ابرار الشمري | AU10: 2.802777778 | AX10: -45721.63472 | AZ10: financial claim | BA10: مطالبة مالية | BB10: تنوم في تاريخ 2025|01|31 لمشاكل في الصدر و ضيق تنفس وبعد خروج المريض من المستشفى قامت المستشفى بمطالبة المريض بملغ مالي بسبب رفض التامين قيمة خمسة ايام مرفوضة في تاريخ 2025�213 الى تاريخ 2025�218 وذلك بحجة تاخير المستشفى وعدم تقديم معلومات كافية تستدعي تنويم الحالة وعلما بان المستشفى سابقا بمدة بسيطة قام بنفس الفعل لدي على الوالدة وقمت بشكوى سابقا على نفس الفعل والان المستشفى ياطالب المريض بدفع مبلغ تنويم مدة خمسة ايام ( تم تحديث بيانات المريض ) | BC10: The patient was admitted on 2025/01/31 due to chest problems and shortness of breath. After the patient was discharged from the hospital, the hospital demanded a financial amount from the patient because the insurance rejected the value of five days, from 2025/02/13 to 2025/02/18, claiming that the hospital delayed and failed to provide sufficient information justifying the need for hospitalization. It is worth noting that the hospital had previously done the same for my mother, and I had filed a complaint regarding the same issue. Now, the hospital is demanding the patient pay for the five-day hospitalization (the patient's data has been updated). | BI10: Dissatisfied | BJ10: التحقق من النظام واتضح بانها تمت الاستفادة من موعد المتابعه من قبل المريض خلال ال 14 يوم | BK10: عدم الموافقه من قبل شركة التامين | BL10: إرقاق جميع التقارير اللازمة لشركة التامين والشرح والتوضيح للمراجع | BM10: إرقاق جميع التقارير اللازمة لشركة التامين والشرح والتوضيح للمراجع | BO10: Hospital | BR10: Employee Name | BS10: Number of complaints | BT10: Total Percentage | BU10: 24 Hours | BV10: 48 Hours | BW10: 72 Hours | BX10: More than 72 hours | BY10: Total | CC10: 30133777 | CD10: وزارة الصحة | CE10: العيادات الخارجية | CF10: الطبي | CG10: عيادات الباطنية | CH10: 2025-03-09T01:18:00 | CI10: رهف العنزي | CJ10: 24 Hours | CM10: 30372574 | CN10: مراجع | CO10: التنويم | CP10: الطبي | CQ10: قسم التخدير | CR10: 2025-03-17T00:21:00 | CS10: رهف العنزي | CT10: 48 Hours | CV10: 3935 | CW10: 1515786 | CX10: ذوي المراجع | CY10: التنويم | CZ10: الطبي | DA10: وحدة العناية المتوسطة | DB10: 2025-03-23T22:24:00 | DC10: مها الحنيظل | DD10: More than 72 hours
B11: 9 | C11: 3857 | D11: 30335315 | E11: وزارة الصحة | F11: التنويم | G11: الإداري | H11: إدارة التنويم | I11: 2025-03-04T13:26:00 | J11: مها الحنيظل | K11: MOH | L11: 2025-03-06 | M11: 13:27:00 | N11: 050 229 4360 | O11: 24 Hours | P11: 2025-03-04 | Q11: 13:26:00 | R11: مها الحنيظل | S11: 2025-03-04 | T11: 13:26:00 | X11: 2025-03-06 | Y11: 00:09:00 | Z11: مها الحنيظل | AA11: 1.446527778 | AE11: -45722.00625 | AI11: 0 | AM11: -45722.00625 | AQ11: -45722.00625 | AR11: 2025-03-06 | AS11: 20:46:00 | AT11: مها الحنيظل | AU11: 0.8590277778 | AV11: 2025-03-06 | AW11: 08:53:00 | AX11: 0.3638888889 | AZ11: policies | BA11: المريض يفيد انه تم اخراجه من غرفة رويال سويت | BB11: المريض يفيد انه تم اخراجه من غرفة رويال سويت و اخذهم الى غرفه عاديه بسبب ان شخص اخر حجز الغرفه | BC11: The patient reports that they were moved from the Royal Suite to a regular room because another person had reserved the suite. | BI11: Satisfied | BL11: التوضيح للمريض بتفاصيل الموافقه الي تم الحصول عليها | BM11: اعطاء تفاصيل اكثر وضوح للمريض على موافقات شركة التأمين | BN11: ادارة التنويم | BO11: Hospital | BR11: ابرار بندر الشمري | BS11: 7 | BT11: =BS11/BS15 -> 100.00% | BU11: 5 | BV11: 1 | BW11: 1 | BX11: 0 | BY11: =BU11+BV11+BW11+BX11 -> 7 | CC11: 30373715 | CD11: وزارة الصحة | CE11: التنويم | CF11: الطبي | CG11: وحدة العناية المركزة | CH11: 2025-03-10T16:19:00 | CI11: رهف العنزي | CJ11: 48 Hours | CM11: 1443204 | CN11: مراجع | CO11: التنويم | CP11: الطبي | CQ11: وحدة العناية المركزة | CR11: 2025-03-19T13:17:00 | CS11: ابرار الشمري | CT11: More than 72 hours | CV11: 3950 | CW11: 1433204 | CX11: ذوي المراجع | CY11: التنويم | CZ11: الإداري | DA11: قسم الموافقات الطبية | DB11: 2025-03-26T00:44:00 | DC11: رهف العنزي | DD11: 24 Hours
B12: 10 | C12: 3859 | D12: 30363772 | E12: وزارة الصحة | F12: العيادات الخارجية | G12: الطبي | H12: عيادات الطب النفسي | I12: 2025-03-05T22:52:00 | J12: رهف العنزي | K12: MOH | L12: 2025-03-06 | M12: 22:52:00 | N12: 055 231 7170 | O12: 72 Hours | P12: 2025-03-06 | Q12: 01:49:00 | R12: رهف العنزي | S12: 2025-03-06 | T12: 01:49:00 | X12: 2025-03-06 | Y12: 01:49:00 | Z12: رهف العنزي | AA12: 0 | AB12: 2025-03-06 | AC12: 20:28:00 | AD12: رهف العنزي | AE12: 0.7770833333 | AF12: 2025-03-07 | AG12: 01:05:00 | AH12: رهف العنزي | AI12: 0.1923611111 | AM12: -45722.07569 | AQ12: -45722.07569 | AR12: 2025-03-08 | AS12: 10:38:00 | AT12: رهف العنزي | AU12: 2.367361111 | AX12: -45722.07569 | AY12: فهد الدوسري | AZ12: attitude | BA12: اسلوب | BB12: اسلوب الطبيب ورفضه استقبال المريضة | BC12: The doctor's attitude and refusal to accept the patient. | BD12: 2025-03-06 | BE12: 2025-03-07 | BF12: تاخر الطبيب بالرد حتى تم التواصل مع المدير الطبي وتم الرد | BG12: تاخر الطبيب بالرد حتى تم التواصل مع المدير الطبي وتم الرد | BH12: د.فهد الدوسري | BI12: Dissatisfied | BO12: patient | BR12: مها الحنيظل | BS12: 0 | BT12: =BS12/BS15 -> 0.00% | BY12: =BU12+BV12+BW12+BX12 -> 0 | CC12: 30315349 | CD12: وزارة الصحة | CE12: العيادات الخارجية | CF12: التمريض | CG12: تمريض غرفة التطعيمات | CH12: 2025-03-11T01:16:00 | CI12: ابرار الشمري | CJ12: 24 Hours | CM12: 30083860 | CN12: مراجع | CO12: الطوارئ | CP12: الطبي | CQ12: أطباء الطوارئ | CR12: 2025-03-19T21:58:00 | CS12: مرام القحطاني | CT12: 72 Hours | CV12: 3954 | CW12: 1801424 | CX12: ذوي المراجع | CY12: التنويم | CZ12: التمريض | DA12: تمريض تنويم النساء والولادة | DB12: 2025-03-27T23:34:00 | DC12: مها الحنيظل | DD12: More than 72 hours
B13: 11 | C13: 3865 | D13: 30374353 | E13: مراجع | F13: العيادات الخارجية | G13: الطبي | H13: قسم الأشعة | I13: 2025-03-08T23:33:00 | J13: ابرار الشمري | O13: More than 72 hours | P13: 2025-03-08 | Q13: 23:07:00 | R13: ابرار الشمري | S13: 2025-03-08 | T13: 23:33:00 | U13: 2025-03-12 | V13: 01:47:00 | W13: ابرار الشمري | X13: 2025-03-12 | Y13: 01:47:00 | Z13: ابرار الشمري | AA13: 3.093055556 | AR13: 2025-03-16 | AS13: 13:34:00 | AT13: ابرار الشمري | AU13: 4.490972222 | AZ13: misdiagnosis | BA13: خطا في التشخيص | BB13: أطلب استرداد المبلغ الذي دفعته والبالغ 530 ريالًا لاختبارات الدم، وذلك بعد أن أدى خطأ من اختصاصي الأشعة كانول إلى نتائج غير صحيحة بشأن الرحم. في البداية، قيل لي إنه ليس سميكًا، ولكن أشعة الموجات فوق الصوتية اللاحقة مع الدكتورة عزة بشير أظهرت خلاف ذلك. | BC13: I am requesting a refund for the blood tests I paid 530 riyals for, after a mistake by the radiologist Kanol led to incorrect ultrasound results regarding my uterus. Initially, I was told it was not thick, but a follow-up ultrasound with Dr. Azza Bashir indicated otherwise. | BI13: Satisfied | BN13: 0 | BO13: Hospital | BR13: مرام القحطاني | BS13: 0 | BT13: =BS13/BS15 -> 0.00% | BY13: =BU13+BV13+BW13+BX13 -> 0 | CC13: 21155 | CD13: وزارة الصحة | CE13: الطوارئ | CF13: الطبي | CG13: أطباء الطوارئ | CH13: 2025-03-13T20:31:00 | CI13: ابرار الشمري | CJ13: 24 Hours | CM13: 30265630 | CN13: مراجع | CO13: العيادات الخارجية | CP13: الطبي | CQ13: عيادات النساء والولادة | CR13: 2025-03-19T22:34:00 | CS13: مرام القحطاني | CT13: More than 72 hours | CV13: 3954 | CW13: 1801424 | CX13: ذوي المراجع | CY13: العيادات الخارجية | CZ13: الطبي | DA13: عيادات النساء والولادة | DB13: 2025-03-27T11:03:00 | DC13: مها الحنيظل | DD13: More than 72 hours
A14: 2 | B14: 12 | C14: 3868 | D14: 30312842 | E14: مراجع | F14: التنويم | G14: الطبي | H14: قسم الجهاز الهمضي و الكبد والمناظير | I14: 2025-03-10T02:07:00 | J14: رهف العنزي | O14: 72 Hours | P14: 2025-03-09 | Q14: 12:57:00 | R14: رهف العنزي | S14: 2025-03-10 | T14: 02:07:00 | U14: 2025-03-10 | V14: 11:50:00 | W14: رهف العنزي | X14: 2025-03-10 | Y14: 11:51:00 | Z14: رهف العنزي | AA14: 0.4055555556 | AB14: 2025-03-11 | AC14: 21:55:00 | AD14: ابرار الشمري | AE14: =(AC14+AB14)-(Y14+X14) -> 1.419444444 | AI14: =(AG14+AF14)-(AC14+AB14) -> -45727.91319 | AM14: =(AK14+AJ14)-(Y14+X14) -> -45726.49375 | AR14: 2025-03-12 | AS14: 14:40:00 | AT14: رهف العنزي | AU14: 2.117361111 | AX14: =(AW14+AV14)-(Y14+X14) -> -45726.49375 | AY14: طارق الشعراوي | AZ14: malpractice | BA14: فشل عمل منظار بدون تخدير كامل | BB14: فشل عمل منظار تحت التهدئة الواعية | BD14: 2025-03-11 | BE14: 2025-03-11 | BF14: بالبداية اشكالية وصول الشكوى للطبيب عبر النموذج و ثم الغاء موافق ةالمنظار اخذ وقت للتواصل مع الاقسام المختلفة | BG14: بالبداية اشكالية وصول الشكوى للطبيب عبر النموذج و ثم الغاء موافق ةالمنظار اخذ وقت للتواصل مع الاقسام المختلفة | BI14: Satisfied | BJ14: الغاء الموافقة الطبية والاعتذار من المراجع والتوضيح له | BK14: رضا المراجع | BM14: شرح الاجراء بشكل كامل على ورقة من قبل الاطباء وتوقيع المريض عليها مع الحرص على قراءتها ومعرفة التفاصيل وليس فقط بشكل شفهي وذلك لتفادي الاشكالية مستقبلا | BN14: الاطباء / الادارة الطبية | BO14: patient | BR14: رهف علي العنزي | BS14: 0 | BT14: =BS14/BS15 -> 0.00% | BY14: =BU14+BV14+BW14+BX14 -> 0 | CC14: 21155 | CD14: وزارة الصحة | CE14: التنويم | CF14: الإداري | CG14: قسم المالية | CH14: 2025-03-13T20:31:00 | CI14: ابرار الشمري | CJ14: 48 Hours | CM14: 30095002 | CN14: مراجع | CO14: العيادات الخارجية | CP14: الإداري | CQ14: قسم السنترال | CR14: 2025-03-24T02:57:00 | CS14: مها الحنيظل | CT14: 72 Hours
B15: 13 | C15: 3869 | D15: 30097765 | E15: مراجع | F15: العيادات الخارجية | G15: الطبي | H15: عيادات جراحة المسالك البولية | I15: 2025-03-09T22:03:00 | J15: ابرار الشمري | O15: 24 Hours | P15: 2025-03-09 | Q15: 22:03:00 | R15: ابرار الشمري | S15: 2025-03-09 | T15: 22:03:00 | U15: 2025-03-09 | V15: 23:12:00 | W15: ابرار الشمري | X15: 2025-03-09 | Y15: 23:12:00 | Z15: ابرار الشمري | AA15: 0.04791666667 | AE15: -45725.96667 | AI15: 0 | AM15: -45725.96667 | AQ15: =(AO15+AN15)-(Y15+X15) -> -45725.96667 | AR15: 2025-03-10 | AS15: 23:30:00 | AT15: ابرار الشمري | AU15: 1.0125 | AX15: -45725.96667 | AY15: د محمد حسن | AZ15: attitude | BA15: اسلوب الدكتور | BB15: تعامل غير مهني من قبل الطبيب وعدم التجاوب مع المريض | BC15: Unprofessional behavior by the doctor and lack of responsiveness to the patient | BI15: Satisfied | BJ15: تم رصدها كشوى اسلوب والدكتور ينفي الشكوى | BK15: الاعتذار للمريض والتوضيح بانه في حال بلغ عدد الشكاوي عدد معين راح يتم اتخاذ اجراء بالدكتور | BL15: لفت النظر لدكتور | BM15: لفت النظر لدكتور | BO15: patient | BR15: Total | BS15: =BS11+BS12+BS14 -> 7 | BT15: =BT12+BT11+BT14 -> 100.00% | BU15: =SUM(BU11:BU14) -> 5 | BV15: =SUM(BV11:BV14) -> 1 | BW15: =SUM(BW11:BW14) -> 1 | BX15: =SUM(BX11:BX14) -> 0 | BY15: =BY12+BY11+BY14 -> 7 | CC15: 30374025 | CD15: وزارة الصحة | CE15: العيادات الخارجية | CF15: الإداري | CG15: استقبال العيادات الخارجية | CH15: 2025-03-13T20:39:00 | CI15: مها الحنيظل | CJ15: 24 Hours | CM15: 30375839 | CN15: مراجع | CO15: العيادات الخارجية | CP15: الإداري | CQ15: استقبال العيادات الخارجية | CR15: 2025-03-24T23:25:00 | CS15: رهف العنزي | CT15: More than 72 hours | CV15: Employee Name | CW15: Number of complaints | CX15: Total Percentage | CY15: 24 Hours | CZ15: 48 Hours | DA15: 72 Hours | DB15: More than 72 hours | DC15: Total
B16: 14 | C16: 3872 | D16: 1201271 | E16: وزارة الصحة | F16: التنويم | G16: الطبي | H16: وحدة العناية المركزة | I16: 2025-03-09T23:52:00 | J16: ابرار الشمري | K16: MOH | L16: 2025-03-09 | O16: 24 Hours | P16: 2025-03-09 | Q16: 23:52:00 | R16: ابرار الشمري | S16: 2025-03-09 | T16: 23:52:00 | X16: 2025-03-09 | Y16: 23:56:00 | Z16: ابرار الشمري | AA16: 0.00277777778 | AB16: 2025-03-10 | AC16: 21:00:00 | AD16: ابرار الشمري | AE16: 0.8777777778 | AF16: 2025-03-11 | AG16: 21:00:00 | AH16: ابرار الشمري | AI16: 1 | AM16: -45725.99722 | AQ16: =(AO16+AN16)-(Y16+X16) -> -45725.99722 | AR16: 2025-03-12 | AS16: 01:15:00 | AT16: ابرار الشمري | AU16: 2.054861111 | AX16: -45725.99722 | AZ16: Treatment plan issue | BA16: عدم تحسن حالة المريض | BB16: تدهورت الحالة الصحية للمريض بسبب عدم الاهتمام وتقديم الرعاية الطبية اللازمة، مما استدعى نقله إلى العناية المركزة كما لوحظ عدم وجود طبيب مختص بالحالة، بالإضافة إلى عدم توضيح الخطة العلاجية أو شرح الحالة الصحية للمريض | BC16: The patient's health condition deteriorated due to the lack of attention and failure to provide the necessary medical care, which required transferring them to the intensive care unit. Additionally, it was observed that there was no specialist doctor available for the case, and the treatment plan or explanation of the patient's health condition was not provided. | BI16: Dissatisfied | BO16: patient | CC16: 1304398 | CD16: وزارة الصحة | CE16: العيادات الخارجية | CF16: الإداري | CG16: استقبال العيادات الخارجية | CH16: 2025-03-17T16:16:00 | CI16: ابرار الشمري | CJ16: 24 Hours | CV16: ابرار بندر الشمري | CW16: 3 | CX16: =CW16/CW20 -> 25.00% | CY16: 0 | CZ16: 1 | DA16: 1 | DB16: 1 | DC16: =CY16+CZ16+DA16+DB16 -> 3
B17: 15 | C17: 3873 | D17: 30275455 | E17: وزارة الصحة | F17: التنويم | G17: الإداري | H17: قسم المالية | I17: 2025-03-10T00:19:00 | J17: مها الحنيظل | K17: MOH | L17: 2025-03-09 | M17: 11:22:00 | N17: 050 152 7200 | O17: 24 Hours | P17: 2025-03-10 | Q17: 00:19:00 | R17: مها الحنيظل | S17: 2025-03-10 | T17: 00:19:00 | X17: 2025-03-10 | Y17: 00:34:00 | Z17: مها الحنيظل | AA17: 0.01041666666 | AB17: 2025-03-10 | AC17: 10:40:00 | AD17: رهف العنزي | AE17: 0.4208333333 | AI17: -45726.44444 | AM17: -45726.02361 | AQ17: =(AO17+AN17)-(Y17+X17) -> -45726.02361 | AR17: 2025-03-10 | AS17: 12:09:00 | AT17: رهف العنزي | AU17: 0.4826388889 | AX17: -45726.02361 | AZ17: financial claim | BA17: المريضه تفيد بأنه تفاجأت بخصم رسوم إضافية دون وجود اي تكاليف فعليه . | BB17: المريض يفيد انه تم خصم رسوم اضافية دون تكاليف فعليه | BC17: The patient claims that additional charges were deducted without any actual costs. | BI17: Dissatisfied | BJ17: الافادة من القسم بتفاصيل الفاتوره | BK17: معاودة التواصل مع المراجع والتوضيح له . | BL17: التوضيح للمريض بتفاصيل الموافقه او الرفض الي تم الحصول عليه من قبل شركة التأمين | BM17: اعطاء تفاصيل اكثر وضوح للمريض على موافقات شركة التأمين او انتهائها . | BN17: قسم المالية | BO17: Hospital | BR17: CCHI | BS17: 7 | BT17: =BS17/B63 -> 14.00% | CC17: 30367917 | CD17: وزارة الصحة | CE17: التنويم | CF17: الإداري | CG17: قسم المالية | CH17: 2025-03-22T11:07:00 | CI17: رهف العنزي | CJ17: 24 Hours | CL17: Employee Name | CM17: Number of complaints | CN17: Total Percentage | CO17: 24 Hours | CP17: 48 Hours | CQ17: 72 Hours | CR17: More than 72 hours | CS17: Total | CV17: مها الحنيظل | CW17: 3 | CX17: =CW17/CW20 -> 25.00% | CY17: 0 | CZ17: 0 | DA17: 0 | DB17: 3 | DC17: =CY17+CZ17+DA17+DB17 -> 3
B18: 16 | C18: 3874 | D18: 30368428 | E18: وزارة الصحة | F18: العيادات الخارجية | G18: الإداري | H18: قسم الموافقات الطبية | I18: 2025-03-10T00:53:00 | J18: ابرار الشمري | K18: MOH | L18: 2025-03-09 | M18: 8:55PM | N18: +966 55 583 8252 | O18: 24 Hours | P18: 2025-03-10 | Q18: 00:53:00 | R18: ابرار الشمري | S18: 2025-03-10 | T18: 00:53:00 | X18: 2025-03-10 | Y18: 01:00:00 | Z18: ابرار الشمري | AA18: 0.004861111105 | AE18: -45726.04167 | AI18: 0 | AM18: -45726.04167 | AQ18: =(AO18+AN18)-(Y18+X18) -> -45726.04167 | AR18: 2025-03-10 | AS18: 21:28:00 | AT18: ابرار الشمري | AU18: 0.8527777778 | AX18: -45726.04167 | AZ18: approval issue | BA18: رفض الموافقه | BB18: تم طلب موافقه ( وزارة الصحة ) منذ عدة ايام ولم تتم الافادة ليتسنى استكمال الاجراء (ازالة غرز ) | BC18: Approval from the Ministry of Health was requested several days ago, but no response has been provided, preventing the completion of the procedure (removal of stitches). | BI18: Dissatisfied | BJ18: التحقق من النظام | BK18: الرفض من قبل شركة التامين قلوب مد رغم ارفاق جميع التقارير اللازمة | BL18: التوضيح للمراجع والتعاون معه | BM18: التوضيح للمراجع والتعاون معه | BO18: Hospital | CC18: 1586410 | CD18: وزارة الصحة | CE18: العيادات الخارجية | CF18: الإداري | CG18: قسم التقارير الطبية | CH18: 2025-03-25T15:44:00 | CI18: ابرار الشمري | CJ18: 24 Hours | CL18: ابرار بندر الشمري | CM18: 3 | CN18: =CM18/CM22 -> 21.43% | CO18: 1 | CP18: 0 | CQ18: 0 | CR18: 2 | CS18: =CO18+CP18+CQ18+CR18 -> 3 | CV18: مرام القحطاني | CW18: 0 | CX18: =CW18/CW20 -> 0.00% | CY18: 0 | CZ18: 0 | DA18: 0 | DB18: 0 | DC18: =CY18+CZ18+DA18+DB18 -> 0
B19: 17 | C19: 3875 | D19: 30133777 | E19: وزارة الصحة | F19: العيادات الخارجية | G19: الطبي | H19: عيادات الباطنية | I19: 2025-03-09T01:18:00 | J19: رهف العنزي | K19: MOH | L19: 2025-03-09 | M19: 13:18:00 | N19: 050 152 7200 | O19: 24 Hours | P19: 2025-03-10 | Q19: 10:58:00 | R19: رهف العنزي | S19: 2025-03-10 | T19: 10:58:00 | X19: 2025-03-10 | Y19: 10:58:00 | Z19: رهف العنزي | AA19: 0 | AE19: -45726.45694 | AI19: 0 | AM19: -45726.45694 | AQ19: =(AO19+AN19)-(Y19+X19) -> -45726.45694 | AR19: 2025-03-10 | AS19: 12:16:00 | AT19: رهف العنزي | AU19: 0.05416666667 | AX19: -45726.45694 | AY19: رانيا احمد | AZ19: medical reports | BA19: وصفة دواء | BB19: عدم اضافة دواء الى منصة رقيب | BC19: doctor didnt add the medication to the Raqib platform. | BI19: Satisfied | BO19: Hospital | BR19: 24 Hours | BS19: 48 Hours | BT19: 72 Hours | BU19: More than 72 hours | CL19: مها الحنيظل | CM19: 2 | CN19: =CM19/CM22 -> 14.29% | CO19: 1 | CP19: 0 | CQ19: 1 | CR19: 0 | CS19: =CO19+CP19+CQ19+CR19 -> 2 | CV19: رهف علي العنزي | CW19: 6 | CX19: =CW19/CW22 -> 50.00% | CY19: 1 | CZ19: 2 | DA19: 3 | DB19: 0 | DC19: =CY19+CZ19+DA19+DB19 -> 6
B20: 18 | C20: 3876 | D20: 30358659 | E20: مراجع | F20: التنويم | G20: الطبي | H20: قسم الحضانة | I20: 2025-03-10T13:21:00 | J20: رهف العنزي | O20: More than 72 hours | P20: 2025-03-10 | Q20: 13:14:00 | R20: رهف العنزي | S20: 2025-03-10 | T20: 13:21:00 | U20: 2025-03-13 | V20: 12:53:00 | W20: رهف العنزي | X20: 2025-03-13 | Y20: 12:54:00 | Z20: رهف العنزي | AA20: 2.98125 | AB20: 2025-03-15 | AC20: 12:03:00 | AD20: ابرار الشمري | AE20: 1.964583333 | AF20: 2025-03-16 | AG20: 20:11:00 | AH20: رهف العنزي | AI20: 1.338888889 | AJ20: 2025-03-17 | AK20: 10:59:00 | AL20: ابرار الشمري | AM20: 3.920138889 | AR20: 2025-03-20 | AS20: 00:56:00 | AT20: رهف العنزي | AU20: 6.501388889 | AX20: -45729.5375 | AY20: د.نهى | AZ20: attitude | BA20: اقفال الطبيبة المكالمة بوجه المراجع | BB20: يشتكي من اسلوب الطبيبة واقفالها المكالمه ورفضها افادته | BC20: He complains about the doctor's attitude, her ending the call, and her refusal to assist him. | BE20: 2025-03-15 | BF20: تاخر الطبيبة بالاطلاع على الشكوى بعد التواصل معها اتصال تم الرد | BG20: تاخير الطبيبة + حاجة االقسم بالعودة للمكالمة ولكن لم تكن موجودة وقسم تقنية المعلومات لم يكن متواجد الموظف | BH20: د.نهى - قسم تقنية المعلومات | BI20: Dissatisfied | BO20: patient | BR20: 5 | BS20: 1 | BT20: 1 | BU20: 0 | CB20: Employee Name | CC20: Number of complaints | CD20: Total Percentage | CE20: 24 Hours | CF20: 48 Hours | CG20: 72 Hours | CH20: More than 72 hours | CI20: Total | CL20: مرام القحطاني | CM20: 2 | CN20: =CM20/CM22 -> 14.29% | CO20: 0 | CP20: 0 | CQ20: 1 | CR20: 1 | CS20: =CO20+CP20+CQ20+CR20 -> 2 | CV20: Total | CW20: =CW16+CW17+CW18+CW19 -> 12 | CX20: =CX17+CX16+CX18+CX19 -> 100.00% | CY20: =SUM(CY16:CY19) -> 1 | CZ20: =SUM(CZ16:CZ19) -> 3 | DA20: =SUM(DA16:DA19) -> 4 | DB20: =SUM(DB16:DB19) -> 4 | DC20: =DC17+DC16+DC18+DC19 -> 12
B21: 19 | C21: 3877 | D21: 30373715 | E21: وزارة الصحة | F21: التنويم | G21: الطبي | H21: وحدة العناية المركزة | I21: 2025-03-10T16:19:00 | J21: رهف العنزي | K21: MOH | L21: 2025-03-10 | M21: 14:59:00 | N21: صالح العبدان | O21: 48 Hours | P21: 2025-03-10 | Q21: 16:19:00 | R21: رهف العنزي | S21: 2025-03-10 | T21: 16:19:00 | W21: رهف العنزي | X21: 2025-03-10 | Y21: 16:59:00 | Z21: رهف العنزي | AA21: 0.02777777778 | AE21: -45726.70764 | AI21: 0 | AM21: -45726.70764 | AQ21: =(AO21+AN21)-(Y21+X21) -> -45726.70764 | AR21: 2025-03-11 | AS21: 22:03:00 | AT21: رهف العنزي | AU21: 1.211111111 | AX21: -45726.70764 | AZ21: approval issue | BA21: التاخير بعمل اجراء | BB21: يشتكي ذوي المريضة من تاخير رفع طلب منظار وان هذا الاجراء عاجل ولكن تم تاخيره | BC21: The patient's family is complaining about the delay in submitting the endoscopy request, stating that the procedure is urgent but has been delayed. | BI21: Satisfied | BO21: patient | BR21: =BR20/BS17 -> 71.43% | BS21: =BS20/BS17 -> 14.29% | BT21: =BT20/BS17 -> 14.29% | BU21: =BU20/BS17 -> 0.00% | CB21: ابرار بندر الشمري | CC21: 8 | CD21: =CC21/CC25 -> 47.06% | CE21: 7 | CF21: 1 | CG21: 0 | CH21: 0 | CI21: =CE21+CF21+CG21+CH21 -> 8 | CL21: رهف علي العنزي | CM21: 7 | CN21: =CM21/CM22 -> 50.00% | CO21: 1 | CP21: 2 | CQ21: 1 | CR21: 3 | CS21: =CO21+CP21+CQ21+CR21 -> 7
B22: 20 | C22: 3879 | D22: 30315349 | E22: وزارة الصحة | F22: العيادات الخارجية | G22: التمريض | H22: تمريض غرفة التطعيمات | I22: 2025-03-11T01:16:00 | J22: ابرار الشمري | O22: 24 Hours | P22: 2025-03-11 | Q22: 01:16:00 | R22: ابرار الشمري | S22: 2025-03-11 | T22: 01:16:00 | X22: 2025-03-11 | Y22: 01:26:00 | Z22: ابرار الشمري | AA22: 0.006944444445 | AR22: 2025-03-11 | AS22: 01:27:00 | AT22: ابرار الشمري | AU22: 0.0006944444467 | AV22: 2025-03-11 | AW22: 01:35:00 | AX22: 0.006249999999 | AZ22: medical reports | BA22: عدم رفع الاجازة بمنصة صحتي | BB22: عدم رفع الاجازة بمنصة صحتي | BC22: do not upload sickleave on sehaty | BI22: Satisfied | BO22: Hospital | CB22: مها الحنيظل | CC22: 3 | CD22: =CC22/CC25 -> 17.65% | CE22: 3 | CF22: 0 | CG22: 0 | CH22: 0 | CI22: =CE22+CF22+CG22+CH22 -> 3 | CL22: Total | CM22: =CM18+CM19+CM20+CM21 -> 14 | CN22: =CN19+CN18+CN20+CN21 -> 100.00% | CO22: =SUM(CO18:CO21) -> 3 | CP22: =SUM(CP18:CP21) -> 2 | CQ22: =SUM(CQ18:CQ21) -> 3 | CR22: =SUM(CR18:CR21) -> 6 | CS22: =CS19+CS18+CS20+CS21 -> 14 | CV22: Patient' Relatives | CW22: 12 | CX22: =CW22/B63 -> 24.00%
B23: 21 | C23: 3884 | D23: 977076 | E23: مراجع | F23: العيادات الخارجية | G23: التمريض | H23: تمريض العيادات الخارجية | I23: 2025-03-12T16:53:00 | J23: رهف العنزي | O23: More than 72 hours | P23: 2025-03-12 | Q23: 16:20:00 | R23: رهف العنزي | S23: 2025-03-12 | T23: 16:53:00 | U23: 2025-03-13 | V23: 12:45:00 | W23: رهف العنزي | X23: 2025-03-13 | Y23: 12:45:00 | Z23: رهف العنزي | AA23: 0.8277777778 | AB23: 2025-03-15 | AC23: 12:02:00 | AD23: ابرار الشمري | AE23: =(AC23+AB23)-(Y23+X23) -> 1.970138889 | AF23: 2025-03-16 | AG23: 14:03:00 | AH23: مها الحنيظل | AI23: =(AG23+AF23)-(AC23+AB23) -> 1.084027778 | AJ23: 2025-03-17 | AK23: 10:59:00 | AL23: ابرار الشمري | AM23: =(AK23+AJ23)-(Y23+X23) -> 3.926388889 | AQ23: =(AO23+AN23)-(Y23+X23) -> -45729.53125 | AR23: 2025-03-18 | AS23: 21:46:00 | AT23: رهف العنزي | AU23: 5.375694444 | AX23: -45729.53125 | AY23: Cynthia | AZ23: negligence | BA23: المغادرة قبل عمل الاجراء | BB23: يشتكي المراجع من تاخير الموظفة بعمل الاجراء له بتوجيهه لموظفة اخرى ومغادرتها | BC23: The patient is complaining about the delay caused by the employee, who directed him to another employee and then left. | BE23: 2025-03-15 | BF23: تبين خلل بتوجيه الشكوى + عدم رد احد على الايميل لاعادة تويجهه بشكل صحيح | BG23: عدم رد الموظفة الا بعد 4 ايام | BH23: الموظفة - ادارة التخطيط ( د. عبدالرحمن العنزي) | BI23: Satisfied | BO23: patient | BR23: In-Patient | BS23: 3 | BT23: =BS23/BS26 -> 42.86% | CB23: مرام القحطاني | CC23: 0 | CD23: =CC23/CC25 -> 0.00% | CE23: 0 | CF23: 0 | CG23: 0 | CH23: 0 | CI23: =CE23+CF23+CG23+CH23 -> 0
B24: 22 | C24: 3895 | D24: 21155 | E24: وزارة الصحة | F24: الطوارئ | G24: الطبي | H24: أطباء الطوارئ | I24: 2025-03-13T20:31:00 | J24: ابرار الشمري | O24: 24 Hours | P24: 2025-03-13 | Q24: 20:31:00 | R24: ابرار الشمري | S24: 2025-03-13 | T24: 20:31:00 | X24: 2025-03-13 | Y24: 20:34:00 | Z24: ابرار الشمري | AA24: 0.002083333333 | AE24: =(AC24+AB24)-(Y24+X24) -> -45729.85694 | AR24: 2025-03-13 | AS24: 22:26:00 | AT24: ابرار الشمري | AU24: 0.07777777778 | AX24: -45729.85694 | AZ24: approval issue + misdiagnosis | BA24: رفض شراء الخدمة و عدم التشخيص الصحيح | BB24: رفض طلب شراء الخدمة ولم يتم تشخيص الحالة بشكل واضح من قبل الطبيب | BC24: Request for service purchase was denied, and the condition was not clearly diagnosed by the doctor. | BI24: Dissatisfied | BO24: patient | BR24: Out-Patient | BS24: 3 | BT24: =BS24/BS26 -> 42.86% | CB24: رهف علي العنزي | CC24: 6 | CD24: =CC24/CC25 -> 35.29% | CE24: 4 | CF24: 1 | CG24: 1 | CH24: 0 | CI24: =CE24+CF24+CG24+CH24 -> 6 | CL24: Patient | CM24: 14 | CN24: =CM24/B63 -> 28.00% | CV24: 24 Hours | CW24: 48 Hours | CX24: 72 Hours | CY24: More than 72 hours
B25: 23 | C25: 3895 | D25: 21155 | E25: وزارة الصحة | F25: التنويم | G25: الإداري | H25: قسم المالية | I25: 2025-03-13T20:31:00 | J25: ابرار الشمري | O25: 48 Hours | P25: 2025-03-13 | Q25: 20:31:00 | R25: ابرار الشمري | S25: 2025-03-13 | T25: 20:31:00 | X25: 2025-03-13 | Y25: 20:34:00 | Z25: ابرار الشمري | AA25: 0.002083333333 | AB25: 2025-03-13 | AC25: 22:37:00 | AD25: ابرار الشمري | AE25: 0.08541666667 | AR25: 2025-03-15 | AS25: 12:02:00 | AT25: ابرار الشمري | AU25: 1.644444444 | AV25: 2025-03-17 | AW25: 20:47:00 | AX25: 4.009027778 | AZ25: financial claim | BA25: المطالبة بمالغ مالية | BB25: المطالبھ بمبالغ ماليھ من قبل المستشفى دون التوضيح لتغطيھ من قبل ادارة المطالبات ( قلوب ميد ) | BC25: Demands for financial amounts from the hospital without clarification for coverage by the claims management (Qolob Med) | BI25: Dissatisfied | BN25: 0 | BO25: Hospital | BR25: ER | BS25: 1 | BT25: =BS25/BS26 -> 14.29% | CB25: Total | CC25: =CC21+CC22+CC23+CC24 -> 17 | CD25: =CD22+CD21+CD24 -> 100.00% | CE25: =SUM(CE21:CE24) -> 14 | CF25: =SUM(CF21:CF24) -> 2 | CG25: =SUM(CG21:CG24) -> 1 | CH25: =SUM(CH21:CH24) -> 0 | CI25: =CI22+CI21+CI24 -> 17 | CV25: 1 | CW25: 3 | CX25: 4 | CY25: 4
B26: 24 | C26: 3896 | D26: 30374025 | E26: وزارة الصحة | F26: العيادات الخارجية | G26: الإداري | H26: استقبال العيادات الخارجية | I26: 2025-03-13T20:39:00 | J26: مها الحنيظل | K26: MOH | L26: 2025-03-13 | M26: 20:39:00 | N26: 0 50 627 8786 | O26: 24 Hours | P26: 2025-03-13 | Q26: 20:39:00 | R26: مها الحنيظل | S26: 2025-03-13 | T26: 20:39:00 | X26: 2025-03-13 | Y26: 21:12:00 | Z26: مها الحنيظل | AA26: 0.02291666666 | AE26: -45729.88333 | AI26: =(AG26+AF26)-(AC26+AB26) -> 0 | AM26: =(AK26+AJ26)-(Y26+X26) -> -45729.88333 | AQ26: =(AO26+AN26)-(Y26+X26) -> -45729.88333 | AR26: 2025-03-13 | AS26: 23:42:00 | AT26: ابرار الشمري | AU26: 0.1041666667 | AX26: =(AW26+AV26)-(Y26+X26) -> -45729.88333 | AZ26: medical reports | BA26: المراجع يفيد بأنه تم رفض إصدار اجازه من قبل المستشفى بسبب ان الطبيب زائر | BB26: تم رفض إصدار الإجازة من قبل المستشفى لأن الطبيب زائر. | BC26: The leave was denied by the hospital because the doctor is a part time. | BI26: Dissatisfied | BJ26: تم التوضيح من قبل المستشفى عن التعميم المتبع وبناءً على ذلك، لا يتم رفع الإجازات المرضية على منصة المراجعين من قبل المراكز الخارجية. | BK26: لايمكن اعطاء اجازه من قبل المستشفى | BL26: التوضيح للمريض عن سياسة الإجازات لكل طبيب | BM26: التأكد من فهم المراكز الخارجية لآلية رفع الإجازات المرضية وتوضيح الإجراءات المتبعة لضمان رفع الإجازات بشكل صحيح. | BN26: الاطباء / الادارة الطبية | BO26: Hospital | BR26: Total | BS26: =BS23+BS24+BS25 -> 7 | BT26: =BT25+BT24+BT23 -> 100.00% | CL26: 24 Hours | CM26: 48 Hours | CN26: 72 Hours | CO26: More than 72 hours | CV26: =CV25/CW22 -> 8.33% | CW26: =CW25/CW22 -> 25.00% | CX26: =CX25/CW22 -> 33.33% | CY26: =CY25/CW22 -> 33.33%
B27: 25 | C27: 3900 | D27: 30374914 | E27: مراجع | F27: العيادات الخارجية | G27: الطبي | H27: عيادات الباطنية | I27: 2025-03-15T19:31:00 | J27: مها الحنيظل | O27: 24 Hours | P27: 2025-03-15 | Q27: 13:31:00 | R27: مها الحنيظل | S27: 2025-03-15 | T27: 19:31:00 | U27: 2025-03-16 | V27: 13:48:00 | W27: مها الحنيظل | X27: 2025-03-16 | Y27: 13:49:00 | Z27: مها الحنيظل | AA27: 0.7625 | AE27: -45732.57569 | AI27: 0 | AM27: =(AK27+AJ27)-(Y27+X27) -> -45732.57569 | AQ27: =(AO27+AN27)-(Y27+X27) -> -45732.57569 | AR27: 2025-03-17 | AS27: 11:59:00 | AT27: مها الحنيظل | AU27: 0.9236111111 | AX27: =(AW27+AV27)-(Y27+X27) -> -45732.57569 | AY27: د.يوسف النمراوي | AZ27: attitude | BA27: عدم مهنية الطبيب | BB27: المراجعة تقدمت بشكوى ضد الطبيب لعدم اهتمامه بحالتها الصحية وتوجيهه لها لرؤية طبيب نفسي، مع تلفظه بألفاظ مسيئة، مما سبب لها الإهانة. | BC27: The patient filed a complaint against the doctor for not paying attention to her health condition, referring her to a psychiatrist, and using offensive language, which caused her humiliation. | BI27: Dissatisfied | BN27: 0 | BO27: patient | BR27: Medical | BS27: 0 | BT27: =BS27/BS31 -> 0.00% | CB27: MOH | CC27: 17 | CD27: =CC27/B63 -> 34.00% | CL27: 3 | CM27: 2 | CN27: 3 | CO27: 6
A28: 3 | B28: 26 | C28: 3904 | D28: 30328166 | E28: مراجع | F28: العيادات الخارجية | G28: الإداري | H28: قسم الموافقات الطبية | I28: 2025-03-16T01:49:00 | J28: رهف العنزي | O28: 24 Hours | P28: 2025-03-16 | Q28: 01:37:00 | R28: رهف العنزي | S28: 2025-03-16 | T28: 01:49:00 | U28: 2025-03-17 | V28: 21:13:00 | W28: رهف العنزي | X28: 2025-03-17 | Y28: 21:14:00 | Z28: رهف العنزي | AA28: 1.809027778 | AB28: 2025-03-18 | AC28: 11:29:00 | AD28: ابرار الشمري | AE28: 0.59375 | AI28: -45734.47847 | AM28: =(AK28+AJ28)-(Y28+X28) -> -45733.88472 | AQ28: =(AO28+AN28)-(Y28+X28) -> -45733.88472 | AR28: 2025-03-18 | AS28: 20:32:00 | AT28: رهف العنزي | AU28: 0.9708333333 | AX28: =(AW28+AV28)-(Y28+X28) -> -45733.88472 | AZ28: insurance claims | BA28: سحب قيمة فحوصات من حد النساء والولادة | BB28: يشتكي زوج المراجعة من سحب قيمة فحوصات مختبرية من حد النساء والولادة ويطلب استعادة الحد | BC28: The patient's husband is complaining about the deduction of the cost of laboratory tests from the women's and obstetrics limit and is requesting the reimbursement of this amount. | BE28: 2025-03-18 | BI28: Dissatisfied | BO28: Hospital | BR28: Admin | BS28: 7 | BT28: =BS28/BS31 -> 100.00% | CL28: =CL27/CM24 -> 21.43% | CM28: =CM27/CM24 -> 14.29% | CN28: =CN27/CM24 -> 21.43% | CO28: =CO27/CM24 -> 42.86% | CV28: In-Patient | CW28: 5 | CX28: =CW28/CW31 -> 41.67%
B29: 27 | C29: 3905 | D29: 1443204 | E29: ذوي المراجع | F29: التنويم | G29: الطبي | H29: وحدة العناية المركزة | I29: 2025-03-16T13:40:00 | J29: ابرار الشمري | O29: 72 Hours | P29: 2025-03-16 | Q29: 13:40:00 | R29: ابرار الشمري | S29: 2025-03-16 | T29: 13:40:00 | U29: 2025-03-16 | V29: 14:25:00 | W29: ابرار الشمري | X29: 2025-03-16 | Y29: 14:25:00 | Z29: ابرار الشمري | AA29: 0.03125 | AB29: 2025-03-17 | AC29: 11:04:00 | AD29: ابرار الشمري | AE29: 0.8604166667 | AF29: 2025-03-18 | AG29: 11:15:00 | AH29: مها الحنيظل | AI29: 1.007638889 | AR29: 2025-03-19 | AS29: 13:16:00 | AT29: ابرار الشمري | AU29: 2.952083333 | AZ29: malpractice | BA29: عدم مهنية الطبيب | BB29: دخلت والدتي الطوارئ بتاريخ 30 يناير 2025م وكانت واعية، درجة حرارتها أقل من 37، مستوى أكسجين 89% بدون قناع ومع القناع وصل إلى 98%، ومعدل ثاني أكسيد الكربون في الدم ضمن الحدود المقبولة 48. وتم الكشف عليها من قبل استشاري الأمراض الصدرية وأُجريت أشعة مقطعية، وعلاج تلوث، واستخدام دواء Tazocin وإزالة البلغم من فمها. وذلك موثق في التقرير الصادر عن المستشفى أثناء الدخول. لكن الوضع تدهور، حيث احتاجت في العناية المركزة إلى شق حنجري واستخدام جهاز التنفس الصناعي، وكانت يديها متورمتين وتجمع السوائل استدعى تدخلًا جراحيًا مرتين لتصريف السوائل، ومرة أخرى لاستئصال الأنسجة المتضررة من التورم. | BI29: Satisfied | BO29: Hospital | BR29: Nursing | BS29: 0 | BT29: =BS29/BS31 -> 0.00% | CB29: 24 Hours | CC29: 48 Hours | CD29: 72 Hours | CE29: More than 72 hours | CV29: Out-Patient | CW29: 4 | CX29: =CW29/CW31 -> 33.33%
B30: 28 | C30: 3905 | D30: 1443204 | E30: ذوي المراجع | F30: الطوارئ | G30: الطبي | H30: أطباء الطوارئ | I30: 2025-03-16T13:59:00 | J30: ابرار الشمري | O30: 48 Hours | P30: 2025-03-16 | Q30: 13:40:00 | R30: ابرار الشمري | S30: 2025-03-16 | T30: 13:59:00 | U30: 2025-03-16 | V30: 14:25:00 | W30: ابرار الشمري | X30: 2025-03-16 | Y30: 14:26:00 | Z30: ابرار الشمري | AA30: 0.01875 | AE30: -45732.60139 | AI30: 0 | AM30: =(AK30+AJ30)-(Y30+X30) -> -45732.60139 | AQ30: =(AO30+AN30)-(Y30+X30) -> -45732.60139 | AR30: 2025-03-18 | AS30: 11:25:00 | AT30: ابرار الشمري | AU30: 1.874305556 | AX30: =(AW30+AV30)-(Y30+X30) -> -45732.60139 | AZ30: misdiagnosis | BA30: اعتراض على التشخيص | BB30: دخلت الوالدة للطوارىء بتاريخ 30 يناير 2025م وهي واعية، درجة حرارة أقل من ،37 مستوى أوكسجين 89% بدون قناع ومع القناع وصل ،98% ومعدل ثاني أوكسيد الكربون في الدم ضمن الحدود المقبولة .48 وتم الكشف عليها من قبل استشاري الصدرية وأوصى بعمل أشعة مقطعية, Tazocin , Septic workup وإزالة البلغم من فمها. وذلك موثق في التقرير الصادر عن المستشفى أثناء الدخول. لكن الوضع الحالي: مازالت من وقته في العناية المركزة شق حنجري على جهاز التنفس الصناعي يدين متورمة وتجمع للسوائل استدعى تدخل جراحي مرتين لسحب السوائل، ومره ثانية لاستئصال الأنسجة المتضررة من التورم | BC30: The patient was admitted to the emergency department on January 30, 2025, fully conscious, with a temperature below 37°C. Her oxygen saturation was 89% without a mask, and it increased to 98% with the mask. Her carbon dioxide level in the blood was within acceptable limits at 48. She was examined by a pulmonology consultant who recommended a CT scan, Tazocin, septic workup, and removal of sputum from her mouth. This was documented in the hospital report upon admission. However, her current condition: she has been in the intensive care unit since then, with a tracheostomy and is on a ventilator. Her arms are swollen, and there is fluid accumulation that required surgical intervention twice: once to drain the fluids and another time to remove damaged tissue due to the swelling. | BI30: Satisfied | BJ30: تم الشرح والتوضيح له | BK30: تم حضور المراجع لقسم علاقات مرضى وافادته بالرد | BL30: وضوح الاطباء مع ذوي المريض | BM30: وضوح الاطباء مع ذوي المريض | BO30: Hospital | BR30: Support Services | BS30: 0 | BT30: =BS30/BS31 -> 0.00% | CB30: 14 | CC30: 2 | CD30: 1 | CE30: 0 | CL30: In-Patient | CM30: 4 | CN30: =CM30/CM33 -> 28.57% | CV30: ER | CW30: 3 | CX30: =CW30/CW31 -> 25.00%
B31: 29 | C31: 3907 | D31: 30372574 | E31: مراجع | F31: التنويم | G31: الطبي | H31: قسم التخدير | I31: 2025-03-17T00:21:00 | J31: رهف العنزي | O31: 48 Hours | P31: 2025-03-17 | Q31: 00:09:00 | R31: رهف العنزي | S31: 2025-03-17 | T31: 00:21:00 | U31: 2025-03-17 | V31: 23:36:00 | W31: رهف العنزي | X31: 2025-03-17 | Y31: 23:45:00 | Z31: رهف العنزي | AA31: 0.975 | AB31: 2025-03-18 | AC31: 11:25:00 | AD31: ابرار الشمري | AE31: 0.4861111111 | AI31: -45734.47569 | AM31: -45733.98958 | AQ31: -45733.98958 | AR31: 2025-03-19 | AS31: 01:38:00 | AT31: رهف العنزي | AU31: 1.078472222 | AX31: -45733.98958 | AY31: Dr. Doaa Nabawy Abdelmonsef | AZ31: miscommunicatoin | BA31: عدم شرح التخدير وعمله اكثر من مرة | BB31: يشتكي المريض من عدم شرح ان التخدير النصفي في الظهر وانه تم حقن الابرة في ظهره مرتين مما سبب له الم | BC31: The patient is complaining about not being informed that the spinal anesthesia would be administered in his back, and that the needle was injected into his back twice, which caused him pain. | BE31: 2025-03-18 | BI31: Satisfied | BO31: patient | BR31: Total | BS31: =BS27+BS28+BS29+BS30 -> 7 | BT31: =BT30+BT29+BT28+BT27 -> 100.00% | CB31: =CB30/CC27 -> 82.35% | CC31: =CC30/CC27 -> 11.76% | CD31: =CD30/CC27 -> 5.88% | CE31: =CE30/CC27 -> 0.00% | CL31: Out-Patient | CM31: 9 | CN31: =CM31/CM33 -> 64.29% | CV31: Total | CW31: =CW28+CW29+CW30 -> 12 | CX31: =CX30+CX29+CX28 -> 100.00%
B32: 30 | C32: 3909 | D32: 30362694 | E32: مجلس الضمان الصحي | F32: العيادات الخارجية | G32: الإداري | H32: استقبال العيادات الخارجية | I32: 2025-03-17T15:26:00 | J32: ابرار الشمري | K32: CHI | O32: 24 Hours | P32: 2025-03-17 | Q32: 15:26:00 | R32: ابرار الشمري | S32: 2025-03-17 | T32: 15:26:00 | U32: 2025-03-17 | V32: 15:33:00 | W32: ابرار الشمري | X32: 2025-03-17 | Y32: 15:33:00 | Z32: ابرار الشمري | AA32: 0.004861111112 | AE32: -45733.64792 | AI32: 0 | AM32: -45733.64792 | AQ32: -45733.64792 | AR32: 2025-03-18 | AS32: 11:26:00 | AT32: ابرار الشمري | AU32: 0.8284722222 | AX32: -45733.64792 | AZ32: financial claim | BA32: عدم الاستفادة من المتابعه | BB32: دفع رسوم في فترة المراجعة والتي مدتها 14 يوما علما انه لم يمر على الزيارة بعد الدفع للكشف الأول الا 11 يوما | BC32: The payment was made during the review period, which lasts for 14 days, noting that only 11 days had passed since the initial consultation when the payment was made. | BI32: Satisfied | BJ32: التحقق من النظام واتضح بانها تمت الاستفادة من موعد المتابعه من قبل المريض خلال ال 14 يوم | BK32: التوضيح للمراجع | BO32: Hospital | CL32: ER | CM32: 1 | CN32: =CM32/CM33 -> 7.14% | CV32: Medical | CW32: 7 | CX32: =CW32/CW36 -> 58.33%
B33: 31 | C33: 3910 | D33: 1395972 | E33: مجلس الضمان الصحي | F33: التنويم | G33: الإداري | H33: قسم المالية | I33: 2025-03-17T15:33:00 | J33: ابرار الشمري | K33: CHI | O33: 24 Hours | P33: 2025-03-17 | Q33: 15:33:00 | R33: ابرار الشمري | S33: 2025-03-17 | T33: 15:33:00 | U33: 2025-03-17 | V33: 15:33:00 | W33: ابرار الشمري | X33: 2025-03-17 | Y33: 15:38:00 | Z33: ابرار الشمري | AA33: 0.003472222219 | AE33: -45733.65139 | AI33: 0 | AM33: -45733.65139 | AQ33: -45733.65139 | AR33: 2025-03-18 | AS33: 11:28:00 | AT33: ابرار الشمري | AU33: 0.8263888889 | AX33: -45733.65139 | AZ33: financial claim | BA33: مطالبة مالية | BB33: يطالبني المستشفى بمبلغ عالي التكلفة لعدد من الايام في العناية المركزة ب سبب رفض شركة التأمين دفع هذا المبلغ بحجة ان المريض لا يحتاج إلى تنويم، بخلاف ما ذكره أطباء العناية المركزة بأنه يجب تنويم المريض لعدم استقرار الوضع الطبي لحالته مع التركيز على وضعه بشكل دقيق جدا. | BC33: The hospital is demanding a high-cost amount for several days in the intensive care unit due to the insurance company's refusal to pay this amount, claiming that the patient did not require hospitalization. This is contrary to what the ICU doctors stated, who emphasized that the patient needed to be admitted for observation due to the instability of their medical condition, requiring very careful monitoring. | BI33: Dissatisfied | BJ33: التحقق من النظام واتضح رفض شركة التامين على الموافقه رغم ارفاق جميع التقاير اللازمة للحاله | BK33: التوضيح للمراجع | BL33: التوضيح للمراجع بشكل واضح ومفهوم من قبل قسم التحصيل في حال وجود مثل هذي الاشكاليات ( مطالبات مالية ) بسبب رفض التامين | BM33: التوضيح للمراجع بشكل واضح ومفهوم من قبل قسم التحصيل في حال وجود مثل هذي الاشكاليات ( مطالبات مالية ) بسبب رفض التامين | BO33: Hospital | CB33: In-Patient | CC33: 7 | CD33: =CC33/CC36 -> 41.18% | CL33: Total | CM33: =CM30+CM31+CM32 -> 14 | CN33: =CN32+CN31+CN30 -> 100.00% | CV33: Admin | CW33: 3 | CX33: =CW33/CW36 -> 25.00%
B34: 32 | C34: 3911 | D34: 1304398 | E34: وزارة الصحة | F34: العيادات الخارجية | G34: الإداري | H34: استقبال العيادات الخارجية | I34: 2025-03-17T16:16:00 | J34: ابرار الشمري | K34: MOH | O34: 24 Hours | P34: 2025-03-17 | Q34: 16:16:00 | R34: ابرار الشمري | S34: 2025-03-17 | T34: 16:16:00 | X34: 2025-03-17 | Y34: 16:19:00 | Z34: ابرار الشمري | AA34: 0.002083333333 | AE34: -45733.67986 | AI34: 0 | AM34: -45733.67986 | AQ34: -45733.67986 | AR34: 2025-03-18 | AS34: 11:28:00 | AT34: ابرار الشمري | AU34: 0.7979166667 | AX34: -45733.67986 | AZ34: medical reports | BA34: عدم رفع الاجازة | BB34: رفض رفع الاجازة في منصة صحتي | BC34: The request to raise the leave on the "Sehati" platform was rejected. | BI34: Dissatisfied | BJ34: تم الرجوع الى النظام واتضح بان الدكتور غير متعاقد من المستشفى | BK34: تم التواصل مع المراجع | BL34: لايوجد | BM34: لايوجد | BO34: Hospital | CB34: Out-Patient | CC34: 9 | CD34: =CC34/CC36 -> 52.94% | CL34: Medical | CM34: 10 | CN34: =CM34/CM38 -> 71.43% | CV34: Nursing | CW34: 2 | CX34: =CW34/CW36 -> 16.67%
B35: 33 | C35: 3918 | D35: 1443204 | E35: مراجع | F35: التنويم | G35: الطبي | H35: وحدة العناية المركزة | I35: 2025-03-19T13:17:00 | J35: ابرار الشمري | O35: More than 72 hours | P35: 2025-03-19 | Q35: 13:17:00 | R35: ابرار الشمري | S35: 2025-03-19 | T35: 13:17:00 | X35: 2025-03-19 | Y35: 13:19:00 | Z35: ابرار الشمري | AA35: 0.001388888886 | AB35: 2025-03-24 | AC35: 14:06:00 | AD35: ابرار الشمري | AE35: 5.032638889 | AF35: 2025-03-22 | AG35: 23:32:00 | AH35: ابرار الشمري | AI35: -1.606944444 | AJ35: 2025-03-22 | AK35: 22:43:00 | AL35: ابرار الشمري | AM35: 3.391666667 | AQ35: -45735.55486 | AR35: 2025-03-25 | AS35: 45741 | AT35: ابرار الشمري | AU35: =(AS36+AR35)-(Y35+X35) -> 6.056944444 | AX35: -45735.55486 | AZ35: Treatment plan issue | BB35: في العناية المركزة حصل شق حنجري على جهاز التنفس الصناعي يدين متورمة وتجمع للسوائل استدعى تدخل جراحي مرتين لسحب السوائل، ومره ثانية لاستئصال الأنسجة المتضررة من التورم, اطلب التحقق من عدم وجود اهمال وهل تم اتخاذ اجراءات وقائية لمنع حدوث تورم في اليدين بعد ربطها , والتحقق في أسباب تأخر التدخل الجراحي لسحب السوائل مما سبب مضاعفات استدعت استئصال انسجة من اليد حيث وقعت على الموافقة ولم يتم التدخل الا بعد أيام حيث ان الموافقة الطبية لم يتم المتابعة فيها لحين تابعتها بنفسي بعد 3 ايام واخبرتهم بوجود موافقة | BC35: In the intensive care unit, the patient developed a tracheostomy while on the ventilator, with swollen hands and fluid accumulation that required two surgical interventions to drain the fluids, and a second procedure to remove the damaged tissue due to swelling. I request verification to ensure there was no negligence and to confirm whether preventive measures were taken to avoid swelling in the hands after they were tied. Additionally, I seek an investigation into the delay in the surgical intervention to drain the fluids, which led to complications requiring tissue removal from the hand. I had signed the consent form, but the intervention did not occur until after several days, as the medical approval was not followed up until I personally checked after three days and informed them of the existing approval. | BF35: عدم الرد من قبل القسم المعني رغم استنفاذ محاولات التذكير والتواصل عدة مرات عن طريق الاتصال مع رئيس القسم | BG35: عدم الرد من قبل القسم المعني رغم استنفاذ محاولات التذكير والتواصل عدة مرات عن طريق الاتصال مع رئيس القسم | BH35: د.عليا | BI35: Satisfied | BJ35: الشرح والتوضيح للمشتكي ولد المريضه بانه اعراض وارد حدوثها | BK35: الشرح والتوضيح للمشتكي ولد المريضه بانه اعراض وارد حدوثها | BL35: لايوجد | BM35: لايوجد | BO35: Hospital | CB35: ER | CC35: 1 | CD35: =CC35/CC36 -> 5.88% | CL35: Admin | CM35: 3 | CN35: =CM35/CM38 -> 21.43% | CV35: Support Services | CW35: 0 | CX35: =CW35/CW36 -> 0.00%
B36: 34 | C36: 3919 | D36: 1070607476 | E36: مجلس الضمان الصحي | F36: العيادات الخارجية | G36: الإداري | H36: استقبال العيادات الخارجية | I36: 2025-03-19T15:36:00 | J36: ابرار الشمري | K36: CHI | O36: 24 Hours | P36: 2025-03-19 | Q36: 15:36:00 | R36: ابرار الشمري | S36: 2025-03-19 | T36: 15:36:00 | X36: 2025-03-19 | Y36: 15:42:00 | Z36: ابرار الشمري | AA36: 0.004166666666 | AE36: -45735.65417 | AI36: 0 | AM36: -45735.65417 | AQ36: -45735.65417 | AR36: 2025-03-20 | AS36: 14:41:00 | AT36: ابرار الشمري | AU36: =(AS37+AR36)-(Y36+X36) -> 1.297222222 | AX36: -45735.65417 | AZ36: approval issue | BA36: عدم الحصول على موافقة | BB36: أعاني من عدم استقبالي في المستشفى رغم أن التأمين شامل. أفادوني بأن المشكلة تتعلق بالمستشفى والتأمين. أنا الآن متضرر من مزود الخدمة وشركة التأمين. أطلب الدعم لحل هذه المشكلة. | BC36: I am suffering from not being received at the hospital even though the insurance is comprehensive. They informed me that the problem is related to the hospital and the insurance. I am now affected by the service provider and the insurance company. I request support to resolve this issue. | BI36: Dissatisfied | BO36: Hospital | CB36: Total | CC36: =CC33+CC34+CC35 -> 17 | CD36: =CD35+CD34+CD33 -> 100.00% | CL36: Nursing | CM36: 1 | CN36: =CM36/CM38 -> 7.14% | CV36: Total | CW36: =CW32+CW33+CW34+CW35 -> 12 | CX36: =CX35+CX34+CX33+CX32 -> 100.00%
B37: 35 | C37: 3920 | D37: 30083860 | E37: مراجع | F37: الطوارئ | G37: الطبي | H37: أطباء الطوارئ | I37: 2025-03-19T21:58:00 | J37: مرام القحطاني | O37: 72 Hours | P37: 2025-03-19 | Q37: 21:33:00 | R37: مرام القحطاني | S37: 2025-03-19 | T37: 21:58:00 | U37: 2025-03-20 | V37: 21:37:00 | W37: مرام القحطاني | X37: 2025-03-20 | Y37: 21:37:00 | Z37: مرام القحطاني | AA37: 0.9854166667 | AE37: -45736.90069 | AI37: 0 | AM37: -45736.90069 | AQ37: -45736.90069 | AR37: 2025-03-22 | AS37: 22:50:00 | AT37: مرام القحطاني | AU37: =(AS37+AR37)-(Y37+X37) -> 2.050694444 | AX37: -45736.90069 | AZ37: misdiagnosis | BA37: تضارب في التشخيص | BB37: حضرت الطوارئ بسبب انخفاض ضغط الدم مع تناول دواء "الستات". قال طبيب الطوارئ إنه يمكن تناول الدواءين معًا، بينما وصف لي طبيب العيادة مغذيًا لرفع الضغط. هناك تضارب في المعلومات وأحتاج توضيحًا. | BC37: I went to the emergency room due to low blood pressure while taking the medication 'statins.' The emergency doctor said that both medications could be taken together, while the clinic doctor prescribed me an infusion to raise my blood pressure. There is a conflict in the information, and I need clarification. | BI37: Dissatisfied | BO37: patient | CB37: Medical | CC37: 6 | CD37: =CC37/CC41 -> 35.29% | CL37: Support Services | CM37: 0 | CN37: =CM37/CM38 -> 0.00%
B38: 36 | C38: 3922 | D38: 30265630 | E38: مراجع | F38: العيادات الخارجية | G38: الطبي | H38: عيادات النساء والولادة | I38: 2025-03-19T22:34:00 | J38: مرام القحطاني | O38: More than 72 hours | P38: 2025-03-19 | Q38: 22:27:00 | R38: مرام القحطاني | S38: 2025-03-19 | T38: 22:34:00 | U38: 2025-03-20 | V38: 21:46:00 | W38: مرام القحطاني | X38: 2025-03-20 | Y38: 21:47:00 | Z38: مرام القحطاني | AA38: 0.9673611111 | AB38: 2025-03-22 | AC38: 22:44:00 | AD38: ابرار الشمري | AE38: 2.039583333 | AF38: 2025-03-23 | AG38: 01:49:00 | AH38: ابرار الشمري | AI38: 0.1284722222 | AJ38: 2025-03-24 | AK38: 11:59:00 | AL38: مرام القحطاني | AM38: 3.591666667 | AQ38: -45736.90764 | AR38: 2025-03-25 | AS38: 23:13:00 | AT38: مرام القحطاني | AU38: 5.059722222 | AX38: -45736.90764 | AZ38: financial claim | BA38: مطالبة مالية | BB38: أجريت الأشعة قبل أسبوع من الموعد المحدد بناءً على طلب الدكتورة، لكن لم تُحل المشاكل. أوصت الدكتورة بإجراء الأشعة مرة أخرى بعد أسبوع، لكنني لم أستفد منها. عادةً يتم إجراء الأشعة التفصيلية بعد فترة أطول. أطلب استرجاع المبلغ المدفوع للأشعتين. | BC38: I underwent the imaging a week before the scheduled appointment at the doctor's request, but the issues were not resolved. The doctor recommended performing the imaging again after a week, but I did not benefit from it. Usually, detailed imaging is done after a longer period. I request a refund for the amount paid for both imaging sessions. | BI38: Dissatisfied | BO38: Hospital | CB38: Admin | CC38: 10 | CD38: =CC38/CC41 -> 58.82% | CL38: Total | CM38: =CM34+CM35+CM36+CM37 -> 14 | CN38: =CN37+CN36+CN35+CN34 -> 100.00%
B39: 37 | C39: 3923 | D39: 30375145 | E39: ذوي المراجع | F39: العيادات الخارجية | G39: الطبي | H39: عيادات الجهاز الهمضي والمناظير (أطفال) | I39: 2025-03-20T00:09:00 | J39: رهف العنزي | O39: 72 Hours | P39: 2025-03-20 | Q39: 00:09:00 | R39: رهف العنزي | S39: 2025-03-20 | T39: 00:09:00 | X39: 2025-03-20 | Y39: 00:56:00 | Z39: رهف العنزي | AA39: 0.03263888889 | AE39: -45736.03889 | AI39: 0 | AM39: -45736.03889 | AQ39: -45736.03889 | AR39: 2025-03-22 | AS39: 12:05:00 | AT39: رهف العنزي | AU39: 2.464583333 | AX39: -45736.03889 | AY39: مهند ناصر | AZ39: miscommunicatoin | BA39: مغادرة العيادة رغم حجز موعد مع الطبيب | BB39: يشتكي المراجع من مغادرة الطبيب للعيادة رغم وجود موعد محجوز له مع الطبيب | BC39: The patient complains that the doctor leaves the clinic despite having an appointment booked with him. | BI39: Dissatisfied | BO39: Hospital | CB39: Nursing | CC39: 1 | CD39: =CC39/CC41 -> 5.88%
B40: 38 | C40: 3923 | D40: 30375145 | E40: ذوي المراجع | F40: العيادات الخارجية | G40: الإداري | H40: استقبال العيادات الخارجية | I40: 2025-03-20T00:09:00 | J40: رهف العنزي | O40: 48 Hours | P40: 2025-03-20 | Q40: 00:09:00 | R40: رهف العنزي | S40: 2025-03-20 | T40: 00:09:00 | X40: 2025-03-20 | Y40: 00:56:00 | Z40: رهف العنزي | AA40: 0.03263888889 | AB40: 2025-03-20 | AC40: 20:19:00 | AD40: رهف العنزي | AE40: 0.8076388889 | AI40: -45736.84653 | AM40: -45736.03889 | AQ40: -45736.03889 | AR40: 2025-03-21 | AS40: 01:38:00 | AT40: رهف العنزي | AU40: 1.029166667 | AX40: -45736.03889 | AZ40: prescription issue | BA40: توجيه المراجع لطبيب لصرف حليب وعدم حصوله عليه | BB40: يشتكي والد الطفلة من توجيه ادارة العيادات له حين عدم وجود الاستشاري المطلوب لطبيب عام لصرف الحليب وبعد اسابيع من الرفض لم يحصل على الحليب | BC40: The father of the child complains about the clinic's management directing him to a general practitioner when the requested specialist was unavailable to prescribe the formula, and after weeks of rejection, he still did not receive the milk. | BE40: 2025-03-20 | BI40: Dissatisfied | BO40: Hospital | CB40: Support Services | CC40: 0 | CD40: =CC40/CC41 -> 0.00%
B41: 39 | C41: 3927 | D41: 1433204 | E41: ذوي المراجع | F41: الطوارئ | G41: الطبي | H41: أطباء الطوارئ | I41: 2025-03-20T23:32:00 | J41: رهف العنزي | O41: 72 Hours | P41: 2025-03-20 | Q41: 23:32:00 | R41: رهف العنزي | S41: 2025-03-20 | T41: 23:32:00 | X41: 2025-03-20 | Y41: 23:49:00 | Z41: رهف العنزي | AA41: 0.01180555555 | AB41: 2025-03-22 | AC41: 12:09:00 | AD41: رهف العنزي | AE41: 1.513888889 | AF41: 2025-03-22 | AG41: 22:58:00 | AH41: ابرار الشمري | AI41: 0.4506944444 | AM41: -45736.99236 | AQ41: -45736.99236 | AR41: 2025-03-23 | AS41: 01:47:00 | AT41: ابرار الشمري | AU41: 2.081944444 | AX41: -45736.99236 | AZ41: Treatment plan issue | BA41: عمل اجراء بدون دواعي طبية | BB41: يشتكي ابن المريضة من قرار تركيب جهاز التنفس الحنجري للمريضة ومن صحة الدواعي الطبية لهذا الاجراء وقراءات تحاليل الدم قبل وبعد الاجراء | BC41: The patient's son complains about the decision to insert the laryngeal breathing device for the patient, questioning the medical justification for the procedure and the blood test readings before and after the procedure. | BE41: 2025-03-22 | BI41: Satisfied | BO41: Hospital | CB41: Total | CC41: =CC37+CC38+CC39+CC40 -> 17 | CD41: =CD40+CD39+CD38+CD37 -> 100.00%
B42: 40 | C42: 3927 | D42: 1433204 | E42: ذوي المراجع | F42: الطوارئ | G42: التمريض | H42: تمريض الطوارئ | I42: 2025-03-20T23:32:00 | J42: رهف العنزي | O42: 48 Hours | P42: 2025-03-20 | Q42: 23:32:00 | R42: رهف العنزي | S42: 2025-03-20 | T42: 23:32:00 | X42: 2025-03-20 | Y42: 23:49:00 | Z42: رهف العنزي | AA42: 0.01180555555 | AE42: -45736.99236 | AI42: 0 | AM42: -45736.99236 | AQ42: -45736.99236 | AR42: 2025-03-22 | AS42: 23:00:00 | AT42: ابرار الشمري | AU42: 1.965972222 | AX42: -45736.99236 | AY42: ايناس الأمين | AZ42: attitude | BA42: استخدام القوة اثناء سحب البلغم | BB42: يشتكي ابن المريضة من استخدام القوة اثناء اجراء سحب البلغم مما تسبب بجرح في فم المريضة | BC42: The patient's son complains about the use of force during the mucus suction procedure, which resulted in a wound in the patient's mouth. | BE42: 2025-03-22 | BI42: Satisfied | BO42: Hospital
B43: 41 | C43: 3928 | D43: 30367917 | E43: وزارة الصحة | F43: التنويم | G43: الإداري | H43: قسم المالية | I43: 2025-03-22T11:07:00 | J43: رهف العنزي | K43: MOH | L43: 2025-03-22 | M43: 23:23:00 | N43: 053 239 9920 | O43: 24 Hours | P43: 2025-03-22 | Q43: 11:07:00 | R43: رهف العنزي | S43: 2025-03-22 | T43: 11:07:00 | X43: 2025-03-22 | Y43: 11:47:00 | Z43: رهف العنزي | AA43: 0.02777777778 | AE43: -45738.49097 | AI43: 0 | AM43: -45738.49097 | AQ43: -45738.49097 | AR43: 2025-03-22 | AS43: 16:12:00 | AT43: مها الحنيظل | AU43: 0.1840277778 | AX43: -45738.49097 | AZ43: financial claim | BA43: مطالبات مالية | BB43: تم تحويل الراجع من مستشفى حكومي الى خاص وبعد خروجه تم ارسال مطالية مالية اليه رغم تغطية وزارة الصحة لحالته | BC43: The patient was transferred from a government hospital to a private one, and after his discharge, a financial claim was sent to him, despite the Ministry of Health covering his case. | BI43: Satisfied | BO43: Hospital
A44: 4 | B44: 42 | C44: 3933 | D44: 30358044 | E44: ذوي المراجع | F44: التنويم | G44: الإداري | H44: قسم الموافقات الطبية | I44: 2025-03-23T14:29:00 | J44: ابرار الشمري | O44: More than 72 hours | P44: 2025-03-23 | Q44: 13:12:00 | R44: ابرار الشمري | S44: 2025-03-23 | T44: 14:29:00 | U44: 2025-03-26 | V44: 01:15:00 | W44: رهف العنزي | X44: 2025-03-26 | Y44: 01:15:00 | Z44: رهف العنزي | AA44: 2.448611111 | AB44: 2025-03-26 | AC44: 10:48:00 | AD44: مها الحنيظل | AE44: 0.3979166667 | AR44: 2025-04-01 | AS44: 12:11:00 | AT44: رهف العنزي | AU44: 6.455555556 | AZ44: approval issue | BA44: تاخير صدور موافقه | BB44: تم إدخال والدي العناية المركزة لتركيب أنبوب تغذية. تأخر رفع طلب الموافقة للتأمين لأكثر من ثماني ساعات، مما أدى لعدم إجراء الإجراء في الوقت المحدد. أستفسر عن دور موظفي التأمين في المستشفى. | BC44: My father was admitted to the intensive care unit for the installation of a feeding tube. The request for insurance approval was delayed for more than eight hours, which resulted in the procedure not being performed on time. I am inquiring about the role of insurance staff in the hospital | BI44: Satisfied | BO44: patient
B45: 43 | C45: 3934 | D45: 30244150 | E45: مجلس الضمان الصحي | F45: الطوارئ | G45: الإداري | H45: المدير المناوب | I45: 2025-03-23T13:43:00 | J45: ابرار الشمري | K45: CHI | O45: 48 Hours | P45: 2025-03-23 | Q45: 13:43:00 | R45: ابرار الشمري | S45: 2025-03-23 | T45: 13:43:00 | X45: 2025-03-23 | Y45: 14:52:00 | Z45: ابرار الشمري | AA45: 0.04791666666 | AB45: 2025-03-24 | AC45: 12:00:00 | AD45: ابرار الشمري | AE45: 0.8805555556 | AI45: =(AG45+AF45)-(AC45+AB45) -> -45740.5 | AM45: =(AK45+AJ45)-(Y45+X45) -> -45739.61944 | AQ45: =(AO45+AN45)-(Y45+X45) -> -45739.61944 | AR45: 2025-03-25 | AS45: 13:39:00 | AT45: ابرار الشمري | AU45: 1.949305556 | AX45: =(AW45+AV45)-(Y45+X45) -> -45739.61944 | AZ45: financial claim | BA45: مطالبات مالية | BB45: تم نقلي إلى الطوارئ بعد حادث سير أصبت فيه بجروح بليغة. طلب المستشفى موافقة شركة التأمين "بوابة" لتنفيذ إجراء عاجل، لكنها رفضت وطلبت تقريرًا إضافيًا رغم وجود تقرير الهلال الأحمر. نتيجة لذلك، تأخر تقديم العلاج إلى أن حصلنا على التقرير، لكن التأمين غطى تكاليف التنويم فقط ولم يغطِ تكاليف العملية الجراحية. | BC45: I was transferred to the emergency room after a car accident in which I sustained serious injuries. The hospital requested approval from the insurance company 'Bawabat' to perform an urgent procedure, but they refused and requested an additional report despite the existence of a report from the Red Crescent. As a result, the treatment was delayed until we obtained the report, but the insurance only covered the hospitalization costs and did not cover the surgical costs. | BI45: Dissatisfied | BO45: Hospital
B46: 44 | C46: 3935 | D46: 1515786 | E46: ذوي المراجع | F46: التنويم | G46: الطبي | H46: وحدة العناية المتوسطة | I46: 2025-03-23T22:24:00 | J46: مها الحنيظل | O46: More than 72 hours | P46: 2025-03-23 | Q46: 21:11:00 | R46: مها الحنيظل | S46: 2025-03-23 | T46: 22:24:00 | U46: 2025-03-23 | V46: 23:54:00 | W46: مها الحنيظل | X46: 2025-03-23 | Y46: 23:54:00 | Z46: مها الحنيظل | AA46: 0.0625 | AB46: 2025-03-25 | AC46: 11:32:00 | AD46: مها الحنيظل | AE46: 1.484722222 | AF46: 2025-03-26 | AG46: 15:21:00 | AH46: مها الحنيظل | AI46: 1.159027778 | AM46: -45739.99583 | AQ46: -45739.99583 | AR46: 2025-03-27 | AS46: 12:05:00 | AT46: مها الحنيظل | AU46: 3.507638889 | AX46: -45739.99583 | AY46: محمد امين | AZ46: attitude | BA46: ذوي المراجع يفيد بأنه لم يتم التعاون معهم بشكل مناسب ، ولم يتم التواصل بلغة لائقة. | BB46: ذوي المراجع يفيد بأنه تم عرض الوالده على الطبيب بسبب تشنجات دماغية، وأُبلغنا بأن حالته مستقرة. رغم ذلك، لم يتم التعاون معنا بشكل كافٍ، ولم يتم التواصل بلغة لائقة. تم إخبارنا بأنه سيتم نقل الوالد إلى الرعاية المديدة، رغم أن حالته لا تستدعي البقاء في الرعاية المتوسطة. | BC46: patient's family told that the patient was presented to the doctor due to brain seizures, and we were informed that his condition was stable. However, there was a lack of proper cooperation, and communication was not conducted in a respectful manner. We were told that the patient would be transferred to long-term care, despite the fact that his condition does not require staying in intermediate care | BI46: Satisfied | BO46: patient
B47: 45 | C47: 3938 | D47: 30095002 | E47: مراجع | F47: العيادات الخارجية | G47: الإداري | H47: قسم السنترال | I47: 2025-03-24T02:57:00 | J47: مها الحنيظل | O47: 72 Hours | P47: 2025-03-24 | Q47: 01:41:00 | R47: مها الحنيظل | S47: 2025-03-24 | T47: 02:57:00 | U47: 2025-03-24 | V47: 12:30:00 | W47: مها الحنيظل | X47: 2025-03-24 | Y47: 12:53:00 | Z47: مها الحنيظل | AA47: 0.4138888889 | AB47: 2025-03-25 | AC47: 15:38:00 | AD47: مها الحنيظل | AE47: 1.114583333 | AF47: 2025-03-26 | AG47: 15:22:00 | AH47: مها الحنيظل | AI47: 0.9888888889 | AM47: -45740.53681 | AQ47: -45740.53681 | AR47: 2025-03-27 | AS47: 12:06:00 | AT47: مها الحنيظل | AU47: 2.967361111 | AX47: -45740.53681 | AY47: قسم السنترال | AZ47: miscommunicatoin | BA47: تم التواصل مع خدمة العملاء عدة مرات للتحقق من تغطية التأمين دون رد، ثم تم إعادة الاتصال الساعة 9:30 مساءً، وأُخبرت أنه سيتم تحويل للقسم المختص، ولكن لم يتم الرد. عند التوجه للموقع، أفادتني موظفة الاستقبال بأن التأمين لا يغطي الحادث وأن خدمة العملاء هي المسؤولة. | BB47: تم التواصل مع خدمة العملاء عدة مرات للتحقق من تغطية التأمين دون رد. عند التوجه للموقع، أفادتني موظفة الاستقبال بأن التأمين لا يغطي الحادث وأن خدمة العملاء هي المسؤولة. | BC47: patient contacted customer service multiple times to verify the insurance coverage with no response. When she visited the location, the receptionist informed me that the insurance does not cover the incident and that customer service is responsible. | BI47: Dissatisfied | BO47: Hospital
B48: 46 | C48: 3944 | D48: 30375839 | E48: مراجع | F48: العيادات الخارجية | G48: الإداري | H48: استقبال العيادات الخارجية | I48: 2025-03-24T23:25:00 | J48: رهف العنزي | O48: More than 72 hours | P48: 2025-03-24 | Q48: 23:25:00 | R48: رهف العنزي | S48: 2025-03-24 | T48: 23:25:00 | X48: 2025-03-24 | Y48: 23:31:00 | Z48: رهف العنزي | AA48: 0.004166666666 | AB48: 2025-03-25 | AC48: 20:27:00 | AD48: رهف العنزي | AE48: 0.8722222222 | AF48: 2025-03-26 | AG48: 21:07:00 | AH48: رهف العنزي | AI48: 1.027777778 | AJ48: 2025-03-27 | AK48: 01:30:00 | AL48: رهف العنزي | AM48: 2.082638889 | AQ48: -45740.97986 | AR48: 2025-03-29 | AS48: 20:37:00 | AT48: رهف العنزي | AU48: 4.879166667 | AX48: -45740.97986 | AY48: فيصل الحربي | AZ48: attitude | BA48: اسلوب | BB48: اسلوب الموظف غير مهني مع المراجعة | BC48: Unprofessional behavior towards the patient | BE48: 2025-03-25 | BF48: تغيب الموظف عن العمل وعدم عمل تحقيق معه للرد | BG48: تغيب الموظف عن العمل وعدم عمل تحقيق معه للرد | BH48: الموظف | BI48: Satisfied | BJ48: اجراء اداري وتحقيق مع الموظف واعتذار من المراجعة من قبل ادارة العيادات | BK48: رضا المراجعة | BO48: patient
B49: 47 | C49: 3946 | D49: 1586410 | E49: وزارة الصحة | F49: العيادات الخارجية | G49: الإداري | H49: قسم التقارير الطبية | I49: 2025-03-25T15:44:00 | J49: ابرار الشمري | K49: MOH | L49: 2025-03-25 | M49: 1:00pm | N49: eialrashedi@moh.gov.sa | O49: 24 Hours | P49: 2025-03-25 | Q49: 15:44:00 | R49: ابرار الشمري | S49: 2025-03-25 | T49: 15:44:00 | X49: 2025-03-25 | Y49: 15:52:00 | Z49: ابرار الشمري | AA49: 0.005555555559 | AE49: -45741.66111 | AI49: 0 | AM49: -45741.66111 | AQ49: -45741.66111 | AR49: 2025-03-26 | AS49: 01:31:00 | AT49: رهف العنزي | AU49: 0.4020833333 | AV49: 2025-03-26 | AW49: 13:42:00 | AX49: 0.9097222222 | AZ49: medical reports | BA49: رفض اعطاء تقرير | BB49: تم الحضور إلى المستشفى لطلب تقرير سابق يتعلق بعملية قيصرية أجريت في عام 2020، ولكن تم رفض تسليم نسخة من التقرير من قبل المستشفى. | BC49: I attended the hospital to request a previous report related to a cesarean section performed in 2020, but the hospital refused to provide a copy of the report. | BI49: Satisfied | BO49: Hospital
B50: 48 | C50: 3950 | D50: 1433204 | E50: ذوي المراجع | F50: التنويم | G50: الإداري | H50: قسم الموافقات الطبية | I50: 2025-03-26T00:44:00 | J50: رهف العنزي | O50: 24 Hours | P50: 2025-03-26 | Q50: 00:44:00 | R50: رهف العنزي | S50: 2025-03-26 | T50: 00:44:00 | X50: 2025-03-26 | Y50: 00:56:00 | Z50: رهف العنزي | AA50: 0.008333333339 | AE50: -45742.03889 | AI50: 0 | AM50: -45742.03889 | AQ50: -45742.03889 | AR50: 2025-03-26 | AS50: 22:21:00 | AT50: رهف العنزي | AU50: 0.8923611111 | AX50: -45742.03889 | AZ50: approval issue | BA50: التاخير برفع طلب اجراء للمريضة | BB50: يشتكي ابن المريضة من تاخير في رفع طلب عمل اجراء للمريضة الى التأمين | BC50: The patient's son complains about a delay in submitting a request for a procedure for the patient to the insurance company. | BI50: Satisfied | BO50: Hospital
B51: 49 | C51: 3954 | D51: 1801424 | E51: ذوي المراجع | F51: التنويم | G51: التمريض | H51: تمريض تنويم النساء والولادة | I51: 2025-03-27T23:34:00 | J51: مها الحنيظل | O51: More than 72 hours | P51: 2025-03-27 | Q51: 11:03:00 | R51: مها الحنيظل | S51: 2025-03-27 | T51: 23:34:00 | U51: 2025-03-30 | V51: 12:50:00 | W51: مها الحنيظل | X51: 2025-03-30 | Y51: 17:51:00 | Z51: مها الحنيظل | AA51: 2.761805556 | AB51: 2025-03-31 | AC51: 12:03:00 | AD51: مها الحنيظل | AE51: 0.7583333333 | AI51: -45747.50208 | AM51: -45746.74375 | AQ51: -45746.74375 | AR51: 2025-04-05 | AS51: 14:20:00 | AT51: مها الحنيظل | AU51: 5.853472222 | AX51: -45746.74375 | AZ51: malpractice | BA51: عدم تجاوب الطاقم الطبي مع شكوى المريضه | BB51: المريضة أجرت عملية قيصرية يوم 23 مارس 2025، وشكت من ألم شديد وانتفاخ في المعدة وعدم القدرة على تصريف الغازات أو البراز، لكن الطاقم الطبي لم يستجب بشكل كافٍ سوى بتوجيهها للمشي. بعد أربعة أيام، تم تشخيص حالتها بانسداد في الأمعاء في الطوارئ، مما يدل على تقاعس في تقديم الرعاية الطبية اللازمة. | BC51: The patient underwent a cesarean section on March 23, 2025, and complained of severe pain, bloating, and an inability to pass gas or stool. However, the medical staff only advised her to walk without providing sufficient response. After four days, her condition was diagnosed as intestinal obstruction in the emergency room, indicating negligence in providing the necessary medical care. | BI51: Satisfied | BJ51: عملت الطبيبه جميع الإجراءات الازمه لكن المريضه لم تلتزم بالأدويه الموصوفه لها من قبل الطبيبه | BK51: رضا المراجعة | BL51: يجب على طاقم التمريض مراقبة حالة المريضة بشكل منتظم، بما في ذلك متابعة الأعراض مثل الألم، الانتفاخ، وصعوبة الهضم. | BM51: الاستماع الفعّال للمريضة | BN51: تمريض عيادات النساء و الولادة | BO51: Hospital
B52: 50 | C52: 3954 | D52: 1801424 | E52: ذوي المراجع | F52: العيادات الخارجية | G52: الطبي | H52: عيادات النساء والولادة | I52: 2025-03-27T11:03:00 | J52: مها الحنيظل | O52: More than 72 hours | P52: 2025-03-27 | Q52: 11:03:00 | R52: مها الحنيظل | S52: 2025-03-27 | T52: 11:34:00 | U52: 2025-03-30 | V52: 12:50:00 | W52: مها الحنيظل | X52: 2025-03-30 | Y52: 17:51:00 | Z52: مها الحنيظل | AA52: 3.261805556 | AB52: 2025-03-31 | AC52: 12:03:00 | AD52: مها الحنيظل | AE52: 0.7583333333 | AI52: -45747.50208 | AM52: -45746.74375 | AQ52: -45746.74375 | AR52: 2025-04-05 | AS52: 14:20:00 | AT52: مها الحنيظل | AU52: 5.853472222 | AX52: -45746.74375 | AY52: د.الهام منصور | AZ52: malpractice | BA52: عدم تجاوب الطاقم الطبي مع شكوى المريضه | BB52: المريضة أجرت عملية قيصرية يوم 23 مارس 2025، وشكت من ألم شديد وانتفاخ في المعدة وعدم القدرة على تصريف الغازات أو البراز، لكن الطاقم الطبي لم يستجب بشكل كافٍ سوى بتوجيهها للمشي. بعد أربعة أيام، تم تشخيص حالتها بانسداد في الأمعاء في الطوارئ، مما يدل على تقاعس في تقديم الرعاية الطبية اللازمة. | BC52: The patient underwent a cesarean section on March 23, 2025, and complained of severe pain, bloating, and an inability to pass gas or stool. However, the medical staff only advised her to walk without providing sufficient response. After four days, her condition was diagnosed as intestinal obstruction in the emergency room, indicating negligence in providing the necessary medical care. | BE52: 2025-03-31 | BF52: اجازة عيد الفطر | BG52: تأخر الطبيبه بالرد بسبب الإجازه | BH52: د.الهام منصور | BI52: Satisfied | BJ52: عملت الطبيبه جميع الإجراءات الازمه لكن المريضه لم تلتزم بالأدويه الموصوفه لها من قبل الطبيبه | BK52: رضا المراجعة | BL52: يجب توجيه المريضة بشكل واضح حول كيفية التعامل مع الأعراض بعد العملية، مثل كيفية المشي والتغذية المناسبة وتناول الأدوية. | BM52: شرح كيفية تناول الأدوية بشكل صحيح | BN52: عيادات النساء و الولادة | BO52: Hospital
A55: Week 1 | B55: 11 | D55: MOH | E55: 17 | F55: =E55/E59 -> 34.00% | H55: Medical | O55: Employee Name | P55: Number of complaints | Q55: Total Percentage | R55: 24 Hours | S55: 48 Hours | T55: 72 Hours | U55: More than 72 hours | V55: Total | Z55: Number of delays in sending the complaint (delay in activation) | AB55: Percentage | AC55: Activated within two hours | AD55: Percentage | AE55: Total | AJ55: الشكاوي المصعدة | AK55: خلال 72 | AL55: مبكرة | AM55: متأخرة | AN55: الموظف المسؤول | AU55: Medical | AW55: Average
A56: Week 2 | B56: 14 | D56: CCHI | E56: 7 | F56: =E56/E59 -> 14.00% | H56: أطباء الطوارئ | I56: 4 | O56: ابرار بندر الشمري | P56: 21 | Q56: =P56/P64 -> 42.00% | R56: 13 | S56: 3 | T56: 2 | U56: 3 | V56: =U57+T57+S57+R57 -> 100.00% | Z56: ابرار بندر الشمري | AA56: 2 | AB56: =AA56/AE60 -> 4.00% | AC56: 19 | AD56: =AC56/AE60 -> 38.00% | AE56: =AC56+AA56 -> 21 | AJ56: =AM56+AL56+AK56+AM57+AL57+AK57+AM58+AL58+AK58+AM59+AL59+AK59 -> 5 | AM56: 1 | AN56: ابرار بندر الشمري | AU56: أطباء الطوارئ | AV56: 4 | AW56: =AVERAGE(AX56:BB56) -> 1.50 | AX56: 0.063 | AY56: 1.85 | BA56: 2.04 | BB56: 2.06
A57: Week 3 | B57: 16 | D57: Patients | E57: 14 | F57: =E57/E59 -> 28.00% | H57: عيادات الباطنية | I57: 3 | O57: Percentage | R57: =R56/P56 -> 61.90% | S57: =S56/P56 -> 14.29% | T57: =T56/P56 -> 9.52% | U57: =U56/P56 -> 14.29% | Z57: مها الحنيظل | AA57: 5 | AB57: =AA57/AE60 -> 10.00% | AC57: 3 | AD57: =AC57/AE60 -> 6.00% | AE57: =AC57+AA57 -> 8 | AN57: مها الحنيظل | AU57: عيادات الباطنية | AV57: 3 | AW57: =AVERAGE(AX57:BB57) -> 1.01 | AX57: 2.06 | AY57: 0.049 | BA57: 0.92
A58: Week 4 | B58: 9 | D58: Patient’s relatives | E58: 12 | F58: =E58/E59 -> 24.00% | H58: قسم الجهاز الهضمي والكبد والمناظير | I58: 1 | O58: مها الحنيظل | P58: 8 | Q58: =P58/P64 -> 16.00% | R58: 4 | S58: 0 | T58: 1 | U58: 3 | V58: =U59+T59+S59+R59 -> 100.00% | Z58: مرام القحطاني | AA58: 2 | AB58: =AA58/AE60 -> 4.00% | AC58: 0 | AD58: =AC58/AE60 -> 0.00% | AE58: =AC58+AA58 -> 2 | AM58: 1 | AN58: مرام الفحطاني | AU58: قسم الجهاز الهضمي والكبد والمناظير | AV58: 1 | AW58: =AVERAGE(AX58:BB58) -> 2.10 | AX58: 2.1
A59: Total | B59: =B55+B56+B57+B58 -> 50 | D59: Total | E59: =E55+E56+E57+E58 -> 50 | F59: =F55+F56+F57+F58 -> 100.00% | H59: عيادات النساء والولادة | I59: 3 | O59: Percentage | R59: =R58/P58 -> 50.00% | S59: =S58/P58 -> 0.00% | T59: =T58/P58 -> 12.50% | U59: =U58/P58 -> 37.50% | Z59: رهف علي العنزي | AA59: 6 | AB59: =AA59/AE60 -> 12.00% | AC59: 13 | AD59: =AC59/AE60 -> 26.00% | AE59: =AA59+AC59 -> 19 | AK59: 1 | AM59: 2 | AN59: رهف علي العنزي | AU59: عيادات النساء والولادة | AV59: 3 | AW59: =AVERAGE(AX59:BB59) -> 4.01 | AX59: 1.13 | AY59: 5.05 | BA59: 5.84
D60: In-Patient | E60: 19 | F60: =E60/E63 -> 38.00% | H60: وحدة العناية المتوسطة | I60: 1 | O60: رهف علي العنزي | P60: 19 | Q60: =P60/P64 -> 38.00% | R60: 6 | S60: 5 | T60: 5 | U60: 3 | V60: =R61+S61+T61+U61 -> 100.00% | Z60: Total | AA60: =AA57+AA56+AA58+AA59 -> 15 | AB60: =AB56+AB57+AB59+AB58 -> 30.00% | AC60: =AC56+AC57+AC58+AC59 -> 35 | AD60: =AD56+AD57+AD58+AD59 -> 70.00% | AE60: =AE56+AE57+AE58+AE59 -> 50 | AU60: وحدة العناية المتوسطة | AV60: 1 | AW60: 3.50 | AX60: 3.5
A61: 1st Half | B61: 25 | D61: Out-Patient | E61: 25 | F61: =E61/E63 -> 50.00% | H61: وحدة العناية المركزة | I61: 4 | O61: Percentage | R61: =R60/P60 -> 31.58% | S61: =S60/P60 -> 26.32% | T61: =T60/P60 -> 26.32% | U61: =U60/P60 -> 15.79% | AE61: =AD60+AB60 -> 100.00% | AJ61: Total Escalated | AK61: 5 | AU61: وحدة العناية المركزة | AV61: 4 | AW61: =AVERAGE(AX61:BB61) -> 3.06 | AX61: 2.04 | AY61: 1.21 | BA61: 2.93 | BB61: 6.05
A62: 2nd Half | B62: 25 | D62: ER | E62: 6 | F62: =E62/E63 -> 12.00% | H62: قسم الحضانة | I62: 1 | O62: مرام القحطاني | P62: 2 | Q62: =P62/P64 -> 4.00% | R62: 0 | S62: 0 | T62: 1 | U62: 1 | V62: =R63+S63+T63+U63 -> 100.00% | AJ62: Total Closed | AK62: 0 | AU62: قسم الحضانة | AV62: 1 | AW62: 6.50 | AX62: 6.5
A63: Total | B63: =B62+B61 -> 50 | D63: Total | E63: =E60+E61+E62 -> 50 | F63: =F60+F61+F62 -> 100.00% | H63: عيادات الجهاز الهمضي والمناظير (أطفال) | I63: 1 | O63: Percentage | R63: =R62/P62 -> 0.00% | S63: =S62/P62 -> 0.00% | T63: =T62/P62 -> 50.00% | U63: =U62/P62 -> 50.00% | AU63: عيادات الجهاز الهمضي والمناظير (أطفال) | AV63: 1 | AW63: 2.46 | AX63: 2.46
D64: Medical | E64: 23 | F64: =E64/E68 -> 46.00% | H64: عيادات الطب النفسي | I64: 1 | O64: Total | P64: =P56+P58+P60+P62 -> 50 | Q64: =Q58+Q56+Q60+Q62 -> 100.00% | R64: =R58+R56+R60+R62 -> 23 | S64: =S58+S56+S60+S62 -> 8 | T64: =T58+T56+T60+T62 -> 9 | U64: =U58+U56+U60+U62 -> 10 | V64: =U65+T65+S65+R65 -> 100.00% | AU64: عيادات الطب النفسي | AV64: 1 | AW64: 2.35 | AX64: 2.35
D65: Admin | E65: 23 | F65: =E65/E68 -> 46.00% | H65: عيادات الجراحة العامة | I65: 1 | R65: =R64/P64 -> 46.00% | S65: =S64/P64 -> 16.00% | T65: =T64/P64 -> 18.00% | U65: =U64/P64 -> 20.00% | AU65: عيادات الجراحة العامة | AV65: 1 | AW65: =AVERAGE(AX65:BB65) -> 0.92 | AX65: 0.92
D66: Nursing | E66: 4 | F66: =E66/E68 -> 8.00% | H66: عيادات جراحة المسالك البولية | I66: 1 | AU66: عيادات جراحة المسالك البولية | AV66: 1 | AW66: =AVERAGE(AX66:BD66) -> 0.05 | AX66: 0.045
D67: Support Services | E67: 0 | F67: =E67/E68 -> 0.00% | H67: قسم الاشعة | I67: 1 | AU67: قسم الاشعة | AV67: 1 | AW67: 4.47 | AX67: 4.47
D68: Total | E68: =E64+E65+E66+E67 -> 50 | F68: =F64+F65+F66+F67 -> 100.00% | H68: قسم التخدير | I68: 1 | AU68: قسم التخدير | AV68: 1 | AW68: 1.06 | AX68: 1.06
H69: Total | I69: =SUBTOTAL(9,I56:I68) -> 23 | AU69: Total | AV69: =SUBTOTAL(9,AV56:AV68) -> 23
H71: Non-Medical | AU71: Non-Medical | AW71: Average
H72: إدارة التنويم | I72: 1 | AU72: إدارة التنويم | AV72: 1 | AW72: =AVERAGE(AX72:BE72) -> 0.84 | AX72: 0.84
H73: استقبال العيادات الخارجية | I73: 6 | AU73: استقبال العيادات الخارجية | AV73: 6 | AW73: =AVERAGE(AX73:BE73) -> 1.48 | AX73: 0.095 | AY73: 0.81 | BA73: 0.79 | BB73: 1.29 | BC73: 1.01 | BD73: 4.87
H74: مكتب التنويم | I74: 1 | AU74: مكتب التنويم | AV74: 1 | AW74: 0.88 | AX74: 0.88
H75: المدير المناوب | I75: 1 | AU75: المدير المناوب | AV75: 1 | AW75: 1.93 | AX75: 1.93
